Workbook

Sheet Cover Page
C3: Barking and Dagenham - Practice Clinical Trends (LDP) Report
D6: Website: | E6: qmul.ac.uk/ceg/
D7: Contact us: | E7: qmul.ac.uk/ceg/about-us/contact-us/
B19: General Health | C19: The number and percentage of patients on GP register aged over 16 with BMI and smoking status recorded
B20: Hypertension | C20: The number and percentage of patients on hypertension registers. The number and percentage of patients on register with blood pressure measured within last 9 months is less than 150/90
B21: CHD | C21: The number and percentage of patients on CHD register. Indicators included: cholesterol, BP ≤ 150/90
B22: Stroke/TIA | C22: The number and percentage of patients on Stroke/TIA register. Indicators included: BP recorded - BP <140/90.
B23: CVD Risk | C23: The number and percentage of patients eligible for CVD risk score (aged 25 -84). Indicators included: QRISK score, QRISK greater than 20% and proxy review
B24: Diabetes | C24: The number and percentage of patients on diabetes register. Indicators include: blood pressure; cholesterol; HbA1c; flu vaccination
B25: Mental Health | C25: The number and percentage of patients on Mental Health register. Indicators included: severe mental illness review and smoking status
B26: CKD | C26: The number and percentage of patients on CKD register. Indicators included: blood pressure and new diagnosis within 6 months
B27: COPD | C27: The number and percentage of patients on COPD register. Indicators included: severe or very severe COPD (FEV1<50) and smoking status
C30: N/A indicates either that no usable data has been returned or that calculation of a proportion is impossible

Sheet Full Explanatory Notes
A5: Worksheet | B5: Description of column contents | D5: Change log:
A6: General Health | B6: Patients aged 16 and over on the GP register
B7: Patients aged 16 and over on the GP register, with a BMI recorded in the last 12 months
B8: Patients aged 16 and over on the GP register, with a BMI ≥30 & <35
B9: Patients aged 16 and over on the GP register, with a BMI ≥ 35 & <40
B10: Patients aged 16 and over on the GP register, with a BMI ≥ 40
B11: Patients aged 16 and over on the GP register with smoking status recorded in the last 12 months
B12: Patients aged 16 and over on the GP register with smoking status recorded in the last 12 months, recorded as being a smoker.
A14: Hypertension | B14: Patients on the Hypertension register.
B15: Patients on the Hypertension register with BP recorded in the last 12 months.
B16: Patients on the Hypertension register with BP < 140/90 (Patients aged under 80) < 150/90 ( Aged 80 and over) (last 12m)
A18: CHD | B18: Patients on the CHD register
B19: Patients on the CHD register with cholesterol recorded in the last 12 months.
B20: Patients on the CHD register with last measured cholesterol < 5mmol in the last 12 months
B21: Patients on the CHD register with BP ≤ 150/90 (last 9m)
A23: Stroke/TIA | B23: Patients on the Stroke/TIA register
B24: Patients on the Stroke/TIA register with a BP recorded in last 12 months
B25: Patients on the Stroke/TIA register with BP recorded in the last 12 months with BP < 140/90
A27: CVD Risk | B27: Patients eligible for a CVD risk score (aged 25 - 84 excluding CVD)
B28: Patients with a QRISK or Framingham risk score done.
B29: Patients with a Q Risk score of 20% or higher
B30: Patients with a Q Risk score of 20% or higher and an annual review or proxy annual review
A32: Diabetes | B32: Patients on the diabetes register
B33: Patients on the diabetes register with BP recorded in the last 12 months
B34: Patients on the diabetes register with latest BP < 145/85 in the last 12 months
B35: Patients on the diabetes register with last measured cholesterol, measured within the last 15 months < 5mmol/l
B36: Patients on the diabetes register with last HbA1c < 59in the last 12 months
B37: Patients on the diabetes register with a Flu Jab within the last 12 months.
A40: Mental Health | B40: Patients on the Mental Health register
B41: Patients on the Mental Health register with a review recorded within the last 12 months.
B42: Patients on the Mental Health register with smoking status recorded within the last 12 months
B43: Patients on the Mental Health register with smoking status recorded within the last 12 months recorded as a smoker
B44: Patients on the Mental Health register with smoking status recorded within the last 12 months referred to the stop smoking clinic
B45: Patients on the Mental Health register with smoking status recorded within the last 12 months who are recorded as quitters
B46: Patients with Mental Health with blood pressure recorded in the last 12m
B47: Patients with Mental Health with QRISK recorded in the last 12m
B48: Patients with Mental Health with QRISK 20% or higher in the last 12m
A50: CKD | B50: Patients on CKD register
B51: Patients on the CKD register with blood pressure recorded
B52: Patients on the CKD register with blood pressure < 140/90
B53: Patients on the CKD register with new diagnosis of CKD in the last 6 months
A55: COPD | B55: Patients on COPD register
B56: No of patients with severe or very severe COPD (FEV1<50)
B57: No. of COPD Patients with smoking status recorded (last 12m) or never smoked
B58: No. of COPD patients recorded as a Smoker
B59: No. of COPD Patients who are current smokers & referred to the Stop Smoking Clinic (12m)
B60: No of COPD with flu vaccination (12m)
B61: No of COPD with pneumococcal vaccination ever
B62: No of COPD patients referred to pulmonary rehab ever

Sheet 2019-20 Changes (hidden)
A1: OLD (2017-2018) | C1: NEW (2018-2019) | E1: NEW (2019-20)
A2: List Size | C2: List Size | E2: List Size
A3: Age 16+ | C3: Age 16+ | E3: Age 16+
A4: % list size | C4: % list size | E4: % list size
A5: 16+ and BMI (last 15m) | C5: 16+ and BMI (last 12m) | E5: 16+ and BMI (last 12m)
A6: % 16+ | C6: % 16+ | E6: % 16+
A7: BMI 25 to 29 | C7: BMI ≥30 & <35 | E7: BMI ≥30 & <35
A8: % 16+ | C8: % 16+ | E8: % 16+
A9: BMI ≥ 30 | C9: BMI ≥ 35 & <40 | E9: BMI ≥ 35 & <40
A10: %16+ | C10: %16+ | E10: %16+
A11: BMI ≥ 40 | C11: BMI ≥ 40 | E11: BMI ≥ 40
A12: %16+ | C12: %16+ | E12: %16+
A13: Smoking status (last 15m) incl. never smoked | C13: Smoking status (last 12m) incl. never smoked | E13: Smoking status (last 12m) incl. never smoked
A14: % 16+ | C14: % 16+ | E14: % 16+
A15: Age 16+ and current smoker (last 15m) | C15: Age 16+ and current smoker (last 12m) | E15: Age 16+ and current smoker (last 12m)
A16: % 16+ | C16: % 16+ | E16: % 16+
A18: Hypertension Register | C18: Hypertension Register | E18: Hypertension Register
A19: % list size | C19: % list size | E19: % list size
A20: Hypertension and BP (last 9m) | C20: Hypertension and BP (last 12m) | E20: Hypertension and BP (last 12m)
A21: % Hypertension Register | C21: % Hypertension Register | E21: % Hypertension Register
A22: Hypertension and BP ≤ 150/90 (last 9m) | C22: Hypertension and BP < 140/90 (Patients aged under 80) < 150/90 ( Aged 80 and over) (last 12m) | E22: Hypertension and BP < 140/90 (Patients aged under 80) < 150/90 ( Aged 80 and over) (last 12m)
A23: % Hypertension Register | C23: % Hypertension Register | E23: % Hypertension Register
A25: CHD register | C25: CHD register | E25: CHD register
A26: % list size | C26: % list size | E26: % list size
A27: Cholesterol (last 15m) | C27: Cholesterol (last 12m) | E27: Cholesterol (last 12m)
A28: % CHD register | C28: % CHD register | E28: % CHD register
A29: Cholesterol ≤ 5 (last 15m) | C29: Cholesterol < 5 (last 12m) | E29: Cholesterol < 5 (last 12m)
A30: % CHD register | C30: % CHD register | E30: % CHD register
A31: BP (last 9m) | C31: BP ≤ 150/90 (last 9m) | E31: BP ≤ 150/90 (last 9m)
A32: % CHD register | C32: % CHD register | E32: % CHD register
A33: BP ≤ 150/90 (last 9m)
A34: % CHD register | E34: Stroke/TIA register
A35: CHD annual review or proxy review | E35: % list size
A36: % CHD register | E36: BP Recorded
A37: CHD diagnosed in last 6 months | E37: % Stroke/TIA register
A38: % CHD register | E38: BP <140/90 (last 12m)
E39: % Stroke/TIA register
A41: Aged 35 to 74 (exc CVD) | C41: Aged 25 to 84 (exc CVD) | E41: Aged 25 to 84 (exc CVD)
A42: CVD (QRISK or Framingham) risk score done | C42: QRISK recorded (5 years) | E42: QRISK recorded (5 years)
A43: % of patients aged 35 to 74 (exc CVD) | C43: % of patients aged 25 to 84 (exc CVD) | E43: % of patients aged 25 to 84 (exc CVD)
A44: QRISK ≥ 20% | C44: QRISK ≥ 20% | E44: QRISK ≥ 20%
A45: % QRISK Score recorded | C45: % QRISK Score recorded | E45: % QRISK Score recorded
A46: QRISK ≥ 20% and proxy review (BP and Chol last 15m) | C46: QRISK ≥ 20% and proxy review (BP and Chol last 12m) | E46: QRISK ≥ 20% and proxy review (BP and Chol last 12m)
A47: % Patients with QRISK ≥ 20% | C47: % Patients with QRISK ≥ 20% | E47: % Patients with QRISK ≥ 20%
A49: Diabetes register | C49: Diabetes register | E49: Diabetes register
A50: % List size | C50: % List size | E50: % List size
A51: BP (last 15m) | C51: BP (last 12m) | E51: BP (last 12m)
A52: % Diabetes Register | C52: % Diabetes Register | E52: % Diabetes Register
A53: BP ≤ 145/85 (last 15m) | C53: BP < 145/85 (last 12m) | E53: BP < 145/85 (last 12m)
A54: % Diabetes Register | C54: % Diabetes Register | E54: % Diabetes Register
A55: Cholesterol < 5mmols (last 15m) | C55: Cholesterol < 5mmols (last 12m) | E55: Cholesterol < 5mmols (last 12m)
A56: % Diabetes Register | C56: % Diabetes Register | E56: % Diabetes Register
A57: HbA1c ≤ 59(last 15m) | C57: HbA1c < 59 (last 12m) | E57: HbA1c < 59 (last 12m)
A58: % Diabetes register | C58: % Diabetes register | E58: % Diabetes register
A59: Flu jab (last 15m) | C59: Flu jab (last 12m) | E59: Flu jab (From August 2019)
A60: % Diabetes Register | C60: % Diabetes Register | E60: % Diabetes Register
A61: Annual review/ called or proxy (last 15m)
A62: % Diabetes register
A63: Cholesterol (last 15m)
A64: % Diabetes Register
A65: HbA1c ≤ 86 (last 15m)
A66: % Diabetes Register
A67: Diabetes retinal screening (last 15m)
A68: % Diabetes register
A69: Retinal screening (last 15m)
A70: % Diabetes register
A71: Neuropathy testing (last 15m)
A72: % Diabetes Register
A73: Microalbuminuria (last 15m)
A74: % Diabetes Register
A75: Type 1 Diabetes
A76: % Diabetes Register
A77: Type 2 Diabetes
A78: % Diabetes Register
A79: No Type Recorded
A80: % Diabetes Register
A81: Type 2 diabetes excluding insulin prescriptions (last 15 m)
A82: % Type 2 Diabetes
A83: Newly Diagnosed Diabetes (Last 1m)
A84: Newly Diagnosed Diabetes - Type 1
A85: Newly Diagnosed Diabetes - Type 2
A86: Newly Diagnosed Diabetes - Type Not Recorded
A87: Diabetics under 18 years old
A88: Diabetics Under 18 with HbA1c ≤ 59 (last 15m)
A89: % of Diabetics under 18
A90: No. of patients with diabetes diagnosed with CKD in the last 15m
A91: % Diabetes Register
A92: No. of patients with diabetes diagnosed with CHD and/or Stroke/TIA in the last 12 months
A93: % Diabetes Register
A94: No. of patients with diabetes diagnosed with Depression in the last 12 months
A95: %Diabetes Register
A96: No. of patients who have ever had gestational diabetes
A97: No. of patients who have ever had gestational diabetes who are also on diabetes register
A98: % of patients with gestational diabetes
A100: SMI register (QOF) | C100: Mental Health register | E100: Mental Health register
A101: % list size | C101: % list size | E101: % list size
A102: No. of SMI Patients with smoking status recorded (last 12m) or never smoked | C102: No. of Mental Health Patients with smoking status recorded (last 12m) or never smoked | E102: No. of Mental Health Patients with smoking status recorded (last 12m) or never smoked
A103: % SMI Register | C103: % Mental Health Register | E103: % Mental Health Register
A104: No. of SMI patients recorded as a Smoker | C104: No. of Mental Health patients recorded as a Smoker | E104: No. of Mental Health patients recorded as a Smoker
A105: % SMI Register | C105: % Mental Health Register | E105: % Mental Health Register
A106: No. of SMI Patients who are current smokers & referred to the Stop Smoking Clinic | C106: No. of Mental Health Patients who are current smokers & referred to the Stop Smoking Clinic | E106: No. of Mental Health Patients who are current smokers & referred to the Stop Smoking Clinic
A107: % SMI Register | C107: % Mental Health Register | E107: % Mental Health Register
A108: No. Of SMI Patients who are recorded as quitters | C108: No. Of Mental Health Patients who are recorded as quitters | E108: No. Of Mental Health Patients who are recorded as quitters
A109: % SMI Register | C109: % Mental Health Register | E109: % Mental Health Register
A110: Patients with SMI with QRISK recorded in the last 12m | C110: Patients with Mental Health with QRISK recorded in the last 12m | E110: Patients with Mental Health with QRISK recorded in the last 12m
A111: % SMI Register | C111: % Mental Health Register | E111: % Mental Health Register
A112: Patients with SMI with QRISK 20% or higher in the last 12m | C112: Patients with Mental Health with QRISK 20% or higher in the last 12m | E112: Patients with Mental Health with QRISK 20% or higher in the last 12m
A113: % patients with QRISK recorded 20% or higher | C113: % patients with QRISK recorded | E113: % patients with QRISK recorded
A114: Patients with SMI with BP & QRisk on the same day in the last 12m | C114: Patients with Mental Health with BP & QRisk on the same day in the last 12m | E114: Patients with Mental Health with BP & QRisk on the same day in the last 12m
A115: % Patients with SMI with BP & QRisk on the same day in the last 12m | C115: % Mental Health Register | E115: % Mental Health Register
A117: No. of patients on CKD register (QOF definition) | C117: No. of patients on CKD register | E117: No. of patients on CKD register
A118: % List Size | C118: % List Size | E118: % List Size
A119: BP Recorded (last 15m) | C119: BP Recorded (last 12m) | E119: BP Recorded (last 12m)
A120: % CKD register | C120: % CKD register | E120: % CKD register
A121: BP ≤ 140/90 | C121: BP < 140/90 | E121: BP < 140/90
A122: % CKD register | C122: % CKD register | E122: % CKD register
A123: No of patients with new diagnosis of CKD (last 6m) | C123: No of patients with new diagnosis of CKD (last 6m) | E123: No of patients with new diagnosis of CKD (last 6m)
A124: % CKD register | C124: % CKD register | E124: % CKD register
C126: No. of patients on COPD register | E126: No. of patients on COPD register
C127: % List Size | E127: % List Size
C128: No of patients with severe or very severe COPD (FEV1<50) | E128: No of patients with severe or very severe COPD (FEV1<50)
C129: % COPD register | E129: % COPD register
C130: No. of COPD Patients with smoking status recorded (last 12m) or never smoked | E130: No. of COPD Patients with smoking status recorded (last 12m) or never smoked
C131: % COPD | E131: % COPD
C132: No. of COPD patients recorded as a Smoker | E132: No. of COPD patients recorded as a Smoker
C133: % COPD | E133: % COPD
C134: No. of COPD Patients who are current smokers & referred to the Stop Smoking Clinic | E134: No. of COPD Patients who are current smokers & referred to the Stop Smoking Clinic
C135: % of current COPD smokers | E135: % of current COPD smokers
C136: No of COPD with flu vaccination (12m) | E136: No of COPD with flu vaccination (From August 2019)
C137: % of COPD register | E137: % of COPD register
C138: No of COPD with pneumococcal vaccination ever | E138: No of COPD with pneumococcal vaccination ever
C139: % of COPD register | E139: % of COPD register
C140: No of COPD patients referred to pulmonary rehab ever | E140: No of COPD patients referred to pulmonary rehab ever
C141: % of COPD register | E141: % of COPD register

Sheet Control Panel (hidden)
B1: Control Panel | C1: 2018-06-30 | G1: Select Dates
B2: General Health | G2: 2025-04-01 | I2: - | J2: Select Practice | K2: DN Team | L2: Patch | M2: Network | O2: OrgID | P2: 4 | Q2: =$P$6&ADDRESS(1,P2)&":"&ADDRESS($P$7,P2) -> 'LDP TABLE'!$D$1:$D$100000 | T2: OrgID_A | U2: 10 | V2: =$U$6&ADDRESS(1,U2)&":"&ADDRESS($U$7,U2) -> 'Data 17-18'!$J$1:$J$1000
A3: List Size | B3: 01. Listsize | C3: List Size | G3: 2025-05-01 | H3: Bethnal Green Health Centre | I3: F84083 | J3: Bethnal Green Health Centre | M3: NW1 | O3: REL_D | P3: 2 | Q3: =$P$6&ADDRESS(1,P3)&":"&ADDRESS($P$7,P3) -> 'LDP TABLE'!$B$1:$B$100000 | T3: REL_DA | U3: 1 | V3: =$U$6&ADDRESS(1,U3)&":"&ADDRESS($U$7,U3) -> 'Data 17-18'!$A$1:$A$1000
A4: Age 16+ | B4: LDP.01: Aged 16yrs+ | C4: Age 16+ | D4: Age 16+ | G4: 2025-06-01 | H4: The Mission Practice | I4: F84016 | J4: The Mission Practice | M4: NW1 | O4: IND | P4: - | Q4: =$P$6&ADDRESS(P11,1)&":"&ADDRESS(P11,P8) -> 'LDP TABLE'!$A$1:$BU$1 | T4: IND_A | U4: - | V4: =$U$6&ADDRESS(U11,1)&":"&ADDRESS(U11,U8) -> 'Data 17-18'!$A$1:$BU$1
A5: % list size | B5: ="%"&B4 -> %LDP.01: Aged 16yrs+ | C5: % list size | D5: % list size | G5: 2025-07-01 | H5: Globe Town Surgery | I5: F84123 | J5: Globe Town Surgery | M5: NW1 | O5: NwID | P5: 55 | Q5: =$P$6&ADDRESS(1,P5)&":"&ADDRESS($P$7,P5) -> 'LDP TABLE'!$BC$1:$BC$100000 | T5: NwID_A | U5: 2 | V5: =$U$6&ADDRESS(1,U5)&":"&ADDRESS($U$7,U5) -> 'Data 17-18'!$B$1:$B$1000
A6: 16+ and BMI (last 12m) | B6: LDP.01.01: Obesity BMI recorded (last 12m) | C6: 16+ and BMI (last 12m) | D6: 16+ and BMI (last 12m) | G6: 2025-08-01 | H6: Pollard Row Surgery | I6: Y00212 | J6: Pollard Row Surgery | M6: NW1 | O6: Data | P6: =IF(P9="N","BLANK!","'"&P10&"'!") -> 'LDP TABLE'! | T6: Data | U6: =IF(U9="N","BLANK!","'"&U10&"'!") -> 'Data 17-18'!
A7: % 16+ | B7: ="%"&B6 -> %LDP.01.01: Obesity BMI recorded (last 12m) | C7: % 16+ | D7: % 16+ | G7: 2025-09-01 | H7: Strouts Place Medical Centre | I7: F84051 | J7: Strouts Place Medical Centre | M7: NW1 | O7: Rows | P7: 100000 | T7: Rows | U7: 1000
A8: BMI 25 to 29 | B8: LDP.01.01.02: Obesity BMI between 30-35 (last 12m) | C8: BMI 25 to 29 | D8: BMI ≥30 & <35 | G8: 2025-10-01 | H8: Spitalfields Practice | I8: F84081 | J8: Spitalfields Practice | M8: NW2 | O8: Columns | P8: 73 | T8: Columns | U8: 73
A9: % 16+ | B9: ="%"&B8 -> %LDP.01.01.02: Obesity BMI between 30-35 (last 12m) | C9: % 16+ | D9: % 16+ | G9: 2025-11-01 | H9: Blithehale Medical Centre | I9: F84718 | J9: Blithehale Medical Centre | M9: NW2 | O9: Data (Y/N) | P9: Y | T9: Data (Y/N) | U9: Y
A10: BMI ≥ 30 | B10: LDP.01.01.01: Obesity BMI more than or equal to 35 less than 40 (last 12m) | C10: BMI ≥ 30 | D10: BMI ≥ 35 & <40 | G10: 2025-12-01 | H10: Health E1 | I10: F84733 | J10: Health E1 | M10: NW2 | O10: Q Work Sheet | P10: LDP TABLE | Q10: =$P$6&ADDRESS(1,1)&":"&ADDRESS(P7,P8) -> 'LDP TABLE'!$A$1:$BU$100000 | T10: Q Work Sheet | U10: Data 17-18 | V10: =$U$6&ADDRESS(1,1)&":"&ADDRESS(U7,U8) -> 'Data 17-18'!$A$1:$BU$1000
A11: %16+ | B11: ="%"&B10 -> %LDP.01.01.01: Obesity BMI more than or equal to 35 less than 40 (last 12m) | C11: %16+ | D11: %16+ | G11: 2026-01-01 | H11: Albion Health Centre | I11: F84012 | J11: Albion Health Centre | M11: NW2 | O11: Header Row | P11: 1 | T11: Header Row | U11: 1
A12: BMI ≥ 40 | B12: LDP.01.01.03: Obesity BMI equal to or over 40 (last 12m) | C12: BMI ≥ 40 | D12: BMI ≥ 40 | G12: 2026-02-01 | H12: XX Place Surgery | I12: F84122 | J12: XX Place Surgery | M12: NW2 | O12: Header Row 2 | P12: 3 | T12: Header Row 2 | U12: 3
A13: %16+ | B13: ="%"&B12 -> %LDP.01.01.03: Obesity BMI equal to or over 40 (last 12m) | C13: %16+ | D13: %16+ | G13: 2026-03-01 | H13: Harford Health Centre | I13: F84087 | J13: Harford Health Centre | M13: NW3
A14: Smoking status (last 12m) incl. never smoked | B14: LDP.01.02: Smoking Status (last 12m) or Never Smoked (25yrs+) | C14: Smoking status (last 12m) incl. never smoked | D14: Smoking status (last 12m) incl. never smoked | H14: Brayford Square (Dr Varma) | I14: F84046 | J14: Brayford Square (Dr Varma) | M14: NW3
A15: % 16+ | B15: ="%"&B14 -> %LDP.01.02: Smoking Status (last 12m) or Never Smoked (25yrs+) | C15: % 16+ | D15: % 16+ | H15: Whitechapel Health (Shah Jalal) | I15: F84039 | J15: Whitechapel Health (Shah Jalal) | M15: NW3
A16: Age 16+ and current smoker (last 12m) | B16: LDP.01.03: Current Smoker (last 12m) | C16: Age 16+ and current smoker (last 12m) | D16: Age 16+ and current smoker (last 12m) | H16: City Wellbeing Practice (Tower Medical) | I16: F84114 | J16: City Wellbeing Practice (Tower Medical) | M16: NW3 | O16: April 2025 | P16: 2025-05-01 | Q16: 1
A17: % 16+ | B17: ="%"&B16 -> %LDP.01.03: Current Smoker (last 12m) | C17: % 16+ | D17: % 16+ | H17: Wapping Group Practice | I17: F84079 | J17: Wapping Group Practice | M17: NW4 | O17: May 2025 | P17: 2025-06-01 | Q17: 1
B18: Hypertension | H18: Jubilee Street Practice | I18: F84031 | J18: Jubilee Street Practice | M18: NW4 | O18: June 2025 | P18: 2025-07-01 | Q18: 1
A19: Hypertension Register | B19: LDP.02: Hypertension Register | C19: Hypertension Register | D19: Hypertension Register | H19: St Katharine Docks Practice | I19: F84731 | J19: St Katharine Docks Practice | M19: NW4 | O19: July 2025 | P19: 2025-08-01 | Q19: 2
A20: % list size | B20: ="%"&B19 -> %LDP.02: Hypertension Register | C20: % list size | D20: % list size | H20: East One Health | I20: F84682 | J20: East One Health | M20: NW4 | O20: August 2025 | P20: 2025-09-01 | Q20: 2
A21: Hypertension and BP (last 9m) | B21: LDP.02.02: Hypertension BP recorded (last 12m) | C21: Hypertension and BP (last 9m) | D21: Hypertension and BP (last 12m) | H21: Harley Grove Medical Centre | I21: F84044 | J21: Harley Grove Medical Centre | M21: NW5 | O21: September 2025 | P21: 2025-10-01 | Q21: 2
A22: % Hypertension Register | B22: ="%"&B21 -> %LDP.02.02: Hypertension BP recorded (last 12m) | C22: % Hypertension Register | D22: % Hypertension Register | H22: St Stephens Health Centre | I22: F84034 | J22: St Stephens Health Centre | M22: NW5 | O22: October 2025 | P22: 2025-11-01 | Q22: 2
A23: Hypertension and BP ≤ 150/90 (last 9m) | B23: LDP.02.01: Hypertension and BP < 140/90 (age under 80) < 150/90 (Age 80+) | C23: Hypertension and BP ≤ 150/90 (last 9m) | D23: Hypertension and BP < 140/90 (Patients aged under 80) < 150/90 ( Aged 80 and over) (last 12m) | H23: Ruston Street Clinic (Dr Amin) | I23: F84030 | J23: Ruston Street Clinic (Dr Amin) | M23: NW5 | O23: November 2025 | P23: 2025-12-01 | Q23: 2
A24: % Hypertension Register | B24: ="%"&B23 -> %LDP.02.01: Hypertension and BP < 140/90 (age under 80) < 150/90 (Age 80+) | C24: % Hypertension Register | D24: % Hypertension Register | H24: Grove Road Surgery (Dr Shah) | I24: F84055 | J24: Grove Road Surgery (Dr Shah) | M24: NW5 | O24: December 2025 | P24: 2026-01-01 | Q24: 2
B25: CHD | H25: The Tredegar Practice | I25: F84696 | J25: The Tredegar Practice | M25: NW5 | O25: January 2026 | P25: 2026-02-01 | Q25: 2
A26: CHD register | B26: LDP.03: CHD Register | C26: CHD register | D26: CHD register | H26: Stroudley Walk Centre | I26: F84676 | J26: Stroudley Walk Centre | M26: NW6 | O26: February 2026 | P26: 2026-03-01 | Q26: 2
A27: % list size | B27: ="%"&B26 -> %LDP.03: CHD Register | C27: % list size | D27: % list size | H27: St Andrews Health Centre | I27: Y03023 | J27: St Andrews Health Centre | M27: NW6 | O27: March 2026 | P27: 2026-04-01 | Q27: 2
A28: Cholesterol (last 12m) | B28: LDP.03.04: CHD Cholesterol recorded (last 12m) | C28: Cholesterol (last 12m) | D28: Cholesterol (last 12m) | H28: Merchant Street (Dr Rana) | I28: F84118 | J28: Merchant Street (Dr Rana) | M28: NW6
A29: % CHD register | B29: ="%"&B28 -> %LDP.03.04: CHD Cholesterol recorded (last 12m) | C29: % CHD register | D29: % CHD register | H29: St Pauls Way Medical Centre | I29: F84714 | J29: St Pauls Way Medical Centre | M29: NW6
A30: Cholesterol ≤ 5 (last 12m) | B30: LDP.03.01: CHD Chol less than 5mmol (last 12m) | C30: Cholesterol ≤ 5 (last 12m) | D30: Cholesterol < 5 (last 12m) | H30: Bromley-By-Bow Health Centre | I30: F84122 | J30: Bromley-By-Bow Health Centre | M30: NW6
A31: % CHD register | B31: ="%"&B30 -> %LDP.03.01: CHD Chol less than 5mmol (last 12m) | C31: % CHD register | D31: % CHD register | H31: Limehouse Practice (Gill Street) | I31: F84054 | J31: Limehouse Practice (Gill Street) | M31: NW7
A32: BP (last 9m) | B32: LDP.03.02: CHD BP less than or equal 150/90 (last 9m) | C32: BP (last 9m) | D32: BP ≤ 150/90 (last 12m) | H32: Chrisp Street Health Centre | I32: F84062 | J32: Chrisp Street Health Centre | M32: NW7
A33: % CHD register | B33: ="%"&B32 -> %LDP.03.02: CHD BP less than or equal 150/90 (last 9m) | C33: % CHD register | D33: % CHD register | H33: Aberfeldy Practice | I33: F84698 | J33: Aberfeldy Practice | M33: NW7
A34: BP ≤ 150/90 (last 9m) | B34: LDP.03.05: CHD BP recorded (last 9m) | C34: BP ≤ 150/90 (last 9m) | H34: All Saints Practice | I34: F84702 | J34: All Saints Practice | M34: NW7
A35: % CHD register | B35: ="%"&B34 -> %LDP.03.05: CHD BP recorded (last 9m) | C35: % CHD register | H35: Gough Walk (Dr Selvan) | I35: F84025 | J35: Gough Walk (Dr Selvan) | M35: NW7
A36: CHD annual review or proxy review | B36: LDP.03.03: CHD Annual Review & Proxy (last 12m) | C36: CHD annual review or proxy review | H36: Island Health | I36: F84710 | J36: Island Health | M36: NW8
A37: % CHD register | B37: ="%"&B36 -> %LDP.03.03: CHD Annual Review & Proxy (last 12m) | C37: % CHD register | H37: Docklands Medical Centre | I37: F84656 | J37: Docklands Medical Centre | M37: NW8
A38: CHD diagnosed in last 6 months | B38: LDP.03.06: CHD Diagnosed (Last 6 months) | C38: CHD diagnosed in last 6 months | H38: Island Medical Centre | I38: F84647 | J38: Island Medical Centre | M38: NW8
A39: % CHD register | B39: ="%"&B38 -> %LDP.03.06: CHD Diagnosed (Last 6 months) | C39: % CHD register | H39: Barkantine Practice | I39: F84747 | J39: Barkantine Practice | M39: NW8
H40: Tower Hamlets | I40: Total | J40: Tower Hamlets
B41: Stroke/TIA
B42: LDP.10 Stroke or TIA register | D42: Stroke/TIA register
B43: %LDP.10 Stroke or TIA register | D43: % list size
B44: LDP.10.01: Stroke/TIA BP recorded (last 12m) | D44: Patients on Stroke/TIA register with BP recorded
B45: %LDP.10.01: Stroke/TIA BP recorded (last 12m) | D45: % of stroke register
B46: LDP.10.02 Patients on Stroke/TIA register with BP <140/90 (12m) | D46: Patients on Stroke/TIA register with BP <140/90 (12m)
B47: %LDP.10.02 Patients on Stroke/TIA register with BP <140/90 (12m) | D47: % of stroke register
B48: CVD Risk | H48: The One Network | I48: NW1 | J48: The One Network | M48: NW1
A49: Aged 35 to 74 (exc CVD) | B49: LDP.05: CVD 25-84yrs (excl CVD) | C49: Aged 35 to 74 (exc CVD) | D49: Aged 25 to 84 (exc CVD) | H49: East End Health Network | I49: NW2 | J49: East End Health Network | M49: NW2
A50: CVD (QRISK or Framingham) risk score done | B50: LDP.05.02: Cardiovascular Risk Score Done (5y) | C50: CVD (QRISK or Framingham) risk score done | D50: Cardiovascular Risk Score Done (5y) | H50: Stepney and Whitechapel Network | I50: NW3 | J50: Stepney and Whitechapel Network | M50: NW3
A51: % of patients aged 35 to 74 (exc CVD) | B51: ="%"&B50 -> %LDP.05.02: Cardiovascular Risk Score Done (5y) | C51: % of patients aged 35 to 74 (exc CVD) | D51: % of patients aged 25 to 84 (exc CVD) | H51: The Highway Network | I51: NW4 | J51: The Highway Network | M51: NW4
A52: QRISK ≥ 20% | B52: LDP.05.01: CVD QRISK greater than or equal 20% | C52: QRISK ≥ 20% | D52: QRISK ≥ 20% | H52: Bow Health Network | I52: NW5 | J52: Bow Health Network | M52: NW5
A53: % QRISK Score recorded | B53: ="%"&B52 -> %LDP.05.01: CVD QRISK greater than or equal 20% | C53: % QRISK Score recorded | D53: % of patients aged 25 to 84 (exc CVD) | H53: Mile End East and Bromley by Bow Network | I53: NW6 | J53: Mile End East and Bromley by Bow Network | M53: NW6
A54: QRISK ≥ 20% and proxy review (BP and Chol last 12m) | B54: LDP.05.01.01: CVD Proxy Annual Review (last 12m) | C54: QRISK ≥ 20% and proxy review (BP and Chol last 12m) | D54: QRISK ≥ 20% and proxy review (BP and Chol last 12m) | H54: Poplar and Limehouse Network | I54: NW7 | J54: Poplar and Limehouse Network | M54: NW7
A55: % Patients with QRISK ≥ 20% | B55: ="%"&B54 -> %LDP.05.01.01: CVD Proxy Annual Review (last 12m) | C55: % Patients with QRISK ≥ 20% | D55: % Patients with QRISK ≥ 20% | H55: Healthy Island Network | I55: NW8 | J55: Healthy Island Network | M55: NW8
B56: Diabetes
A57: Diabetes register | B57: LDP.04: Diabetes Register | C57: Diabetes register | D57: Diabetes register
A58: % List size | B58: ="%"&B57 -> %LDP.04: Diabetes Register | C58: % List size | D58: % List size
A59: Annual review/ called or proxy (last 12m) | B59: LDP.04.02: Diabetes Called & Annual Review or Proxy (last 12m) | C59: Annual review/ called or proxy (last 12m) | D59: BP (last 12m)
A60: % Diabetes register | B60: ="%"&B59 -> %LDP.04.02: Diabetes Called & Annual Review or Proxy (last 12m) | C60: % Diabetes register | D60: % Diabetes Register
A61: BP (last 12m) | B61: LDP.04.11: Diabetes and BP in last 12 months | C61: BP (last 12m) | D61: BP < 145/85 (last 12m)
A62: % Diabetes Register | B62: ="%"&B61 -> %LDP.04.11: Diabetes and BP in last 12 months | C62: % Diabetes Register | D62: % Diabetes Register
A63: BP ≤ 145/85 (last 12m) | B63: LDP.04.09: Diabetes BP less than 145/85 (last 12m) | C63: BP ≤ 145/85 (last 12m) | D63: Cholesterol < 5mmols (last 12m) | H63: Halbutt Street Surgery | I63: F82001
A64: % Diabetes Register | B64: ="%"&B63 -> %LDP.04.09: Diabetes BP less than 145/85 (last 12m) | C64: % Diabetes Register | D64: % Diabetes Register | H64: Church Elm Lane Medical Practice | I64: F82005
A65: Cholesterol (last 12m) | B65: LDP.04.12: Diabetes and cholesterol in last 15 mths | C65: Cholesterol (last 12m) | D65: HbA1c < 59 (last 12m) | H65: Broad Street Medical Centre | I65: Y01719
A66: % Diabetes Register | B66: ="%"&B65 -> %LDP.04.12: Diabetes and cholesterol in last 15 mths | C66: % Diabetes Register | D66: % Diabetes register | H66: Porters Avenue Doctors Surgery | I66: Y02575
A67: Cholesterol < 5mmols (last 12m) | B67: LDP.04.08: Diabetes Chol less than 5mmol (last 12m) | C67: Cholesterol < 5mmols (last 12m) | D67: Flu jab (From August 2021) | H67: First Avenue Surgery | I67: F82003
A68: % Diabetes Register | B68: ="%"&B67 -> %LDP.04.08: Diabetes Chol less than 5mmol (last 12m) | C68: % Diabetes Register | D68: % Diabetes Register | H68: Hedgemans Surgery | I68: F82015
A69: HbA1c ≤ 59(last 12m) | B69: LDP.04.01: Diabetes HbA1c <7.5% OR <59mmol (last 12m) | C69: HbA1c ≤ 59(last 12m) | H69: St Albans Surgery | I69: F82017
A70: % Diabetes register | B70: ="%"&B69 -> %LDP.04.01: Diabetes HbA1c <7.5% OR <59mmol (last 12m) | C70: % Diabetes register | H70: The Dewey Practice | I70: F82621
A71: HbA1c ≤ 86 (last 12m) | B71: LDP.04.10: Diabetes HbA1c <=10% OR <=86mmol (last 12m) | C71: HbA1c ≤ 86 (last 12m) | H71: Heathway Medical Centre | I71: F82634
A72: % Diabetes Register | B72: ="%"&B71 -> %LDP.04.10: Diabetes HbA1c <=10% OR <=86mmol (last 12m) | C72: % Diabetes Register | H72: Dr Alkaisy Surgery | I72: F82678
A73: Diabetes retinal screening (last 12m) | B73: LDP.04.03: Diabetes Digital retinal screening or Seen by retinal screener | C73: Diabetes retinal screening (last 12m) | H73: Parkview Medical Practice | I73: F82679
A74: % Diabetes register | B74: ="%"&B73 -> %LDP.04.03: Diabetes Digital retinal screening or Seen by retinal screener | C74: % Diabetes register | H74: Victoria Medical Centre | I74: F82034
A75: Retinal screening (last 12m) | B75: LDP.04.04: Diabetes Retinal Screening (QoF) (last 12m) | C75: Retinal screening (last 12m) | H75: Aurora Medcare | I75: F82042
A76: % Diabetes register | B76: ="%"&B75 -> %LDP.04.04: Diabetes Retinal Screening (QoF) (last 12m) | C76: % Diabetes register | H76: Abbey Medical centre | I76: F82625
A77: Neuropathy testing (last 12m) | B77: LDP.04.05: Diabetes Neuropathy Test (last 12m) | C77: Neuropathy testing (last 12m) | H77: Shifa Medical Practice | I77: Y01280
A78: % Diabetes Register | B78: ="%"&B77 -> %LDP.04.05: Diabetes Neuropathy Test (last 12m) | C78: % Diabetes Register | H78: Barking Medical Group Practice | I78: F82018
A79: Microalbuminuria (last 12m) | B79: LDP.04.06: Diabetes Microalbuminuria Test (latest last 12m) | C79: Microalbuminuria (last 12m) | H79: John Smith House | I79: F82040
A80: % Diabetes Register | B80: ="%"&B79 -> %LDP.04.06: Diabetes Microalbuminuria Test (latest last 12m) | C80: % Diabetes Register | H80: The White House | I80: F82612
A81: Flu jab (last 12m) | B81: LDP.04.07: Diabetes Influenza Vaccinations (From August 2018) | C81: Flu jab (last 12m) | H81: Dr Gupta & Partner | I81: F82647
A82: % Diabetes Register | B82: ="%"&B81 -> %LDP.04.07: Diabetes Influenza Vaccinations (From August 2018) | C82: % Diabetes Register | H82: Ripple Road Medical Centre | I82: F82650
A83: Type 1 Diabetes | B83: LDP.04.13. Type 1 Diabetes | C83: Type 1 Diabetes | H83: Highgrove Surgery | I83: F82680
A84: % Diabetes Register | B84: ="%"&B83 -> %LDP.04.13. Type 1 Diabetes | C84: % Diabetes Register | H84: Faircross Health Centre | I84: F82027
A85: Type 2 Diabetes | B85: LDP.04.14. Type 2 Diabetes | C85: Type 2 Diabetes | H85: Five Elms | I85: F82012
A86: % Diabetes Register | B86: ="%"&B85 -> %LDP.04.14. Type 2 Diabetes | C86: % Diabetes Register | H86: Julia Engwell Surgery | I86: F82025
A87: No Type Recorded | B87: No Type Recorded | C87: No Type Recorded | H87: Laburnum Health centre | I87: F82051
A88: % Diabetes Register | B88: ="%"&B87 -> %No Type Recorded | C88: % Diabetes Register | H88: Gables Surgery | I88: F82642
A89: Type 2 diabetes excluding insulin prescriptions (last 15 m) | B89: LDP 04.14.01 Excl Insulin Prescription (12m) | C89: Type 2 diabetes excluding insulin prescriptions (last 15 m) | H89: Green Lane Surgery | I89: F82661
A90: % Type 2 Diabetes | B90: ="%"&B89 -> %LDP 04.14.01 Excl Insulin Prescription (12m) | C90: % Type 2 Diabetes | H90: The Surgery | I90: F86040
A91: Newly Diagnosed Diabetes (Last 1m) | B91: LDP.04.19 Newly Diagnosed Diabetes (last 1m) | C91: Newly Diagnosed Diabetes (Last 1m) | H91: The Oval Practice | I91: Y01795
A92: Newly Diagnosed Diabetes - Type 1 | B92: LDP.04.19.01 Newly Diagnosed Type 1 | C92: Newly Diagnosed Diabetes - Type 1 | H92: Valence Medical Centre | I92: F82038
A93: Newly Diagnosed Diabetes - Type 2 | B93: LDP.04.19.02 Newly Diagnosed Type 2 | C93: Newly Diagnosed Diabetes - Type 2 | H93: Marks Gate Medical Practice | I93: F82604
A94: Newly Diagnosed Diabetes - Type Not Recorded | B94: ="%"&B93 -> %LDP.04.19.02 Newly Diagnosed Type 2 | C94: Newly Diagnosed Diabetes - Type Not Recorded | H94: Tulasi Medical Centre | I94: F82660
A95: Diabetics under 18 years old | B95: LDP.04.15 Diabetes (under 18) | C95: Diabetics under 18 years old | H95: Becontree Medical Centre | I95: F82677
A96: Diabetics Under 18 with HbA1c ≤ 59 (last 12m) | B96: LDP.04.15.01 Diabetes HbA1C <=7.5% OR <=59mmol (12m) | C96: Diabetics Under 18 with HbA1c ≤ 59 (last 12m) | H96: Barking and Dagenham | I96: Total
A97: % of Diabetics under 18 | B97: ="%"&B96 -> %LDP.04.15.01 Diabetes HbA1C <=7.5% OR <=59mmol (12m) | C97: % of Diabetics under 18
A98: No. of patients with diabetes diagnosed with CKD in the last 12m | B98: LDP.04.16 Diabetes and CKD Diagnosed (12m) | C98: No. of patients with diabetes diagnosed with CKD in the last 12m
A99: % Diabetes Register | B99: ="%"&B98 -> %LDP.04.16 Diabetes and CKD Diagnosed (12m) | C99: % Diabetes Register
A100: No. of patients with diabetes diagnosed with CHD and/or Stroke/TIA in the last 12 months | B100: LDP.04.17 Diabetes and Stroke or CHD Diagnosed (12m) | C100: No. of patients with diabetes diagnosed with CHD and/or Stroke/TIA in the last 12 months
A101: % Diabetes Register | B101: ="%"&B100 -> %LDP.04.17 Diabetes and Stroke or CHD Diagnosed (12m) | C101: % Diabetes Register
A102: No. of patients with diabetes diagnosed with Depression in the last 12 months | B102: LDP.04.18 Diabetes and Depression (last 12m) | C102: No. of patients with diabetes diagnosed with Depression in the last 12 months
A103: %Diabetes Register | B103: ="%"&B102 -> %LDP.04.18 Diabetes and Depression (last 12m) | C103: %Diabetes Register
A104: No. of patients who have ever had gestational diabetes | B104: LDP.07 Gestational Diabetes | C104: No. of patients who have ever had gestational diabetes
A105: No. of patients who have ever had gestational diabetes who are also on diabetes register | B105: LDP.07.01 Diabetes dx after Gestational Diabetes | C105: No. of patients who have ever had gestational diabetes who are also on diabetes register
A106: % of patients with gestational diabetes | B106: ="%"&B105 -> %LDP.07.01 Diabetes dx after Gestational Diabetes | C106: % of patients with gestational diabetes
B107: Mental Health
A108: SMI register (QOF) | B108: CSPMH.01 SMI Register | C108: SMI register (QOF) | D108: Mental Health register
A109: % list size | B109: ="%"&B108 -> %CSPMH.01 SMI Register | C109: % list size | D109: % list size
A110: No. of SMI Patients with smoking status recorded (last 12m) or never smoked | B110: CSPMH.01.02 Smoking Status Recorded (12m) | C110: No. of SMI Patients with smoking status recorded (last 12m) or never smoked | D110: No. of Mental Health Patients with smoking status recorded (last 12m) or never smoked
A111: % SMI Register | B111: ="%"&B110 -> %CSPMH.01.02 Smoking Status Recorded (12m) | C111: % SMI Register | D111: % Mental Health Register
A112: No. of SMI patients recorded as a Smoker | B112: CSPMH.01.02.01 Current Smoker (12m) | C112: No. of SMI patients recorded as a Smoker | D112: No. of Mental Health patients recorded as a Smoker
A113: % SMI Register | B113: ="%"&B112 -> %CSPMH.01.02.01 Current Smoker (12m) | C113: % SMI Register | D113: % Mental Health Register
A114: No. of SMI Patients who are current smokers & referred to the Stop Smoking Clinic | B114: CSPMH 01.02.01.01 Ref to clinic 12m | C114: No. of SMI Patients who are current smokers & referred to the Stop Smoking Clinic | D114: No. of Mental Health Patients who are current smokers & referred to the Stop Smoking Clinic
A115: % SMI Register | B115: ="%"&B114 -> %CSPMH 01.02.01.01 Ref to clinic 12m | C115: % SMI Register | D115: % Mental Health Register
A116: No. Of SMI Patients who are recorded as quitters | B116: CSPMH.01.02.02 Ex-smoker Recorded (latest 12m) | C116: No. Of SMI Patients who are recorded as quitters | D116: No. Of Mental Health Patients who are recorded as quitters
A117: % SMI Register | B117: ="%"&B116 -> %CSPMH.01.02.02 Ex-smoker Recorded (latest 12m) | C117: % SMI Register | D117: % Mental Health Register
A118: Patients with SMI with QRISK recorded in the last 12m | B118: CSPMH. 01.03 QRisk Recorded (12m) | C118: Patients with SMI with QRISK recorded in the last 12m | D118: Patients with Mental Health with QRISK recorded in the last 12m
A119: % SMI Register | B119: ="%"&B118 -> %CSPMH. 01.03 QRisk Recorded (12m) | C119: % SMI Register | D119: % Mental Health Register
A120: Patients with SMI with QRISK 20% or higher in the last 12m | B120: CSPMH. 01.03.02 Qrisk>=20 (12m) | C120: Patients with SMI with QRISK 20% or higher in the last 12m | D120: Patients with Mental Health with QRISK 20% or higher in the last 12m
A121: % patients with QRISK recorded 20% or higher | B121: ="%"&B120 -> %CSPMH. 01.03.02 Qrisk>=20 (12m) | C121: % patients with QRISK recorded 20% or higher | D121: % patients with QRISK recorded
A122: Patients with SMI with BP & QRisk on the same day in the last 12m | B122: CSPMH. 01.03.01 BP recorded on same day as QRisk (12m) | C122: Patients with SMI with BP & QRisk on the same day in the last 12m | D122: Patients with Mental Health with BP & QRisk on the same day in the last 12m
A123: % Patients with SMI with BP & QRisk on the same day in the last 12m | B123: ="%"&B122 -> %CSPMH. 01.03.01 BP recorded on same day as QRisk (12m) | C123: % Patients with SMI with BP & QRisk on the same day in the last 12m | D123: % Mental Health Register
B124: CKD
A125: No. of patients on CKD register | B125: LDP.08 CKD Register | C125: No. of patients on CKD register | D125: No. of patients on CKD register
A126: % List Size | B126: ="%"&B125 -> %LDP.08 CKD Register | C126: % List Size | D126: % List Size
A127: BP Recorded (last 12m) | B127: LDP.08.03 CKD and BP Recorded (last 12 m) | C127: BP Recorded (last 12m) | D127: BP Recorded (last 12m)
A128: % CKD register | B128: ="%"&B127 -> %LDP.08.03 CKD and BP Recorded (last 12 m) | C128: % CKD register | D128: % CKD register
A129: BP ≤ 140/90 | B129: LDP.08.01 CKD and BP less than 140/90 (last 12 m) | C129: BP ≤ 140/90 | D129: BP < 140/90
A130: % CKD register | B130: ="%"&B129 -> %LDP.08.01 CKD and BP less than 140/90 (last 12 m) | C130: % CKD register | D130: % CKD register
A131: No of patients with new diagnosis of CKD (last 6m) | B131: LDP.08.02 CKD Diagnosed (Last 6m) | C131: No of patients with new diagnosis of CKD (last 6m) | D131: No of patients with new diagnosis of CKD (last 6m)
A132: % CKD register | B132: ="%"&B131 -> %LDP.08.02 CKD Diagnosed (Last 6m) | C132: % CKD register | D132: % CKD register
B133: COPD
B134: LDP.09 COPD Register | C134: No. of patients on COPD register
B135: ="%"&B134 -> %LDP.09 COPD Register | C135: % List Size
B136: LDP.09.01 Patients with severe or very severe COPD (FEV1<50) | C136: No of patients with severe or very severe COPD (FEV1<50)
B137: ="%"&B136 -> %LDP.09.01 Patients with severe or very severe COPD (FEV1<50) | C137: % COPD register
B138: LDP.09.02 Patients with smoking status recorded (last 12m) or never smoked | C138: No. of COPD Patients with smoking status recorded (last 12m) or never smoked
B139: ="%"&B138 -> %LDP.09.02 Patients with smoking status recorded (last 12m) or never smoked | C139: % COPD
B140: LDP.09.03 COPD patients recorded as a Smoker | C140: No. of COPD patients recorded as a Smoker
B141: ="%"&B140 -> %LDP.09.03 COPD patients recorded as a Smoker | C141: % COPD
B142: LDP.09.04 COPD Patients who are current smokers & referred to the Stop Smoking C | C142: No. of COPD Patients who are current smokers & referred to the Stop Smoking Clinic (12m)
B143: ="%"&B142 -> %LDP.09.04 COPD Patients who are current smokers & referred to the Stop Smoking C | C143: % of current COPD smokers
B144: LDP.09.05 No of COPD with flu vaccination (From August 2018) | C144: No of COPD with flu vaccination (From August 2024)
B145: ="%"&B144 -> %LDP.09.05 No of COPD with flu vaccination (From August 2018) | C145: % of COPD register
B146: LDP.09.06 No of COPD with pneumococcal vaccination ever | C146: No of COPD with pneumococcal vaccination ever
B147: ="%"&B146 -> %LDP.09.06 No of COPD with pneumococcal vaccination ever | C147: % of COPD register
B148: LDP.09.07 No of COPD patients referred to pulmonary rehab ever | C148: No of COPD patients referred to pulmonary rehab ever
B149: ="%"&B148 -> %LDP.09.07 No of COPD patients referred to pulmonary rehab ever | C149: % of COPD register

Sheet Month by month
C2: Barking and Dagenham | H2: Practice Clinical Trends (LDP) Report Summary 2025 / 2026
C4: BK | D4: 2023-04-01 | E4: 2024-04-01 | F4: 2025-05-01 | G4: 2025-06-01 | H4: 2025-07-01 | I4: 2025-08-01 | J4: 2025-09-01 | K4: 2025-10-01 | L4: 2025-11-01 | M4: 2025-12-01 | N4: 2026-01-01 | O4: 2026-02-01 | P4: 2026-03-01 | Q4: 2026-04-01 | R4: 2019-05-01
C5: =VLOOKUP(C2,'Control Panel'!H62:I113,2,FALSE) -> Total | D5: 2023-03-01 | E5: 2024-03-01 | F5: 2025-04-01 | G5: 2025-05-01 | H5: 2025-06-01 | I5: 2025-07-01 | J5: 2025-08-01 | K5: 2025-09-01 | L5: 2025-10-01 | M5: 2025-11-01 | N5: 2025-12-01 | O5: 2026-01-01 | P5: 2026-02-01 | Q5: 2026-03-01 | R5: 2019-04-01
C7: ='Control Panel'!B2 -> General Health
A8: ='Control Panel'!B3 -> 01. Listsize | B8: 01. Listsize | C8: ='Control Panel'!C3 -> List Size | D8: =IF($C$5="Total",SUMIFS(OFFSET(REL_D,,MATCH($A8,IND,0)-2),REL_D,D$4,NwID,$C$4),SUMIFS(OFFSET(REL_D,,MATCH($A8,IND,0)-2),REL_D,D$4,OrgID,$C$5)) -> 225581 | E8: =IF($C$5="Total",SUMIFS(OFFSET(REL_D,,MATCH($A8,IND,0)-2),REL_D,E$4,NwID,$C$4),SUMIFS(OFFSET(REL_D,,MATCH($A8,IND,0)-2),REL_D,E$4,OrgID,$C$5)) -> 240819 | F8: =IF($C$5="Total",SUMIFS(OFFSET(REL_D,,MATCH($A8,IND,0)-2),REL_D,F$4,NwID,$C$4),SUMIFS(OFFSET(REL_D,,MATCH($A8,IND,0)-2),REL_D,F$4,OrgID,$C$5)) -> 258490 | G8: =IF($C$5="Total",SUMIFS(OFFSET(REL_D,,MATCH($A8,IND,0)-2),REL_D,G$4,NwID,$C$4),SUMIFS(OFFSET(REL_D,,MATCH($A8,IND,0)-2),REL_D,G$4,OrgID,$C$5)) -> 258806 | H8: =IF($C$5="Total",SUMIFS(OFFSET(REL_D,,MATCH($A8,IND,0)-2),REL_D,H$4,NwID,$C$4),SUMIFS(OFFSET(REL_D,,MATCH($A8,IND,0)-2),REL_D,H$4,OrgID,$C$5)) -> 0 | I8: =IF($C$5="Total",SUMIFS(OFFSET(REL_D,,MATCH($A8,IND,0)-2),REL_D,I$4,NwID,$C$4),SUMIFS(OFFSET(REL_D,,MATCH($A8,IND,0)-2),REL_D,I$4,OrgID,$C$5)) -> 0 | J8: =IF($C$5="Total",SUMIFS(OFFSET(REL_D,,MATCH($A8,IND,0)-2),REL_D,J$4,NwID,$C$4),SUMIFS(OFFSET(REL_D,,MATCH($A8,IND,0)-2),REL_D,J$4,OrgID,$C$5)) -> 0 | K8: =IF($C$5="Total",SUMIFS(OFFSET(REL_D,,MATCH($A8,IND,0)-2),REL_D,K$4,NwID,$C$4),SUMIFS(OFFSET(REL_D,,MATCH($A8,IND,0)-2),REL_D,K$4,OrgID,$C$5)) -> 0 | L8: =IF($C$5="Total",SUMIFS(OFFSET(REL_D,,MATCH($A8,IND,0)-2),REL_D,L$4,NwID,$C$4),SUMIFS(OFFSET(REL_D,,MATCH($A8,IND,0)-2),REL_D,L$4,OrgID,$C$5)) -> 0 | M8: =IF($C$5="Total",SUMIFS(OFFSET(REL_D,,MATCH($A8,IND,0)-2),REL_D,M$4,NwID,$C$4),SUMIFS(OFFSET(REL_D,,MATCH($A8,IND,0)-2),REL_D,M$4,OrgID,$C$5)) -> 0 | N8: =IF($C$5="Total",SUMIFS(OFFSET(REL_D,,MATCH($A8,IND,0)-2),REL_D,N$4,NwID,$C$4),SUMIFS(OFFSET(REL_D,,MATCH($A8,IND,0)-2),REL_D,N$4,OrgID,$C$5)) -> 0 | O8: =IF($C$5="Total",SUMIFS(OFFSET(REL_D,,MATCH($A8,IND,0)-2),REL_D,O$4,NwID,$C$4),SUMIFS(OFFSET(REL_D,,MATCH($A8,IND,0)-2),REL_D,O$4,OrgID,$C$5)) -> 0 | P8: =IF($C$5="Total",SUMIFS(OFFSET(REL_D,,MATCH($A8,IND,0)-2),REL_D,P$4,NwID,$C$4),SUMIFS(OFFSET(REL_D,,MATCH($A8,IND,0)-2),REL_D,P$4,OrgID,$C$5)) -> 0 | Q8: =IF($C$5="Total",SUMIFS(OFFSET(REL_D,,MATCH($A8,IND,0)-2),REL_D,Q$4,NwID,$C$4),SUMIFS(OFFSET(REL_D,,MATCH($A8,IND,0)-2),REL_D,Q$4,OrgID,$C$5)) -> 0 | R8: =SUMIFS(OFFSET(REL_D,,MATCH($A8,IND,0)-1),REL_D,R$4,IF(LEFT($C$5,1)="N",NwID,OrgID),$C$5) -> 0
A9: ='Control Panel'!B4 -> LDP.01: Aged 16yrs+ | B9: LDP.01: Aged 16yrs+ | C9: ='Control Panel'!D4 -> Age 16+ | D9: =IF($C$5="Total",SUMIFS(OFFSET(REL_D,,MATCH($A9,IND,0)-2),REL_D,D$4,NwID,$C$4),SUMIFS(OFFSET(REL_D,,MATCH($A9,IND,0)-2),REL_D,D$4,OrgID,$C$5)) -> 171193 | E9: =IF($C$5="Total",SUMIFS(OFFSET(REL_D,,MATCH($A9,IND,0)-2),REL_D,E$4,NwID,$C$4),SUMIFS(OFFSET(REL_D,,MATCH($A9,IND,0)-2),REL_D,E$4,OrgID,$C$5)) -> 184344 | F9: =IF($C$5="Total",SUMIFS(OFFSET(REL_D,,MATCH($A9,IND,0)-2),REL_D,F$4,NwID,$C$4),SUMIFS(OFFSET(REL_D,,MATCH($A9,IND,0)-2),REL_D,F$4,OrgID,$C$5)) -> 199607 | G9: =IF($C$5="Total",SUMIFS(OFFSET(REL_D,,MATCH($A9,IND,0)-2),REL_D,G$4,NwID,$C$4),SUMIFS(OFFSET(REL_D,,MATCH($A9,IND,0)-2),REL_D,G$4,OrgID,$C$5)) -> 199948 | H9: =IF($C$5="Total",SUMIFS(OFFSET(REL_D,,MATCH($A9,IND,0)-2),REL_D,H$4,NwID,$C$4),SUMIFS(OFFSET(REL_D,,MATCH($A9,IND,0)-2),REL_D,H$4,OrgID,$C$5)) -> 0 | I9: =IF($C$5="Total",SUMIFS(OFFSET(REL_D,,MATCH($A9,IND,0)-2),REL_D,I$4,NwID,$C$4),SUMIFS(OFFSET(REL_D,,MATCH($A9,IND,0)-2),REL_D,I$4,OrgID,$C$5)) -> 0 | J9: =IF($C$5="Total",SUMIFS(OFFSET(REL_D,,MATCH($A9,IND,0)-2),REL_D,J$4,NwID,$C$4),SUMIFS(OFFSET(REL_D,,MATCH($A9,IND,0)-2),REL_D,J$4,OrgID,$C$5)) -> 0 | K9: =IF($C$5="Total",SUMIFS(OFFSET(REL_D,,MATCH($A9,IND,0)-2),REL_D,K$4,NwID,$C$4),SUMIFS(OFFSET(REL_D,,MATCH($A9,IND,0)-2),REL_D,K$4,OrgID,$C$5)) -> 0 | L9: =IF($C$5="Total",SUMIFS(OFFSET(REL_D,,MATCH($A9,IND,0)-2),REL_D,L$4,NwID,$C$4),SUMIFS(OFFSET(REL_D,,MATCH($A9,IND,0)-2),REL_D,L$4,OrgID,$C$5)) -> 0 | M9: =IF($C$5="Total",SUMIFS(OFFSET(REL_D,,MATCH($A9,IND,0)-2),REL_D,M$4,NwID,$C$4),SUMIFS(OFFSET(REL_D,,MATCH($A9,IND,0)-2),REL_D,M$4,OrgID,$C$5)) -> 0 | N9: =IF($C$5="Total",SUMIFS(OFFSET(REL_D,,MATCH($A9,IND,0)-2),REL_D,N$4,NwID,$C$4),SUMIFS(OFFSET(REL_D,,MATCH($A9,IND,0)-2),REL_D,N$4,OrgID,$C$5)) -> 0 | O9: =IF($C$5="Total",SUMIFS(OFFSET(REL_D,,MATCH($A9,IND,0)-2),REL_D,O$4,NwID,$C$4),SUMIFS(OFFSET(REL_D,,MATCH($A9,IND,0)-2),REL_D,O$4,OrgID,$C$5)) -> 0 | P9: =IF($C$5="Total",SUMIFS(OFFSET(REL_D,,MATCH($A9,IND,0)-2),REL_D,P$4,NwID,$C$4),SUMIFS(OFFSET(REL_D,,MATCH($A9,IND,0)-2),REL_D,P$4,OrgID,$C$5)) -> 0 | Q9: =IF($C$5="Total",SUMIFS(OFFSET(REL_D,,MATCH($A9,IND,0)-2),REL_D,Q$4,NwID,$C$4),SUMIFS(OFFSET(REL_D,,MATCH($A9,IND,0)-2),REL_D,Q$4,OrgID,$C$5)) -> 0 | R9: =SUMIFS(OFFSET(REL_D,,MATCH($A9,IND,0)-1),REL_D,R$4,IF(LEFT($C$5,1)="N",NwID,OrgID),$C$5) -> 0
A10: ='Control Panel'!B5 -> %LDP.01: Aged 16yrs+ | B10: %LDP.01: Aged 16yrs+ | C10: ='Control Panel'!D5 -> % list size | D10: =IFERROR(D9/D8,"N/A") -> 0.759 | E10: 0.765 | F10: =IFERROR(F9/F8,"N/A") -> 0.772 | G10: =IFERROR(G9/G8,"N/A") -> 0.773 | H10: N/A | I10: N/A | J10: N/A | K10: N/A | L10: N/A | M10: N/A | N10: N/A | O10: N/A | P10: N/A | Q10: N/A | R10: =IFERROR(R9/R8,"N/A") -> N/A
A11: ='Control Panel'!B6 -> LDP.01.01: Obesity BMI recorded (last 12m) | B11: LDP.01.01: Obesity BMI recorded (last 12m) | C11: ='Control Panel'!D6 -> 16+ and BMI (last 12m) | D11: =IF($C$5="Total",SUMIFS(OFFSET(REL_D,,MATCH($A11,IND,0)-2),REL_D,D$4,NwID,$C$4),SUMIFS(OFFSET(REL_D,,MATCH($A11,IND,0)-2),REL_D,D$4,OrgID,$C$5)) -> 53362 | E11: =IF($C$5="Total",SUMIFS(OFFSET(REL_D,,MATCH($A11,IND,0)-2),REL_D,E$4,NwID,$C$4),SUMIFS(OFFSET(REL_D,,MATCH($A11,IND,0)-2),REL_D,E$4,OrgID,$C$5)) -> 64269 | F11: =IF($C$5="Total",SUMIFS(OFFSET(REL_D,,MATCH($A11,IND,0)-2),REL_D,F$4,NwID,$C$4),SUMIFS(OFFSET(REL_D,,MATCH($A11,IND,0)-2),REL_D,F$4,OrgID,$C$5)) -> 71139 | G11: =IF($C$5="Total",SUMIFS(OFFSET(REL_D,,MATCH($A11,IND,0)-2),REL_D,G$4,NwID,$C$4),SUMIFS(OFFSET(REL_D,,MATCH($A11,IND,0)-2),REL_D,G$4,OrgID,$C$5)) -> 69963 | H11: =IF($C$5="Total",SUMIFS(OFFSET(REL_D,,MATCH($A11,IND,0)-2),REL_D,H$4,NwID,$C$4),SUMIFS(OFFSET(REL_D,,MATCH($A11,IND,0)-2),REL_D,H$4,OrgID,$C$5)) -> 0 | I11: =IF($C$5="Total",SUMIFS(OFFSET(REL_D,,MATCH($A11,IND,0)-2),REL_D,I$4,NwID,$C$4),SUMIFS(OFFSET(REL_D,,MATCH($A11,IND,0)-2),REL_D,I$4,OrgID,$C$5)) -> 0 | J11: =IF($C$5="Total",SUMIFS(OFFSET(REL_D,,MATCH($A11,IND,0)-2),REL_D,J$4,NwID,$C$4),SUMIFS(OFFSET(REL_D,,MATCH($A11,IND,0)-2),REL_D,J$4,OrgID,$C$5)) -> 0 | K11: =IF($C$5="Total",SUMIFS(OFFSET(REL_D,,MATCH($A11,IND,0)-2),REL_D,K$4,NwID,$C$4),SUMIFS(OFFSET(REL_D,,MATCH($A11,IND,0)-2),REL_D,K$4,OrgID,$C$5)) -> 0 | L11: =IF($C$5="Total",SUMIFS(OFFSET(REL_D,,MATCH($A11,IND,0)-2),REL_D,L$4,NwID,$C$4),SUMIFS(OFFSET(REL_D,,MATCH($A11,IND,0)-2),REL_D,L$4,OrgID,$C$5)) -> 0 | M11: =IF($C$5="Total",SUMIFS(OFFSET(REL_D,,MATCH($A11,IND,0)-2),REL_D,M$4,NwID,$C$4),SUMIFS(OFFSET(REL_D,,MATCH($A11,IND,0)-2),REL_D,M$4,OrgID,$C$5)) -> 0 | N11: =IF($C$5="Total",SUMIFS(OFFSET(REL_D,,MATCH($A11,IND,0)-2),REL_D,N$4,NwID,$C$4),SUMIFS(OFFSET(REL_D,,MATCH($A11,IND,0)-2),REL_D,N$4,OrgID,$C$5)) -> 0 | O11: =IF($C$5="Total",SUMIFS(OFFSET(REL_D,,MATCH($A11,IND,0)-2),REL_D,O$4,NwID,$C$4),SUMIFS(OFFSET(REL_D,,MATCH($A11,IND,0)-2),REL_D,O$4,OrgID,$C$5)) -> 0 | P11: =IF($C$5="Total",SUMIFS(OFFSET(REL_D,,MATCH($A11,IND,0)-2),REL_D,P$4,NwID,$C$4),SUMIFS(OFFSET(REL_D,,MATCH($A11,IND,0)-2),REL_D,P$4,OrgID,$C$5)) -> 0 | Q11: =IF($C$5="Total",SUMIFS(OFFSET(REL_D,,MATCH($A11,IND,0)-2),REL_D,Q$4,NwID,$C$4),SUMIFS(OFFSET(REL_D,,MATCH($A11,IND,0)-2),REL_D,Q$4,OrgID,$C$5)) -> 0 | R11: =SUMIFS(OFFSET(REL_D,,MATCH($A11,IND,0)-1),REL_D,R$4,IF(LEFT($C$5,1)="N",NwID,OrgID),$C$5) -> 0
A12: ='Control Panel'!B7 -> %LDP.01.01: Obesity BMI recorded (last 12m) | B12: %LDP.01.01: Obesity BMI recorded (last 12m) | C12: ='Control Panel'!D7 -> % 16+ | D12: =IFERROR(D11/D9,"N/A") -> 0.312 | E12: 0.349 | F12: =IFERROR(F11/F9,"N/A") -> 0.356 | G12: =IFERROR(G11/G9,"N/A") -> 0.35 | H12: N/A | I12: N/A | J12: N/A | K12: N/A | L12: N/A | M12: N/A | N12: N/A | O12: N/A | P12: N/A | Q12: N/A | R12: =IFERROR(R11/R9,"N/A") -> N/A
A13: ='Control Panel'!B8 -> LDP.01.01.02: Obesity BMI between 30-35 (last 12m) | B13: LDP.01.01.02: Obesity BMI between 30-35 (last 12m) | C13: ='Control Panel'!D8 -> BMI ≥30 & <35 | D13: =IF($C$5="Total",SUMIFS(OFFSET(REL_D,,MATCH($A13,IND,0)-2),REL_D,D$4,NwID,$C$4),SUMIFS(OFFSET(REL_D,,MATCH($A13,IND,0)-2),REL_D,D$4,OrgID,$C$5)) -> 11988 | E13: =IF($C$5="Total",SUMIFS(OFFSET(REL_D,,MATCH($A13,IND,0)-2),REL_D,E$4,NwID,$C$4),SUMIFS(OFFSET(REL_D,,MATCH($A13,IND,0)-2),REL_D,E$4,OrgID,$C$5)) -> 14135 | F13: =IF($C$5="Total",SUMIFS(OFFSET(REL_D,,MATCH($A13,IND,0)-2),REL_D,F$4,NwID,$C$4),SUMIFS(OFFSET(REL_D,,MATCH($A13,IND,0)-2),REL_D,F$4,OrgID,$C$5)) -> 15814 | G13: =IF($C$5="Total",SUMIFS(OFFSET(REL_D,,MATCH($A13,IND,0)-2),REL_D,G$4,NwID,$C$4),SUMIFS(OFFSET(REL_D,,MATCH($A13,IND,0)-2),REL_D,G$4,OrgID,$C$5)) -> 15625 | H13: =IF($C$5="Total",SUMIFS(OFFSET(REL_D,,MATCH($A13,IND,0)-2),REL_D,H$4,NwID,$C$4),SUMIFS(OFFSET(REL_D,,MATCH($A13,IND,0)-2),REL_D,H$4,OrgID,$C$5)) -> 0 | I13: =IF($C$5="Total",SUMIFS(OFFSET(REL_D,,MATCH($A13,IND,0)-2),REL_D,I$4,NwID,$C$4),SUMIFS(OFFSET(REL_D,,MATCH($A13,IND,0)-2),REL_D,I$4,OrgID,$C$5)) -> 0 | J13: =IF($C$5="Total",SUMIFS(OFFSET(REL_D,,MATCH($A13,IND,0)-2),REL_D,J$4,NwID,$C$4),SUMIFS(OFFSET(REL_D,,MATCH($A13,IND,0)-2),REL_D,J$4,OrgID,$C$5)) -> 0 | K13: =IF($C$5="Total",SUMIFS(OFFSET(REL_D,,MATCH($A13,IND,0)-2),REL_D,K$4,NwID,$C$4),SUMIFS(OFFSET(REL_D,,MATCH($A13,IND,0)-2),REL_D,K$4,OrgID,$C$5)) -> 0 | L13: =IF($C$5="Total",SUMIFS(OFFSET(REL_D,,MATCH($A13,IND,0)-2),REL_D,L$4,NwID,$C$4),SUMIFS(OFFSET(REL_D,,MATCH($A13,IND,0)-2),REL_D,L$4,OrgID,$C$5)) -> 0 | M13: =IF($C$5="Total",SUMIFS(OFFSET(REL_D,,MATCH($A13,IND,0)-2),REL_D,M$4,NwID,$C$4),SUMIFS(OFFSET(REL_D,,MATCH($A13,IND,0)-2),REL_D,M$4,OrgID,$C$5)) -> 0 | N13: =IF($C$5="Total",SUMIFS(OFFSET(REL_D,,MATCH($A13,IND,0)-2),REL_D,N$4,NwID,$C$4),SUMIFS(OFFSET(REL_D,,MATCH($A13,IND,0)-2),REL_D,N$4,OrgID,$C$5)) -> 0 | O13: =IF($C$5="Total",SUMIFS(OFFSET(REL_D,,MATCH($A13,IND,0)-2),REL_D,O$4,NwID,$C$4),SUMIFS(OFFSET(REL_D,,MATCH($A13,IND,0)-2),REL_D,O$4,OrgID,$C$5)) -> 0 | P13: =IF($C$5="Total",SUMIFS(OFFSET(REL_D,,MATCH($A13,IND,0)-2),REL_D,P$4,NwID,$C$4),SUMIFS(OFFSET(REL_D,,MATCH($A13,IND,0)-2),REL_D,P$4,OrgID,$C$5)) -> 0 | Q13: =IF($C$5="Total",SUMIFS(OFFSET(REL_D,,MATCH($A13,IND,0)-2),REL_D,Q$4,NwID,$C$4),SUMIFS(OFFSET(REL_D,,MATCH($A13,IND,0)-2),REL_D,Q$4,OrgID,$C$5)) -> 0 | R13: =SUMIFS(OFFSET(REL_D,,MATCH($A13,IND,0)-1),REL_D,R$4,IF(LEFT($C$5,1)="N",NwID,OrgID),$C$5) -> 0
A14: ='Control Panel'!B9 -> %LDP.01.01.02: Obesity BMI between 30-35 (last 12m) | B14: %LDP.01.01.02: Obesity BMI between 30-35 (last 12m) | C14: ='Control Panel'!D9 -> % 16+ | D14: =IFERROR(D13/D9,"N/A") -> 0.07 | E14: 0.077 | F14: =IFERROR(F13/F9,"N/A") -> 0.079 | G14: =IFERROR(G13/G9,"N/A") -> 0.078 | H14: N/A | I14: N/A | J14: N/A | K14: N/A | L14: N/A | M14: N/A | N14: N/A | O14: N/A | P14: N/A | Q14: N/A | R14: =IFERROR(R13/R9,"N/A") -> N/A
A15: ='Control Panel'!B10 -> LDP.01.01.01: Obesity BMI more than or equal to 35 less than 40 (last 12m) | B15: LDP.01.01.01: Obesity BMI more than or equal to 35 less than 40 (last 12m) | C15: ='Control Panel'!D10 -> BMI ≥ 35 & <40 | D15: =IF($C$5="Total",SUMIFS(OFFSET(REL_D,,MATCH($A15,IND,0)-2),REL_D,D$4,NwID,$C$4),SUMIFS(OFFSET(REL_D,,MATCH($A15,IND,0)-2),REL_D,D$4,OrgID,$C$5)) -> 5215 | E15: =IF($C$5="Total",SUMIFS(OFFSET(REL_D,,MATCH($A15,IND,0)-2),REL_D,E$4,NwID,$C$4),SUMIFS(OFFSET(REL_D,,MATCH($A15,IND,0)-2),REL_D,E$4,OrgID,$C$5)) -> 6246 | F15: =IF($C$5="Total",SUMIFS(OFFSET(REL_D,,MATCH($A15,IND,0)-2),REL_D,F$4,NwID,$C$4),SUMIFS(OFFSET(REL_D,,MATCH($A15,IND,0)-2),REL_D,F$4,OrgID,$C$5)) -> 6928 | G15: =IF($C$5="Total",SUMIFS(OFFSET(REL_D,,MATCH($A15,IND,0)-2),REL_D,G$4,NwID,$C$4),SUMIFS(OFFSET(REL_D,,MATCH($A15,IND,0)-2),REL_D,G$4,OrgID,$C$5)) -> 6860 | H15: =IF($C$5="Total",SUMIFS(OFFSET(REL_D,,MATCH($A15,IND,0)-2),REL_D,H$4,NwID,$C$4),SUMIFS(OFFSET(REL_D,,MATCH($A15,IND,0)-2),REL_D,H$4,OrgID,$C$5)) -> 0 | I15: =IF($C$5="Total",SUMIFS(OFFSET(REL_D,,MATCH($A15,IND,0)-2),REL_D,I$4,NwID,$C$4),SUMIFS(OFFSET(REL_D,,MATCH($A15,IND,0)-2),REL_D,I$4,OrgID,$C$5)) -> 0 | J15: =IF($C$5="Total",SUMIFS(OFFSET(REL_D,,MATCH($A15,IND,0)-2),REL_D,J$4,NwID,$C$4),SUMIFS(OFFSET(REL_D,,MATCH($A15,IND,0)-2),REL_D,J$4,OrgID,$C$5)) -> 0 | K15: =IF($C$5="Total",SUMIFS(OFFSET(REL_D,,MATCH($A15,IND,0)-2),REL_D,K$4,NwID,$C$4),SUMIFS(OFFSET(REL_D,,MATCH($A15,IND,0)-2),REL_D,K$4,OrgID,$C$5)) -> 0 | L15: =IF($C$5="Total",SUMIFS(OFFSET(REL_D,,MATCH($A15,IND,0)-2),REL_D,L$4,NwID,$C$4),SUMIFS(OFFSET(REL_D,,MATCH($A15,IND,0)-2),REL_D,L$4,OrgID,$C$5)) -> 0 | M15: =IF($C$5="Total",SUMIFS(OFFSET(REL_D,,MATCH($A15,IND,0)-2),REL_D,M$4,NwID,$C$4),SUMIFS(OFFSET(REL_D,,MATCH($A15,IND,0)-2),REL_D,M$4,OrgID,$C$5)) -> 0 | N15: =IF($C$5="Total",SUMIFS(OFFSET(REL_D,,MATCH($A15,IND,0)-2),REL_D,N$4,NwID,$C$4),SUMIFS(OFFSET(REL_D,,MATCH($A15,IND,0)-2),REL_D,N$4,OrgID,$C$5)) -> 0 | O15: =IF($C$5="Total",SUMIFS(OFFSET(REL_D,,MATCH($A15,IND,0)-2),REL_D,O$4,NwID,$C$4),SUMIFS(OFFSET(REL_D,,MATCH($A15,IND,0)-2),REL_D,O$4,OrgID,$C$5)) -> 0 | P15: =IF($C$5="Total",SUMIFS(OFFSET(REL_D,,MATCH($A15,IND,0)-2),REL_D,P$4,NwID,$C$4),SUMIFS(OFFSET(REL_D,,MATCH($A15,IND,0)-2),REL_D,P$4,OrgID,$C$5)) -> 0 | Q15: =IF($C$5="Total",SUMIFS(OFFSET(REL_D,,MATCH($A15,IND,0)-2),REL_D,Q$4,NwID,$C$4),SUMIFS(OFFSET(REL_D,,MATCH($A15,IND,0)-2),REL_D,Q$4,OrgID,$C$5)) -> 0 | R15: =SUMIFS(OFFSET(REL_D,,MATCH($A15,IND,0)-1),REL_D,R$4,IF(LEFT($C$5,1)="N",NwID,OrgID),$C$5) -> 0
A16: ='Control Panel'!B11 -> %LDP.01.01.01: Obesity BMI more than or equal to 35 less than 40 (last 12m) | B16: %LDP.01.01.01: Obesity BMI more than or equal to 35 less than 40 (last 12m) | C16: ='Control Panel'!D11 -> %16+ | D16: =IFERROR(D15/D9,"N/A") -> 0.03 | E16: 0.034 | F16: =IFERROR(F15/F9,"N/A") -> 0.035 | G16: =IFERROR(G15/G9,"N/A") -> 0.034 | H16: N/A | I16: N/A | J16: N/A | K16: N/A | L16: N/A | M16: N/A | N16: N/A | O16: N/A | P16: N/A | Q16: N/A | R16: =IFERROR(R15/R9,"N/A") -> N/A
A17: ='Control Panel'!B12 -> LDP.01.01.03: Obesity BMI equal to or over 40 (last 12m) | B17: LDP.01.01.03: Obesity BMI equal to or over 40 (last 12m) | C17: ='Control Panel'!D12 -> BMI ≥ 40 | D17: =IF($C$5="Total",SUMIFS(OFFSET(REL_D,,MATCH($A17,IND,0)-2),REL_D,D$4,NwID,$C$4),SUMIFS(OFFSET(REL_D,,MATCH($A17,IND,0)-2),REL_D,D$4,OrgID,$C$5)) -> 3475 | E17: =IF($C$5="Total",SUMIFS(OFFSET(REL_D,,MATCH($A17,IND,0)-2),REL_D,E$4,NwID,$C$4),SUMIFS(OFFSET(REL_D,,MATCH($A17,IND,0)-2),REL_D,E$4,OrgID,$C$5)) -> 4045 | F17: =IF($C$5="Total",SUMIFS(OFFSET(REL_D,,MATCH($A17,IND,0)-2),REL_D,F$4,NwID,$C$4),SUMIFS(OFFSET(REL_D,,MATCH($A17,IND,0)-2),REL_D,F$4,OrgID,$C$5)) -> 4684 | G17: =IF($C$5="Total",SUMIFS(OFFSET(REL_D,,MATCH($A17,IND,0)-2),REL_D,G$4,NwID,$C$4),SUMIFS(OFFSET(REL_D,,MATCH($A17,IND,0)-2),REL_D,G$4,OrgID,$C$5)) -> 4655 | H17: =IF($C$5="Total",SUMIFS(OFFSET(REL_D,,MATCH($A17,IND,0)-2),REL_D,H$4,NwID,$C$4),SUMIFS(OFFSET(REL_D,,MATCH($A17,IND,0)-2),REL_D,H$4,OrgID,$C$5)) -> 0 | I17: =IF($C$5="Total",SUMIFS(OFFSET(REL_D,,MATCH($A17,IND,0)-2),REL_D,I$4,NwID,$C$4),SUMIFS(OFFSET(REL_D,,MATCH($A17,IND,0)-2),REL_D,I$4,OrgID,$C$5)) -> 0 | J17: =IF($C$5="Total",SUMIFS(OFFSET(REL_D,,MATCH($A17,IND,0)-2),REL_D,J$4,NwID,$C$4),SUMIFS(OFFSET(REL_D,,MATCH($A17,IND,0)-2),REL_D,J$4,OrgID,$C$5)) -> 0 | K17: =IF($C$5="Total",SUMIFS(OFFSET(REL_D,,MATCH($A17,IND,0)-2),REL_D,K$4,NwID,$C$4),SUMIFS(OFFSET(REL_D,,MATCH($A17,IND,0)-2),REL_D,K$4,OrgID,$C$5)) -> 0 | L17: =IF($C$5="Total",SUMIFS(OFFSET(REL_D,,MATCH($A17,IND,0)-2),REL_D,L$4,NwID,$C$4),SUMIFS(OFFSET(REL_D,,MATCH($A17,IND,0)-2),REL_D,L$4,OrgID,$C$5)) -> 0 | M17: =IF($C$5="Total",SUMIFS(OFFSET(REL_D,,MATCH($A17,IND,0)-2),REL_D,M$4,NwID,$C$4),SUMIFS(OFFSET(REL_D,,MATCH($A17,IND,0)-2),REL_D,M$4,OrgID,$C$5)) -> 0 | N17: =IF($C$5="Total",SUMIFS(OFFSET(REL_D,,MATCH($A17,IND,0)-2),REL_D,N$4,NwID,$C$4),SUMIFS(OFFSET(REL_D,,MATCH($A17,IND,0)-2),REL_D,N$4,OrgID,$C$5)) -> 0 | O17: =IF($C$5="Total",SUMIFS(OFFSET(REL_D,,MATCH($A17,IND,0)-2),REL_D,O$4,NwID,$C$4),SUMIFS(OFFSET(REL_D,,MATCH($A17,IND,0)-2),REL_D,O$4,OrgID,$C$5)) -> 0 | P17: =IF($C$5="Total",SUMIFS(OFFSET(REL_D,,MATCH($A17,IND,0)-2),REL_D,P$4,NwID,$C$4),SUMIFS(OFFSET(REL_D,,MATCH($A17,IND,0)-2),REL_D,P$4,OrgID,$C$5)) -> 0 | Q17: =IF($C$5="Total",SUMIFS(OFFSET(REL_D,,MATCH($A17,IND,0)-2),REL_D,Q$4,NwID,$C$4),SUMIFS(OFFSET(REL_D,,MATCH($A17,IND,0)-2),REL_D,Q$4,OrgID,$C$5)) -> 0 | R17: =SUMIFS(OFFSET(REL_D,,MATCH($A17,IND,0)-1),REL_D,R$4,IF(LEFT($C$5,1)="N",NwID,OrgID),$C$5) -> 0
A18: ='Control Panel'!B13 -> %LDP.01.01.03: Obesity BMI equal to or over 40 (last 12m) | B18: %LDP.01.01.03: Obesity BMI equal to or over 40 (last 12m) | C18: ='Control Panel'!D13 -> %16+ | D18: =IFERROR(D17/D9,"N/A") -> 0.02 | E18: 0.022 | F18: =IFERROR(F17/F9,"N/A") -> 0.023 | G18: =IFERROR(G17/G9,"N/A") -> 0.023 | H18: N/A | I18: N/A | J18: N/A | K18: N/A | L18: N/A | M18: N/A | N18: N/A | O18: N/A | P18: N/A | Q18: N/A | R18: =IFERROR(R17/R9,"N/A") -> N/A
A19: ='Control Panel'!B14 -> LDP.01.02: Smoking Status (last 12m) or Never Smoked (25yrs+) | B19: LDP.01.02: Smoking Status (last 12m) or Never Smoked (25yrs+) | C19: ='Control Panel'!D14 -> Smoking status (last 12m) incl. never smoked | D19: =IF($C$5="Total",SUMIFS(OFFSET(REL_D,,MATCH($A19,IND,0)-2),REL_D,D$4,NwID,$C$4),SUMIFS(OFFSET(REL_D,,MATCH($A19,IND,0)-2),REL_D,D$4,OrgID,$C$5)) -> 115174 | E19: =IF($C$5="Total",SUMIFS(OFFSET(REL_D,,MATCH($A19,IND,0)-2),REL_D,E$4,NwID,$C$4),SUMIFS(OFFSET(REL_D,,MATCH($A19,IND,0)-2),REL_D,E$4,OrgID,$C$5)) -> 122891 | F19: =IF($C$5="Total",SUMIFS(OFFSET(REL_D,,MATCH($A19,IND,0)-2),REL_D,F$4,NwID,$C$4),SUMIFS(OFFSET(REL_D,,MATCH($A19,IND,0)-2),REL_D,F$4,OrgID,$C$5)) -> 131811 | G19: =IF($C$5="Total",SUMIFS(OFFSET(REL_D,,MATCH($A19,IND,0)-2),REL_D,G$4,NwID,$C$4),SUMIFS(OFFSET(REL_D,,MATCH($A19,IND,0)-2),REL_D,G$4,OrgID,$C$5)) -> 131750 | H19: =IF($C$5="Total",SUMIFS(OFFSET(REL_D,,MATCH($A19,IND,0)-2),REL_D,H$4,NwID,$C$4),SUMIFS(OFFSET(REL_D,,MATCH($A19,IND,0)-2),REL_D,H$4,OrgID,$C$5)) -> 0 | I19: =IF($C$5="Total",SUMIFS(OFFSET(REL_D,,MATCH($A19,IND,0)-2),REL_D,I$4,NwID,$C$4),SUMIFS(OFFSET(REL_D,,MATCH($A19,IND,0)-2),REL_D,I$4,OrgID,$C$5)) -> 0 | J19: =IF($C$5="Total",SUMIFS(OFFSET(REL_D,,MATCH($A19,IND,0)-2),REL_D,J$4,NwID,$C$4),SUMIFS(OFFSET(REL_D,,MATCH($A19,IND,0)-2),REL_D,J$4,OrgID,$C$5)) -> 0 | K19: =IF($C$5="Total",SUMIFS(OFFSET(REL_D,,MATCH($A19,IND,0)-2),REL_D,K$4,NwID,$C$4),SUMIFS(OFFSET(REL_D,,MATCH($A19,IND,0)-2),REL_D,K$4,OrgID,$C$5)) -> 0 | L19: =IF($C$5="Total",SUMIFS(OFFSET(REL_D,,MATCH($A19,IND,0)-2),REL_D,L$4,NwID,$C$4),SUMIFS(OFFSET(REL_D,,MATCH($A19,IND,0)-2),REL_D,L$4,OrgID,$C$5)) -> 0 | M19: =IF($C$5="Total",SUMIFS(OFFSET(REL_D,,MATCH($A19,IND,0)-2),REL_D,M$4,NwID,$C$4),SUMIFS(OFFSET(REL_D,,MATCH($A19,IND,0)-2),REL_D,M$4,OrgID,$C$5)) -> 0 | N19: =IF($C$5="Total",SUMIFS(OFFSET(REL_D,,MATCH($A19,IND,0)-2),REL_D,N$4,NwID,$C$4),SUMIFS(OFFSET(REL_D,,MATCH($A19,IND,0)-2),REL_D,N$4,OrgID,$C$5)) -> 0 | O19: =IF($C$5="Total",SUMIFS(OFFSET(REL_D,,MATCH($A19,IND,0)-2),REL_D,O$4,NwID,$C$4),SUMIFS(OFFSET(REL_D,,MATCH($A19,IND,0)-2),REL_D,O$4,OrgID,$C$5)) -> 0 | P19: =IF($C$5="Total",SUMIFS(OFFSET(REL_D,,MATCH($A19,IND,0)-2),REL_D,P$4,NwID,$C$4),SUMIFS(OFFSET(REL_D,,MATCH($A19,IND,0)-2),REL_D,P$4,OrgID,$C$5)) -> 0 | Q19: =IF($C$5="Total",SUMIFS(OFFSET(REL_D,,MATCH($A19,IND,0)-2),REL_D,Q$4,NwID,$C$4),SUMIFS(OFFSET(REL_D,,MATCH($A19,IND,0)-2),REL_D,Q$4,OrgID,$C$5)) -> 0 | R19: =SUMIFS(OFFSET(REL_D,,MATCH($A19,IND,0)-1),REL_D,R$4,IF(LEFT($C$5,1)="N",NwID,OrgID),$C$5) -> 0
A20: ='Control Panel'!B15 -> %LDP.01.02: Smoking Status (last 12m) or Never Smoked (25yrs+) | B20: %LDP.01.02: Smoking Status (last 12m) or Never Smoked (25yrs+) | C20: ='Control Panel'!D15 -> % 16+ | D20: =IFERROR(D19/D9,"N/A") -> 0.673 | E20: 0.667 | F20: =IFERROR(F19/F9,"N/A") -> 0.66 | G20: =IFERROR(G19/G9,"N/A") -> 0.659 | H20: N/A | I20: N/A | J20: N/A | K20: N/A | L20: N/A | M20: N/A | N20: N/A | O20: N/A | P20: N/A | Q20: N/A | R20: =IFERROR(R19/R9,"N/A") -> N/A
A21: ='Control Panel'!B16 -> LDP.01.03: Current Smoker (last 12m) | B21: LDP.01.03: Current Smoker (last 12m) | C21: ='Control Panel'!D16 -> Age 16+ and current smoker (last 12m) | D21: =IF($C$5="Total",SUMIFS(OFFSET(REL_D,,MATCH($A21,IND,0)-2),REL_D,D$4,NwID,$C$4),SUMIFS(OFFSET(REL_D,,MATCH($A21,IND,0)-2),REL_D,D$4,OrgID,$C$5)) -> 11859 | E21: =IF($C$5="Total",SUMIFS(OFFSET(REL_D,,MATCH($A21,IND,0)-2),REL_D,E$4,NwID,$C$4),SUMIFS(OFFSET(REL_D,,MATCH($A21,IND,0)-2),REL_D,E$4,OrgID,$C$5)) -> 11885 | F21: =IF($C$5="Total",SUMIFS(OFFSET(REL_D,,MATCH($A21,IND,0)-2),REL_D,F$4,NwID,$C$4),SUMIFS(OFFSET(REL_D,,MATCH($A21,IND,0)-2),REL_D,F$4,OrgID,$C$5)) -> 9634 | G21: =IF($C$5="Total",SUMIFS(OFFSET(REL_D,,MATCH($A21,IND,0)-2),REL_D,G$4,NwID,$C$4),SUMIFS(OFFSET(REL_D,,MATCH($A21,IND,0)-2),REL_D,G$4,OrgID,$C$5)) -> 9456 | H21: =IF($C$5="Total",SUMIFS(OFFSET(REL_D,,MATCH($A21,IND,0)-2),REL_D,H$4,NwID,$C$4),SUMIFS(OFFSET(REL_D,,MATCH($A21,IND,0)-2),REL_D,H$4,OrgID,$C$5)) -> 0 | I21: =IF($C$5="Total",SUMIFS(OFFSET(REL_D,,MATCH($A21,IND,0)-2),REL_D,I$4,NwID,$C$4),SUMIFS(OFFSET(REL_D,,MATCH($A21,IND,0)-2),REL_D,I$4,OrgID,$C$5)) -> 0 | J21: =IF($C$5="Total",SUMIFS(OFFSET(REL_D,,MATCH($A21,IND,0)-2),REL_D,J$4,NwID,$C$4),SUMIFS(OFFSET(REL_D,,MATCH($A21,IND,0)-2),REL_D,J$4,OrgID,$C$5)) -> 0 | K21: =IF($C$5="Total",SUMIFS(OFFSET(REL_D,,MATCH($A21,IND,0)-2),REL_D,K$4,NwID,$C$4),SUMIFS(OFFSET(REL_D,,MATCH($A21,IND,0)-2),REL_D,K$4,OrgID,$C$5)) -> 0 | L21: =IF($C$5="Total",SUMIFS(OFFSET(REL_D,,MATCH($A21,IND,0)-2),REL_D,L$4,NwID,$C$4),SUMIFS(OFFSET(REL_D,,MATCH($A21,IND,0)-2),REL_D,L$4,OrgID,$C$5)) -> 0 | M21: =IF($C$5="Total",SUMIFS(OFFSET(REL_D,,MATCH($A21,IND,0)-2),REL_D,M$4,NwID,$C$4),SUMIFS(OFFSET(REL_D,,MATCH($A21,IND,0)-2),REL_D,M$4,OrgID,$C$5)) -> 0 | N21: =IF($C$5="Total",SUMIFS(OFFSET(REL_D,,MATCH($A21,IND,0)-2),REL_D,N$4,NwID,$C$4),SUMIFS(OFFSET(REL_D,,MATCH($A21,IND,0)-2),REL_D,N$4,OrgID,$C$5)) -> 0 | O21: =IF($C$5="Total",SUMIFS(OFFSET(REL_D,,MATCH($A21,IND,0)-2),REL_D,O$4,NwID,$C$4),SUMIFS(OFFSET(REL_D,,MATCH($A21,IND,0)-2),REL_D,O$4,OrgID,$C$5)) -> 0 | P21: =IF($C$5="Total",SUMIFS(OFFSET(REL_D,,MATCH($A21,IND,0)-2),REL_D,P$4,NwID,$C$4),SUMIFS(OFFSET(REL_D,,MATCH($A21,IND,0)-2),REL_D,P$4,OrgID,$C$5)) -> 0 | Q21: =IF($C$5="Total",SUMIFS(OFFSET(REL_D,,MATCH($A21,IND,0)-2),REL_D,Q$4,NwID,$C$4),SUMIFS(OFFSET(REL_D,,MATCH($A21,IND,0)-2),REL_D,Q$4,OrgID,$C$5)) -> 0 | R21: =SUMIFS(OFFSET(REL_D,,MATCH($A21,IND,0)-1),REL_D,R$4,IF(LEFT($C$5,1)="N",NwID,OrgID),$C$5) -> 0
A22: ='Control Panel'!B17 -> %LDP.01.03: Current Smoker (last 12m) | B22: %LDP.01.03: Current Smoker (last 12m) | C22: ='Control Panel'!D17 -> % 16+ | D22: =IFERROR(D21/D9,"N/A") -> 0.069 | E22: 0.064 | F22: =IFERROR(F21/F9,"N/A") -> 0.048 | G22: =IFERROR(G21/G9,"N/A") -> 0.047 | H22: N/A | I22: N/A | J22: N/A | K22: N/A | L22: N/A | M22: N/A | N22: N/A | O22: N/A | P22: N/A | Q22: N/A | R22: =IFERROR(R21/R9,"N/A") -> N/A
A23: ='Control Panel'!B18 -> Hypertension | B23: Hypertension | C23: ='Control Panel'!B18 -> Hypertension
A24: ='Control Panel'!B19 -> LDP.02: Hypertension Register | B24: LDP.02: Hypertension Register | C24: ='Control Panel'!D19 -> Hypertension Register | D24: =IF($C$5="Total",SUMIFS(OFFSET(REL_D,,MATCH($A24,IND,0)-2),REL_D,D$4,NwID,$C$4),SUMIFS(OFFSET(REL_D,,MATCH($A24,IND,0)-2),REL_D,D$4,OrgID,$C$5)) -> 26138 | E24: =IF($C$5="Total",SUMIFS(OFFSET(REL_D,,MATCH($A24,IND,0)-2),REL_D,E$4,NwID,$C$4),SUMIFS(OFFSET(REL_D,,MATCH($A24,IND,0)-2),REL_D,E$4,OrgID,$C$5)) -> 28355 | F24: =IF($C$5="Total",SUMIFS(OFFSET(REL_D,,MATCH($A24,IND,0)-2),REL_D,F$4,NwID,$C$4),SUMIFS(OFFSET(REL_D,,MATCH($A24,IND,0)-2),REL_D,F$4,OrgID,$C$5)) -> 31782 | G24: =IF($C$5="Total",SUMIFS(OFFSET(REL_D,,MATCH($A24,IND,0)-2),REL_D,G$4,NwID,$C$4),SUMIFS(OFFSET(REL_D,,MATCH($A24,IND,0)-2),REL_D,G$4,OrgID,$C$5)) -> 31862 | H24: =IF($C$5="Total",SUMIFS(OFFSET(REL_D,,MATCH($A24,IND,0)-2),REL_D,H$4,NwID,$C$4),SUMIFS(OFFSET(REL_D,,MATCH($A24,IND,0)-2),REL_D,H$4,OrgID,$C$5)) -> 0 | I24: =IF($C$5="Total",SUMIFS(OFFSET(REL_D,,MATCH($A24,IND,0)-2),REL_D,I$4,NwID,$C$4),SUMIFS(OFFSET(REL_D,,MATCH($A24,IND,0)-2),REL_D,I$4,OrgID,$C$5)) -> 0 | J24: =IF($C$5="Total",SUMIFS(OFFSET(REL_D,,MATCH($A24,IND,0)-2),REL_D,J$4,NwID,$C$4),SUMIFS(OFFSET(REL_D,,MATCH($A24,IND,0)-2),REL_D,J$4,OrgID,$C$5)) -> 0 | K24: =IF($C$5="Total",SUMIFS(OFFSET(REL_D,,MATCH($A24,IND,0)-2),REL_D,K$4,NwID,$C$4),SUMIFS(OFFSET(REL_D,,MATCH($A24,IND,0)-2),REL_D,K$4,OrgID,$C$5)) -> 0 | L24: =IF($C$5="Total",SUMIFS(OFFSET(REL_D,,MATCH($A24,IND,0)-2),REL_D,L$4,NwID,$C$4),SUMIFS(OFFSET(REL_D,,MATCH($A24,IND,0)-2),REL_D,L$4,OrgID,$C$5)) -> 0 | M24: =IF($C$5="Total",SUMIFS(OFFSET(REL_D,,MATCH($A24,IND,0)-2),REL_D,M$4,NwID,$C$4),SUMIFS(OFFSET(REL_D,,MATCH($A24,IND,0)-2),REL_D,M$4,OrgID,$C$5)) -> 0 | N24: =IF($C$5="Total",SUMIFS(OFFSET(REL_D,,MATCH($A24,IND,0)-2),REL_D,N$4,NwID,$C$4),SUMIFS(OFFSET(REL_D,,MATCH($A24,IND,0)-2),REL_D,N$4,OrgID,$C$5)) -> 0 | O24: =IF($C$5="Total",SUMIFS(OFFSET(REL_D,,MATCH($A24,IND,0)-2),REL_D,O$4,NwID,$C$4),SUMIFS(OFFSET(REL_D,,MATCH($A24,IND,0)-2),REL_D,O$4,OrgID,$C$5)) -> 0 | P24: =IF($C$5="Total",SUMIFS(OFFSET(REL_D,,MATCH($A24,IND,0)-2),REL_D,P$4,NwID,$C$4),SUMIFS(OFFSET(REL_D,,MATCH($A24,IND,0)-2),REL_D,P$4,OrgID,$C$5)) -> 0 | Q24: =IF($C$5="Total",SUMIFS(OFFSET(REL_D,,MATCH($A24,IND,0)-2),REL_D,Q$4,NwID,$C$4),SUMIFS(OFFSET(REL_D,,MATCH($A24,IND,0)-2),REL_D,Q$4,OrgID,$C$5)) -> 0 | R24: =SUMIFS(OFFSET(REL_D,,MATCH($A24,IND,0)-1),REL_D,R$4,IF(LEFT($C$5,1)="N",NwID,OrgID),$C$5) -> 0
A25: ='Control Panel'!B20 -> %LDP.02: Hypertension Register | B25: %LDP.02: Hypertension Register | C25: ='Control Panel'!D20 -> % list size | D25: =IFERROR(D24/D8,"N/A") -> 0.116 | E25: 0.118 | F25: =IFERROR(F24/F8,"N/A") -> 0.123 | G25: =IFERROR(G24/G8,"N/A") -> 0.123 | H25: N/A | I25: N/A | J25: N/A | K25: N/A | L25: N/A | M25: N/A | N25: N/A | O25: N/A | P25: N/A | Q25: N/A | R25: =IFERROR(R24/R8,"N/A") -> N/A
A26: ='Control Panel'!B21 -> LDP.02.02: Hypertension BP recorded (last 12m) | B26: LDP.02.02: Hypertension BP recorded (last 12m) | C26: ='Control Panel'!D21 -> Hypertension and BP (last 12m) | D26: =IF($C$5="Total",SUMIFS(OFFSET(REL_D,,MATCH($A26,IND,0)-2),REL_D,D$4,NwID,$C$4),SUMIFS(OFFSET(REL_D,,MATCH($A26,IND,0)-2),REL_D,D$4,OrgID,$C$5)) -> 22453 | E26: =IF($C$5="Total",SUMIFS(OFFSET(REL_D,,MATCH($A26,IND,0)-2),REL_D,E$4,NwID,$C$4),SUMIFS(OFFSET(REL_D,,MATCH($A26,IND,0)-2),REL_D,E$4,OrgID,$C$5)) -> 24593 | F26: =IF($C$5="Total",SUMIFS(OFFSET(REL_D,,MATCH($A26,IND,0)-2),REL_D,F$4,NwID,$C$4),SUMIFS(OFFSET(REL_D,,MATCH($A26,IND,0)-2),REL_D,F$4,OrgID,$C$5)) -> 27545 | G26: =IF($C$5="Total",SUMIFS(OFFSET(REL_D,,MATCH($A26,IND,0)-2),REL_D,G$4,NwID,$C$4),SUMIFS(OFFSET(REL_D,,MATCH($A26,IND,0)-2),REL_D,G$4,OrgID,$C$5)) -> 27227 | H26: =IF($C$5="Total",SUMIFS(OFFSET(REL_D,,MATCH($A26,IND,0)-2),REL_D,H$4,NwID,$C$4),SUMIFS(OFFSET(REL_D,,MATCH($A26,IND,0)-2),REL_D,H$4,OrgID,$C$5)) -> 0 | I26: =IF($C$5="Total",SUMIFS(OFFSET(REL_D,,MATCH($A26,IND,0)-2),REL_D,I$4,NwID,$C$4),SUMIFS(OFFSET(REL_D,,MATCH($A26,IND,0)-2),REL_D,I$4,OrgID,$C$5)) -> 0 | J26: =IF($C$5="Total",SUMIFS(OFFSET(REL_D,,MATCH($A26,IND,0)-2),REL_D,J$4,NwID,$C$4),SUMIFS(OFFSET(REL_D,,MATCH($A26,IND,0)-2),REL_D,J$4,OrgID,$C$5)) -> 0 | K26: =IF($C$5="Total",SUMIFS(OFFSET(REL_D,,MATCH($A26,IND,0)-2),REL_D,K$4,NwID,$C$4),SUMIFS(OFFSET(REL_D,,MATCH($A26,IND,0)-2),REL_D,K$4,OrgID,$C$5)) -> 0 | L26: =IF($C$5="Total",SUMIFS(OFFSET(REL_D,,MATCH($A26,IND,0)-2),REL_D,L$4,NwID,$C$4),SUMIFS(OFFSET(REL_D,,MATCH($A26,IND,0)-2),REL_D,L$4,OrgID,$C$5)) -> 0 | M26: =IF($C$5="Total",SUMIFS(OFFSET(REL_D,,MATCH($A26,IND,0)-2),REL_D,M$4,NwID,$C$4),SUMIFS(OFFSET(REL_D,,MATCH($A26,IND,0)-2),REL_D,M$4,OrgID,$C$5)) -> 0 | N26: =IF($C$5="Total",SUMIFS(OFFSET(REL_D,,MATCH($A26,IND,0)-2),REL_D,N$4,NwID,$C$4),SUMIFS(OFFSET(REL_D,,MATCH($A26,IND,0)-2),REL_D,N$4,OrgID,$C$5)) -> 0 | O26: =IF($C$5="Total",SUMIFS(OFFSET(REL_D,,MATCH($A26,IND,0)-2),REL_D,O$4,NwID,$C$4),SUMIFS(OFFSET(REL_D,,MATCH($A26,IND,0)-2),REL_D,O$4,OrgID,$C$5)) -> 0 | P26: =IF($C$5="Total",SUMIFS(OFFSET(REL_D,,MATCH($A26,IND,0)-2),REL_D,P$4,NwID,$C$4),SUMIFS(OFFSET(REL_D,,MATCH($A26,IND,0)-2),REL_D,P$4,OrgID,$C$5)) -> 0 | Q26: =IF($C$5="Total",SUMIFS(OFFSET(REL_D,,MATCH($A26,IND,0)-2),REL_D,Q$4,NwID,$C$4),SUMIFS(OFFSET(REL_D,,MATCH($A26,IND,0)-2),REL_D,Q$4,OrgID,$C$5)) -> 0 | R26: =SUMIFS(OFFSET(REL_D,,MATCH($A26,IND,0)-1),REL_D,R$4,IF(LEFT($C$5,1)="N",NwID,OrgID),$C$5) -> 0
A27: ='Control Panel'!B22 -> %LDP.02.02: Hypertension BP recorded (last 12m) | B27: %LDP.02.02: Hypertension BP recorded (last 12m) | C27: ='Control Panel'!D22 -> % Hypertension Register | D27: =IFERROR(D26/D24,"N/A") -> 0.859 | E27: 0.867 | F27: =IFERROR(F26/F24,"N/A") -> 0.867 | G27: =IFERROR(G26/G24,"N/A") -> 0.855 | H27: N/A | I27: N/A | J27: N/A | K27: N/A | L27: N/A | M27: N/A | N27: N/A | O27: N/A | P27: N/A | Q27: N/A | R27: =IFERROR(R26/R24,"N/A") -> N/A
A28: ='Control Panel'!B23 -> LDP.02.01: Hypertension and BP < 140/90 (age under 80) < 150/90 (Age 80+) | B28: LDP.02.01: Hypertension and BP < 140/90 (age under 80) < 150/90 (Age 80+) | C28: ='Control Panel'!D23 -> Hypertension and BP < 140/90 (Patients aged under 80) < 150/90 ( Aged 80 and over) (last 12m) | D28: =IF($C$5="Total",SUMIFS(OFFSET(REL_D,,MATCH($A28,IND,0)-2),REL_D,D$4,NwID,$C$4),SUMIFS(OFFSET(REL_D,,MATCH($A28,IND,0)-2),REL_D,D$4,OrgID,$C$5)) -> 15998 | E28: =IF($C$5="Total",SUMIFS(OFFSET(REL_D,,MATCH($A28,IND,0)-2),REL_D,E$4,NwID,$C$4),SUMIFS(OFFSET(REL_D,,MATCH($A28,IND,0)-2),REL_D,E$4,OrgID,$C$5)) -> 17590 | F28: =IF($C$5="Total",SUMIFS(OFFSET(REL_D,,MATCH($A28,IND,0)-2),REL_D,F$4,NwID,$C$4),SUMIFS(OFFSET(REL_D,,MATCH($A28,IND,0)-2),REL_D,F$4,OrgID,$C$5)) -> 19052 | G28: =IF($C$5="Total",SUMIFS(OFFSET(REL_D,,MATCH($A28,IND,0)-2),REL_D,G$4,NwID,$C$4),SUMIFS(OFFSET(REL_D,,MATCH($A28,IND,0)-2),REL_D,G$4,OrgID,$C$5)) -> 18655 | H28: =IF($C$5="Total",SUMIFS(OFFSET(REL_D,,MATCH($A28,IND,0)-2),REL_D,H$4,NwID,$C$4),SUMIFS(OFFSET(REL_D,,MATCH($A28,IND,0)-2),REL_D,H$4,OrgID,$C$5)) -> 0 | I28: =IF($C$5="Total",SUMIFS(OFFSET(REL_D,,MATCH($A28,IND,0)-2),REL_D,I$4,NwID,$C$4),SUMIFS(OFFSET(REL_D,,MATCH($A28,IND,0)-2),REL_D,I$4,OrgID,$C$5)) -> 0 | J28: =IF($C$5="Total",SUMIFS(OFFSET(REL_D,,MATCH($A28,IND,0)-2),REL_D,J$4,NwID,$C$4),SUMIFS(OFFSET(REL_D,,MATCH($A28,IND,0)-2),REL_D,J$4,OrgID,$C$5)) -> 0 | K28: =IF($C$5="Total",SUMIFS(OFFSET(REL_D,,MATCH($A28,IND,0)-2),REL_D,K$4,NwID,$C$4),SUMIFS(OFFSET(REL_D,,MATCH($A28,IND,0)-2),REL_D,K$4,OrgID,$C$5)) -> 0 | L28: =IF($C$5="Total",SUMIFS(OFFSET(REL_D,,MATCH($A28,IND,0)-2),REL_D,L$4,NwID,$C$4),SUMIFS(OFFSET(REL_D,,MATCH($A28,IND,0)-2),REL_D,L$4,OrgID,$C$5)) -> 0 | M28: =IF($C$5="Total",SUMIFS(OFFSET(REL_D,,MATCH($A28,IND,0)-2),REL_D,M$4,NwID,$C$4),SUMIFS(OFFSET(REL_D,,MATCH($A28,IND,0)-2),REL_D,M$4,OrgID,$C$5)) -> 0 | N28: =IF($C$5="Total",SUMIFS(OFFSET(REL_D,,MATCH($A28,IND,0)-2),REL_D,N$4,NwID,$C$4),SUMIFS(OFFSET(REL_D,,MATCH($A28,IND,0)-2),REL_D,N$4,OrgID,$C$5)) -> 0 | O28: =IF($C$5="Total",SUMIFS(OFFSET(REL_D,,MATCH($A28,IND,0)-2),REL_D,O$4,NwID,$C$4),SUMIFS(OFFSET(REL_D,,MATCH($A28,IND,0)-2),REL_D,O$4,OrgID,$C$5)) -> 0 | P28: =IF($C$5="Total",SUMIFS(OFFSET(REL_D,,MATCH($A28,IND,0)-2),REL_D,P$4,NwID,$C$4),SUMIFS(OFFSET(REL_D,,MATCH($A28,IND,0)-2),REL_D,P$4,OrgID,$C$5)) -> 0 | Q28: =IF($C$5="Total",SUMIFS(OFFSET(REL_D,,MATCH($A28,IND,0)-2),REL_D,Q$4,NwID,$C$4),SUMIFS(OFFSET(REL_D,,MATCH($A28,IND,0)-2),REL_D,Q$4,OrgID,$C$5)) -> 0 | R28: =SUMIFS(OFFSET(REL_D,,MATCH($A28,IND,0)-1),REL_D,R$4,IF(LEFT($C$5,1)="N",NwID,OrgID),$C$5) -> 0
A29: ='Control Panel'!B24 -> %LDP.02.01: Hypertension and BP < 140/90 (age under 80) < 150/90 (Age 80+) | B29: %LDP.02.01: Hypertension and BP < 140/90 (age under 80) < 150/90 (Age 80+) | C29: ='Control Panel'!D24 -> % Hypertension Register | D29: =IFERROR(D28/D24,"N/A") -> 0.612 | E29: 0.62 | F29: =IFERROR(F28/F24,"N/A") -> 0.599 | G29: =IFERROR(G28/G24,"N/A") -> 0.585 | H29: N/A | I29: N/A | J29: N/A | K29: N/A | L29: N/A | M29: N/A | N29: N/A | O29: N/A | P29: N/A | Q29: N/A | R29: =IFERROR(R28/R24,"N/A") -> N/A
A30: ='Control Panel'!B25 -> CHD | B30: CHD | C30: ='Control Panel'!B25 -> CHD
A31: ='Control Panel'!B26 -> LDP.03: CHD Register | B31: LDP.03: CHD Register | C31: ='Control Panel'!D26 -> CHD register | D31: =IF($C$5="Total",SUMIFS(OFFSET(REL_D,,MATCH($A31,IND,0)-2),REL_D,D$4,NwID,$C$4),SUMIFS(OFFSET(REL_D,,MATCH($A31,IND,0)-2),REL_D,D$4,OrgID,$C$5)) -> 3513 | E31: =IF($C$5="Total",SUMIFS(OFFSET(REL_D,,MATCH($A31,IND,0)-2),REL_D,E$4,NwID,$C$4),SUMIFS(OFFSET(REL_D,,MATCH($A31,IND,0)-2),REL_D,E$4,OrgID,$C$5)) -> 3753 | F31: =IF($C$5="Total",SUMIFS(OFFSET(REL_D,,MATCH($A31,IND,0)-2),REL_D,F$4,NwID,$C$4),SUMIFS(OFFSET(REL_D,,MATCH($A31,IND,0)-2),REL_D,F$4,OrgID,$C$5)) -> 4126 | G31: =IF($C$5="Total",SUMIFS(OFFSET(REL_D,,MATCH($A31,IND,0)-2),REL_D,G$4,NwID,$C$4),SUMIFS(OFFSET(REL_D,,MATCH($A31,IND,0)-2),REL_D,G$4,OrgID,$C$5)) -> 4150 | H31: =IF($C$5="Total",SUMIFS(OFFSET(REL_D,,MATCH($A31,IND,0)-2),REL_D,H$4,NwID,$C$4),SUMIFS(OFFSET(REL_D,,MATCH($A31,IND,0)-2),REL_D,H$4,OrgID,$C$5)) -> 0 | I31: =IF($C$5="Total",SUMIFS(OFFSET(REL_D,,MATCH($A31,IND,0)-2),REL_D,I$4,NwID,$C$4),SUMIFS(OFFSET(REL_D,,MATCH($A31,IND,0)-2),REL_D,I$4,OrgID,$C$5)) -> 0 | J31: =IF($C$5="Total",SUMIFS(OFFSET(REL_D,,MATCH($A31,IND,0)-2),REL_D,J$4,NwID,$C$4),SUMIFS(OFFSET(REL_D,,MATCH($A31,IND,0)-2),REL_D,J$4,OrgID,$C$5)) -> 0 | K31: =IF($C$5="Total",SUMIFS(OFFSET(REL_D,,MATCH($A31,IND,0)-2),REL_D,K$4,NwID,$C$4),SUMIFS(OFFSET(REL_D,,MATCH($A31,IND,0)-2),REL_D,K$4,OrgID,$C$5)) -> 0 | L31: =IF($C$5="Total",SUMIFS(OFFSET(REL_D,,MATCH($A31,IND,0)-2),REL_D,L$4,NwID,$C$4),SUMIFS(OFFSET(REL_D,,MATCH($A31,IND,0)-2),REL_D,L$4,OrgID,$C$5)) -> 0 | M31: =IF($C$5="Total",SUMIFS(OFFSET(REL_D,,MATCH($A31,IND,0)-2),REL_D,M$4,NwID,$C$4),SUMIFS(OFFSET(REL_D,,MATCH($A31,IND,0)-2),REL_D,M$4,OrgID,$C$5)) -> 0 | N31: =IF($C$5="Total",SUMIFS(OFFSET(REL_D,,MATCH($A31,IND,0)-2),REL_D,N$4,NwID,$C$4),SUMIFS(OFFSET(REL_D,,MATCH($A31,IND,0)-2),REL_D,N$4,OrgID,$C$5)) -> 0 | O31: =IF($C$5="Total",SUMIFS(OFFSET(REL_D,,MATCH($A31,IND,0)-2),REL_D,O$4,NwID,$C$4),SUMIFS(OFFSET(REL_D,,MATCH($A31,IND,0)-2),REL_D,O$4,OrgID,$C$5)) -> 0 | P31: =IF($C$5="Total",SUMIFS(OFFSET(REL_D,,MATCH($A31,IND,0)-2),REL_D,P$4,NwID,$C$4),SUMIFS(OFFSET(REL_D,,MATCH($A31,IND,0)-2),REL_D,P$4,OrgID,$C$5)) -> 0 | Q31: =IF($C$5="Total",SUMIFS(OFFSET(REL_D,,MATCH($A31,IND,0)-2),REL_D,Q$4,NwID,$C$4),SUMIFS(OFFSET(REL_D,,MATCH($A31,IND,0)-2),REL_D,Q$4,OrgID,$C$5)) -> 0 | R31: =SUMIFS(OFFSET(REL_D,,MATCH($A31,IND,0)-1),REL_D,R$4,IF(LEFT($C$5,1)="N",NwID,OrgID),$C$5) -> 0
A32: ='Control Panel'!B27 -> %LDP.03: CHD Register | B32: %LDP.03: CHD Register | C32: ='Control Panel'!D27 -> % list size | D32: =IFERROR(D31/D8,"N/A") -> 0.016 | E32: 0.016 | F32: =IFERROR(F31/F8,"N/A") -> 0.016 | G32: =IFERROR(G31/G8,"N/A") -> 0.016 | H32: N/A | I32: N/A | J32: N/A | K32: N/A | L32: N/A | M32: N/A | N32: N/A | O32: N/A | P32: N/A | Q32: N/A | R32: =IFERROR(R31/R8,"N/A") -> N/A
A33: ='Control Panel'!B28 -> LDP.03.04: CHD Cholesterol recorded (last 12m) | B33: LDP.03.04: CHD Cholesterol recorded (last 12m) | C33: ='Control Panel'!D28 -> Cholesterol (last 12m) | D33: =IF($C$5="Total",SUMIFS(OFFSET(REL_D,,MATCH($A33,IND,0)-2),REL_D,D$4,NwID,$C$4),SUMIFS(OFFSET(REL_D,,MATCH($A33,IND,0)-2),REL_D,D$4,OrgID,$C$5)) -> 128 | E33: =IF($C$5="Total",SUMIFS(OFFSET(REL_D,,MATCH($A33,IND,0)-2),REL_D,E$4,NwID,$C$4),SUMIFS(OFFSET(REL_D,,MATCH($A33,IND,0)-2),REL_D,E$4,OrgID,$C$5)) -> 143 | F33: =IF($C$5="Total",SUMIFS(OFFSET(REL_D,,MATCH($A33,IND,0)-2),REL_D,F$4,NwID,$C$4),SUMIFS(OFFSET(REL_D,,MATCH($A33,IND,0)-2),REL_D,F$4,OrgID,$C$5)) -> 3345 | G33: =IF($C$5="Total",SUMIFS(OFFSET(REL_D,,MATCH($A33,IND,0)-2),REL_D,G$4,NwID,$C$4),SUMIFS(OFFSET(REL_D,,MATCH($A33,IND,0)-2),REL_D,G$4,OrgID,$C$5)) -> 3285 | H33: =IF($C$5="Total",SUMIFS(OFFSET(REL_D,,MATCH($A33,IND,0)-2),REL_D,H$4,NwID,$C$4),SUMIFS(OFFSET(REL_D,,MATCH($A33,IND,0)-2),REL_D,H$4,OrgID,$C$5)) -> 0 | I33: =IF($C$5="Total",SUMIFS(OFFSET(REL_D,,MATCH($A33,IND,0)-2),REL_D,I$4,NwID,$C$4),SUMIFS(OFFSET(REL_D,,MATCH($A33,IND,0)-2),REL_D,I$4,OrgID,$C$5)) -> 0 | J33: =IF($C$5="Total",SUMIFS(OFFSET(REL_D,,MATCH($A33,IND,0)-2),REL_D,J$4,NwID,$C$4),SUMIFS(OFFSET(REL_D,,MATCH($A33,IND,0)-2),REL_D,J$4,OrgID,$C$5)) -> 0 | K33: =IF($C$5="Total",SUMIFS(OFFSET(REL_D,,MATCH($A33,IND,0)-2),REL_D,K$4,NwID,$C$4),SUMIFS(OFFSET(REL_D,,MATCH($A33,IND,0)-2),REL_D,K$4,OrgID,$C$5)) -> 0 | L33: =IF($C$5="Total",SUMIFS(OFFSET(REL_D,,MATCH($A33,IND,0)-2),REL_D,L$4,NwID,$C$4),SUMIFS(OFFSET(REL_D,,MATCH($A33,IND,0)-2),REL_D,L$4,OrgID,$C$5)) -> 0 | M33: =IF($C$5="Total",SUMIFS(OFFSET(REL_D,,MATCH($A33,IND,0)-2),REL_D,M$4,NwID,$C$4),SUMIFS(OFFSET(REL_D,,MATCH($A33,IND,0)-2),REL_D,M$4,OrgID,$C$5)) -> 0 | N33: =IF($C$5="Total",SUMIFS(OFFSET(REL_D,,MATCH($A33,IND,0)-2),REL_D,N$4,NwID,$C$4),SUMIFS(OFFSET(REL_D,,MATCH($A33,IND,0)-2),REL_D,N$4,OrgID,$C$5)) -> 0 | O33: =IF($C$5="Total",SUMIFS(OFFSET(REL_D,,MATCH($A33,IND,0)-2),REL_D,O$4,NwID,$C$4),SUMIFS(OFFSET(REL_D,,MATCH($A33,IND,0)-2),REL_D,O$4,OrgID,$C$5)) -> 0 | P33: =IF($C$5="Total",SUMIFS(OFFSET(REL_D,,MATCH($A33,IND,0)-2),REL_D,P$4,NwID,$C$4),SUMIFS(OFFSET(REL_D,,MATCH($A33,IND,0)-2),REL_D,P$4,OrgID,$C$5)) -> 0 | Q33: =IF($C$5="Total",SUMIFS(OFFSET(REL_D,,MATCH($A33,IND,0)-2),REL_D,Q$4,NwID,$C$4),SUMIFS(OFFSET(REL_D,,MATCH($A33,IND,0)-2),REL_D,Q$4,OrgID,$C$5)) -> 0 | R33: =SUMIFS(OFFSET(REL_D,,MATCH($A33,IND,0)-1),REL_D,R$4,IF(LEFT($C$5,1)="N",NwID,OrgID),$C$5) -> 0
A34: ='Control Panel'!B29 -> %LDP.03.04: CHD Cholesterol recorded (last 12m) | B34: %LDP.03.04: CHD Cholesterol recorded (last 12m) | C34: ='Control Panel'!D29 -> % CHD register | D34: =IFERROR(D33/D31,"N/A") -> 0.036 | E34: 0.038 | F34: =IFERROR(F33/F31,"N/A") -> 0.811 | G34: =IFERROR(G33/G31,"N/A") -> 0.792 | H34: N/A | I34: N/A | J34: N/A | K34: N/A | L34: N/A | M34: N/A | N34: N/A | O34: N/A | P34: N/A | Q34: N/A | R34: =IFERROR(R33/R31,"N/A") -> N/A
A35: ='Control Panel'!B30 -> LDP.03.01: CHD Chol less than 5mmol (last 12m) | B35: LDP.03.01: CHD Chol less than 5mmol (last 12m) | C35: ='Control Panel'!D30 -> Cholesterol < 5 (last 12m) | D35: =IF($C$5="Total",SUMIFS(OFFSET(REL_D,,MATCH($A35,IND,0)-2),REL_D,D$4,NwID,$C$4),SUMIFS(OFFSET(REL_D,,MATCH($A35,IND,0)-2),REL_D,D$4,OrgID,$C$5)) -> 101 | E35: =IF($C$5="Total",SUMIFS(OFFSET(REL_D,,MATCH($A35,IND,0)-2),REL_D,E$4,NwID,$C$4),SUMIFS(OFFSET(REL_D,,MATCH($A35,IND,0)-2),REL_D,E$4,OrgID,$C$5)) -> 104 | F35: =IF($C$5="Total",SUMIFS(OFFSET(REL_D,,MATCH($A35,IND,0)-2),REL_D,F$4,NwID,$C$4),SUMIFS(OFFSET(REL_D,,MATCH($A35,IND,0)-2),REL_D,F$4,OrgID,$C$5)) -> 3228 | G35: =IF($C$5="Total",SUMIFS(OFFSET(REL_D,,MATCH($A35,IND,0)-2),REL_D,G$4,NwID,$C$4),SUMIFS(OFFSET(REL_D,,MATCH($A35,IND,0)-2),REL_D,G$4,OrgID,$C$5)) -> 3165 | H35: =IF($C$5="Total",SUMIFS(OFFSET(REL_D,,MATCH($A35,IND,0)-2),REL_D,H$4,NwID,$C$4),SUMIFS(OFFSET(REL_D,,MATCH($A35,IND,0)-2),REL_D,H$4,OrgID,$C$5)) -> 0 | I35: =IF($C$5="Total",SUMIFS(OFFSET(REL_D,,MATCH($A35,IND,0)-2),REL_D,I$4,NwID,$C$4),SUMIFS(OFFSET(REL_D,,MATCH($A35,IND,0)-2),REL_D,I$4,OrgID,$C$5)) -> 0 | J35: =IF($C$5="Total",SUMIFS(OFFSET(REL_D,,MATCH($A35,IND,0)-2),REL_D,J$4,NwID,$C$4),SUMIFS(OFFSET(REL_D,,MATCH($A35,IND,0)-2),REL_D,J$4,OrgID,$C$5)) -> 0 | K35: =IF($C$5="Total",SUMIFS(OFFSET(REL_D,,MATCH($A35,IND,0)-2),REL_D,K$4,NwID,$C$4),SUMIFS(OFFSET(REL_D,,MATCH($A35,IND,0)-2),REL_D,K$4,OrgID,$C$5)) -> 0 | L35: =IF($C$5="Total",SUMIFS(OFFSET(REL_D,,MATCH($A35,IND,0)-2),REL_D,L$4,NwID,$C$4),SUMIFS(OFFSET(REL_D,,MATCH($A35,IND,0)-2),REL_D,L$4,OrgID,$C$5)) -> 0 | M35: =IF($C$5="Total",SUMIFS(OFFSET(REL_D,,MATCH($A35,IND,0)-2),REL_D,M$4,NwID,$C$4),SUMIFS(OFFSET(REL_D,,MATCH($A35,IND,0)-2),REL_D,M$4,OrgID,$C$5)) -> 0 | N35: =IF($C$5="Total",SUMIFS(OFFSET(REL_D,,MATCH($A35,IND,0)-2),REL_D,N$4,NwID,$C$4),SUMIFS(OFFSET(REL_D,,MATCH($A35,IND,0)-2),REL_D,N$4,OrgID,$C$5)) -> 0 | O35: =IF($C$5="Total",SUMIFS(OFFSET(REL_D,,MATCH($A35,IND,0)-2),REL_D,O$4,NwID,$C$4),SUMIFS(OFFSET(REL_D,,MATCH($A35,IND,0)-2),REL_D,O$4,OrgID,$C$5)) -> 0 | P35: =IF($C$5="Total",SUMIFS(OFFSET(REL_D,,MATCH($A35,IND,0)-2),REL_D,P$4,NwID,$C$4),SUMIFS(OFFSET(REL_D,,MATCH($A35,IND,0)-2),REL_D,P$4,OrgID,$C$5)) -> 0 | Q35: =IF($C$5="Total",SUMIFS(OFFSET(REL_D,,MATCH($A35,IND,0)-2),REL_D,Q$4,NwID,$C$4),SUMIFS(OFFSET(REL_D,,MATCH($A35,IND,0)-2),REL_D,Q$4,OrgID,$C$5)) -> 0 | R35: =SUMIFS(OFFSET(REL_D,,MATCH($A35,IND,0)-1),REL_D,R$4,IF(LEFT($C$5,1)="N",NwID,OrgID),$C$5) -> 0
A36: ='Control Panel'!B31 -> %LDP.03.01: CHD Chol less than 5mmol (last 12m) | B36: %LDP.03.01: CHD Chol less than 5mmol (last 12m) | C36: ='Control Panel'!D31 -> % CHD register | D36: =IFERROR(D35/D31,"N/A") -> 0.029 | E36: 0.028 | F36: =IFERROR(F35/F31,"N/A") -> 0.782 | G36: =IFERROR(G35/G31,"N/A") -> 0.763 | H36: N/A | I36: N/A | J36: N/A | K36: N/A | L36: N/A | M36: N/A | N36: N/A | O36: N/A | P36: N/A | Q36: N/A | R36: =IFERROR(R35/R31,"N/A") -> N/A
A37: ='Control Panel'!B32 -> LDP.03.02: CHD BP less than or equal 150/90 (last 9m) | B37: LDP.03.02: CHD BP less than or equal 150/90 (last 9m) | C37: ='Control Panel'!D32 -> BP ≤ 150/90 (last 12m) | D37: =IF($C$5="Total",SUMIFS(OFFSET(REL_D,,MATCH($A37,IND,0)-2),REL_D,D$4,NwID,$C$4),SUMIFS(OFFSET(REL_D,,MATCH($A37,IND,0)-2),REL_D,D$4,OrgID,$C$5)) -> 2355 | E37: =IF($C$5="Total",SUMIFS(OFFSET(REL_D,,MATCH($A37,IND,0)-2),REL_D,E$4,NwID,$C$4),SUMIFS(OFFSET(REL_D,,MATCH($A37,IND,0)-2),REL_D,E$4,OrgID,$C$5)) -> 2583 | F37: =IF($C$5="Total",SUMIFS(OFFSET(REL_D,,MATCH($A37,IND,0)-2),REL_D,F$4,NwID,$C$4),SUMIFS(OFFSET(REL_D,,MATCH($A37,IND,0)-2),REL_D,F$4,OrgID,$C$5)) -> 2816 | G37: =IF($C$5="Total",SUMIFS(OFFSET(REL_D,,MATCH($A37,IND,0)-2),REL_D,G$4,NwID,$C$4),SUMIFS(OFFSET(REL_D,,MATCH($A37,IND,0)-2),REL_D,G$4,OrgID,$C$5)) -> 2772 | H37: =IF($C$5="Total",SUMIFS(OFFSET(REL_D,,MATCH($A37,IND,0)-2),REL_D,H$4,NwID,$C$4),SUMIFS(OFFSET(REL_D,,MATCH($A37,IND,0)-2),REL_D,H$4,OrgID,$C$5)) -> 0 | I37: =IF($C$5="Total",SUMIFS(OFFSET(REL_D,,MATCH($A37,IND,0)-2),REL_D,I$4,NwID,$C$4),SUMIFS(OFFSET(REL_D,,MATCH($A37,IND,0)-2),REL_D,I$4,OrgID,$C$5)) -> 0 | J37: =IF($C$5="Total",SUMIFS(OFFSET(REL_D,,MATCH($A37,IND,0)-2),REL_D,J$4,NwID,$C$4),SUMIFS(OFFSET(REL_D,,MATCH($A37,IND,0)-2),REL_D,J$4,OrgID,$C$5)) -> 0 | K37: =IF($C$5="Total",SUMIFS(OFFSET(REL_D,,MATCH($A37,IND,0)-2),REL_D,K$4,NwID,$C$4),SUMIFS(OFFSET(REL_D,,MATCH($A37,IND,0)-2),REL_D,K$4,OrgID,$C$5)) -> 0 | L37: =IF($C$5="Total",SUMIFS(OFFSET(REL_D,,MATCH($A37,IND,0)-2),REL_D,L$4,NwID,$C$4),SUMIFS(OFFSET(REL_D,,MATCH($A37,IND,0)-2),REL_D,L$4,OrgID,$C$5)) -> 0 | M37: =IF($C$5="Total",SUMIFS(OFFSET(REL_D,,MATCH($A37,IND,0)-2),REL_D,M$4,NwID,$C$4),SUMIFS(OFFSET(REL_D,,MATCH($A37,IND,0)-2),REL_D,M$4,OrgID,$C$5)) -> 0 | N37: =IF($C$5="Total",SUMIFS(OFFSET(REL_D,,MATCH($A37,IND,0)-2),REL_D,N$4,NwID,$C$4),SUMIFS(OFFSET(REL_D,,MATCH($A37,IND,0)-2),REL_D,N$4,OrgID,$C$5)) -> 0 | O37: =IF($C$5="Total",SUMIFS(OFFSET(REL_D,,MATCH($A37,IND,0)-2),REL_D,O$4,NwID,$C$4),SUMIFS(OFFSET(REL_D,,MATCH($A37,IND,0)-2),REL_D,O$4,OrgID,$C$5)) -> 0 | P37: =IF($C$5="Total",SUMIFS(OFFSET(REL_D,,MATCH($A37,IND,0)-2),REL_D,P$4,NwID,$C$4),SUMIFS(OFFSET(REL_D,,MATCH($A37,IND,0)-2),REL_D,P$4,OrgID,$C$5)) -> 0 | Q37: =IF($C$5="Total",SUMIFS(OFFSET(REL_D,,MATCH($A37,IND,0)-2),REL_D,Q$4,NwID,$C$4),SUMIFS(OFFSET(REL_D,,MATCH($A37,IND,0)-2),REL_D,Q$4,OrgID,$C$5)) -> 0 | R37: =SUMIFS(OFFSET(REL_D,,MATCH($A37,IND,0)-1),REL_D,R$4,IF(LEFT($C$5,1)="N",NwID,OrgID),$C$5) -> 0
A38: ='Control Panel'!B33 -> %LDP.03.02: CHD BP less than or equal 150/90 (last 9m) | B38: %LDP.03.02: CHD BP less than or equal 150/90 (last 9m) | C38: ='Control Panel'!D33 -> % CHD register | D38: =IFERROR(D37/D31,"N/A") -> 0.67 | E38: 0.688 | F38: =IFERROR(F37/F31,"N/A") -> 0.683 | G38: =IFERROR(G37/G31,"N/A") -> 0.668 | H38: N/A | I38: N/A | J38: N/A | K38: N/A | L38: N/A | M38: N/A | N38: N/A | O38: N/A | P38: N/A | Q38: N/A | R38: N/A
A39: Stroke/TIA | C39: Stroke/TIA
A40: LDP.10 Stroke or TIA register | C40: Stroke/TIA register | D40: =IF($C$5="Total",SUMIFS(OFFSET(REL_D,,MATCH($A40,IND,0)-2),REL_D,D$4,NwID,$C$4),SUMIFS(OFFSET(REL_D,,MATCH($A40,IND,0)-2),REL_D,D$4,OrgID,$C$5)) -> 2086 | E40: =IF($C$5="Total",SUMIFS(OFFSET(REL_D,,MATCH($A40,IND,0)-2),REL_D,E$4,NwID,$C$4),SUMIFS(OFFSET(REL_D,,MATCH($A40,IND,0)-2),REL_D,E$4,OrgID,$C$5)) -> 2300 | F40: =IF($C$5="Total",SUMIFS(OFFSET(REL_D,,MATCH($A40,IND,0)-2),REL_D,F$4,NwID,$C$4),SUMIFS(OFFSET(REL_D,,MATCH($A40,IND,0)-2),REL_D,F$4,OrgID,$C$5)) -> 2567 | G40: =IF($C$5="Total",SUMIFS(OFFSET(REL_D,,MATCH($A40,IND,0)-2),REL_D,G$4,NwID,$C$4),SUMIFS(OFFSET(REL_D,,MATCH($A40,IND,0)-2),REL_D,G$4,OrgID,$C$5)) -> 2591 | H40: =IF($C$5="Total",SUMIFS(OFFSET(REL_D,,MATCH($A40,IND,0)-2),REL_D,H$4,NwID,$C$4),SUMIFS(OFFSET(REL_D,,MATCH($A40,IND,0)-2),REL_D,H$4,OrgID,$C$5)) -> 0 | I40: =IF($C$5="Total",SUMIFS(OFFSET(REL_D,,MATCH($A40,IND,0)-2),REL_D,I$4,NwID,$C$4),SUMIFS(OFFSET(REL_D,,MATCH($A40,IND,0)-2),REL_D,I$4,OrgID,$C$5)) -> 0 | J40: =IF($C$5="Total",SUMIFS(OFFSET(REL_D,,MATCH($A40,IND,0)-2),REL_D,J$4,NwID,$C$4),SUMIFS(OFFSET(REL_D,,MATCH($A40,IND,0)-2),REL_D,J$4,OrgID,$C$5)) -> 0 | K40: =IF($C$5="Total",SUMIFS(OFFSET(REL_D,,MATCH($A40,IND,0)-2),REL_D,K$4,NwID,$C$4),SUMIFS(OFFSET(REL_D,,MATCH($A40,IND,0)-2),REL_D,K$4,OrgID,$C$5)) -> 0 | L40: =IF($C$5="Total",SUMIFS(OFFSET(REL_D,,MATCH($A40,IND,0)-2),REL_D,L$4,NwID,$C$4),SUMIFS(OFFSET(REL_D,,MATCH($A40,IND,0)-2),REL_D,L$4,OrgID,$C$5)) -> 0 | M40: =IF($C$5="Total",SUMIFS(OFFSET(REL_D,,MATCH($A40,IND,0)-2),REL_D,M$4,NwID,$C$4),SUMIFS(OFFSET(REL_D,,MATCH($A40,IND,0)-2),REL_D,M$4,OrgID,$C$5)) -> 0 | N40: =IF($C$5="Total",SUMIFS(OFFSET(REL_D,,MATCH($A40,IND,0)-2),REL_D,N$4,NwID,$C$4),SUMIFS(OFFSET(REL_D,,MATCH($A40,IND,0)-2),REL_D,N$4,OrgID,$C$5)) -> 0 | O40: =IF($C$5="Total",SUMIFS(OFFSET(REL_D,,MATCH($A40,IND,0)-2),REL_D,O$4,NwID,$C$4),SUMIFS(OFFSET(REL_D,,MATCH($A40,IND,0)-2),REL_D,O$4,OrgID,$C$5)) -> 0 | P40: =IF($C$5="Total",SUMIFS(OFFSET(REL_D,,MATCH($A40,IND,0)-2),REL_D,P$4,NwID,$C$4),SUMIFS(OFFSET(REL_D,,MATCH($A40,IND,0)-2),REL_D,P$4,OrgID,$C$5)) -> 0 | Q40: =IF($C$5="Total",SUMIFS(OFFSET(REL_D,,MATCH($A40,IND,0)-2),REL_D,Q$4,NwID,$C$4),SUMIFS(OFFSET(REL_D,,MATCH($A40,IND,0)-2),REL_D,Q$4,OrgID,$C$5)) -> 0 | R40: -
A41: %LDP.10 Stroke or TIA register | C41: % list size | D41: =IFERROR(D40/D8,"N/A") -> 0.009 | E41: 0.01 | F41: =IFERROR(F40/F8,"N/A") -> 0.01 | G41: =IFERROR(G40/G8,"N/A") -> 0.01 | H41: N/A | I41: N/A | J41: N/A | K41: N/A | L41: N/A | M41: N/A | N41: N/A | O41: N/A | P41: N/A | Q41: N/A | R41: -
A42: LDP.10.01: Stroke/TIA BP recorded (last 12m) | C42: Patients on Stroke/TIA register with BP recorded | D42: =IF($C$5="Total",SUMIFS(OFFSET(REL_D,,MATCH($A42,IND,0)-2),REL_D,D$4,NwID,$C$4),SUMIFS(OFFSET(REL_D,,MATCH($A42,IND,0)-2),REL_D,D$4,OrgID,$C$5)) -> 1831 | E42: =IF($C$5="Total",SUMIFS(OFFSET(REL_D,,MATCH($A42,IND,0)-2),REL_D,E$4,NwID,$C$4),SUMIFS(OFFSET(REL_D,,MATCH($A42,IND,0)-2),REL_D,E$4,OrgID,$C$5)) -> 2008 | F42: =IF($C$5="Total",SUMIFS(OFFSET(REL_D,,MATCH($A42,IND,0)-2),REL_D,F$4,NwID,$C$4),SUMIFS(OFFSET(REL_D,,MATCH($A42,IND,0)-2),REL_D,F$4,OrgID,$C$5)) -> 2229 | G42: =IF($C$5="Total",SUMIFS(OFFSET(REL_D,,MATCH($A42,IND,0)-2),REL_D,G$4,NwID,$C$4),SUMIFS(OFFSET(REL_D,,MATCH($A42,IND,0)-2),REL_D,G$4,OrgID,$C$5)) -> 2234 | H42: =IF($C$5="Total",SUMIFS(OFFSET(REL_D,,MATCH($A42,IND,0)-2),REL_D,H$4,NwID,$C$4),SUMIFS(OFFSET(REL_D,,MATCH($A42,IND,0)-2),REL_D,H$4,OrgID,$C$5)) -> 0 | I42: =IF($C$5="Total",SUMIFS(OFFSET(REL_D,,MATCH($A42,IND,0)-2),REL_D,I$4,NwID,$C$4),SUMIFS(OFFSET(REL_D,,MATCH($A42,IND,0)-2),REL_D,I$4,OrgID,$C$5)) -> 0 | J42: =IF($C$5="Total",SUMIFS(OFFSET(REL_D,,MATCH($A42,IND,0)-2),REL_D,J$4,NwID,$C$4),SUMIFS(OFFSET(REL_D,,MATCH($A42,IND,0)-2),REL_D,J$4,OrgID,$C$5)) -> 0 | K42: =IF($C$5="Total",SUMIFS(OFFSET(REL_D,,MATCH($A42,IND,0)-2),REL_D,K$4,NwID,$C$4),SUMIFS(OFFSET(REL_D,,MATCH($A42,IND,0)-2),REL_D,K$4,OrgID,$C$5)) -> 0 | L42: =IF($C$5="Total",SUMIFS(OFFSET(REL_D,,MATCH($A42,IND,0)-2),REL_D,L$4,NwID,$C$4),SUMIFS(OFFSET(REL_D,,MATCH($A42,IND,0)-2),REL_D,L$4,OrgID,$C$5)) -> 0 | M42: =IF($C$5="Total",SUMIFS(OFFSET(REL_D,,MATCH($A42,IND,0)-2),REL_D,M$4,NwID,$C$4),SUMIFS(OFFSET(REL_D,,MATCH($A42,IND,0)-2),REL_D,M$4,OrgID,$C$5)) -> 0 | N42: =IF($C$5="Total",SUMIFS(OFFSET(REL_D,,MATCH($A42,IND,0)-2),REL_D,N$4,NwID,$C$4),SUMIFS(OFFSET(REL_D,,MATCH($A42,IND,0)-2),REL_D,N$4,OrgID,$C$5)) -> 0 | O42: =IF($C$5="Total",SUMIFS(OFFSET(REL_D,,MATCH($A42,IND,0)-2),REL_D,O$4,NwID,$C$4),SUMIFS(OFFSET(REL_D,,MATCH($A42,IND,0)-2),REL_D,O$4,OrgID,$C$5)) -> 0 | P42: =IF($C$5="Total",SUMIFS(OFFSET(REL_D,,MATCH($A42,IND,0)-2),REL_D,P$4,NwID,$C$4),SUMIFS(OFFSET(REL_D,,MATCH($A42,IND,0)-2),REL_D,P$4,OrgID,$C$5)) -> 0 | Q42: =IF($C$5="Total",SUMIFS(OFFSET(REL_D,,MATCH($A42,IND,0)-2),REL_D,Q$4,NwID,$C$4),SUMIFS(OFFSET(REL_D,,MATCH($A42,IND,0)-2),REL_D,Q$4,OrgID,$C$5)) -> 0 | R42: -
A43: %LDP.10.01: Stroke/TIA BP recorded (last 12m) | C43: % of stroke register | D43: =IFERROR(D42/D40,"N/A") -> 0.878 | E43: 0.873 | F43: =IFERROR(F42/F40,"N/A") -> 0.868 | G43: =IFERROR(G42/G40,"N/A") -> 0.862 | H43: N/A | I43: N/A | J43: N/A | K43: N/A | L43: N/A | M43: N/A | N43: N/A | O43: N/A | P43: N/A | Q43: N/A | R43: -
A44: LDP.10.02 Patients on Stroke/TIA register with BP <140/90 (12m) | C44: Patients on Stroke/TIA register with BP <140/90 (12m) | D44: =IF($C$5="Total",SUMIFS(OFFSET(REL_D,,MATCH($A44,IND,0)-2),REL_D,D$4,NwID,$C$4),SUMIFS(OFFSET(REL_D,,MATCH($A44,IND,0)-2),REL_D,D$4,OrgID,$C$5)) -> 1353 | E44: =IF($C$5="Total",SUMIFS(OFFSET(REL_D,,MATCH($A44,IND,0)-2),REL_D,E$4,NwID,$C$4),SUMIFS(OFFSET(REL_D,,MATCH($A44,IND,0)-2),REL_D,E$4,OrgID,$C$5)) -> 1489 | F44: =IF($C$5="Total",SUMIFS(OFFSET(REL_D,,MATCH($A44,IND,0)-2),REL_D,F$4,NwID,$C$4),SUMIFS(OFFSET(REL_D,,MATCH($A44,IND,0)-2),REL_D,F$4,OrgID,$C$5)) -> 1664 | G44: =IF($C$5="Total",SUMIFS(OFFSET(REL_D,,MATCH($A44,IND,0)-2),REL_D,G$4,NwID,$C$4),SUMIFS(OFFSET(REL_D,,MATCH($A44,IND,0)-2),REL_D,G$4,OrgID,$C$5)) -> 1645 | H44: =IF($C$5="Total",SUMIFS(OFFSET(REL_D,,MATCH($A44,IND,0)-2),REL_D,H$4,NwID,$C$4),SUMIFS(OFFSET(REL_D,,MATCH($A44,IND,0)-2),REL_D,H$4,OrgID,$C$5)) -> 0 | I44: =IF($C$5="Total",SUMIFS(OFFSET(REL_D,,MATCH($A44,IND,0)-2),REL_D,I$4,NwID,$C$4),SUMIFS(OFFSET(REL_D,,MATCH($A44,IND,0)-2),REL_D,I$4,OrgID,$C$5)) -> 0 | J44: =IF($C$5="Total",SUMIFS(OFFSET(REL_D,,MATCH($A44,IND,0)-2),REL_D,J$4,NwID,$C$4),SUMIFS(OFFSET(REL_D,,MATCH($A44,IND,0)-2),REL_D,J$4,OrgID,$C$5)) -> 0 | K44: =IF($C$5="Total",SUMIFS(OFFSET(REL_D,,MATCH($A44,IND,0)-2),REL_D,K$4,NwID,$C$4),SUMIFS(OFFSET(REL_D,,MATCH($A44,IND,0)-2),REL_D,K$4,OrgID,$C$5)) -> 0 | L44: =IF($C$5="Total",SUMIFS(OFFSET(REL_D,,MATCH($A44,IND,0)-2),REL_D,L$4,NwID,$C$4),SUMIFS(OFFSET(REL_D,,MATCH($A44,IND,0)-2),REL_D,L$4,OrgID,$C$5)) -> 0 | M44: =IF($C$5="Total",SUMIFS(OFFSET(REL_D,,MATCH($A44,IND,0)-2),REL_D,M$4,NwID,$C$4),SUMIFS(OFFSET(REL_D,,MATCH($A44,IND,0)-2),REL_D,M$4,OrgID,$C$5)) -> 0 | N44: =IF($C$5="Total",SUMIFS(OFFSET(REL_D,,MATCH($A44,IND,0)-2),REL_D,N$4,NwID,$C$4),SUMIFS(OFFSET(REL_D,,MATCH($A44,IND,0)-2),REL_D,N$4,OrgID,$C$5)) -> 0 | O44: =IF($C$5="Total",SUMIFS(OFFSET(REL_D,,MATCH($A44,IND,0)-2),REL_D,O$4,NwID,$C$4),SUMIFS(OFFSET(REL_D,,MATCH($A44,IND,0)-2),REL_D,O$4,OrgID,$C$5)) -> 0 | P44: =IF($C$5="Total",SUMIFS(OFFSET(REL_D,,MATCH($A44,IND,0)-2),REL_D,P$4,NwID,$C$4),SUMIFS(OFFSET(REL_D,,MATCH($A44,IND,0)-2),REL_D,P$4,OrgID,$C$5)) -> 0 | Q44: =IF($C$5="Total",SUMIFS(OFFSET(REL_D,,MATCH($A44,IND,0)-2),REL_D,Q$4,NwID,$C$4),SUMIFS(OFFSET(REL_D,,MATCH($A44,IND,0)-2),REL_D,Q$4,OrgID,$C$5)) -> 0 | R44: -
A45: %LDP.10.02 Patients on Stroke/TIA register with BP <140/90 (12m) | C45: % of stroke register | D45: =IFERROR(D44/D40,"N/A") -> 0.649 | E45: 0.647 | F45: =IFERROR(F44/F40,"N/A") -> 0.648 | G45: =IFERROR(G44/G40,"N/A") -> 0.635 | H45: N/A | I45: N/A | J45: N/A | K45: N/A | L45: N/A | M45: N/A | N45: N/A | O45: N/A | P45: N/A | Q45: N/A | R45: -
A46: ='Control Panel'!B48 -> CVD Risk | B46: CVD Risk | C46: ='Control Panel'!B48 -> CVD Risk
A47: ='Control Panel'!B49 -> LDP.05: CVD 25-84yrs (excl CVD) | B47: LDP.05: CVD 25-84yrs (excl CVD) | C47: Aged 25 to 84 (exc CVD) | D47: =IF($C$5="Total",SUMIFS(OFFSET(REL_D,,MATCH($A47,IND,0)-2),REL_D,D$4,NwID,$C$4),SUMIFS(OFFSET(REL_D,,MATCH($A47,IND,0)-2),REL_D,D$4,OrgID,$C$5)) -> 137007 | E47: =IF($C$5="Total",SUMIFS(OFFSET(REL_D,,MATCH($A47,IND,0)-2),REL_D,E$4,NwID,$C$4),SUMIFS(OFFSET(REL_D,,MATCH($A47,IND,0)-2),REL_D,E$4,OrgID,$C$5)) -> 147010 | F47: =IF($C$5="Total",SUMIFS(OFFSET(REL_D,,MATCH($A47,IND,0)-2),REL_D,F$4,NwID,$C$4),SUMIFS(OFFSET(REL_D,,MATCH($A47,IND,0)-2),REL_D,F$4,OrgID,$C$5)) -> 124914 | G47: =IF($C$5="Total",SUMIFS(OFFSET(REL_D,,MATCH($A47,IND,0)-2),REL_D,G$4,NwID,$C$4),SUMIFS(OFFSET(REL_D,,MATCH($A47,IND,0)-2),REL_D,G$4,OrgID,$C$5)) -> 125230 | H47: =IF($C$5="Total",SUMIFS(OFFSET(REL_D,,MATCH($A47,IND,0)-2),REL_D,H$4,NwID,$C$4),SUMIFS(OFFSET(REL_D,,MATCH($A47,IND,0)-2),REL_D,H$4,OrgID,$C$5)) -> 0 | I47: =IF($C$5="Total",SUMIFS(OFFSET(REL_D,,MATCH($A47,IND,0)-2),REL_D,I$4,NwID,$C$4),SUMIFS(OFFSET(REL_D,,MATCH($A47,IND,0)-2),REL_D,I$4,OrgID,$C$5)) -> 0 | J47: =IF($C$5="Total",SUMIFS(OFFSET(REL_D,,MATCH($A47,IND,0)-2),REL_D,J$4,NwID,$C$4),SUMIFS(OFFSET(REL_D,,MATCH($A47,IND,0)-2),REL_D,J$4,OrgID,$C$5)) -> 0 | K47: =IF($C$5="Total",SUMIFS(OFFSET(REL_D,,MATCH($A47,IND,0)-2),REL_D,K$4,NwID,$C$4),SUMIFS(OFFSET(REL_D,,MATCH($A47,IND,0)-2),REL_D,K$4,OrgID,$C$5)) -> 0 | L47: =IF($C$5="Total",SUMIFS(OFFSET(REL_D,,MATCH($A47,IND,0)-2),REL_D,L$4,NwID,$C$4),SUMIFS(OFFSET(REL_D,,MATCH($A47,IND,0)-2),REL_D,L$4,OrgID,$C$5)) -> 0 | M47: =IF($C$5="Total",SUMIFS(OFFSET(REL_D,,MATCH($A47,IND,0)-2),REL_D,M$4,NwID,$C$4),SUMIFS(OFFSET(REL_D,,MATCH($A47,IND,0)-2),REL_D,M$4,OrgID,$C$5)) -> 0 | N47: =IF($C$5="Total",SUMIFS(OFFSET(REL_D,,MATCH($A47,IND,0)-2),REL_D,N$4,NwID,$C$4),SUMIFS(OFFSET(REL_D,,MATCH($A47,IND,0)-2),REL_D,N$4,OrgID,$C$5)) -> 0 | O47: =IF($C$5="Total",SUMIFS(OFFSET(REL_D,,MATCH($A47,IND,0)-2),REL_D,O$4,NwID,$C$4),SUMIFS(OFFSET(REL_D,,MATCH($A47,IND,0)-2),REL_D,O$4,OrgID,$C$5)) -> 0 | P47: =IF($C$5="Total",SUMIFS(OFFSET(REL_D,,MATCH($A47,IND,0)-2),REL_D,P$4,NwID,$C$4),SUMIFS(OFFSET(REL_D,,MATCH($A47,IND,0)-2),REL_D,P$4,OrgID,$C$5)) -> 0 | Q47: =IF($C$5="Total",SUMIFS(OFFSET(REL_D,,MATCH($A47,IND,0)-2),REL_D,Q$4,NwID,$C$4),SUMIFS(OFFSET(REL_D,,MATCH($A47,IND,0)-2),REL_D,Q$4,OrgID,$C$5)) -> 0 | R47: =SUMIFS(OFFSET(REL_D,,MATCH($A47,IND,0)-1),REL_D,R$4,IF(LEFT($C$5,1)="N",NwID,OrgID),$C$5) -> 0
A48: ='Control Panel'!B50 -> LDP.05.02: Cardiovascular Risk Score Done (5y) | B48: LDP.05.02: Cardiovascular Risk Score Done (5y) | C48: Cardiovascular Risk Score Done (5y) | D48: =IF($C$5="Total",SUMIFS(OFFSET(REL_D,,MATCH($A48,IND,0)-2),REL_D,D$4,NwID,$C$4),SUMIFS(OFFSET(REL_D,,MATCH($A48,IND,0)-2),REL_D,D$4,OrgID,$C$5)) -> 50371 | E48: =IF($C$5="Total",SUMIFS(OFFSET(REL_D,,MATCH($A48,IND,0)-2),REL_D,E$4,NwID,$C$4),SUMIFS(OFFSET(REL_D,,MATCH($A48,IND,0)-2),REL_D,E$4,OrgID,$C$5)) -> 56298 | F48: =IF($C$5="Total",SUMIFS(OFFSET(REL_D,,MATCH($A48,IND,0)-2),REL_D,F$4,NwID,$C$4),SUMIFS(OFFSET(REL_D,,MATCH($A48,IND,0)-2),REL_D,F$4,OrgID,$C$5)) -> 45069 | G48: =IF($C$5="Total",SUMIFS(OFFSET(REL_D,,MATCH($A48,IND,0)-2),REL_D,G$4,NwID,$C$4),SUMIFS(OFFSET(REL_D,,MATCH($A48,IND,0)-2),REL_D,G$4,OrgID,$C$5)) -> 45574 | H48: =IF($C$5="Total",SUMIFS(OFFSET(REL_D,,MATCH($A48,IND,0)-2),REL_D,H$4,NwID,$C$4),SUMIFS(OFFSET(REL_D,,MATCH($A48,IND,0)-2),REL_D,H$4,OrgID,$C$5)) -> 0 | I48: =IF($C$5="Total",SUMIFS(OFFSET(REL_D,,MATCH($A48,IND,0)-2),REL_D,I$4,NwID,$C$4),SUMIFS(OFFSET(REL_D,,MATCH($A48,IND,0)-2),REL_D,I$4,OrgID,$C$5)) -> 0 | J48: =IF($C$5="Total",SUMIFS(OFFSET(REL_D,,MATCH($A48,IND,0)-2),REL_D,J$4,NwID,$C$4),SUMIFS(OFFSET(REL_D,,MATCH($A48,IND,0)-2),REL_D,J$4,OrgID,$C$5)) -> 0 | K48: =IF($C$5="Total",SUMIFS(OFFSET(REL_D,,MATCH($A48,IND,0)-2),REL_D,K$4,NwID,$C$4),SUMIFS(OFFSET(REL_D,,MATCH($A48,IND,0)-2),REL_D,K$4,OrgID,$C$5)) -> 0 | L48: =IF($C$5="Total",SUMIFS(OFFSET(REL_D,,MATCH($A48,IND,0)-2),REL_D,L$4,NwID,$C$4),SUMIFS(OFFSET(REL_D,,MATCH($A48,IND,0)-2),REL_D,L$4,OrgID,$C$5)) -> 0 | M48: =IF($C$5="Total",SUMIFS(OFFSET(REL_D,,MATCH($A48,IND,0)-2),REL_D,M$4,NwID,$C$4),SUMIFS(OFFSET(REL_D,,MATCH($A48,IND,0)-2),REL_D,M$4,OrgID,$C$5)) -> 0 | N48: =IF($C$5="Total",SUMIFS(OFFSET(REL_D,,MATCH($A48,IND,0)-2),REL_D,N$4,NwID,$C$4),SUMIFS(OFFSET(REL_D,,MATCH($A48,IND,0)-2),REL_D,N$4,OrgID,$C$5)) -> 0 | O48: =IF($C$5="Total",SUMIFS(OFFSET(REL_D,,MATCH($A48,IND,0)-2),REL_D,O$4,NwID,$C$4),SUMIFS(OFFSET(REL_D,,MATCH($A48,IND,0)-2),REL_D,O$4,OrgID,$C$5)) -> 0 | P48: =IF($C$5="Total",SUMIFS(OFFSET(REL_D,,MATCH($A48,IND,0)-2),REL_D,P$4,NwID,$C$4),SUMIFS(OFFSET(REL_D,,MATCH($A48,IND,0)-2),REL_D,P$4,OrgID,$C$5)) -> 0 | Q48: =IF($C$5="Total",SUMIFS(OFFSET(REL_D,,MATCH($A48,IND,0)-2),REL_D,Q$4,NwID,$C$4),SUMIFS(OFFSET(REL_D,,MATCH($A48,IND,0)-2),REL_D,Q$4,OrgID,$C$5)) -> 0 | R48: =SUMIFS(OFFSET(REL_D,,MATCH($A48,IND,0)-1),REL_D,R$4,IF(LEFT($C$5,1)="N",NwID,OrgID),$C$5) -> 0
A49: ='Control Panel'!B51 -> %LDP.05.02: Cardiovascular Risk Score Done (5y) | B49: %LDP.05.02: Cardiovascular Risk Score Done (5y) | C49: % of patients aged 25 to 84 (exc CVD) | D49: =IFERROR(D47/D8,"N/A") -> 0.607 | E49: 0.61 | F49: =IFERROR(F47/F8,"N/A") -> 0.483 | G49: =IFERROR(G47/G8,"N/A") -> 0.484 | H49: N/A | I49: N/A | J49: N/A | K49: N/A | L49: N/A | M49: N/A | N49: N/A | O49: N/A | P49: N/A | Q49: N/A | R49: =IFERROR(R48/R8,"N/A") -> N/A
A50: ='Control Panel'!B52 -> LDP.05.01: CVD QRISK greater than or equal 20% | B50: LDP.05.01: CVD QRISK greater than or equal 20% | C50: QRISK ≥ 20% | D50: =IF($C$5="Total",SUMIFS(OFFSET(REL_D,,MATCH($A50,IND,0)-2),REL_D,D$4,NwID,$C$4),SUMIFS(OFFSET(REL_D,,MATCH($A50,IND,0)-2),REL_D,D$4,OrgID,$C$5)) -> 6699 | E50: =IF($C$5="Total",SUMIFS(OFFSET(REL_D,,MATCH($A50,IND,0)-2),REL_D,E$4,NwID,$C$4),SUMIFS(OFFSET(REL_D,,MATCH($A50,IND,0)-2),REL_D,E$4,OrgID,$C$5)) -> 7769 | F50: =IF($C$5="Total",SUMIFS(OFFSET(REL_D,,MATCH($A50,IND,0)-2),REL_D,F$4,NwID,$C$4),SUMIFS(OFFSET(REL_D,,MATCH($A50,IND,0)-2),REL_D,F$4,OrgID,$C$5)) -> 3025 | G50: =IF($C$5="Total",SUMIFS(OFFSET(REL_D,,MATCH($A50,IND,0)-2),REL_D,G$4,NwID,$C$4),SUMIFS(OFFSET(REL_D,,MATCH($A50,IND,0)-2),REL_D,G$4,OrgID,$C$5)) -> 3095 | H50: =IF($C$5="Total",SUMIFS(OFFSET(REL_D,,MATCH($A50,IND,0)-2),REL_D,H$4,NwID,$C$4),SUMIFS(OFFSET(REL_D,,MATCH($A50,IND,0)-2),REL_D,H$4,OrgID,$C$5)) -> 0 | I50: =IF($C$5="Total",SUMIFS(OFFSET(REL_D,,MATCH($A50,IND,0)-2),REL_D,I$4,NwID,$C$4),SUMIFS(OFFSET(REL_D,,MATCH($A50,IND,0)-2),REL_D,I$4,OrgID,$C$5)) -> 0 | J50: =IF($C$5="Total",SUMIFS(OFFSET(REL_D,,MATCH($A50,IND,0)-2),REL_D,J$4,NwID,$C$4),SUMIFS(OFFSET(REL_D,,MATCH($A50,IND,0)-2),REL_D,J$4,OrgID,$C$5)) -> 0 | K50: =IF($C$5="Total",SUMIFS(OFFSET(REL_D,,MATCH($A50,IND,0)-2),REL_D,K$4,NwID,$C$4),SUMIFS(OFFSET(REL_D,,MATCH($A50,IND,0)-2),REL_D,K$4,OrgID,$C$5)) -> 0 | L50: =IF($C$5="Total",SUMIFS(OFFSET(REL_D,,MATCH($A50,IND,0)-2),REL_D,L$4,NwID,$C$4),SUMIFS(OFFSET(REL_D,,MATCH($A50,IND,0)-2),REL_D,L$4,OrgID,$C$5)) -> 0 | M50: =IF($C$5="Total",SUMIFS(OFFSET(REL_D,,MATCH($A50,IND,0)-2),REL_D,M$4,NwID,$C$4),SUMIFS(OFFSET(REL_D,,MATCH($A50,IND,0)-2),REL_D,M$4,OrgID,$C$5)) -> 0 | N50: =IF($C$5="Total",SUMIFS(OFFSET(REL_D,,MATCH($A50,IND,0)-2),REL_D,N$4,NwID,$C$4),SUMIFS(OFFSET(REL_D,,MATCH($A50,IND,0)-2),REL_D,N$4,OrgID,$C$5)) -> 0 | O50: =IF($C$5="Total",SUMIFS(OFFSET(REL_D,,MATCH($A50,IND,0)-2),REL_D,O$4,NwID,$C$4),SUMIFS(OFFSET(REL_D,,MATCH($A50,IND,0)-2),REL_D,O$4,OrgID,$C$5)) -> 0 | P50: =IF($C$5="Total",SUMIFS(OFFSET(REL_D,,MATCH($A50,IND,0)-2),REL_D,P$4,NwID,$C$4),SUMIFS(OFFSET(REL_D,,MATCH($A50,IND,0)-2),REL_D,P$4,OrgID,$C$5)) -> 0 | Q50: =IF($C$5="Total",SUMIFS(OFFSET(REL_D,,MATCH($A50,IND,0)-2),REL_D,Q$4,NwID,$C$4),SUMIFS(OFFSET(REL_D,,MATCH($A50,IND,0)-2),REL_D,Q$4,OrgID,$C$5)) -> 0 | R50: =SUMIFS(OFFSET(REL_D,,MATCH($A50,IND,0)-1),REL_D,R$4,IF(LEFT($C$5,1)="N",NwID,OrgID),$C$5) -> 0
A51: ='Control Panel'!B53 -> %LDP.05.01: CVD QRISK greater than or equal 20% | B51: %LDP.05.01: CVD QRISK greater than or equal 20% | C51: % of patients aged 25 to 84 (exc CVD) | D51: =IFERROR(D50/D48,"N/A") -> 0.133 | E51: 0.138 | F51: =IFERROR(F50/F47,"N/A") -> 0.024 | G51: =IFERROR(G50/G47,"N/A") -> 0.025 | H51: N/A | I51: N/A | J51: N/A | K51: N/A | L51: N/A | M51: N/A | N51: N/A | O51: N/A | P51: N/A | Q51: N/A | R51: =IFERROR(R50/R48,"N/A") -> N/A
A52: ='Control Panel'!B54 -> LDP.05.01.01: CVD Proxy Annual Review (last 12m) | B52: LDP.05.01.01: CVD Proxy Annual Review (last 12m) | C52: QRISK ≥ 20% and proxy review (BP and Chol last 12m) | D52: =IF($C$5="Total",SUMIFS(OFFSET(REL_D,,MATCH($A52,IND,0)-2),REL_D,D$4,NwID,$C$4),SUMIFS(OFFSET(REL_D,,MATCH($A52,IND,0)-2),REL_D,D$4,OrgID,$C$5)) -> 295 | E52: =IF($C$5="Total",SUMIFS(OFFSET(REL_D,,MATCH($A52,IND,0)-2),REL_D,E$4,NwID,$C$4),SUMIFS(OFFSET(REL_D,,MATCH($A52,IND,0)-2),REL_D,E$4,OrgID,$C$5)) -> 270 | F52: =IF($C$5="Total",SUMIFS(OFFSET(REL_D,,MATCH($A52,IND,0)-2),REL_D,F$4,NwID,$C$4),SUMIFS(OFFSET(REL_D,,MATCH($A52,IND,0)-2),REL_D,F$4,OrgID,$C$5)) -> 1949 | G52: =IF($C$5="Total",SUMIFS(OFFSET(REL_D,,MATCH($A52,IND,0)-2),REL_D,G$4,NwID,$C$4),SUMIFS(OFFSET(REL_D,,MATCH($A52,IND,0)-2),REL_D,G$4,OrgID,$C$5)) -> 1906 | H52: =IF($C$5="Total",SUMIFS(OFFSET(REL_D,,MATCH($A52,IND,0)-2),REL_D,H$4,NwID,$C$4),SUMIFS(OFFSET(REL_D,,MATCH($A52,IND,0)-2),REL_D,H$4,OrgID,$C$5)) -> 0 | I52: =IF($C$5="Total",SUMIFS(OFFSET(REL_D,,MATCH($A52,IND,0)-2),REL_D,I$4,NwID,$C$4),SUMIFS(OFFSET(REL_D,,MATCH($A52,IND,0)-2),REL_D,I$4,OrgID,$C$5)) -> 0 | J52: =IF($C$5="Total",SUMIFS(OFFSET(REL_D,,MATCH($A52,IND,0)-2),REL_D,J$4,NwID,$C$4),SUMIFS(OFFSET(REL_D,,MATCH($A52,IND,0)-2),REL_D,J$4,OrgID,$C$5)) -> 0 | K52: =IF($C$5="Total",SUMIFS(OFFSET(REL_D,,MATCH($A52,IND,0)-2),REL_D,K$4,NwID,$C$4),SUMIFS(OFFSET(REL_D,,MATCH($A52,IND,0)-2),REL_D,K$4,OrgID,$C$5)) -> 0 | L52: =IF($C$5="Total",SUMIFS(OFFSET(REL_D,,MATCH($A52,IND,0)-2),REL_D,L$4,NwID,$C$4),SUMIFS(OFFSET(REL_D,,MATCH($A52,IND,0)-2),REL_D,L$4,OrgID,$C$5)) -> 0 | M52: =IF($C$5="Total",SUMIFS(OFFSET(REL_D,,MATCH($A52,IND,0)-2),REL_D,M$4,NwID,$C$4),SUMIFS(OFFSET(REL_D,,MATCH($A52,IND,0)-2),REL_D,M$4,OrgID,$C$5)) -> 0 | N52: =IF($C$5="Total",SUMIFS(OFFSET(REL_D,,MATCH($A52,IND,0)-2),REL_D,N$4,NwID,$C$4),SUMIFS(OFFSET(REL_D,,MATCH($A52,IND,0)-2),REL_D,N$4,OrgID,$C$5)) -> 0 | O52: =IF($C$5="Total",SUMIFS(OFFSET(REL_D,,MATCH($A52,IND,0)-2),REL_D,O$4,NwID,$C$4),SUMIFS(OFFSET(REL_D,,MATCH($A52,IND,0)-2),REL_D,O$4,OrgID,$C$5)) -> 0 | P52: =IF($C$5="Total",SUMIFS(OFFSET(REL_D,,MATCH($A52,IND,0)-2),REL_D,P$4,NwID,$C$4),SUMIFS(OFFSET(REL_D,,MATCH($A52,IND,0)-2),REL_D,P$4,OrgID,$C$5)) -> 0 | Q52: =IF($C$5="Total",SUMIFS(OFFSET(REL_D,,MATCH($A52,IND,0)-2),REL_D,Q$4,NwID,$C$4),SUMIFS(OFFSET(REL_D,,MATCH($A52,IND,0)-2),REL_D,Q$4,OrgID,$C$5)) -> 0 | R52: =SUMIFS(OFFSET(REL_D,,MATCH($A52,IND,0)-1),REL_D,R$4,IF(LEFT($C$5,1)="N",NwID,OrgID),$C$5) -> 0
A53: ='Control Panel'!B55 -> %LDP.05.01.01: CVD Proxy Annual Review (last 12m) | B53: %LDP.05.01.01: CVD Proxy Annual Review (last 12m) | C53: % Patients with QRISK ≥ 20% | D53: =IFERROR(D52/D48,"N/A") -> 0.006 | E53: 0.005 | F53: =IFERROR(F52/F48,"N/A") -> 0.043 | G53: =IFERROR(G52/G48,"N/A") -> 0.042 | H53: N/A | I53: N/A | J53: N/A | K53: N/A | L53: N/A | M53: N/A | N53: N/A | O53: N/A | P53: N/A | Q53: N/A | R53: =IFERROR(R52/R48,"N/A") -> N/A
A54: LDP.05.03: CVD QRISK >=10 & <20 | B54: LDP.05.03: CVD QRISK >=10 & <20 | C54: QRISK >=10 & <20 | D54: =IF($C$5="Total",SUMIFS(OFFSET(REL_D,,MATCH($A54,IND,0)-2),REL_D,D$4,NwID,$C$4),SUMIFS(OFFSET(REL_D,,MATCH($A54,IND,0)-2),REL_D,D$4,OrgID,$C$5)) -> 0 | E54: =IF($C$5="Total",SUMIFS(OFFSET(REL_D,,MATCH($A54,IND,0)-2),REL_D,E$4,NwID,$C$4),SUMIFS(OFFSET(REL_D,,MATCH($A54,IND,0)-2),REL_D,E$4,OrgID,$C$5)) -> 12419 | F54: =IF($C$5="Total",SUMIFS(OFFSET(REL_D,,MATCH($A54,IND,0)-2),REL_D,F$4,NwID,$C$4),SUMIFS(OFFSET(REL_D,,MATCH($A54,IND,0)-2),REL_D,F$4,OrgID,$C$5)) -> 7097 | G54: =IF($C$5="Total",SUMIFS(OFFSET(REL_D,,MATCH($A54,IND,0)-2),REL_D,G$4,NwID,$C$4),SUMIFS(OFFSET(REL_D,,MATCH($A54,IND,0)-2),REL_D,G$4,OrgID,$C$5)) -> 7141 | H54: =IF($C$5="Total",SUMIFS(OFFSET(REL_D,,MATCH($A54,IND,0)-2),REL_D,H$4,NwID,$C$4),SUMIFS(OFFSET(REL_D,,MATCH($A54,IND,0)-2),REL_D,H$4,OrgID,$C$5)) -> 0 | I54: =IF($C$5="Total",SUMIFS(OFFSET(REL_D,,MATCH($A54,IND,0)-2),REL_D,I$4,NwID,$C$4),SUMIFS(OFFSET(REL_D,,MATCH($A54,IND,0)-2),REL_D,I$4,OrgID,$C$5)) -> 0 | J54: =IF($C$5="Total",SUMIFS(OFFSET(REL_D,,MATCH($A54,IND,0)-2),REL_D,J$4,NwID,$C$4),SUMIFS(OFFSET(REL_D,,MATCH($A54,IND,0)-2),REL_D,J$4,OrgID,$C$5)) -> 0 | K54: =IF($C$5="Total",SUMIFS(OFFSET(REL_D,,MATCH($A54,IND,0)-2),REL_D,K$4,NwID,$C$4),SUMIFS(OFFSET(REL_D,,MATCH($A54,IND,0)-2),REL_D,K$4,OrgID,$C$5)) -> 0 | L54: =IF($C$5="Total",SUMIFS(OFFSET(REL_D,,MATCH($A54,IND,0)-2),REL_D,L$4,NwID,$C$4),SUMIFS(OFFSET(REL_D,,MATCH($A54,IND,0)-2),REL_D,L$4,OrgID,$C$5)) -> 0 | M54: =IF($C$5="Total",SUMIFS(OFFSET(REL_D,,MATCH($A54,IND,0)-2),REL_D,M$4,NwID,$C$4),SUMIFS(OFFSET(REL_D,,MATCH($A54,IND,0)-2),REL_D,M$4,OrgID,$C$5)) -> 0 | N54: =IF($C$5="Total",SUMIFS(OFFSET(REL_D,,MATCH($A54,IND,0)-2),REL_D,N$4,NwID,$C$4),SUMIFS(OFFSET(REL_D,,MATCH($A54,IND,0)-2),REL_D,N$4,OrgID,$C$5)) -> 0 | O54: =IF($C$5="Total",SUMIFS(OFFSET(REL_D,,MATCH($A54,IND,0)-2),REL_D,O$4,NwID,$C$4),SUMIFS(OFFSET(REL_D,,MATCH($A54,IND,0)-2),REL_D,O$4,OrgID,$C$5)) -> 0 | P54: =IF($C$5="Total",SUMIFS(OFFSET(REL_D,,MATCH($A54,IND,0)-2),REL_D,P$4,NwID,$C$4),SUMIFS(OFFSET(REL_D,,MATCH($A54,IND,0)-2),REL_D,P$4,OrgID,$C$5)) -> 0 | Q54: =IF($C$5="Total",SUMIFS(OFFSET(REL_D,,MATCH($A54,IND,0)-2),REL_D,Q$4,NwID,$C$4),SUMIFS(OFFSET(REL_D,,MATCH($A54,IND,0)-2),REL_D,Q$4,OrgID,$C$5)) -> 0
C55: % of patients aged 25 to 84 (exc CVD) | D55: =IFERROR(D54/D48,"N/A") -> 0 | E55: 0.221 | F55: =IFERROR(F54/F47,"N/A") -> 0.057 | G55: =IFERROR(G54/G47,"N/A") -> 0.057 | H55: N/A | I55: N/A | J55: N/A | K55: N/A | L55: N/A | M55: N/A | N55: N/A | O55: N/A | P55: N/A | Q55: N/A
A56: ='Control Panel'!B56 -> Diabetes | B56: Diabetes | C56: ='Control Panel'!B56 -> Diabetes
A57: ='Control Panel'!B57 -> LDP.04: Diabetes Register | B57: LDP.04: Diabetes Register | C57: Diabetes register | D57: =IF($C$5="Total",SUMIFS(OFFSET(REL_D,,MATCH($A57,IND,0)-2),REL_D,D$4,NwID,$C$4),SUMIFS(OFFSET(REL_D,,MATCH($A57,IND,0)-2),REL_D,D$4,OrgID,$C$5)) -> 15789 | E57: =IF($C$5="Total",SUMIFS(OFFSET(REL_D,,MATCH($A57,IND,0)-2),REL_D,E$4,NwID,$C$4),SUMIFS(OFFSET(REL_D,,MATCH($A57,IND,0)-2),REL_D,E$4,OrgID,$C$5)) -> 17882 | F57: =IF($C$5="Total",SUMIFS(OFFSET(REL_D,,MATCH($A57,IND,0)-2),REL_D,F$4,NwID,$C$4),SUMIFS(OFFSET(REL_D,,MATCH($A57,IND,0)-2),REL_D,F$4,OrgID,$C$5)) -> 20927 | G57: =IF($C$5="Total",SUMIFS(OFFSET(REL_D,,MATCH($A57,IND,0)-2),REL_D,G$4,NwID,$C$4),SUMIFS(OFFSET(REL_D,,MATCH($A57,IND,0)-2),REL_D,G$4,OrgID,$C$5)) -> 21024 | H57: =IF($C$5="Total",SUMIFS(OFFSET(REL_D,,MATCH($A57,IND,0)-2),REL_D,H$4,NwID,$C$4),SUMIFS(OFFSET(REL_D,,MATCH($A57,IND,0)-2),REL_D,H$4,OrgID,$C$5)) -> 0 | I57: =IF($C$5="Total",SUMIFS(OFFSET(REL_D,,MATCH($A57,IND,0)-2),REL_D,I$4,NwID,$C$4),SUMIFS(OFFSET(REL_D,,MATCH($A57,IND,0)-2),REL_D,I$4,OrgID,$C$5)) -> 0 | J57: =IF($C$5="Total",SUMIFS(OFFSET(REL_D,,MATCH($A57,IND,0)-2),REL_D,J$4,NwID,$C$4),SUMIFS(OFFSET(REL_D,,MATCH($A57,IND,0)-2),REL_D,J$4,OrgID,$C$5)) -> 0 | K57: =IF($C$5="Total",SUMIFS(OFFSET(REL_D,,MATCH($A57,IND,0)-2),REL_D,K$4,NwID,$C$4),SUMIFS(OFFSET(REL_D,,MATCH($A57,IND,0)-2),REL_D,K$4,OrgID,$C$5)) -> 0 | L57: =IF($C$5="Total",SUMIFS(OFFSET(REL_D,,MATCH($A57,IND,0)-2),REL_D,L$4,NwID,$C$4),SUMIFS(OFFSET(REL_D,,MATCH($A57,IND,0)-2),REL_D,L$4,OrgID,$C$5)) -> 0 | M57: =IF($C$5="Total",SUMIFS(OFFSET(REL_D,,MATCH($A57,IND,0)-2),REL_D,M$4,NwID,$C$4),SUMIFS(OFFSET(REL_D,,MATCH($A57,IND,0)-2),REL_D,M$4,OrgID,$C$5)) -> 0 | N57: =IF($C$5="Total",SUMIFS(OFFSET(REL_D,,MATCH($A57,IND,0)-2),REL_D,N$4,NwID,$C$4),SUMIFS(OFFSET(REL_D,,MATCH($A57,IND,0)-2),REL_D,N$4,OrgID,$C$5)) -> 0 | O57: =IF($C$5="Total",SUMIFS(OFFSET(REL_D,,MATCH($A57,IND,0)-2),REL_D,O$4,NwID,$C$4),SUMIFS(OFFSET(REL_D,,MATCH($A57,IND,0)-2),REL_D,O$4,OrgID,$C$5)) -> 0 | P57: =IF($C$5="Total",SUMIFS(OFFSET(REL_D,,MATCH($A57,IND,0)-2),REL_D,P$4,NwID,$C$4),SUMIFS(OFFSET(REL_D,,MATCH($A57,IND,0)-2),REL_D,P$4,OrgID,$C$5)) -> 0 | Q57: =IF($C$5="Total",SUMIFS(OFFSET(REL_D,,MATCH($A57,IND,0)-2),REL_D,Q$4,NwID,$C$4),SUMIFS(OFFSET(REL_D,,MATCH($A57,IND,0)-2),REL_D,Q$4,OrgID,$C$5)) -> 0 | R57: =SUMIFS(OFFSET(REL_D,,MATCH($A57,IND,0)-1),REL_D,R$4,IF(LEFT($C$5,1)="N",NwID,OrgID),$C$5) -> 0
A58: ='Control Panel'!B58 -> %LDP.04: Diabetes Register | B58: %LDP.04: Diabetes Register | C58: % List size | D58: =IFERROR(D57/D8,"N/A") -> 0.07 | E58: 0.074 | F58: =IFERROR(F57/F8,"N/A") -> 0.081 | G58: =IFERROR(G57/G8,"N/A") -> 0.081 | H58: N/A | I58: N/A | J58: N/A | K58: N/A | L58: N/A | M58: N/A | N58: N/A | O58: N/A | P58: N/A | Q58: N/A | R58: N/A
A59: ='Control Panel'!B61 -> LDP.04.11: Diabetes and BP in last 12 months | B59: LDP.04.11: Diabetes and BP in last 12 months | C59: BP (last 12m) | D59: =IF($C$5="Total",SUMIFS(OFFSET(REL_D,,MATCH($A59,IND,0)-2),REL_D,D$4,NwID,$C$4),SUMIFS(OFFSET(REL_D,,MATCH($A59,IND,0)-2),REL_D,D$4,OrgID,$C$5)) -> 14580 | E59: =IF($C$5="Total",SUMIFS(OFFSET(REL_D,,MATCH($A59,IND,0)-2),REL_D,E$4,NwID,$C$4),SUMIFS(OFFSET(REL_D,,MATCH($A59,IND,0)-2),REL_D,E$4,OrgID,$C$5)) -> 16523 | F59: =IF($C$5="Total",SUMIFS(OFFSET(REL_D,,MATCH($A59,IND,0)-2),REL_D,F$4,NwID,$C$4),SUMIFS(OFFSET(REL_D,,MATCH($A59,IND,0)-2),REL_D,F$4,OrgID,$C$5)) -> 19196 | G59: =IF($C$5="Total",SUMIFS(OFFSET(REL_D,,MATCH($A59,IND,0)-2),REL_D,G$4,NwID,$C$4),SUMIFS(OFFSET(REL_D,,MATCH($A59,IND,0)-2),REL_D,G$4,OrgID,$C$5)) -> 18925 | H59: =IF($C$5="Total",SUMIFS(OFFSET(REL_D,,MATCH($A59,IND,0)-2),REL_D,H$4,NwID,$C$4),SUMIFS(OFFSET(REL_D,,MATCH($A59,IND,0)-2),REL_D,H$4,OrgID,$C$5)) -> 0 | I59: =IF($C$5="Total",SUMIFS(OFFSET(REL_D,,MATCH($A59,IND,0)-2),REL_D,I$4,NwID,$C$4),SUMIFS(OFFSET(REL_D,,MATCH($A59,IND,0)-2),REL_D,I$4,OrgID,$C$5)) -> 0 | J59: =IF($C$5="Total",SUMIFS(OFFSET(REL_D,,MATCH($A59,IND,0)-2),REL_D,J$4,NwID,$C$4),SUMIFS(OFFSET(REL_D,,MATCH($A59,IND,0)-2),REL_D,J$4,OrgID,$C$5)) -> 0 | K59: =IF($C$5="Total",SUMIFS(OFFSET(REL_D,,MATCH($A59,IND,0)-2),REL_D,K$4,NwID,$C$4),SUMIFS(OFFSET(REL_D,,MATCH($A59,IND,0)-2),REL_D,K$4,OrgID,$C$5)) -> 0 | L59: =IF($C$5="Total",SUMIFS(OFFSET(REL_D,,MATCH($A59,IND,0)-2),REL_D,L$4,NwID,$C$4),SUMIFS(OFFSET(REL_D,,MATCH($A59,IND,0)-2),REL_D,L$4,OrgID,$C$5)) -> 0 | M59: =IF($C$5="Total",SUMIFS(OFFSET(REL_D,,MATCH($A59,IND,0)-2),REL_D,M$4,NwID,$C$4),SUMIFS(OFFSET(REL_D,,MATCH($A59,IND,0)-2),REL_D,M$4,OrgID,$C$5)) -> 0 | N59: =IF($C$5="Total",SUMIFS(OFFSET(REL_D,,MATCH($A59,IND,0)-2),REL_D,N$4,NwID,$C$4),SUMIFS(OFFSET(REL_D,,MATCH($A59,IND,0)-2),REL_D,N$4,OrgID,$C$5)) -> 0 | O59: =IF($C$5="Total",SUMIFS(OFFSET(REL_D,,MATCH($A59,IND,0)-2),REL_D,O$4,NwID,$C$4),SUMIFS(OFFSET(REL_D,,MATCH($A59,IND,0)-2),REL_D,O$4,OrgID,$C$5)) -> 0 | P59: =IF($C$5="Total",SUMIFS(OFFSET(REL_D,,MATCH($A59,IND,0)-2),REL_D,P$4,NwID,$C$4),SUMIFS(OFFSET(REL_D,,MATCH($A59,IND,0)-2),REL_D,P$4,OrgID,$C$5)) -> 0 | Q59: =IF($C$5="Total",SUMIFS(OFFSET(REL_D,,MATCH($A59,IND,0)-2),REL_D,Q$4,NwID,$C$4),SUMIFS(OFFSET(REL_D,,MATCH($A59,IND,0)-2),REL_D,Q$4,OrgID,$C$5)) -> 0 | R59: =SUMIFS(OFFSET(REL_D,,MATCH($A59,IND,0)-1),REL_D,R$4,IF(LEFT($C$5,1)="N",NwID,OrgID),$C$5) -> 0
A60: ='Control Panel'!B62 -> %LDP.04.11: Diabetes and BP in last 12 months | B60: %LDP.04.11: Diabetes and BP in last 12 months | C60: % Diabetes Register | D60: =IFERROR(D59/D57,"N/A") -> 0.923 | E60: 0.924 | F60: =IFERROR(F59/F57,"N/A") -> 0.917 | G60: =IFERROR(G59/G57,"N/A") -> 0.9 | H60: N/A | I60: N/A | J60: N/A | K60: N/A | L60: N/A | M60: N/A | N60: N/A | O60: N/A | P60: N/A | Q60: N/A | R60: =IFERROR(R59/R57,"N/A") -> N/A
A61: ='Control Panel'!B63 -> LDP.04.09: Diabetes BP less than 145/85 (last 12m) | B61: LDP.04.09: Diabetes BP less than 145/85 (last 12m) | C61: BP < 145/85 (last 12m) | D61: =IF($C$5="Total",SUMIFS(OFFSET(REL_D,,MATCH($A61,IND,0)-2),REL_D,D$4,NwID,$C$4),SUMIFS(OFFSET(REL_D,,MATCH($A61,IND,0)-2),REL_D,D$4,OrgID,$C$5)) -> 11715 | E61: =IF($C$5="Total",SUMIFS(OFFSET(REL_D,,MATCH($A61,IND,0)-2),REL_D,E$4,NwID,$C$4),SUMIFS(OFFSET(REL_D,,MATCH($A61,IND,0)-2),REL_D,E$4,OrgID,$C$5)) -> 12567 | F61: =IF($C$5="Total",SUMIFS(OFFSET(REL_D,,MATCH($A61,IND,0)-2),REL_D,F$4,NwID,$C$4),SUMIFS(OFFSET(REL_D,,MATCH($A61,IND,0)-2),REL_D,F$4,OrgID,$C$5)) -> 13850 | G61: =IF($C$5="Total",SUMIFS(OFFSET(REL_D,,MATCH($A61,IND,0)-2),REL_D,G$4,NwID,$C$4),SUMIFS(OFFSET(REL_D,,MATCH($A61,IND,0)-2),REL_D,G$4,OrgID,$C$5)) -> 13621 | H61: =IF($C$5="Total",SUMIFS(OFFSET(REL_D,,MATCH($A61,IND,0)-2),REL_D,H$4,NwID,$C$4),SUMIFS(OFFSET(REL_D,,MATCH($A61,IND,0)-2),REL_D,H$4,OrgID,$C$5)) -> 0 | I61: =IF($C$5="Total",SUMIFS(OFFSET(REL_D,,MATCH($A61,IND,0)-2),REL_D,I$4,NwID,$C$4),SUMIFS(OFFSET(REL_D,,MATCH($A61,IND,0)-2),REL_D,I$4,OrgID,$C$5)) -> 0 | J61: =IF($C$5="Total",SUMIFS(OFFSET(REL_D,,MATCH($A61,IND,0)-2),REL_D,J$4,NwID,$C$4),SUMIFS(OFFSET(REL_D,,MATCH($A61,IND,0)-2),REL_D,J$4,OrgID,$C$5)) -> 0 | K61: =IF($C$5="Total",SUMIFS(OFFSET(REL_D,,MATCH($A61,IND,0)-2),REL_D,K$4,NwID,$C$4),SUMIFS(OFFSET(REL_D,,MATCH($A61,IND,0)-2),REL_D,K$4,OrgID,$C$5)) -> 0 | L61: =IF($C$5="Total",SUMIFS(OFFSET(REL_D,,MATCH($A61,IND,0)-2),REL_D,L$4,NwID,$C$4),SUMIFS(OFFSET(REL_D,,MATCH($A61,IND,0)-2),REL_D,L$4,OrgID,$C$5)) -> 0 | M61: =IF($C$5="Total",SUMIFS(OFFSET(REL_D,,MATCH($A61,IND,0)-2),REL_D,M$4,NwID,$C$4),SUMIFS(OFFSET(REL_D,,MATCH($A61,IND,0)-2),REL_D,M$4,OrgID,$C$5)) -> 0 | N61: =IF($C$5="Total",SUMIFS(OFFSET(REL_D,,MATCH($A61,IND,0)-2),REL_D,N$4,NwID,$C$4),SUMIFS(OFFSET(REL_D,,MATCH($A61,IND,0)-2),REL_D,N$4,OrgID,$C$5)) -> 0 | O61: =IF($C$5="Total",SUMIFS(OFFSET(REL_D,,MATCH($A61,IND,0)-2),REL_D,O$4,NwID,$C$4),SUMIFS(OFFSET(REL_D,,MATCH($A61,IND,0)-2),REL_D,O$4,OrgID,$C$5)) -> 0 | P61: =IF($C$5="Total",SUMIFS(OFFSET(REL_D,,MATCH($A61,IND,0)-2),REL_D,P$4,NwID,$C$4),SUMIFS(OFFSET(REL_D,,MATCH($A61,IND,0)-2),REL_D,P$4,OrgID,$C$5)) -> 0 | Q61: =IF($C$5="Total",SUMIFS(OFFSET(REL_D,,MATCH($A61,IND,0)-2),REL_D,Q$4,NwID,$C$4),SUMIFS(OFFSET(REL_D,,MATCH($A61,IND,0)-2),REL_D,Q$4,OrgID,$C$5)) -> 0 | R61: =SUMIFS(OFFSET(REL_D,,MATCH($A61,IND,0)-1),REL_D,R$4,IF(LEFT($C$5,1)="N",NwID,OrgID),$C$5) -> 0
A62: ='Control Panel'!B64 -> %LDP.04.09: Diabetes BP less than 145/85 (last 12m) | B62: %LDP.04.09: Diabetes BP less than 145/85 (last 12m) | C62: % Diabetes Register | D62: =IFERROR(D61/D57,"N/A") -> 0.742 | E62: 0.703 | F62: =IFERROR(F61/F57,"N/A") -> 0.662 | G62: =IFERROR(G61/G57,"N/A") -> 0.648 | H62: N/A | I62: N/A | J62: N/A | K62: N/A | L62: N/A | M62: N/A | N62: N/A | O62: N/A | P62: N/A | Q62: N/A | R62: =IFERROR(R61/R57,"N/A") -> N/A
A63: ='Control Panel'!B67 -> LDP.04.08: Diabetes Chol less than 5mmol (last 12m) | B63: LDP.04.08: Diabetes Chol less than 5mmol (last 12m) | C63: Cholesterol < 5mmols (last 12m) | D63: =IF($C$5="Total",SUMIFS(OFFSET(REL_D,,MATCH($A63,IND,0)-2),REL_D,D$4,NwID,$C$4),SUMIFS(OFFSET(REL_D,,MATCH($A63,IND,0)-2),REL_D,D$4,OrgID,$C$5)) -> 565 | E63: =IF($C$5="Total",SUMIFS(OFFSET(REL_D,,MATCH($A63,IND,0)-2),REL_D,E$4,NwID,$C$4),SUMIFS(OFFSET(REL_D,,MATCH($A63,IND,0)-2),REL_D,E$4,OrgID,$C$5)) -> 396 | F63: =IF($C$5="Total",SUMIFS(OFFSET(REL_D,,MATCH($A63,IND,0)-2),REL_D,F$4,NwID,$C$4),SUMIFS(OFFSET(REL_D,,MATCH($A63,IND,0)-2),REL_D,F$4,OrgID,$C$5)) -> 17362 | G63: =IF($C$5="Total",SUMIFS(OFFSET(REL_D,,MATCH($A63,IND,0)-2),REL_D,G$4,NwID,$C$4),SUMIFS(OFFSET(REL_D,,MATCH($A63,IND,0)-2),REL_D,G$4,OrgID,$C$5)) -> 16939 | H63: =IF($C$5="Total",SUMIFS(OFFSET(REL_D,,MATCH($A63,IND,0)-2),REL_D,H$4,NwID,$C$4),SUMIFS(OFFSET(REL_D,,MATCH($A63,IND,0)-2),REL_D,H$4,OrgID,$C$5)) -> 0 | I63: =IF($C$5="Total",SUMIFS(OFFSET(REL_D,,MATCH($A63,IND,0)-2),REL_D,I$4,NwID,$C$4),SUMIFS(OFFSET(REL_D,,MATCH($A63,IND,0)-2),REL_D,I$4,OrgID,$C$5)) -> 0 | J63: =IF($C$5="Total",SUMIFS(OFFSET(REL_D,,MATCH($A63,IND,0)-2),REL_D,J$4,NwID,$C$4),SUMIFS(OFFSET(REL_D,,MATCH($A63,IND,0)-2),REL_D,J$4,OrgID,$C$5)) -> 0 | K63: =IF($C$5="Total",SUMIFS(OFFSET(REL_D,,MATCH($A63,IND,0)-2),REL_D,K$4,NwID,$C$4),SUMIFS(OFFSET(REL_D,,MATCH($A63,IND,0)-2),REL_D,K$4,OrgID,$C$5)) -> 0 | L63: =IF($C$5="Total",SUMIFS(OFFSET(REL_D,,MATCH($A63,IND,0)-2),REL_D,L$4,NwID,$C$4),SUMIFS(OFFSET(REL_D,,MATCH($A63,IND,0)-2),REL_D,L$4,OrgID,$C$5)) -> 0 | M63: =IF($C$5="Total",SUMIFS(OFFSET(REL_D,,MATCH($A63,IND,0)-2),REL_D,M$4,NwID,$C$4),SUMIFS(OFFSET(REL_D,,MATCH($A63,IND,0)-2),REL_D,M$4,OrgID,$C$5)) -> 0 | N63: =IF($C$5="Total",SUMIFS(OFFSET(REL_D,,MATCH($A63,IND,0)-2),REL_D,N$4,NwID,$C$4),SUMIFS(OFFSET(REL_D,,MATCH($A63,IND,0)-2),REL_D,N$4,OrgID,$C$5)) -> 0 | O63: =IF($C$5="Total",SUMIFS(OFFSET(REL_D,,MATCH($A63,IND,0)-2),REL_D,O$4,NwID,$C$4),SUMIFS(OFFSET(REL_D,,MATCH($A63,IND,0)-2),REL_D,O$4,OrgID,$C$5)) -> 0 | P63: =IF($C$5="Total",SUMIFS(OFFSET(REL_D,,MATCH($A63,IND,0)-2),REL_D,P$4,NwID,$C$4),SUMIFS(OFFSET(REL_D,,MATCH($A63,IND,0)-2),REL_D,P$4,OrgID,$C$5)) -> 0 | Q63: =IF($C$5="Total",SUMIFS(OFFSET(REL_D,,MATCH($A63,IND,0)-2),REL_D,Q$4,NwID,$C$4),SUMIFS(OFFSET(REL_D,,MATCH($A63,IND,0)-2),REL_D,Q$4,OrgID,$C$5)) -> 0 | R63: =SUMIFS(OFFSET(REL_D,,MATCH($A63,IND,0)-1),REL_D,R$4,IF(LEFT($C$5,1)="N",NwID,OrgID),$C$5) -> 0
A64: ='Control Panel'!B68 -> %LDP.04.08: Diabetes Chol less than 5mmol (last 12m) | B64: %LDP.04.08: Diabetes Chol less than 5mmol (last 12m) | C64: % Diabetes Register | D64: =IFERROR(D63/D57,"N/A") -> 0.036 | E64: 0.022 | F64: =IFERROR(F63/F57,"N/A") -> 0.83 | G64: =IFERROR(G63/G57,"N/A") -> 0.806 | H64: N/A | I64: N/A | J64: N/A | K64: N/A | L64: N/A | M64: N/A | N64: N/A | O64: N/A | P64: N/A | Q64: N/A | R64: =IFERROR(R63/R57,"N/A") -> N/A
A65: ='Control Panel'!B69 -> LDP.04.01: Diabetes HbA1c <7.5% OR <59mmol (last 12m) | B65: LDP.04.01: Diabetes HbA1c <7.5% OR <59mmol (last 12m) | C65: HbA1c < 59 (last 12m) | D65: =IF($C$5="Total",SUMIFS(OFFSET(REL_D,,MATCH($A65,IND,0)-2),REL_D,D$4,NwID,$C$4),SUMIFS(OFFSET(REL_D,,MATCH($A65,IND,0)-2),REL_D,D$4,OrgID,$C$5)) -> 8119 | E65: =IF($C$5="Total",SUMIFS(OFFSET(REL_D,,MATCH($A65,IND,0)-2),REL_D,E$4,NwID,$C$4),SUMIFS(OFFSET(REL_D,,MATCH($A65,IND,0)-2),REL_D,E$4,OrgID,$C$5)) -> 9164 | F65: =IF($C$5="Total",SUMIFS(OFFSET(REL_D,,MATCH($A65,IND,0)-2),REL_D,F$4,NwID,$C$4),SUMIFS(OFFSET(REL_D,,MATCH($A65,IND,0)-2),REL_D,F$4,OrgID,$C$5)) -> 11173 | G65: =IF($C$5="Total",SUMIFS(OFFSET(REL_D,,MATCH($A65,IND,0)-2),REL_D,G$4,NwID,$C$4),SUMIFS(OFFSET(REL_D,,MATCH($A65,IND,0)-2),REL_D,G$4,OrgID,$C$5)) -> 10971 | H65: =IF($C$5="Total",SUMIFS(OFFSET(REL_D,,MATCH($A65,IND,0)-2),REL_D,H$4,NwID,$C$4),SUMIFS(OFFSET(REL_D,,MATCH($A65,IND,0)-2),REL_D,H$4,OrgID,$C$5)) -> 0 | I65: =IF($C$5="Total",SUMIFS(OFFSET(REL_D,,MATCH($A65,IND,0)-2),REL_D,I$4,NwID,$C$4),SUMIFS(OFFSET(REL_D,,MATCH($A65,IND,0)-2),REL_D,I$4,OrgID,$C$5)) -> 0 | J65: =IF($C$5="Total",SUMIFS(OFFSET(REL_D,,MATCH($A65,IND,0)-2),REL_D,J$4,NwID,$C$4),SUMIFS(OFFSET(REL_D,,MATCH($A65,IND,0)-2),REL_D,J$4,OrgID,$C$5)) -> 0 | K65: =IF($C$5="Total",SUMIFS(OFFSET(REL_D,,MATCH($A65,IND,0)-2),REL_D,K$4,NwID,$C$4),SUMIFS(OFFSET(REL_D,,MATCH($A65,IND,0)-2),REL_D,K$4,OrgID,$C$5)) -> 0 | L65: =IF($C$5="Total",SUMIFS(OFFSET(REL_D,,MATCH($A65,IND,0)-2),REL_D,L$4,NwID,$C$4),SUMIFS(OFFSET(REL_D,,MATCH($A65,IND,0)-2),REL_D,L$4,OrgID,$C$5)) -> 0 | M65: =IF($C$5="Total",SUMIFS(OFFSET(REL_D,,MATCH($A65,IND,0)-2),REL_D,M$4,NwID,$C$4),SUMIFS(OFFSET(REL_D,,MATCH($A65,IND,0)-2),REL_D,M$4,OrgID,$C$5)) -> 0 | N65: =IF($C$5="Total",SUMIFS(OFFSET(REL_D,,MATCH($A65,IND,0)-2),REL_D,N$4,NwID,$C$4),SUMIFS(OFFSET(REL_D,,MATCH($A65,IND,0)-2),REL_D,N$4,OrgID,$C$5)) -> 0 | O65: =IF($C$5="Total",SUMIFS(OFFSET(REL_D,,MATCH($A65,IND,0)-2),REL_D,O$4,NwID,$C$4),SUMIFS(OFFSET(REL_D,,MATCH($A65,IND,0)-2),REL_D,O$4,OrgID,$C$5)) -> 0 | P65: =IF($C$5="Total",SUMIFS(OFFSET(REL_D,,MATCH($A65,IND,0)-2),REL_D,P$4,NwID,$C$4),SUMIFS(OFFSET(REL_D,,MATCH($A65,IND,0)-2),REL_D,P$4,OrgID,$C$5)) -> 0 | Q65: =IF($C$5="Total",SUMIFS(OFFSET(REL_D,,MATCH($A65,IND,0)-2),REL_D,Q$4,NwID,$C$4),SUMIFS(OFFSET(REL_D,,MATCH($A65,IND,0)-2),REL_D,Q$4,OrgID,$C$5)) -> 0 | R65: =SUMIFS(OFFSET(REL_D,,MATCH($A65,IND,0)-1),REL_D,R$4,IF(LEFT($C$5,1)="N",NwID,OrgID),$C$5) -> 0
A66: ='Control Panel'!B70 -> %LDP.04.01: Diabetes HbA1c <7.5% OR <59mmol (last 12m) | B66: %LDP.04.01: Diabetes HbA1c <7.5% OR <59mmol (last 12m) | C66: % Diabetes register | D66: =IFERROR(D65/D57,"N/A") -> 0.514 | E66: 0.512 | F66: =IFERROR(F65/F57,"N/A") -> 0.534 | G66: =IFERROR(G65/G57,"N/A") -> 0.522 | H66: N/A | I66: N/A | J66: N/A | K66: N/A | L66: N/A | M66: N/A | N66: N/A | O66: N/A | P66: N/A | Q66: N/A | R66: =IFERROR(R65/R57,"N/A") -> N/A
A67: ='Control Panel'!B81 -> LDP.04.07: Diabetes Influenza Vaccinations (From August 2018) | B67: LDP.04.07: Diabetes Influenza Vaccinations (last 12m) | C67: Flu jab (From August 2025) | D67: =IF($C$5="Total",SUMIFS(OFFSET(REL_D,,MATCH($A67,IND,0)-2),REL_D,D$4,NwID,$C$4),SUMIFS(OFFSET(REL_D,,MATCH($A67,IND,0)-2),REL_D,D$4,OrgID,$C$5)) -> 10008 | E67: =IF($C$5="Total",SUMIFS(OFFSET(REL_D,,MATCH($A67,IND,0)-2),REL_D,E$4,NwID,$C$4),SUMIFS(OFFSET(REL_D,,MATCH($A67,IND,0)-2),REL_D,E$4,OrgID,$C$5)) -> 10243 | F67: =IF($C$5="Total",SUMIFS(OFFSET(REL_D,,MATCH($A67,IND,0)-2),REL_D,F$4,NwID,$C$4),SUMIFS(OFFSET(REL_D,,MATCH($A67,IND,0)-2),REL_D,F$4,OrgID,$C$5)) -> 0 | G67: =IF($C$5="Total",SUMIFS(OFFSET(REL_D,,MATCH($A67,IND,0)-2),REL_D,G$4,NwID,$C$4),SUMIFS(OFFSET(REL_D,,MATCH($A67,IND,0)-2),REL_D,G$4,OrgID,$C$5)) -> 0 | H67: =IF($C$5="Total",SUMIFS(OFFSET(REL_D,,MATCH($A67,IND,0)-2),REL_D,H$4,NwID,$C$4),SUMIFS(OFFSET(REL_D,,MATCH($A67,IND,0)-2),REL_D,H$4,OrgID,$C$5)) -> 0 | I67: =IF($C$5="Total",SUMIFS(OFFSET(REL_D,,MATCH($A67,IND,0)-2),REL_D,I$4,NwID,$C$4),SUMIFS(OFFSET(REL_D,,MATCH($A67,IND,0)-2),REL_D,I$4,OrgID,$C$5)) -> 0 | J67: =IF($C$5="Total",SUMIFS(OFFSET(REL_D,,MATCH($A67,IND,0)-2),REL_D,J$4,NwID,$C$4),SUMIFS(OFFSET(REL_D,,MATCH($A67,IND,0)-2),REL_D,J$4,OrgID,$C$5)) -> 0 | K67: =IF($C$5="Total",SUMIFS(OFFSET(REL_D,,MATCH($A67,IND,0)-2),REL_D,K$4,NwID,$C$4),SUMIFS(OFFSET(REL_D,,MATCH($A67,IND,0)-2),REL_D,K$4,OrgID,$C$5)) -> 0 | L67: =IF($C$5="Total",SUMIFS(OFFSET(REL_D,,MATCH($A67,IND,0)-2),REL_D,L$4,NwID,$C$4),SUMIFS(OFFSET(REL_D,,MATCH($A67,IND,0)-2),REL_D,L$4,OrgID,$C$5)) -> 0 | M67: =IF($C$5="Total",SUMIFS(OFFSET(REL_D,,MATCH($A67,IND,0)-2),REL_D,M$4,NwID,$C$4),SUMIFS(OFFSET(REL_D,,MATCH($A67,IND,0)-2),REL_D,M$4,OrgID,$C$5)) -> 0 | N67: =IF($C$5="Total",SUMIFS(OFFSET(REL_D,,MATCH($A67,IND,0)-2),REL_D,N$4,NwID,$C$4),SUMIFS(OFFSET(REL_D,,MATCH($A67,IND,0)-2),REL_D,N$4,OrgID,$C$5)) -> 0 | O67: =IF($C$5="Total",SUMIFS(OFFSET(REL_D,,MATCH($A67,IND,0)-2),REL_D,O$4,NwID,$C$4),SUMIFS(OFFSET(REL_D,,MATCH($A67,IND,0)-2),REL_D,O$4,OrgID,$C$5)) -> 0 | P67: =IF($C$5="Total",SUMIFS(OFFSET(REL_D,,MATCH($A67,IND,0)-2),REL_D,P$4,NwID,$C$4),SUMIFS(OFFSET(REL_D,,MATCH($A67,IND,0)-2),REL_D,P$4,OrgID,$C$5)) -> 0 | Q67: =IF($C$5="Total",SUMIFS(OFFSET(REL_D,,MATCH($A67,IND,0)-2),REL_D,Q$4,NwID,$C$4),SUMIFS(OFFSET(REL_D,,MATCH($A67,IND,0)-2),REL_D,Q$4,OrgID,$C$5)) -> 0 | R67: =SUMIFS(OFFSET(REL_D,,MATCH($A67,IND,0)-1),REL_D,R$4,IF(LEFT($C$5,1)="N",NwID,OrgID),$C$5) -> 0
A68: ='Control Panel'!B82 -> %LDP.04.07: Diabetes Influenza Vaccinations (From August 2018) | B68: %LDP.04.07: Diabetes Influenza Vaccinations (last 12m) | C68: % Diabetes Register | D68: =IFERROR(D67/D57,"N/A") -> 0.634 | E68: 0.573 | F68: =IFERROR(F67/F57,"N/A") -> 0 | G68: =IFERROR(G67/G57,"N/A") -> 0 | H68: N/A | I68: N/A | J68: N/A | K68: N/A | L68: N/A | M68: N/A | N68: N/A | O68: N/A | P68: N/A | Q68: N/A | R68: =IFERROR(R67/R57,"N/A") -> N/A
C69: ='Control Panel'!B107 -> Mental Health
A70: ='Control Panel'!B108 -> CSPMH.01 SMI Register | B70: CSPMH.01 SMI Register | C70: ='Control Panel'!D108 -> Mental Health register | D70: =IF($C$5="Total",SUMIFS(OFFSET(REL_D,,MATCH($A70,IND,0)-2),REL_D,D$4,NwID,$C$4),SUMIFS(OFFSET(REL_D,,MATCH($A70,IND,0)-2),REL_D,D$4,OrgID,$C$5)) -> 1798 | E70: =IF($C$5="Total",SUMIFS(OFFSET(REL_D,,MATCH($A70,IND,0)-2),REL_D,E$4,NwID,$C$4),SUMIFS(OFFSET(REL_D,,MATCH($A70,IND,0)-2),REL_D,E$4,OrgID,$C$5)) -> 1998 | F70: =IF($C$5="Total",SUMIFS(OFFSET(REL_D,,MATCH($A70,IND,0)-2),REL_D,F$4,NwID,$C$4),SUMIFS(OFFSET(REL_D,,MATCH($A70,IND,0)-2),REL_D,F$4,OrgID,$C$5)) -> 2356 | G70: =IF($C$5="Total",SUMIFS(OFFSET(REL_D,,MATCH($A70,IND,0)-2),REL_D,G$4,NwID,$C$4),SUMIFS(OFFSET(REL_D,,MATCH($A70,IND,0)-2),REL_D,G$4,OrgID,$C$5)) -> 2368 | H70: =IF($C$5="Total",SUMIFS(OFFSET(REL_D,,MATCH($A70,IND,0)-2),REL_D,H$4,NwID,$C$4),SUMIFS(OFFSET(REL_D,,MATCH($A70,IND,0)-2),REL_D,H$4,OrgID,$C$5)) -> 0 | I70: =IF($C$5="Total",SUMIFS(OFFSET(REL_D,,MATCH($A70,IND,0)-2),REL_D,I$4,NwID,$C$4),SUMIFS(OFFSET(REL_D,,MATCH($A70,IND,0)-2),REL_D,I$4,OrgID,$C$5)) -> 0 | J70: =IF($C$5="Total",SUMIFS(OFFSET(REL_D,,MATCH($A70,IND,0)-2),REL_D,J$4,NwID,$C$4),SUMIFS(OFFSET(REL_D,,MATCH($A70,IND,0)-2),REL_D,J$4,OrgID,$C$5)) -> 0 | K70: =IF($C$5="Total",SUMIFS(OFFSET(REL_D,,MATCH($A70,IND,0)-2),REL_D,K$4,NwID,$C$4),SUMIFS(OFFSET(REL_D,,MATCH($A70,IND,0)-2),REL_D,K$4,OrgID,$C$5)) -> 0 | L70: =IF($C$5="Total",SUMIFS(OFFSET(REL_D,,MATCH($A70,IND,0)-2),REL_D,L$4,NwID,$C$4),SUMIFS(OFFSET(REL_D,,MATCH($A70,IND,0)-2),REL_D,L$4,OrgID,$C$5)) -> 0 | M70: =IF($C$5="Total",SUMIFS(OFFSET(REL_D,,MATCH($A70,IND,0)-2),REL_D,M$4,NwID,$C$4),SUMIFS(OFFSET(REL_D,,MATCH($A70,IND,0)-2),REL_D,M$4,OrgID,$C$5)) -> 0 | N70: =IF($C$5="Total",SUMIFS(OFFSET(REL_D,,MATCH($A70,IND,0)-2),REL_D,N$4,NwID,$C$4),SUMIFS(OFFSET(REL_D,,MATCH($A70,IND,0)-2),REL_D,N$4,OrgID,$C$5)) -> 0 | O70: =IF($C$5="Total",SUMIFS(OFFSET(REL_D,,MATCH($A70,IND,0)-2),REL_D,O$4,NwID,$C$4),SUMIFS(OFFSET(REL_D,,MATCH($A70,IND,0)-2),REL_D,O$4,OrgID,$C$5)) -> 0 | P70: =IF($C$5="Total",SUMIFS(OFFSET(REL_D,,MATCH($A70,IND,0)-2),REL_D,P$4,NwID,$C$4),SUMIFS(OFFSET(REL_D,,MATCH($A70,IND,0)-2),REL_D,P$4,OrgID,$C$5)) -> 0 | Q70: =IF($C$5="Total",SUMIFS(OFFSET(REL_D,,MATCH($A70,IND,0)-2),REL_D,Q$4,NwID,$C$4),SUMIFS(OFFSET(REL_D,,MATCH($A70,IND,0)-2),REL_D,Q$4,OrgID,$C$5)) -> 0 | R70: =SUMIFS(OFFSET(REL_D,,MATCH($A70,IND,0)-1),REL_D,R$4,IF(LEFT($C$5,1)="N",NwID,OrgID),$C$5) -> 0
A71: ='Control Panel'!B109 -> %CSPMH.01 SMI Register | B71: %CSPMH.01 SMI Register | C71: ='Control Panel'!D109 -> % list size | D71: =IFERROR(D70/D8,"N/A") -> 0.008 | E71: 0.008 | F71: =IFERROR(F70/F8,"N/A") -> 0.009 | G71: =IFERROR(G70/G8,"N/A") -> 0.009 | H71: N/A | I71: N/A | J71: N/A | K71: N/A | L71: N/A | M71: N/A | N71: N/A | O71: N/A | P71: N/A | Q71: N/A | R71: N/A
A72: ='Control Panel'!B110 -> CSPMH.01.02 Smoking Status Recorded (12m) | B72: CSPMH.01.02 Smoking Status Recorded (12m) | C72: ='Control Panel'!D110 -> No. of Mental Health Patients with smoking status recorded (last 12m) or never smoked | D72: =IF($C$5="Total",SUMIFS(OFFSET(REL_D,,MATCH($A72,IND,0)-2),REL_D,D$4,NwID,$C$4),SUMIFS(OFFSET(REL_D,,MATCH($A72,IND,0)-2),REL_D,D$4,OrgID,$C$5)) -> 1563 | E72: =IF($C$5="Total",SUMIFS(OFFSET(REL_D,,MATCH($A72,IND,0)-2),REL_D,E$4,NwID,$C$4),SUMIFS(OFFSET(REL_D,,MATCH($A72,IND,0)-2),REL_D,E$4,OrgID,$C$5)) -> 1749 | F72: =IF($C$5="Total",SUMIFS(OFFSET(REL_D,,MATCH($A72,IND,0)-2),REL_D,F$4,NwID,$C$4),SUMIFS(OFFSET(REL_D,,MATCH($A72,IND,0)-2),REL_D,F$4,OrgID,$C$5)) -> 2217 | G72: =IF($C$5="Total",SUMIFS(OFFSET(REL_D,,MATCH($A72,IND,0)-2),REL_D,G$4,NwID,$C$4),SUMIFS(OFFSET(REL_D,,MATCH($A72,IND,0)-2),REL_D,G$4,OrgID,$C$5)) -> 2194 | H72: =IF($C$5="Total",SUMIFS(OFFSET(REL_D,,MATCH($A72,IND,0)-2),REL_D,H$4,NwID,$C$4),SUMIFS(OFFSET(REL_D,,MATCH($A72,IND,0)-2),REL_D,H$4,OrgID,$C$5)) -> 0 | I72: =IF($C$5="Total",SUMIFS(OFFSET(REL_D,,MATCH($A72,IND,0)-2),REL_D,I$4,NwID,$C$4),SUMIFS(OFFSET(REL_D,,MATCH($A72,IND,0)-2),REL_D,I$4,OrgID,$C$5)) -> 0 | J72: =IF($C$5="Total",SUMIFS(OFFSET(REL_D,,MATCH($A72,IND,0)-2),REL_D,J$4,NwID,$C$4),SUMIFS(OFFSET(REL_D,,MATCH($A72,IND,0)-2),REL_D,J$4,OrgID,$C$5)) -> 0 | K72: =IF($C$5="Total",SUMIFS(OFFSET(REL_D,,MATCH($A72,IND,0)-2),REL_D,K$4,NwID,$C$4),SUMIFS(OFFSET(REL_D,,MATCH($A72,IND,0)-2),REL_D,K$4,OrgID,$C$5)) -> 0 | L72: =IF($C$5="Total",SUMIFS(OFFSET(REL_D,,MATCH($A72,IND,0)-2),REL_D,L$4,NwID,$C$4),SUMIFS(OFFSET(REL_D,,MATCH($A72,IND,0)-2),REL_D,L$4,OrgID,$C$5)) -> 0 | M72: =IF($C$5="Total",SUMIFS(OFFSET(REL_D,,MATCH($A72,IND,0)-2),REL_D,M$4,NwID,$C$4),SUMIFS(OFFSET(REL_D,,MATCH($A72,IND,0)-2),REL_D,M$4,OrgID,$C$5)) -> 0 | N72: =IF($C$5="Total",SUMIFS(OFFSET(REL_D,,MATCH($A72,IND,0)-2),REL_D,N$4,NwID,$C$4),SUMIFS(OFFSET(REL_D,,MATCH($A72,IND,0)-2),REL_D,N$4,OrgID,$C$5)) -> 0 | O72: =IF($C$5="Total",SUMIFS(OFFSET(REL_D,,MATCH($A72,IND,0)-2),REL_D,O$4,NwID,$C$4),SUMIFS(OFFSET(REL_D,,MATCH($A72,IND,0)-2),REL_D,O$4,OrgID,$C$5)) -> 0 | P72: =IF($C$5="Total",SUMIFS(OFFSET(REL_D,,MATCH($A72,IND,0)-2),REL_D,P$4,NwID,$C$4),SUMIFS(OFFSET(REL_D,,MATCH($A72,IND,0)-2),REL_D,P$4,OrgID,$C$5)) -> 0 | Q72: =IF($C$5="Total",SUMIFS(OFFSET(REL_D,,MATCH($A72,IND,0)-2),REL_D,Q$4,NwID,$C$4),SUMIFS(OFFSET(REL_D,,MATCH($A72,IND,0)-2),REL_D,Q$4,OrgID,$C$5)) -> 0 | R72: =SUMIFS(OFFSET(REL_D,,MATCH($A72,IND,0)-1),REL_D,R$4,IF(LEFT($C$5,1)="N",NwID,OrgID),$C$5) -> 0
A73: ='Control Panel'!B111 -> %CSPMH.01.02 Smoking Status Recorded (12m) | B73: %CSPMH.01.02 Smoking Status Recorded (12m) | C73: ='Control Panel'!D111 -> % Mental Health Register | D73: =IFERROR(D72/D70,"N/A") -> 0.869 | E73: 0.875 | F73: =IFERROR(F72/F70,"N/A") -> 0.941 | G73: =IFERROR(G72/G70,"N/A") -> 0.927 | H73: N/A | I73: N/A | J73: N/A | K73: N/A | L73: N/A | M73: N/A | N73: N/A | O73: N/A | P73: N/A | Q73: N/A | R73: =IFERROR(R72/R70,"N/A") -> N/A
A74: ='Control Panel'!B112 -> CSPMH.01.02.01 Current Smoker (12m) | B74: CSPMH.01.02.01 Current Smoker (15m) | C74: ='Control Panel'!D112 -> No. of Mental Health patients recorded as a Smoker | D74: =IF($C$5="Total",SUMIFS(OFFSET(REL_D,,MATCH($A74,IND,0)-2),REL_D,D$4,NwID,$C$4),SUMIFS(OFFSET(REL_D,,MATCH($A74,IND,0)-2),REL_D,D$4,OrgID,$C$5)) -> 537 | E74: =IF($C$5="Total",SUMIFS(OFFSET(REL_D,,MATCH($A74,IND,0)-2),REL_D,E$4,NwID,$C$4),SUMIFS(OFFSET(REL_D,,MATCH($A74,IND,0)-2),REL_D,E$4,OrgID,$C$5)) -> 582 | F74: =IF($C$5="Total",SUMIFS(OFFSET(REL_D,,MATCH($A74,IND,0)-2),REL_D,F$4,NwID,$C$4),SUMIFS(OFFSET(REL_D,,MATCH($A74,IND,0)-2),REL_D,F$4,OrgID,$C$5)) -> 451 | G74: =IF($C$5="Total",SUMIFS(OFFSET(REL_D,,MATCH($A74,IND,0)-2),REL_D,G$4,NwID,$C$4),SUMIFS(OFFSET(REL_D,,MATCH($A74,IND,0)-2),REL_D,G$4,OrgID,$C$5)) -> 425 | H74: =IF($C$5="Total",SUMIFS(OFFSET(REL_D,,MATCH($A74,IND,0)-2),REL_D,H$4,NwID,$C$4),SUMIFS(OFFSET(REL_D,,MATCH($A74,IND,0)-2),REL_D,H$4,OrgID,$C$5)) -> 0 | I74: =IF($C$5="Total",SUMIFS(OFFSET(REL_D,,MATCH($A74,IND,0)-2),REL_D,I$4,NwID,$C$4),SUMIFS(OFFSET(REL_D,,MATCH($A74,IND,0)-2),REL_D,I$4,OrgID,$C$5)) -> 0 | J74: =IF($C$5="Total",SUMIFS(OFFSET(REL_D,,MATCH($A74,IND,0)-2),REL_D,J$4,NwID,$C$4),SUMIFS(OFFSET(REL_D,,MATCH($A74,IND,0)-2),REL_D,J$4,OrgID,$C$5)) -> 0 | K74: =IF($C$5="Total",SUMIFS(OFFSET(REL_D,,MATCH($A74,IND,0)-2),REL_D,K$4,NwID,$C$4),SUMIFS(OFFSET(REL_D,,MATCH($A74,IND,0)-2),REL_D,K$4,OrgID,$C$5)) -> 0 | L74: =IF($C$5="Total",SUMIFS(OFFSET(REL_D,,MATCH($A74,IND,0)-2),REL_D,L$4,NwID,$C$4),SUMIFS(OFFSET(REL_D,,MATCH($A74,IND,0)-2),REL_D,L$4,OrgID,$C$5)) -> 0 | M74: =IF($C$5="Total",SUMIFS(OFFSET(REL_D,,MATCH($A74,IND,0)-2),REL_D,M$4,NwID,$C$4),SUMIFS(OFFSET(REL_D,,MATCH($A74,IND,0)-2),REL_D,M$4,OrgID,$C$5)) -> 0 | N74: =IF($C$5="Total",SUMIFS(OFFSET(REL_D,,MATCH($A74,IND,0)-2),REL_D,N$4,NwID,$C$4),SUMIFS(OFFSET(REL_D,,MATCH($A74,IND,0)-2),REL_D,N$4,OrgID,$C$5)) -> 0 | O74: =IF($C$5="Total",SUMIFS(OFFSET(REL_D,,MATCH($A74,IND,0)-2),REL_D,O$4,NwID,$C$4),SUMIFS(OFFSET(REL_D,,MATCH($A74,IND,0)-2),REL_D,O$4,OrgID,$C$5)) -> 0 | P74: =IF($C$5="Total",SUMIFS(OFFSET(REL_D,,MATCH($A74,IND,0)-2),REL_D,P$4,NwID,$C$4),SUMIFS(OFFSET(REL_D,,MATCH($A74,IND,0)-2),REL_D,P$4,OrgID,$C$5)) -> 0 | Q74: =IF($C$5="Total",SUMIFS(OFFSET(REL_D,,MATCH($A74,IND,0)-2),REL_D,Q$4,NwID,$C$4),SUMIFS(OFFSET(REL_D,,MATCH($A74,IND,0)-2),REL_D,Q$4,OrgID,$C$5)) -> 0 | R74: =SUMIFS(OFFSET(REL_D,,MATCH($A74,IND,0)-1),REL_D,R$4,IF(LEFT($C$5,1)="N",NwID,OrgID),$C$5) -> 0
A75: ='Control Panel'!B113 -> %CSPMH.01.02.01 Current Smoker (12m) | B75: %CSPMH.01.02.01 Current Smoker (15m) | C75: ='Control Panel'!D113 -> % Mental Health Register | D75: =IFERROR(D74/D70,"N/A") -> 0.299 | E75: 0.291 | F75: =IFERROR(F74/F70,"N/A") -> 0.191 | G75: =IFERROR(G74/G70,"N/A") -> 0.179 | H75: N/A | I75: N/A | J75: N/A | K75: N/A | L75: N/A | M75: N/A | N75: N/A | O75: N/A | P75: N/A | Q75: N/A | R75: =IFERROR(R74/R70,"N/A") -> N/A
A76: ='Control Panel'!B114 -> CSPMH 01.02.01.01 Ref to clinic 12m | B76: CSPMH 01.02.01.01 Ref to clinic 15m | C76: ='Control Panel'!D114 -> No. of Mental Health Patients who are current smokers & referred to the Stop Smoking Clinic | D76: =IF($C$5="Total",SUMIFS(OFFSET(REL_D,,MATCH($A76,IND,0)-2),REL_D,D$4,NwID,$C$4),SUMIFS(OFFSET(REL_D,,MATCH($A76,IND,0)-2),REL_D,D$4,OrgID,$C$5)) -> 7 | E76: =IF($C$5="Total",SUMIFS(OFFSET(REL_D,,MATCH($A76,IND,0)-2),REL_D,E$4,NwID,$C$4),SUMIFS(OFFSET(REL_D,,MATCH($A76,IND,0)-2),REL_D,E$4,OrgID,$C$5)) -> 6 | F76: =IF($C$5="Total",SUMIFS(OFFSET(REL_D,,MATCH($A76,IND,0)-2),REL_D,F$4,NwID,$C$4),SUMIFS(OFFSET(REL_D,,MATCH($A76,IND,0)-2),REL_D,F$4,OrgID,$C$5)) -> 48 | G76: =IF($C$5="Total",SUMIFS(OFFSET(REL_D,,MATCH($A76,IND,0)-2),REL_D,G$4,NwID,$C$4),SUMIFS(OFFSET(REL_D,,MATCH($A76,IND,0)-2),REL_D,G$4,OrgID,$C$5)) -> 54 | H76: =IF($C$5="Total",SUMIFS(OFFSET(REL_D,,MATCH($A76,IND,0)-2),REL_D,H$4,NwID,$C$4),SUMIFS(OFFSET(REL_D,,MATCH($A76,IND,0)-2),REL_D,H$4,OrgID,$C$5)) -> 0 | I76: =IF($C$5="Total",SUMIFS(OFFSET(REL_D,,MATCH($A76,IND,0)-2),REL_D,I$4,NwID,$C$4),SUMIFS(OFFSET(REL_D,,MATCH($A76,IND,0)-2),REL_D,I$4,OrgID,$C$5)) -> 0 | J76: =IF($C$5="Total",SUMIFS(OFFSET(REL_D,,MATCH($A76,IND,0)-2),REL_D,J$4,NwID,$C$4),SUMIFS(OFFSET(REL_D,,MATCH($A76,IND,0)-2),REL_D,J$4,OrgID,$C$5)) -> 0 | K76: =IF($C$5="Total",SUMIFS(OFFSET(REL_D,,MATCH($A76,IND,0)-2),REL_D,K$4,NwID,$C$4),SUMIFS(OFFSET(REL_D,,MATCH($A76,IND,0)-2),REL_D,K$4,OrgID,$C$5)) -> 0 | L76: =IF($C$5="Total",SUMIFS(OFFSET(REL_D,,MATCH($A76,IND,0)-2),REL_D,L$4,NwID,$C$4),SUMIFS(OFFSET(REL_D,,MATCH($A76,IND,0)-2),REL_D,L$4,OrgID,$C$5)) -> 0 | M76: =IF($C$5="Total",SUMIFS(OFFSET(REL_D,,MATCH($A76,IND,0)-2),REL_D,M$4,NwID,$C$4),SUMIFS(OFFSET(REL_D,,MATCH($A76,IND,0)-2),REL_D,M$4,OrgID,$C$5)) -> 0 | N76: =IF($C$5="Total",SUMIFS(OFFSET(REL_D,,MATCH($A76,IND,0)-2),REL_D,N$4,NwID,$C$4),SUMIFS(OFFSET(REL_D,,MATCH($A76,IND,0)-2),REL_D,N$4,OrgID,$C$5)) -> 0 | O76: =IF($C$5="Total",SUMIFS(OFFSET(REL_D,,MATCH($A76,IND,0)-2),REL_D,O$4,NwID,$C$4),SUMIFS(OFFSET(REL_D,,MATCH($A76,IND,0)-2),REL_D,O$4,OrgID,$C$5)) -> 0 | P76: =IF($C$5="Total",SUMIFS(OFFSET(REL_D,,MATCH($A76,IND,0)-2),REL_D,P$4,NwID,$C$4),SUMIFS(OFFSET(REL_D,,MATCH($A76,IND,0)-2),REL_D,P$4,OrgID,$C$5)) -> 0 | Q76: =IF($C$5="Total",SUMIFS(OFFSET(REL_D,,MATCH($A76,IND,0)-2),REL_D,Q$4,NwID,$C$4),SUMIFS(OFFSET(REL_D,,MATCH($A76,IND,0)-2),REL_D,Q$4,OrgID,$C$5)) -> 0 | R76: =SUMIFS(OFFSET(REL_D,,MATCH($A76,IND,0)-1),REL_D,R$4,IF(LEFT($C$5,1)="N",NwID,OrgID),$C$5) -> 0
A77: ='Control Panel'!B115 -> %CSPMH 01.02.01.01 Ref to clinic 12m | B77: %CSPMH 01.02.01.01 Ref to clinic 15m | C77: ='Control Panel'!D115 -> % Mental Health Register | D77: =IFERROR(D76/D70,"N/A") -> 0.004 | E77: 0.003 | F77: =IFERROR(F76/F70,"N/A") -> 0.02 | G77: =IFERROR(G76/G70,"N/A") -> 0.023 | H77: N/A | I77: N/A | J77: N/A | K77: N/A | L77: N/A | M77: N/A | N77: N/A | O77: N/A | P77: N/A | Q77: N/A | R77: =IFERROR(R76/R70,"N/A") -> N/A
A78: ='Control Panel'!B116 -> CSPMH.01.02.02 Ex-smoker Recorded (latest 12m) | B78: CSPMH.01.02.02 Ex-smoker Recorded (latest 15m) | C78: ='Control Panel'!D116 -> No. Of Mental Health Patients who are recorded as quitters | D78: =IF($C$5="Total",SUMIFS(OFFSET(REL_D,,MATCH($A78,IND,0)-2),REL_D,D$4,NwID,$C$4),SUMIFS(OFFSET(REL_D,,MATCH($A78,IND,0)-2),REL_D,D$4,OrgID,$C$5)) -> 134 | E78: =IF($C$5="Total",SUMIFS(OFFSET(REL_D,,MATCH($A78,IND,0)-2),REL_D,E$4,NwID,$C$4),SUMIFS(OFFSET(REL_D,,MATCH($A78,IND,0)-2),REL_D,E$4,OrgID,$C$5)) -> 185 | F78: =IF($C$5="Total",SUMIFS(OFFSET(REL_D,,MATCH($A78,IND,0)-2),REL_D,F$4,NwID,$C$4),SUMIFS(OFFSET(REL_D,,MATCH($A78,IND,0)-2),REL_D,F$4,OrgID,$C$5)) -> 393 | G78: =IF($C$5="Total",SUMIFS(OFFSET(REL_D,,MATCH($A78,IND,0)-2),REL_D,G$4,NwID,$C$4),SUMIFS(OFFSET(REL_D,,MATCH($A78,IND,0)-2),REL_D,G$4,OrgID,$C$5)) -> 375 | H78: =IF($C$5="Total",SUMIFS(OFFSET(REL_D,,MATCH($A78,IND,0)-2),REL_D,H$4,NwID,$C$4),SUMIFS(OFFSET(REL_D,,MATCH($A78,IND,0)-2),REL_D,H$4,OrgID,$C$5)) -> 0 | I78: =IF($C$5="Total",SUMIFS(OFFSET(REL_D,,MATCH($A78,IND,0)-2),REL_D,I$4,NwID,$C$4),SUMIFS(OFFSET(REL_D,,MATCH($A78,IND,0)-2),REL_D,I$4,OrgID,$C$5)) -> 0 | J78: =IF($C$5="Total",SUMIFS(OFFSET(REL_D,,MATCH($A78,IND,0)-2),REL_D,J$4,NwID,$C$4),SUMIFS(OFFSET(REL_D,,MATCH($A78,IND,0)-2),REL_D,J$4,OrgID,$C$5)) -> 0 | K78: =IF($C$5="Total",SUMIFS(OFFSET(REL_D,,MATCH($A78,IND,0)-2),REL_D,K$4,NwID,$C$4),SUMIFS(OFFSET(REL_D,,MATCH($A78,IND,0)-2),REL_D,K$4,OrgID,$C$5)) -> 0 | L78: =IF($C$5="Total",SUMIFS(OFFSET(REL_D,,MATCH($A78,IND,0)-2),REL_D,L$4,NwID,$C$4),SUMIFS(OFFSET(REL_D,,MATCH($A78,IND,0)-2),REL_D,L$4,OrgID,$C$5)) -> 0 | M78: =IF($C$5="Total",SUMIFS(OFFSET(REL_D,,MATCH($A78,IND,0)-2),REL_D,M$4,NwID,$C$4),SUMIFS(OFFSET(REL_D,,MATCH($A78,IND,0)-2),REL_D,M$4,OrgID,$C$5)) -> 0 | N78: =IF($C$5="Total",SUMIFS(OFFSET(REL_D,,MATCH($A78,IND,0)-2),REL_D,N$4,NwID,$C$4),SUMIFS(OFFSET(REL_D,,MATCH($A78,IND,0)-2),REL_D,N$4,OrgID,$C$5)) -> 0 | O78: =IF($C$5="Total",SUMIFS(OFFSET(REL_D,,MATCH($A78,IND,0)-2),REL_D,O$4,NwID,$C$4),SUMIFS(OFFSET(REL_D,,MATCH($A78,IND,0)-2),REL_D,O$4,OrgID,$C$5)) -> 0 | P78: =IF($C$5="Total",SUMIFS(OFFSET(REL_D,,MATCH($A78,IND,0)-2),REL_D,P$4,NwID,$C$4),SUMIFS(OFFSET(REL_D,,MATCH($A78,IND,0)-2),REL_D,P$4,OrgID,$C$5)) -> 0 | Q78: =IF($C$5="Total",SUMIFS(OFFSET(REL_D,,MATCH($A78,IND,0)-2),REL_D,Q$4,NwID,$C$4),SUMIFS(OFFSET(REL_D,,MATCH($A78,IND,0)-2),REL_D,Q$4,OrgID,$C$5)) -> 0 | R78: =SUMIFS(OFFSET(REL_D,,MATCH($A78,IND,0)-1),REL_D,R$4,IF(LEFT($C$5,1)="N",NwID,OrgID),$C$5) -> 0
A79: ='Control Panel'!B117 -> %CSPMH.01.02.02 Ex-smoker Recorded (latest 12m) | B79: %CSPMH.01.02.02 Ex-smoker Recorded (latest 15m) | C79: ='Control Panel'!D117 -> % Mental Health Register | D79: =IFERROR(D78/D70,"N/A") -> 0.075 | E79: 0.093 | F79: =IFERROR(F78/F70,"N/A") -> 0.167 | G79: =IFERROR(G78/G70,"N/A") -> 0.158 | H79: N/A | I79: N/A | J79: N/A | K79: N/A | L79: N/A | M79: N/A | N79: N/A | O79: N/A | P79: N/A | Q79: N/A | R79: =IFERROR(R78/R70,"N/A") -> N/A
A80: ='Control Panel'!B118 -> CSPMH. 01.03 QRisk Recorded (12m) | B80: CSPMH. 01.03 QRisk Recorded (12m) | C80: ='Control Panel'!D118 -> Patients with Mental Health with QRISK recorded in the last 12m | D80: =IF($C$5="Total",SUMIFS(OFFSET(REL_D,,MATCH($A80,IND,0)-2),REL_D,D$4,NwID,$C$4),SUMIFS(OFFSET(REL_D,,MATCH($A80,IND,0)-2),REL_D,D$4,OrgID,$C$5)) -> 468 | E80: =IF($C$5="Total",SUMIFS(OFFSET(REL_D,,MATCH($A80,IND,0)-2),REL_D,E$4,NwID,$C$4),SUMIFS(OFFSET(REL_D,,MATCH($A80,IND,0)-2),REL_D,E$4,OrgID,$C$5)) -> 429 | F80: =IF($C$5="Total",SUMIFS(OFFSET(REL_D,,MATCH($A80,IND,0)-2),REL_D,F$4,NwID,$C$4),SUMIFS(OFFSET(REL_D,,MATCH($A80,IND,0)-2),REL_D,F$4,OrgID,$C$5)) -> 716 | G80: =IF($C$5="Total",SUMIFS(OFFSET(REL_D,,MATCH($A80,IND,0)-2),REL_D,G$4,NwID,$C$4),SUMIFS(OFFSET(REL_D,,MATCH($A80,IND,0)-2),REL_D,G$4,OrgID,$C$5)) -> 728 | H80: =IF($C$5="Total",SUMIFS(OFFSET(REL_D,,MATCH($A80,IND,0)-2),REL_D,H$4,NwID,$C$4),SUMIFS(OFFSET(REL_D,,MATCH($A80,IND,0)-2),REL_D,H$4,OrgID,$C$5)) -> 0 | I80: =IF($C$5="Total",SUMIFS(OFFSET(REL_D,,MATCH($A80,IND,0)-2),REL_D,I$4,NwID,$C$4),SUMIFS(OFFSET(REL_D,,MATCH($A80,IND,0)-2),REL_D,I$4,OrgID,$C$5)) -> 0 | J80: =IF($C$5="Total",SUMIFS(OFFSET(REL_D,,MATCH($A80,IND,0)-2),REL_D,J$4,NwID,$C$4),SUMIFS(OFFSET(REL_D,,MATCH($A80,IND,0)-2),REL_D,J$4,OrgID,$C$5)) -> 0 | K80: =IF($C$5="Total",SUMIFS(OFFSET(REL_D,,MATCH($A80,IND,0)-2),REL_D,K$4,NwID,$C$4),SUMIFS(OFFSET(REL_D,,MATCH($A80,IND,0)-2),REL_D,K$4,OrgID,$C$5)) -> 0 | L80: =IF($C$5="Total",SUMIFS(OFFSET(REL_D,,MATCH($A80,IND,0)-2),REL_D,L$4,NwID,$C$4),SUMIFS(OFFSET(REL_D,,MATCH($A80,IND,0)-2),REL_D,L$4,OrgID,$C$5)) -> 0 | M80: =IF($C$5="Total",SUMIFS(OFFSET(REL_D,,MATCH($A80,IND,0)-2),REL_D,M$4,NwID,$C$4),SUMIFS(OFFSET(REL_D,,MATCH($A80,IND,0)-2),REL_D,M$4,OrgID,$C$5)) -> 0 | N80: =IF($C$5="Total",SUMIFS(OFFSET(REL_D,,MATCH($A80,IND,0)-2),REL_D,N$4,NwID,$C$4),SUMIFS(OFFSET(REL_D,,MATCH($A80,IND,0)-2),REL_D,N$4,OrgID,$C$5)) -> 0 | O80: =IF($C$5="Total",SUMIFS(OFFSET(REL_D,,MATCH($A80,IND,0)-2),REL_D,O$4,NwID,$C$4),SUMIFS(OFFSET(REL_D,,MATCH($A80,IND,0)-2),REL_D,O$4,OrgID,$C$5)) -> 0 | P80: =IF($C$5="Total",SUMIFS(OFFSET(REL_D,,MATCH($A80,IND,0)-2),REL_D,P$4,NwID,$C$4),SUMIFS(OFFSET(REL_D,,MATCH($A80,IND,0)-2),REL_D,P$4,OrgID,$C$5)) -> 0 | Q80: =IF($C$5="Total",SUMIFS(OFFSET(REL_D,,MATCH($A80,IND,0)-2),REL_D,Q$4,NwID,$C$4),SUMIFS(OFFSET(REL_D,,MATCH($A80,IND,0)-2),REL_D,Q$4,OrgID,$C$5)) -> 0 | R80: =SUMIFS(OFFSET(REL_D,,MATCH($A80,IND,0)-1),REL_D,R$4,IF(LEFT($C$5,1)="N",NwID,OrgID),$C$5) -> 0
A81: ='Control Panel'!B119 -> %CSPMH. 01.03 QRisk Recorded (12m) | B81: %CSPMH. 01.03 QRisk Recorded (12m) | C81: ='Control Panel'!D119 -> % Mental Health Register | D81: =IFERROR(D80/D70,"N/A") -> 0.26 | E81: 0.215 | F81: =IFERROR(F80/F70,"N/A") -> 0.304 | G81: =IFERROR(G80/G70,"N/A") -> 0.307 | H81: N/A | I81: N/A | J81: N/A | K81: N/A | L81: N/A | M81: N/A | N81: N/A | O81: N/A | P81: N/A | Q81: N/A | R81: =IFERROR(R80/R70,"N/A") -> N/A
A82: ='Control Panel'!B120 -> CSPMH. 01.03.02 Qrisk>=20 (12m) | B82: CSPMH. 01.03.02 Qrisk>=20 (12m) | C82: ='Control Panel'!D120 -> Patients with Mental Health with QRISK 20% or higher in the last 12m | D82: =IF($C$5="Total",SUMIFS(OFFSET(REL_D,,MATCH($A82,IND,0)-2),REL_D,D$4,NwID,$C$4),SUMIFS(OFFSET(REL_D,,MATCH($A82,IND,0)-2),REL_D,D$4,OrgID,$C$5)) -> 75 | E82: =IF($C$5="Total",SUMIFS(OFFSET(REL_D,,MATCH($A82,IND,0)-2),REL_D,E$4,NwID,$C$4),SUMIFS(OFFSET(REL_D,,MATCH($A82,IND,0)-2),REL_D,E$4,OrgID,$C$5)) -> 75 | F82: =IF($C$5="Total",SUMIFS(OFFSET(REL_D,,MATCH($A82,IND,0)-2),REL_D,F$4,NwID,$C$4),SUMIFS(OFFSET(REL_D,,MATCH($A82,IND,0)-2),REL_D,F$4,OrgID,$C$5)) -> 117 | G82: =IF($C$5="Total",SUMIFS(OFFSET(REL_D,,MATCH($A82,IND,0)-2),REL_D,G$4,NwID,$C$4),SUMIFS(OFFSET(REL_D,,MATCH($A82,IND,0)-2),REL_D,G$4,OrgID,$C$5)) -> 121 | H82: =IF($C$5="Total",SUMIFS(OFFSET(REL_D,,MATCH($A82,IND,0)-2),REL_D,H$4,NwID,$C$4),SUMIFS(OFFSET(REL_D,,MATCH($A82,IND,0)-2),REL_D,H$4,OrgID,$C$5)) -> 0 | I82: =IF($C$5="Total",SUMIFS(OFFSET(REL_D,,MATCH($A82,IND,0)-2),REL_D,I$4,NwID,$C$4),SUMIFS(OFFSET(REL_D,,MATCH($A82,IND,0)-2),REL_D,I$4,OrgID,$C$5)) -> 0 | J82: =IF($C$5="Total",SUMIFS(OFFSET(REL_D,,MATCH($A82,IND,0)-2),REL_D,J$4,NwID,$C$4),SUMIFS(OFFSET(REL_D,,MATCH($A82,IND,0)-2),REL_D,J$4,OrgID,$C$5)) -> 0 | K82: =IF($C$5="Total",SUMIFS(OFFSET(REL_D,,MATCH($A82,IND,0)-2),REL_D,K$4,NwID,$C$4),SUMIFS(OFFSET(REL_D,,MATCH($A82,IND,0)-2),REL_D,K$4,OrgID,$C$5)) -> 0 | L82: =IF($C$5="Total",SUMIFS(OFFSET(REL_D,,MATCH($A82,IND,0)-2),REL_D,L$4,NwID,$C$4),SUMIFS(OFFSET(REL_D,,MATCH($A82,IND,0)-2),REL_D,L$4,OrgID,$C$5)) -> 0 | M82: =IF($C$5="Total",SUMIFS(OFFSET(REL_D,,MATCH($A82,IND,0)-2),REL_D,M$4,NwID,$C$4),SUMIFS(OFFSET(REL_D,,MATCH($A82,IND,0)-2),REL_D,M$4,OrgID,$C$5)) -> 0 | N82: =IF($C$5="Total",SUMIFS(OFFSET(REL_D,,MATCH($A82,IND,0)-2),REL_D,N$4,NwID,$C$4),SUMIFS(OFFSET(REL_D,,MATCH($A82,IND,0)-2),REL_D,N$4,OrgID,$C$5)) -> 0 | O82: =IF($C$5="Total",SUMIFS(OFFSET(REL_D,,MATCH($A82,IND,0)-2),REL_D,O$4,NwID,$C$4),SUMIFS(OFFSET(REL_D,,MATCH($A82,IND,0)-2),REL_D,O$4,OrgID,$C$5)) -> 0 | P82: =IF($C$5="Total",SUMIFS(OFFSET(REL_D,,MATCH($A82,IND,0)-2),REL_D,P$4,NwID,$C$4),SUMIFS(OFFSET(REL_D,,MATCH($A82,IND,0)-2),REL_D,P$4,OrgID,$C$5)) -> 0 | Q82: =IF($C$5="Total",SUMIFS(OFFSET(REL_D,,MATCH($A82,IND,0)-2),REL_D,Q$4,NwID,$C$4),SUMIFS(OFFSET(REL_D,,MATCH($A82,IND,0)-2),REL_D,Q$4,OrgID,$C$5)) -> 0 | R82: =SUMIFS(OFFSET(REL_D,,MATCH($A82,IND,0)-1),REL_D,R$4,IF(LEFT($C$5,1)="N",NwID,OrgID),$C$5) -> 0
A83: ='Control Panel'!B121 -> %CSPMH. 01.03.02 Qrisk>=20 (12m) | B83: %CSPMH. 01.03.02 Qrisk>=20 (12m) | C83: ='Control Panel'!D121 -> % patients with QRISK recorded | D83: =IFERROR(D82/D70,"N/A") -> 0.042 | E83: 0.038 | F83: =IFERROR(F82/F70,"N/A") -> 0.05 | G83: =IFERROR(G82/G70,"N/A") -> 0.051 | H83: N/A | I83: N/A | J83: N/A | K83: N/A | L83: N/A | M83: N/A | N83: N/A | O83: N/A | P83: N/A | Q83: N/A | R83: =IFERROR(R82/R70,"N/A") -> N/A
A84: ='Control Panel'!B122 -> CSPMH. 01.03.01 BP recorded on same day as QRisk (12m) | B84: CSPMH. 01.03.01 BP recorded on same day as QRisk (12m) | C84: ='Control Panel'!D122 -> Patients with Mental Health with BP & QRisk on the same day in the last 12m | D84: =IF($C$5="Total",SUMIFS(OFFSET(REL_D,,MATCH($A84,IND,0)-2),REL_D,D$4,NwID,$C$4),SUMIFS(OFFSET(REL_D,,MATCH($A84,IND,0)-2),REL_D,D$4,OrgID,$C$5)) -> 223 | E84: =IF($C$5="Total",SUMIFS(OFFSET(REL_D,,MATCH($A84,IND,0)-2),REL_D,E$4,NwID,$C$4),SUMIFS(OFFSET(REL_D,,MATCH($A84,IND,0)-2),REL_D,E$4,OrgID,$C$5)) -> 203 | F84: =IF($C$5="Total",SUMIFS(OFFSET(REL_D,,MATCH($A84,IND,0)-2),REL_D,F$4,NwID,$C$4),SUMIFS(OFFSET(REL_D,,MATCH($A84,IND,0)-2),REL_D,F$4,OrgID,$C$5)) -> 246 | G84: =IF($C$5="Total",SUMIFS(OFFSET(REL_D,,MATCH($A84,IND,0)-2),REL_D,G$4,NwID,$C$4),SUMIFS(OFFSET(REL_D,,MATCH($A84,IND,0)-2),REL_D,G$4,OrgID,$C$5)) -> 239 | H84: =IF($C$5="Total",SUMIFS(OFFSET(REL_D,,MATCH($A84,IND,0)-2),REL_D,H$4,NwID,$C$4),SUMIFS(OFFSET(REL_D,,MATCH($A84,IND,0)-2),REL_D,H$4,OrgID,$C$5)) -> 0 | I84: =IF($C$5="Total",SUMIFS(OFFSET(REL_D,,MATCH($A84,IND,0)-2),REL_D,I$4,NwID,$C$4),SUMIFS(OFFSET(REL_D,,MATCH($A84,IND,0)-2),REL_D,I$4,OrgID,$C$5)) -> 0 | J84: =IF($C$5="Total",SUMIFS(OFFSET(REL_D,,MATCH($A84,IND,0)-2),REL_D,J$4,NwID,$C$4),SUMIFS(OFFSET(REL_D,,MATCH($A84,IND,0)-2),REL_D,J$4,OrgID,$C$5)) -> 0 | K84: =IF($C$5="Total",SUMIFS(OFFSET(REL_D,,MATCH($A84,IND,0)-2),REL_D,K$4,NwID,$C$4),SUMIFS(OFFSET(REL_D,,MATCH($A84,IND,0)-2),REL_D,K$4,OrgID,$C$5)) -> 0 | L84: =IF($C$5="Total",SUMIFS(OFFSET(REL_D,,MATCH($A84,IND,0)-2),REL_D,L$4,NwID,$C$4),SUMIFS(OFFSET(REL_D,,MATCH($A84,IND,0)-2),REL_D,L$4,OrgID,$C$5)) -> 0 | M84: =IF($C$5="Total",SUMIFS(OFFSET(REL_D,,MATCH($A84,IND,0)-2),REL_D,M$4,NwID,$C$4),SUMIFS(OFFSET(REL_D,,MATCH($A84,IND,0)-2),REL_D,M$4,OrgID,$C$5)) -> 0 | N84: =IF($C$5="Total",SUMIFS(OFFSET(REL_D,,MATCH($A84,IND,0)-2),REL_D,N$4,NwID,$C$4),SUMIFS(OFFSET(REL_D,,MATCH($A84,IND,0)-2),REL_D,N$4,OrgID,$C$5)) -> 0 | O84: =IF($C$5="Total",SUMIFS(OFFSET(REL_D,,MATCH($A84,IND,0)-2),REL_D,O$4,NwID,$C$4),SUMIFS(OFFSET(REL_D,,MATCH($A84,IND,0)-2),REL_D,O$4,OrgID,$C$5)) -> 0 | P84: =IF($C$5="Total",SUMIFS(OFFSET(REL_D,,MATCH($A84,IND,0)-2),REL_D,P$4,NwID,$C$4),SUMIFS(OFFSET(REL_D,,MATCH($A84,IND,0)-2),REL_D,P$4,OrgID,$C$5)) -> 0 | Q84: =IF($C$5="Total",SUMIFS(OFFSET(REL_D,,MATCH($A84,IND,0)-2),REL_D,Q$4,NwID,$C$4),SUMIFS(OFFSET(REL_D,,MATCH($A84,IND,0)-2),REL_D,Q$4,OrgID,$C$5)) -> 0 | R84: =SUMIFS(OFFSET(REL_D,,MATCH($A84,IND,0)-1),REL_D,R$4,IF(LEFT($C$5,1)="N",NwID,OrgID),$C$5) -> 0
A85: ='Control Panel'!B123 -> %CSPMH. 01.03.01 BP recorded on same day as QRisk (12m) | B85: %CSPMH. 01.03.01 BP recorded on same day as QRisk (12m) | C85: ='Control Panel'!D123 -> % Mental Health Register | D85: =IFERROR(D84/D70,"N/A") -> 0.124 | E85: 0.102 | F85: =IFERROR(F84/F70,"N/A") -> 0.104 | G85: =IFERROR(G84/G70,"N/A") -> 0.101 | H85: N/A | I85: N/A | J85: N/A | K85: N/A | L85: N/A | M85: N/A | N85: N/A | O85: N/A | P85: N/A | Q85: N/A | R85: =IFERROR(R84/R70,"N/A") -> N/A
C86: ='Control Panel'!B124 -> CKD
A87: =VLOOKUP(C87,'Control Panel'!A124:B250,2,FALSE) -> LDP.08 CKD Register | B87: LDP.08 CKD Register | C87: ='Control Panel'!D125 -> No. of patients on CKD register | D87: =IF($C$5="Total",SUMIFS(OFFSET(REL_D,,MATCH($A87,IND,0)-2),REL_D,D$4,NwID,$C$4),SUMIFS(OFFSET(REL_D,,MATCH($A87,IND,0)-2),REL_D,D$4,OrgID,$C$5)) -> 4608 | E87: =IF($C$5="Total",SUMIFS(OFFSET(REL_D,,MATCH($A87,IND,0)-2),REL_D,E$4,NwID,$C$4),SUMIFS(OFFSET(REL_D,,MATCH($A87,IND,0)-2),REL_D,E$4,OrgID,$C$5)) -> 5301 | F87: =IF($C$5="Total",SUMIFS(OFFSET(REL_D,,MATCH($A87,IND,0)-2),REL_D,F$4,NwID,$C$4),SUMIFS(OFFSET(REL_D,,MATCH($A87,IND,0)-2),REL_D,F$4,OrgID,$C$5)) -> 6407 | G87: =IF($C$5="Total",SUMIFS(OFFSET(REL_D,,MATCH($A87,IND,0)-2),REL_D,G$4,NwID,$C$4),SUMIFS(OFFSET(REL_D,,MATCH($A87,IND,0)-2),REL_D,G$4,OrgID,$C$5)) -> 6450 | H87: =IF($C$5="Total",SUMIFS(OFFSET(REL_D,,MATCH($A87,IND,0)-2),REL_D,H$4,NwID,$C$4),SUMIFS(OFFSET(REL_D,,MATCH($A87,IND,0)-2),REL_D,H$4,OrgID,$C$5)) -> 0 | I87: =IF($C$5="Total",SUMIFS(OFFSET(REL_D,,MATCH($A87,IND,0)-2),REL_D,I$4,NwID,$C$4),SUMIFS(OFFSET(REL_D,,MATCH($A87,IND,0)-2),REL_D,I$4,OrgID,$C$5)) -> 0 | J87: =IF($C$5="Total",SUMIFS(OFFSET(REL_D,,MATCH($A87,IND,0)-2),REL_D,J$4,NwID,$C$4),SUMIFS(OFFSET(REL_D,,MATCH($A87,IND,0)-2),REL_D,J$4,OrgID,$C$5)) -> 0 | K87: =IF($C$5="Total",SUMIFS(OFFSET(REL_D,,MATCH($A87,IND,0)-2),REL_D,K$4,NwID,$C$4),SUMIFS(OFFSET(REL_D,,MATCH($A87,IND,0)-2),REL_D,K$4,OrgID,$C$5)) -> 0 | L87: =IF($C$5="Total",SUMIFS(OFFSET(REL_D,,MATCH($A87,IND,0)-2),REL_D,L$4,NwID,$C$4),SUMIFS(OFFSET(REL_D,,MATCH($A87,IND,0)-2),REL_D,L$4,OrgID,$C$5)) -> 0 | M87: =IF($C$5="Total",SUMIFS(OFFSET(REL_D,,MATCH($A87,IND,0)-2),REL_D,M$4,NwID,$C$4),SUMIFS(OFFSET(REL_D,,MATCH($A87,IND,0)-2),REL_D,M$4,OrgID,$C$5)) -> 0 | N87: =IF($C$5="Total",SUMIFS(OFFSET(REL_D,,MATCH($A87,IND,0)-2),REL_D,N$4,NwID,$C$4),SUMIFS(OFFSET(REL_D,,MATCH($A87,IND,0)-2),REL_D,N$4,OrgID,$C$5)) -> 0 | O87: =IF($C$5="Total",SUMIFS(OFFSET(REL_D,,MATCH($A87,IND,0)-2),REL_D,O$4,NwID,$C$4),SUMIFS(OFFSET(REL_D,,MATCH($A87,IND,0)-2),REL_D,O$4,OrgID,$C$5)) -> 0 | P87: =IF($C$5="Total",SUMIFS(OFFSET(REL_D,,MATCH($A87,IND,0)-2),REL_D,P$4,NwID,$C$4),SUMIFS(OFFSET(REL_D,,MATCH($A87,IND,0)-2),REL_D,P$4,OrgID,$C$5)) -> 0 | Q87: =IF($C$5="Total",SUMIFS(OFFSET(REL_D,,MATCH($A87,IND,0)-2),REL_D,Q$4,NwID,$C$4),SUMIFS(OFFSET(REL_D,,MATCH($A87,IND,0)-2),REL_D,Q$4,OrgID,$C$5)) -> 0 | R87: =SUMIFS(OFFSET(REL_D,,MATCH($A87,IND,0)-1),REL_D,R$4,IF(LEFT($C$5,1)="N",NwID,OrgID),$C$5) -> 0
A88: =VLOOKUP(C88,'Control Panel'!A125:B251,2,FALSE) -> %LDP.08 CKD Register | B88: %LDP.08 CKD Register | C88: ='Control Panel'!D126 -> % List Size | D88: =IFERROR(D87/D8,"N/A") -> 0.02 | E88: 0.022 | F88: =IFERROR(F87/F8,"N/A") -> 0.025 | G88: =IFERROR(G87/G8,"N/A") -> 0.025 | H88: N/A | I88: N/A | J88: N/A | K88: N/A | L88: N/A | M88: N/A | N88: N/A | O88: N/A | P88: N/A | Q88: N/A | R88: N/A
A89: =VLOOKUP(C89,'Control Panel'!A126:B252,2,FALSE) -> LDP.08.03 CKD and BP Recorded (last 12 m) | B89: LDP.08.03 CKD and BP Recorded (last 12 m) | C89: ='Control Panel'!D127 -> BP Recorded (last 12m) | D89: =IF($C$5="Total",SUMIFS(OFFSET(REL_D,,MATCH($A89,IND,0)-2),REL_D,D$4,NwID,$C$4),SUMIFS(OFFSET(REL_D,,MATCH($A89,IND,0)-2),REL_D,D$4,OrgID,$C$5)) -> 3984 | E89: =IF($C$5="Total",SUMIFS(OFFSET(REL_D,,MATCH($A89,IND,0)-2),REL_D,E$4,NwID,$C$4),SUMIFS(OFFSET(REL_D,,MATCH($A89,IND,0)-2),REL_D,E$4,OrgID,$C$5)) -> 4582 | F89: =IF($C$5="Total",SUMIFS(OFFSET(REL_D,,MATCH($A89,IND,0)-2),REL_D,F$4,NwID,$C$4),SUMIFS(OFFSET(REL_D,,MATCH($A89,IND,0)-2),REL_D,F$4,OrgID,$C$5)) -> 5538 | G89: =IF($C$5="Total",SUMIFS(OFFSET(REL_D,,MATCH($A89,IND,0)-2),REL_D,G$4,NwID,$C$4),SUMIFS(OFFSET(REL_D,,MATCH($A89,IND,0)-2),REL_D,G$4,OrgID,$C$5)) -> 5472 | H89: =IF($C$5="Total",SUMIFS(OFFSET(REL_D,,MATCH($A89,IND,0)-2),REL_D,H$4,NwID,$C$4),SUMIFS(OFFSET(REL_D,,MATCH($A89,IND,0)-2),REL_D,H$4,OrgID,$C$5)) -> 0 | I89: =IF($C$5="Total",SUMIFS(OFFSET(REL_D,,MATCH($A89,IND,0)-2),REL_D,I$4,NwID,$C$4),SUMIFS(OFFSET(REL_D,,MATCH($A89,IND,0)-2),REL_D,I$4,OrgID,$C$5)) -> 0 | J89: =IF($C$5="Total",SUMIFS(OFFSET(REL_D,,MATCH($A89,IND,0)-2),REL_D,J$4,NwID,$C$4),SUMIFS(OFFSET(REL_D,,MATCH($A89,IND,0)-2),REL_D,J$4,OrgID,$C$5)) -> 0 | K89: =IF($C$5="Total",SUMIFS(OFFSET(REL_D,,MATCH($A89,IND,0)-2),REL_D,K$4,NwID,$C$4),SUMIFS(OFFSET(REL_D,,MATCH($A89,IND,0)-2),REL_D,K$4,OrgID,$C$5)) -> 0 | L89: =IF($C$5="Total",SUMIFS(OFFSET(REL_D,,MATCH($A89,IND,0)-2),REL_D,L$4,NwID,$C$4),SUMIFS(OFFSET(REL_D,,MATCH($A89,IND,0)-2),REL_D,L$4,OrgID,$C$5)) -> 0 | M89: =IF($C$5="Total",SUMIFS(OFFSET(REL_D,,MATCH($A89,IND,0)-2),REL_D,M$4,NwID,$C$4),SUMIFS(OFFSET(REL_D,,MATCH($A89,IND,0)-2),REL_D,M$4,OrgID,$C$5)) -> 0 | N89: =IF($C$5="Total",SUMIFS(OFFSET(REL_D,,MATCH($A89,IND,0)-2),REL_D,N$4,NwID,$C$4),SUMIFS(OFFSET(REL_D,,MATCH($A89,IND,0)-2),REL_D,N$4,OrgID,$C$5)) -> 0 | O89: =IF($C$5="Total",SUMIFS(OFFSET(REL_D,,MATCH($A89,IND,0)-2),REL_D,O$4,NwID,$C$4),SUMIFS(OFFSET(REL_D,,MATCH($A89,IND,0)-2),REL_D,O$4,OrgID,$C$5)) -> 0 | P89: =IF($C$5="Total",SUMIFS(OFFSET(REL_D,,MATCH($A89,IND,0)-2),REL_D,P$4,NwID,$C$4),SUMIFS(OFFSET(REL_D,,MATCH($A89,IND,0)-2),REL_D,P$4,OrgID,$C$5)) -> 0 | Q89: =IF($C$5="Total",SUMIFS(OFFSET(REL_D,,MATCH($A89,IND,0)-2),REL_D,Q$4,NwID,$C$4),SUMIFS(OFFSET(REL_D,,MATCH($A89,IND,0)-2),REL_D,Q$4,OrgID,$C$5)) -> 0 | R89: =SUMIFS(OFFSET(REL_D,,MATCH($A89,IND,0)-1),REL_D,R$4,IF(LEFT($C$5,1)="N",NwID,OrgID),$C$5) -> 0
A90: =VLOOKUP(C90,'Control Panel'!A127:B253,2,FALSE) -> %LDP.08.03 CKD and BP Recorded (last 12 m) | B90: %LDP.08.03 CKD and BP Recorded (last 12 m) | C90: ='Control Panel'!D128 -> % CKD register | D90: =IFERROR(D89/D87,"N/A") -> 0.865 | E90: 0.864 | F90: =IFERROR(F89/F87,"N/A") -> 0.864 | G90: =IFERROR(G89/G87,"N/A") -> 0.848 | H90: N/A | I90: N/A | J90: N/A | K90: N/A | L90: N/A | M90: N/A | N90: N/A | O90: N/A | P90: N/A | Q90: N/A | R90: =IFERROR(R89/R87,"N/A") -> N/A
A91: LDP.08.01 CKD and BP less than 140/90 (last 12 m) | B91: LDP.08.01 CKD and BP less than 140/90 (last 12 m) | C91: ='Control Panel'!D129 -> BP < 140/90 | D91: =IF($C$5="Total",SUMIFS(OFFSET(REL_D,,MATCH($A91,IND,0)-2),REL_D,D$4,NwID,$C$4),SUMIFS(OFFSET(REL_D,,MATCH($A91,IND,0)-2),REL_D,D$4,OrgID,$C$5)) -> 2829 | E91: =IF($C$5="Total",SUMIFS(OFFSET(REL_D,,MATCH($A91,IND,0)-2),REL_D,E$4,NwID,$C$4),SUMIFS(OFFSET(REL_D,,MATCH($A91,IND,0)-2),REL_D,E$4,OrgID,$C$5)) -> 3277 | F91: =IF($C$5="Total",SUMIFS(OFFSET(REL_D,,MATCH($A91,IND,0)-2),REL_D,F$4,NwID,$C$4),SUMIFS(OFFSET(REL_D,,MATCH($A91,IND,0)-2),REL_D,F$4,OrgID,$C$5)) -> 3957 | G91: =IF($C$5="Total",SUMIFS(OFFSET(REL_D,,MATCH($A91,IND,0)-2),REL_D,G$4,NwID,$C$4),SUMIFS(OFFSET(REL_D,,MATCH($A91,IND,0)-2),REL_D,G$4,OrgID,$C$5)) -> 3875 | H91: =IF($C$5="Total",SUMIFS(OFFSET(REL_D,,MATCH($A91,IND,0)-2),REL_D,H$4,NwID,$C$4),SUMIFS(OFFSET(REL_D,,MATCH($A91,IND,0)-2),REL_D,H$4,OrgID,$C$5)) -> 0 | I91: =IF($C$5="Total",SUMIFS(OFFSET(REL_D,,MATCH($A91,IND,0)-2),REL_D,I$4,NwID,$C$4),SUMIFS(OFFSET(REL_D,,MATCH($A91,IND,0)-2),REL_D,I$4,OrgID,$C$5)) -> 0 | J91: =IF($C$5="Total",SUMIFS(OFFSET(REL_D,,MATCH($A91,IND,0)-2),REL_D,J$4,NwID,$C$4),SUMIFS(OFFSET(REL_D,,MATCH($A91,IND,0)-2),REL_D,J$4,OrgID,$C$5)) -> 0 | K91: =IF($C$5="Total",SUMIFS(OFFSET(REL_D,,MATCH($A91,IND,0)-2),REL_D,K$4,NwID,$C$4),SUMIFS(OFFSET(REL_D,,MATCH($A91,IND,0)-2),REL_D,K$4,OrgID,$C$5)) -> 0 | L91: =IF($C$5="Total",SUMIFS(OFFSET(REL_D,,MATCH($A91,IND,0)-2),REL_D,L$4,NwID,$C$4),SUMIFS(OFFSET(REL_D,,MATCH($A91,IND,0)-2),REL_D,L$4,OrgID,$C$5)) -> 0 | M91: =IF($C$5="Total",SUMIFS(OFFSET(REL_D,,MATCH($A91,IND,0)-2),REL_D,M$4,NwID,$C$4),SUMIFS(OFFSET(REL_D,,MATCH($A91,IND,0)-2),REL_D,M$4,OrgID,$C$5)) -> 0 | N91: =IF($C$5="Total",SUMIFS(OFFSET(REL_D,,MATCH($A91,IND,0)-2),REL_D,N$4,NwID,$C$4),SUMIFS(OFFSET(REL_D,,MATCH($A91,IND,0)-2),REL_D,N$4,OrgID,$C$5)) -> 0 | O91: =IF($C$5="Total",SUMIFS(OFFSET(REL_D,,MATCH($A91,IND,0)-2),REL_D,O$4,NwID,$C$4),SUMIFS(OFFSET(REL_D,,MATCH($A91,IND,0)-2),REL_D,O$4,OrgID,$C$5)) -> 0 | P91: =IF($C$5="Total",SUMIFS(OFFSET(REL_D,,MATCH($A91,IND,0)-2),REL_D,P$4,NwID,$C$4),SUMIFS(OFFSET(REL_D,,MATCH($A91,IND,0)-2),REL_D,P$4,OrgID,$C$5)) -> 0 | Q91: =IF($C$5="Total",SUMIFS(OFFSET(REL_D,,MATCH($A91,IND,0)-2),REL_D,Q$4,NwID,$C$4),SUMIFS(OFFSET(REL_D,,MATCH($A91,IND,0)-2),REL_D,Q$4,OrgID,$C$5)) -> 0 | R91: =SUMIFS(OFFSET(REL_D,,MATCH($A91,IND,0)-1),REL_D,R$4,IF(LEFT($C$5,1)="N",NwID,OrgID),$C$5) -> 0
A92: =VLOOKUP(C92,'Control Panel'!A129:B255,2,FALSE) -> %LDP.08.01 CKD and BP less than 140/90 (last 12 m) | B92: %LDP.08.01 CKD and BP less than 140/90 (last 12 m) | C92: ='Control Panel'!D130 -> % CKD register | D92: =IFERROR(D91/D87,"N/A") -> 0.614 | E92: 0.618 | F92: =IFERROR(F91/F87,"N/A") -> 0.618 | G92: =IFERROR(G91/G87,"N/A") -> 0.601 | H92: N/A | I92: N/A | J92: N/A | K92: N/A | L92: N/A | M92: N/A | N92: N/A | O92: N/A | P92: N/A | Q92: N/A | R92: =IFERROR(R91/R87,"N/A") -> N/A
A93: =VLOOKUP(C93,'Control Panel'!A130:B256,2,FALSE) -> LDP.08.02 CKD Diagnosed (Last 6m) | B93: LDP.08.02 CKD Diagnosed (Last 6m) | C93: ='Control Panel'!D131 -> No of patients with new diagnosis of CKD (last 6m) | D93: =IF($C$5="Total",SUMIFS(OFFSET(REL_D,,MATCH($A93,IND,0)-2),REL_D,D$4,NwID,$C$4),SUMIFS(OFFSET(REL_D,,MATCH($A93,IND,0)-2),REL_D,D$4,OrgID,$C$5)) -> 734 | E93: =IF($C$5="Total",SUMIFS(OFFSET(REL_D,,MATCH($A93,IND,0)-2),REL_D,E$4,NwID,$C$4),SUMIFS(OFFSET(REL_D,,MATCH($A93,IND,0)-2),REL_D,E$4,OrgID,$C$5)) -> 398 | F93: =IF($C$5="Total",SUMIFS(OFFSET(REL_D,,MATCH($A93,IND,0)-2),REL_D,F$4,NwID,$C$4),SUMIFS(OFFSET(REL_D,,MATCH($A93,IND,0)-2),REL_D,F$4,OrgID,$C$5)) -> 714 | G93: =IF($C$5="Total",SUMIFS(OFFSET(REL_D,,MATCH($A93,IND,0)-2),REL_D,G$4,NwID,$C$4),SUMIFS(OFFSET(REL_D,,MATCH($A93,IND,0)-2),REL_D,G$4,OrgID,$C$5)) -> 731 | H93: =IF($C$5="Total",SUMIFS(OFFSET(REL_D,,MATCH($A93,IND,0)-2),REL_D,H$4,NwID,$C$4),SUMIFS(OFFSET(REL_D,,MATCH($A93,IND,0)-2),REL_D,H$4,OrgID,$C$5)) -> 0 | I93: =IF($C$5="Total",SUMIFS(OFFSET(REL_D,,MATCH($A93,IND,0)-2),REL_D,I$4,NwID,$C$4),SUMIFS(OFFSET(REL_D,,MATCH($A93,IND,0)-2),REL_D,I$4,OrgID,$C$5)) -> 0 | J93: =IF($C$5="Total",SUMIFS(OFFSET(REL_D,,MATCH($A93,IND,0)-2),REL_D,J$4,NwID,$C$4),SUMIFS(OFFSET(REL_D,,MATCH($A93,IND,0)-2),REL_D,J$4,OrgID,$C$5)) -> 0 | K93: =IF($C$5="Total",SUMIFS(OFFSET(REL_D,,MATCH($A93,IND,0)-2),REL_D,K$4,NwID,$C$4),SUMIFS(OFFSET(REL_D,,MATCH($A93,IND,0)-2),REL_D,K$4,OrgID,$C$5)) -> 0 | L93: =IF($C$5="Total",SUMIFS(OFFSET(REL_D,,MATCH($A93,IND,0)-2),REL_D,L$4,NwID,$C$4),SUMIFS(OFFSET(REL_D,,MATCH($A93,IND,0)-2),REL_D,L$4,OrgID,$C$5)) -> 0 | M93: =IF($C$5="Total",SUMIFS(OFFSET(REL_D,,MATCH($A93,IND,0)-2),REL_D,M$4,NwID,$C$4),SUMIFS(OFFSET(REL_D,,MATCH($A93,IND,0)-2),REL_D,M$4,OrgID,$C$5)) -> 0 | N93: =IF($C$5="Total",SUMIFS(OFFSET(REL_D,,MATCH($A93,IND,0)-2),REL_D,N$4,NwID,$C$4),SUMIFS(OFFSET(REL_D,,MATCH($A93,IND,0)-2),REL_D,N$4,OrgID,$C$5)) -> 0 | O93: =IF($C$5="Total",SUMIFS(OFFSET(REL_D,,MATCH($A93,IND,0)-2),REL_D,O$4,NwID,$C$4),SUMIFS(OFFSET(REL_D,,MATCH($A93,IND,0)-2),REL_D,O$4,OrgID,$C$5)) -> 0 | P93: =IF($C$5="Total",SUMIFS(OFFSET(REL_D,,MATCH($A93,IND,0)-2),REL_D,P$4,NwID,$C$4),SUMIFS(OFFSET(REL_D,,MATCH($A93,IND,0)-2),REL_D,P$4,OrgID,$C$5)) -> 0 | Q93: =IF($C$5="Total",SUMIFS(OFFSET(REL_D,,MATCH($A93,IND,0)-2),REL_D,Q$4,NwID,$C$4),SUMIFS(OFFSET(REL_D,,MATCH($A93,IND,0)-2),REL_D,Q$4,OrgID,$C$5)) -> 0 | R93: =SUMIFS(OFFSET(REL_D,,MATCH($A93,IND,0)-1),REL_D,R$4,IF(LEFT($C$5,1)="N",NwID,OrgID),$C$5) -> 0
A94: =VLOOKUP(C94,'Control Panel'!A131:B257,2,FALSE) -> %LDP.08.02 CKD Diagnosed (Last 6m) | B94: %LDP.08.02 CKD Diagnosed (Last 6m) | C94: ='Control Panel'!D132 -> % CKD register | D94: =IFERROR(D93/D87,"N/A") -> 0.159 | E94: 0.075 | F94: =IFERROR(F93/F87,"N/A") -> 0.111 | G94: =IFERROR(G93/G87,"N/A") -> 0.113 | H94: N/A | I94: N/A | J94: N/A | K94: N/A | L94: N/A | M94: N/A | N94: N/A | O94: N/A | P94: N/A | Q94: N/A | R94: =IFERROR(R93/R87,"N/A") -> N/A
C95: ='Control Panel'!B133 -> COPD
A96: LDP.09 COPD Register | B96: LDP.09 COPD Register | C96: ='Control Panel'!C134 -> No. of patients on COPD register | D96: =IF($C$5="Total",SUMIFS(OFFSET(REL_D,,MATCH($A96,IND,0)-2),REL_D,D$4,NwID,$C$4),SUMIFS(OFFSET(REL_D,,MATCH($A96,IND,0)-2),REL_D,D$4,OrgID,$C$5)) -> 2827 | E96: =IF($C$5="Total",SUMIFS(OFFSET(REL_D,,MATCH($A96,IND,0)-2),REL_D,E$4,NwID,$C$4),SUMIFS(OFFSET(REL_D,,MATCH($A96,IND,0)-2),REL_D,E$4,OrgID,$C$5)) -> 3025 | F96: =IF($C$5="Total",SUMIFS(OFFSET(REL_D,,MATCH($A96,IND,0)-2),REL_D,F$4,NwID,$C$4),SUMIFS(OFFSET(REL_D,,MATCH($A96,IND,0)-2),REL_D,F$4,OrgID,$C$5)) -> 3362 | G96: =IF($C$5="Total",SUMIFS(OFFSET(REL_D,,MATCH($A96,IND,0)-2),REL_D,G$4,NwID,$C$4),SUMIFS(OFFSET(REL_D,,MATCH($A96,IND,0)-2),REL_D,G$4,OrgID,$C$5)) -> 3357 | H96: =IF($C$5="Total",SUMIFS(OFFSET(REL_D,,MATCH($A96,IND,0)-2),REL_D,H$4,NwID,$C$4),SUMIFS(OFFSET(REL_D,,MATCH($A96,IND,0)-2),REL_D,H$4,OrgID,$C$5)) -> 0 | I96: =IF($C$5="Total",SUMIFS(OFFSET(REL_D,,MATCH($A96,IND,0)-2),REL_D,I$4,NwID,$C$4),SUMIFS(OFFSET(REL_D,,MATCH($A96,IND,0)-2),REL_D,I$4,OrgID,$C$5)) -> 0 | J96: =IF($C$5="Total",SUMIFS(OFFSET(REL_D,,MATCH($A96,IND,0)-2),REL_D,J$4,NwID,$C$4),SUMIFS(OFFSET(REL_D,,MATCH($A96,IND,0)-2),REL_D,J$4,OrgID,$C$5)) -> 0 | K96: =IF($C$5="Total",SUMIFS(OFFSET(REL_D,,MATCH($A96,IND,0)-2),REL_D,K$4,NwID,$C$4),SUMIFS(OFFSET(REL_D,,MATCH($A96,IND,0)-2),REL_D,K$4,OrgID,$C$5)) -> 0 | L96: =IF($C$5="Total",SUMIFS(OFFSET(REL_D,,MATCH($A96,IND,0)-2),REL_D,L$4,NwID,$C$4),SUMIFS(OFFSET(REL_D,,MATCH($A96,IND,0)-2),REL_D,L$4,OrgID,$C$5)) -> 0 | M96: =IF($C$5="Total",SUMIFS(OFFSET(REL_D,,MATCH($A96,IND,0)-2),REL_D,M$4,NwID,$C$4),SUMIFS(OFFSET(REL_D,,MATCH($A96,IND,0)-2),REL_D,M$4,OrgID,$C$5)) -> 0 | N96: =IF($C$5="Total",SUMIFS(OFFSET(REL_D,,MATCH($A96,IND,0)-2),REL_D,N$4,NwID,$C$4),SUMIFS(OFFSET(REL_D,,MATCH($A96,IND,0)-2),REL_D,N$4,OrgID,$C$5)) -> 0 | O96: =IF($C$5="Total",SUMIFS(OFFSET(REL_D,,MATCH($A96,IND,0)-2),REL_D,O$4,NwID,$C$4),SUMIFS(OFFSET(REL_D,,MATCH($A96,IND,0)-2),REL_D,O$4,OrgID,$C$5)) -> 0 | P96: =IF($C$5="Total",SUMIFS(OFFSET(REL_D,,MATCH($A96,IND,0)-2),REL_D,P$4,NwID,$C$4),SUMIFS(OFFSET(REL_D,,MATCH($A96,IND,0)-2),REL_D,P$4,OrgID,$C$5)) -> 0 | Q96: =IF($C$5="Total",SUMIFS(OFFSET(REL_D,,MATCH($A96,IND,0)-2),REL_D,Q$4,NwID,$C$4),SUMIFS(OFFSET(REL_D,,MATCH($A96,IND,0)-2),REL_D,Q$4,OrgID,$C$5)) -> 0 | R96: =SUMIFS(OFFSET(REL_D,,MATCH($A96,IND,0)-1),REL_D,R$4,IF(LEFT($C$5,1)="N",NwID,OrgID),$C$5) -> 0
A97: ="%"&A96 -> %LDP.09 COPD Register | B97: %LDP.09 COPD Register | C97: ='Control Panel'!C135 -> % List Size | D97: =IFERROR(D96/D8,"N/A") -> 0.013 | E97: 0.013 | F97: =IFERROR(F96/F8,"N/A") -> 0.013 | G97: =IFERROR(G96/G8,"N/A") -> 0.013 | H97: N/A | I97: N/A | J97: N/A | K97: N/A | L97: N/A | M97: N/A | N97: N/A | O97: N/A | P97: N/A | Q97: N/A | R97: N/A
A98: LDP.09.01 Patients with severe or very severe COPD (FEV1<50) | B98: LDP.09.01 Patients with severe or very severe COPD (FEV1<50) | C98: ='Control Panel'!C136 -> No of patients with severe or very severe COPD (FEV1<50) | D98: =IF($C$5="Total",SUMIFS(OFFSET(REL_D,,MATCH($A98,IND,0)-2),REL_D,D$4,NwID,$C$4),SUMIFS(OFFSET(REL_D,,MATCH($A98,IND,0)-2),REL_D,D$4,OrgID,$C$5)) -> 420 | E98: =IF($C$5="Total",SUMIFS(OFFSET(REL_D,,MATCH($A98,IND,0)-2),REL_D,E$4,NwID,$C$4),SUMIFS(OFFSET(REL_D,,MATCH($A98,IND,0)-2),REL_D,E$4,OrgID,$C$5)) -> 416 | F98: =IF($C$5="Total",SUMIFS(OFFSET(REL_D,,MATCH($A98,IND,0)-2),REL_D,F$4,NwID,$C$4),SUMIFS(OFFSET(REL_D,,MATCH($A98,IND,0)-2),REL_D,F$4,OrgID,$C$5)) -> 476 | G98: =IF($C$5="Total",SUMIFS(OFFSET(REL_D,,MATCH($A98,IND,0)-2),REL_D,G$4,NwID,$C$4),SUMIFS(OFFSET(REL_D,,MATCH($A98,IND,0)-2),REL_D,G$4,OrgID,$C$5)) -> 477 | H98: =IF($C$5="Total",SUMIFS(OFFSET(REL_D,,MATCH($A98,IND,0)-2),REL_D,H$4,NwID,$C$4),SUMIFS(OFFSET(REL_D,,MATCH($A98,IND,0)-2),REL_D,H$4,OrgID,$C$5)) -> 0 | I98: =IF($C$5="Total",SUMIFS(OFFSET(REL_D,,MATCH($A98,IND,0)-2),REL_D,I$4,NwID,$C$4),SUMIFS(OFFSET(REL_D,,MATCH($A98,IND,0)-2),REL_D,I$4,OrgID,$C$5)) -> 0 | J98: =IF($C$5="Total",SUMIFS(OFFSET(REL_D,,MATCH($A98,IND,0)-2),REL_D,J$4,NwID,$C$4),SUMIFS(OFFSET(REL_D,,MATCH($A98,IND,0)-2),REL_D,J$4,OrgID,$C$5)) -> 0 | K98: =IF($C$5="Total",SUMIFS(OFFSET(REL_D,,MATCH($A98,IND,0)-2),REL_D,K$4,NwID,$C$4),SUMIFS(OFFSET(REL_D,,MATCH($A98,IND,0)-2),REL_D,K$4,OrgID,$C$5)) -> 0 | L98: =IF($C$5="Total",SUMIFS(OFFSET(REL_D,,MATCH($A98,IND,0)-2),REL_D,L$4,NwID,$C$4),SUMIFS(OFFSET(REL_D,,MATCH($A98,IND,0)-2),REL_D,L$4,OrgID,$C$5)) -> 0 | M98: =IF($C$5="Total",SUMIFS(OFFSET(REL_D,,MATCH($A98,IND,0)-2),REL_D,M$4,NwID,$C$4),SUMIFS(OFFSET(REL_D,,MATCH($A98,IND,0)-2),REL_D,M$4,OrgID,$C$5)) -> 0 | N98: =IF($C$5="Total",SUMIFS(OFFSET(REL_D,,MATCH($A98,IND,0)-2),REL_D,N$4,NwID,$C$4),SUMIFS(OFFSET(REL_D,,MATCH($A98,IND,0)-2),REL_D,N$4,OrgID,$C$5)) -> 0 | O98: =IF($C$5="Total",SUMIFS(OFFSET(REL_D,,MATCH($A98,IND,0)-2),REL_D,O$4,NwID,$C$4),SUMIFS(OFFSET(REL_D,,MATCH($A98,IND,0)-2),REL_D,O$4,OrgID,$C$5)) -> 0 | P98: =IF($C$5="Total",SUMIFS(OFFSET(REL_D,,MATCH($A98,IND,0)-2),REL_D,P$4,NwID,$C$4),SUMIFS(OFFSET(REL_D,,MATCH($A98,IND,0)-2),REL_D,P$4,OrgID,$C$5)) -> 0 | Q98: =IF($C$5="Total",SUMIFS(OFFSET(REL_D,,MATCH($A98,IND,0)-2),REL_D,Q$4,NwID,$C$4),SUMIFS(OFFSET(REL_D,,MATCH($A98,IND,0)-2),REL_D,Q$4,OrgID,$C$5)) -> 0 | R98: =SUMIFS(OFFSET(REL_D,,MATCH($A98,IND,0)-1),REL_D,R$4,IF(LEFT($C$5,1)="N",NwID,OrgID),$C$5) -> 0
A99: ="%"&A98 -> %LDP.09.01 Patients with severe or very severe COPD (FEV1<50) | B99: %LDP.09.01 Patients with severe or very severe COPD (FEV1<50) | C99: ='Control Panel'!C137 -> % COPD register | D99: =IFERROR(D98/D96,"N/A") -> 0.149 | E99: 0.138 | F99: =IFERROR(F98/F96,"N/A") -> 0.142 | G99: =IFERROR(G98/G96,"N/A") -> 0.142 | H99: N/A | I99: N/A | J99: N/A | K99: N/A | L99: N/A | M99: N/A | N99: N/A | O99: N/A | P99: N/A | Q99: N/A | R99: =IFERROR(R98/R96,"N/A") -> N/A
A100: LDP.09.02 Patients with smoking status recorded (last 12m) or never smoked | B100: LDP.09.02 Patients with smoking status recorded (last 12m) or never smoked | C100: ='Control Panel'!C138 -> No. of COPD Patients with smoking status recorded (last 12m) or never smoked | D100: =IF($C$5="Total",SUMIFS(OFFSET(REL_D,,MATCH($A100,IND,0)-2),REL_D,D$4,NwID,$C$4),SUMIFS(OFFSET(REL_D,,MATCH($A100,IND,0)-2),REL_D,D$4,OrgID,$C$5)) -> 2649 | E100: =IF($C$5="Total",SUMIFS(OFFSET(REL_D,,MATCH($A100,IND,0)-2),REL_D,E$4,NwID,$C$4),SUMIFS(OFFSET(REL_D,,MATCH($A100,IND,0)-2),REL_D,E$4,OrgID,$C$5)) -> 2817 | F100: =IF($C$5="Total",SUMIFS(OFFSET(REL_D,,MATCH($A100,IND,0)-2),REL_D,F$4,NwID,$C$4),SUMIFS(OFFSET(REL_D,,MATCH($A100,IND,0)-2),REL_D,F$4,OrgID,$C$5)) -> 3167 | G100: =IF($C$5="Total",SUMIFS(OFFSET(REL_D,,MATCH($A100,IND,0)-2),REL_D,G$4,NwID,$C$4),SUMIFS(OFFSET(REL_D,,MATCH($A100,IND,0)-2),REL_D,G$4,OrgID,$C$5)) -> 3122 | H100: =IF($C$5="Total",SUMIFS(OFFSET(REL_D,,MATCH($A100,IND,0)-2),REL_D,H$4,NwID,$C$4),SUMIFS(OFFSET(REL_D,,MATCH($A100,IND,0)-2),REL_D,H$4,OrgID,$C$5)) -> 0 | I100: =IF($C$5="Total",SUMIFS(OFFSET(REL_D,,MATCH($A100,IND,0)-2),REL_D,I$4,NwID,$C$4),SUMIFS(OFFSET(REL_D,,MATCH($A100,IND,0)-2),REL_D,I$4,OrgID,$C$5)) -> 0 | J100: =IF($C$5="Total",SUMIFS(OFFSET(REL_D,,MATCH($A100,IND,0)-2),REL_D,J$4,NwID,$C$4),SUMIFS(OFFSET(REL_D,,MATCH($A100,IND,0)-2),REL_D,J$4,OrgID,$C$5)) -> 0 | K100: =IF($C$5="Total",SUMIFS(OFFSET(REL_D,,MATCH($A100,IND,0)-2),REL_D,K$4,NwID,$C$4),SUMIFS(OFFSET(REL_D,,MATCH($A100,IND,0)-2),REL_D,K$4,OrgID,$C$5)) -> 0 | L100: =IF($C$5="Total",SUMIFS(OFFSET(REL_D,,MATCH($A100,IND,0)-2),REL_D,L$4,NwID,$C$4),SUMIFS(OFFSET(REL_D,,MATCH($A100,IND,0)-2),REL_D,L$4,OrgID,$C$5)) -> 0 | M100: =IF($C$5="Total",SUMIFS(OFFSET(REL_D,,MATCH($A100,IND,0)-2),REL_D,M$4,NwID,$C$4),SUMIFS(OFFSET(REL_D,,MATCH($A100,IND,0)-2),REL_D,M$4,OrgID,$C$5)) -> 0 | N100: =IF($C$5="Total",SUMIFS(OFFSET(REL_D,,MATCH($A100,IND,0)-2),REL_D,N$4,NwID,$C$4),SUMIFS(OFFSET(REL_D,,MATCH($A100,IND,0)-2),REL_D,N$4,OrgID,$C$5)) -> 0 | O100: =IF($C$5="Total",SUMIFS(OFFSET(REL_D,,MATCH($A100,IND,0)-2),REL_D,O$4,NwID,$C$4),SUMIFS(OFFSET(REL_D,,MATCH($A100,IND,0)-2),REL_D,O$4,OrgID,$C$5)) -> 0 | P100: =IF($C$5="Total",SUMIFS(OFFSET(REL_D,,MATCH($A100,IND,0)-2),REL_D,P$4,NwID,$C$4),SUMIFS(OFFSET(REL_D,,MATCH($A100,IND,0)-2),REL_D,P$4,OrgID,$C$5)) -> 0 | Q100: =IF($C$5="Total",SUMIFS(OFFSET(REL_D,,MATCH($A100,IND,0)-2),REL_D,Q$4,NwID,$C$4),SUMIFS(OFFSET(REL_D,,MATCH($A100,IND,0)-2),REL_D,Q$4,OrgID,$C$5)) -> 0 | R100: =SUMIFS(OFFSET(REL_D,,MATCH($A100,IND,0)-1),REL_D,R$4,IF(LEFT($C$5,1)="N",NwID,OrgID),$C$5) -> 0
A101: ="%"&A100 -> %LDP.09.02 Patients with smoking status recorded (last 12m) or never smoked | B101: %LDP.09.02 Patients with smoking status recorded (last 12m) or never smoked | C101: ='Control Panel'!C139 -> % COPD | D101: =IFERROR(D100/D96,"N/A") -> 0.937 | E101: 0.931 | F101: =IFERROR(F100/F96,"N/A") -> 0.942 | G101: =IFERROR(G100/G96,"N/A") -> 0.93 | H101: N/A | I101: N/A | J101: N/A | K101: N/A | L101: N/A | M101: N/A | N101: N/A | O101: N/A | P101: N/A | Q101: N/A | R101: =IFERROR(R100/R96,"N/A") -> N/A
A102: LDP.09.03 COPD patients recorded as a Smoker | B102: LDP.09.03 COPD patients recorded as a Smoker | C102: ='Control Panel'!C140 -> No. of COPD patients recorded as a Smoker | D102: =IF($C$5="Total",SUMIFS(OFFSET(REL_D,,MATCH($A102,IND,0)-2),REL_D,D$4,NwID,$C$4),SUMIFS(OFFSET(REL_D,,MATCH($A102,IND,0)-2),REL_D,D$4,OrgID,$C$5)) -> 1028 | E102: =IF($C$5="Total",SUMIFS(OFFSET(REL_D,,MATCH($A102,IND,0)-2),REL_D,E$4,NwID,$C$4),SUMIFS(OFFSET(REL_D,,MATCH($A102,IND,0)-2),REL_D,E$4,OrgID,$C$5)) -> 1098 | F102: =IF($C$5="Total",SUMIFS(OFFSET(REL_D,,MATCH($A102,IND,0)-2),REL_D,F$4,NwID,$C$4),SUMIFS(OFFSET(REL_D,,MATCH($A102,IND,0)-2),REL_D,F$4,OrgID,$C$5)) -> 1005 | G102: =IF($C$5="Total",SUMIFS(OFFSET(REL_D,,MATCH($A102,IND,0)-2),REL_D,G$4,NwID,$C$4),SUMIFS(OFFSET(REL_D,,MATCH($A102,IND,0)-2),REL_D,G$4,OrgID,$C$5)) -> 974 | H102: =IF($C$5="Total",SUMIFS(OFFSET(REL_D,,MATCH($A102,IND,0)-2),REL_D,H$4,NwID,$C$4),SUMIFS(OFFSET(REL_D,,MATCH($A102,IND,0)-2),REL_D,H$4,OrgID,$C$5)) -> 0 | I102: =IF($C$5="Total",SUMIFS(OFFSET(REL_D,,MATCH($A102,IND,0)-2),REL_D,I$4,NwID,$C$4),SUMIFS(OFFSET(REL_D,,MATCH($A102,IND,0)-2),REL_D,I$4,OrgID,$C$5)) -> 0 | J102: =IF($C$5="Total",SUMIFS(OFFSET(REL_D,,MATCH($A102,IND,0)-2),REL_D,J$4,NwID,$C$4),SUMIFS(OFFSET(REL_D,,MATCH($A102,IND,0)-2),REL_D,J$4,OrgID,$C$5)) -> 0 | K102: =IF($C$5="Total",SUMIFS(OFFSET(REL_D,,MATCH($A102,IND,0)-2),REL_D,K$4,NwID,$C$4),SUMIFS(OFFSET(REL_D,,MATCH($A102,IND,0)-2),REL_D,K$4,OrgID,$C$5)) -> 0 | L102: =IF($C$5="Total",SUMIFS(OFFSET(REL_D,,MATCH($A102,IND,0)-2),REL_D,L$4,NwID,$C$4),SUMIFS(OFFSET(REL_D,,MATCH($A102,IND,0)-2),REL_D,L$4,OrgID,$C$5)) -> 0 | M102: =IF($C$5="Total",SUMIFS(OFFSET(REL_D,,MATCH($A102,IND,0)-2),REL_D,M$4,NwID,$C$4),SUMIFS(OFFSET(REL_D,,MATCH($A102,IND,0)-2),REL_D,M$4,OrgID,$C$5)) -> 0 | N102: =IF($C$5="Total",SUMIFS(OFFSET(REL_D,,MATCH($A102,IND,0)-2),REL_D,N$4,NwID,$C$4),SUMIFS(OFFSET(REL_D,,MATCH($A102,IND,0)-2),REL_D,N$4,OrgID,$C$5)) -> 0 | O102: =IF($C$5="Total",SUMIFS(OFFSET(REL_D,,MATCH($A102,IND,0)-2),REL_D,O$4,NwID,$C$4),SUMIFS(OFFSET(REL_D,,MATCH($A102,IND,0)-2),REL_D,O$4,OrgID,$C$5)) -> 0 | P102: =IF($C$5="Total",SUMIFS(OFFSET(REL_D,,MATCH($A102,IND,0)-2),REL_D,P$4,NwID,$C$4),SUMIFS(OFFSET(REL_D,,MATCH($A102,IND,0)-2),REL_D,P$4,OrgID,$C$5)) -> 0 | Q102: =IF($C$5="Total",SUMIFS(OFFSET(REL_D,,MATCH($A102,IND,0)-2),REL_D,Q$4,NwID,$C$4),SUMIFS(OFFSET(REL_D,,MATCH($A102,IND,0)-2),REL_D,Q$4,OrgID,$C$5)) -> 0 | R102: =SUMIFS(OFFSET(REL_D,,MATCH($A102,IND,0)-1),REL_D,R$4,IF(LEFT($C$5,1)="N",NwID,OrgID),$C$5) -> 0
A103: ="%"&A102 -> %LDP.09.03 COPD patients recorded as a Smoker | B103: %LDP.09.03 COPD patients recorded as a Smoker | C103: ='Control Panel'!C141 -> % COPD | D103: =IFERROR(D102/D96,"N/A") -> 0.364 | E103: 0.363 | F103: =IFERROR(F102/F96,"N/A") -> 0.299 | G103: =IFERROR(G102/G96,"N/A") -> 0.29 | H103: N/A | I103: N/A | J103: N/A | K103: N/A | L103: N/A | M103: N/A | N103: N/A | O103: N/A | P103: N/A | Q103: N/A | R103: =IFERROR(R102/R96,"N/A") -> N/A
A104: LDP.09.04 COPD Patients who are current smokers & referred to the Stop Smoking C | B104: LDP.09.04 COPD Patients who are current smokers & referred to the Stop Smoking C | C104: ='Control Panel'!C142 -> No. of COPD Patients who are current smokers & referred to the Stop Smoking Clinic (12m) | D104: =IF($C$5="Total",SUMIFS(OFFSET(REL_D,,MATCH($A104,IND,0)-2),REL_D,D$4,NwID,$C$4),SUMIFS(OFFSET(REL_D,,MATCH($A104,IND,0)-2),REL_D,D$4,OrgID,$C$5)) -> 25 | E104: =IF($C$5="Total",SUMIFS(OFFSET(REL_D,,MATCH($A104,IND,0)-2),REL_D,E$4,NwID,$C$4),SUMIFS(OFFSET(REL_D,,MATCH($A104,IND,0)-2),REL_D,E$4,OrgID,$C$5)) -> 30 | F104: =IF($C$5="Total",SUMIFS(OFFSET(REL_D,,MATCH($A104,IND,0)-2),REL_D,F$4,NwID,$C$4),SUMIFS(OFFSET(REL_D,,MATCH($A104,IND,0)-2),REL_D,F$4,OrgID,$C$5)) -> 166 | G104: =IF($C$5="Total",SUMIFS(OFFSET(REL_D,,MATCH($A104,IND,0)-2),REL_D,G$4,NwID,$C$4),SUMIFS(OFFSET(REL_D,,MATCH($A104,IND,0)-2),REL_D,G$4,OrgID,$C$5)) -> 188 | H104: =IF($C$5="Total",SUMIFS(OFFSET(REL_D,,MATCH($A104,IND,0)-2),REL_D,H$4,NwID,$C$4),SUMIFS(OFFSET(REL_D,,MATCH($A104,IND,0)-2),REL_D,H$4,OrgID,$C$5)) -> 0 | I104: =IF($C$5="Total",SUMIFS(OFFSET(REL_D,,MATCH($A104,IND,0)-2),REL_D,I$4,NwID,$C$4),SUMIFS(OFFSET(REL_D,,MATCH($A104,IND,0)-2),REL_D,I$4,OrgID,$C$5)) -> 0 | J104: =IF($C$5="Total",SUMIFS(OFFSET(REL_D,,MATCH($A104,IND,0)-2),REL_D,J$4,NwID,$C$4),SUMIFS(OFFSET(REL_D,,MATCH($A104,IND,0)-2),REL_D,J$4,OrgID,$C$5)) -> 0 | K104: =IF($C$5="Total",SUMIFS(OFFSET(REL_D,,MATCH($A104,IND,0)-2),REL_D,K$4,NwID,$C$4),SUMIFS(OFFSET(REL_D,,MATCH($A104,IND,0)-2),REL_D,K$4,OrgID,$C$5)) -> 0 | L104: =IF($C$5="Total",SUMIFS(OFFSET(REL_D,,MATCH($A104,IND,0)-2),REL_D,L$4,NwID,$C$4),SUMIFS(OFFSET(REL_D,,MATCH($A104,IND,0)-2),REL_D,L$4,OrgID,$C$5)) -> 0 | M104: =IF($C$5="Total",SUMIFS(OFFSET(REL_D,,MATCH($A104,IND,0)-2),REL_D,M$4,NwID,$C$4),SUMIFS(OFFSET(REL_D,,MATCH($A104,IND,0)-2),REL_D,M$4,OrgID,$C$5)) -> 0 | N104: =IF($C$5="Total",SUMIFS(OFFSET(REL_D,,MATCH($A104,IND,0)-2),REL_D,N$4,NwID,$C$4),SUMIFS(OFFSET(REL_D,,MATCH($A104,IND,0)-2),REL_D,N$4,OrgID,$C$5)) -> 0 | O104: =IF($C$5="Total",SUMIFS(OFFSET(REL_D,,MATCH($A104,IND,0)-2),REL_D,O$4,NwID,$C$4),SUMIFS(OFFSET(REL_D,,MATCH($A104,IND,0)-2),REL_D,O$4,OrgID,$C$5)) -> 0 | P104: =IF($C$5="Total",SUMIFS(OFFSET(REL_D,,MATCH($A104,IND,0)-2),REL_D,P$4,NwID,$C$4),SUMIFS(OFFSET(REL_D,,MATCH($A104,IND,0)-2),REL_D,P$4,OrgID,$C$5)) -> 0 | Q104: =IF($C$5="Total",SUMIFS(OFFSET(REL_D,,MATCH($A104,IND,0)-2),REL_D,Q$4,NwID,$C$4),SUMIFS(OFFSET(REL_D,,MATCH($A104,IND,0)-2),REL_D,Q$4,OrgID,$C$5)) -> 0 | R104: =SUMIFS(OFFSET(REL_D,,MATCH($A104,IND,0)-1),REL_D,R$4,IF(LEFT($C$5,1)="N",NwID,OrgID),$C$5) -> 0
A105: ="%"&A104 -> %LDP.09.04 COPD Patients who are current smokers & referred to the Stop Smoking C | B105: %LDP.09.04 COPD Patients who are current smokers & referred to the Stop Smoking C | C105: ='Control Panel'!C143 -> % of current COPD smokers | D105: =IFERROR(D104/D102,"N/A") -> 0.024 | E105: 0.027 | F105: =IFERROR(F104/F102,"N/A") -> 0.165 | G105: =IFERROR(G104/G102,"N/A") -> 0.193 | H105: N/A | I105: N/A | J105: N/A | K105: N/A | L105: N/A | M105: N/A | N105: N/A | O105: N/A | P105: N/A | Q105: N/A | R105: =IFERROR(R104/R102,"N/A") -> N/A
A106: LDP.09.05 No of COPD with flu vaccination (From August 2018) | B106: LDP.09.05 No of COPD with flu vaccination (12m) | C106: No of COPD with flu vaccination (From August 2025) | D106: =IF($C$5="Total",SUMIFS(OFFSET(REL_D,,MATCH($A106,IND,0)-2),REL_D,D$4,NwID,$C$4),SUMIFS(OFFSET(REL_D,,MATCH($A106,IND,0)-2),REL_D,D$4,OrgID,$C$5)) -> 2045 | E106: =IF($C$5="Total",SUMIFS(OFFSET(REL_D,,MATCH($A106,IND,0)-2),REL_D,E$4,NwID,$C$4),SUMIFS(OFFSET(REL_D,,MATCH($A106,IND,0)-2),REL_D,E$4,OrgID,$C$5)) -> 2021 | F106: =IF($C$5="Total",SUMIFS(OFFSET(REL_D,,MATCH($A106,IND,0)-2),REL_D,F$4,NwID,$C$4),SUMIFS(OFFSET(REL_D,,MATCH($A106,IND,0)-2),REL_D,F$4,OrgID,$C$5)) -> 0 | G106: =IF($C$5="Total",SUMIFS(OFFSET(REL_D,,MATCH($A106,IND,0)-2),REL_D,G$4,NwID,$C$4),SUMIFS(OFFSET(REL_D,,MATCH($A106,IND,0)-2),REL_D,G$4,OrgID,$C$5)) -> 0 | H106: =IF($C$5="Total",SUMIFS(OFFSET(REL_D,,MATCH($A106,IND,0)-2),REL_D,H$4,NwID,$C$4),SUMIFS(OFFSET(REL_D,,MATCH($A106,IND,0)-2),REL_D,H$4,OrgID,$C$5)) -> 0 | I106: =IF($C$5="Total",SUMIFS(OFFSET(REL_D,,MATCH($A106,IND,0)-2),REL_D,I$4,NwID,$C$4),SUMIFS(OFFSET(REL_D,,MATCH($A106,IND,0)-2),REL_D,I$4,OrgID,$C$5)) -> 0 | J106: =IF($C$5="Total",SUMIFS(OFFSET(REL_D,,MATCH($A106,IND,0)-2),REL_D,J$4,NwID,$C$4),SUMIFS(OFFSET(REL_D,,MATCH($A106,IND,0)-2),REL_D,J$4,OrgID,$C$5)) -> 0 | K106: =IF($C$5="Total",SUMIFS(OFFSET(REL_D,,MATCH($A106,IND,0)-2),REL_D,K$4,NwID,$C$4),SUMIFS(OFFSET(REL_D,,MATCH($A106,IND,0)-2),REL_D,K$4,OrgID,$C$5)) -> 0 | L106: =IF($C$5="Total",SUMIFS(OFFSET(REL_D,,MATCH($A106,IND,0)-2),REL_D,L$4,NwID,$C$4),SUMIFS(OFFSET(REL_D,,MATCH($A106,IND,0)-2),REL_D,L$4,OrgID,$C$5)) -> 0 | M106: =IF($C$5="Total",SUMIFS(OFFSET(REL_D,,MATCH($A106,IND,0)-2),REL_D,M$4,NwID,$C$4),SUMIFS(OFFSET(REL_D,,MATCH($A106,IND,0)-2),REL_D,M$4,OrgID,$C$5)) -> 0 | N106: =IF($C$5="Total",SUMIFS(OFFSET(REL_D,,MATCH($A106,IND,0)-2),REL_D,N$4,NwID,$C$4),SUMIFS(OFFSET(REL_D,,MATCH($A106,IND,0)-2),REL_D,N$4,OrgID,$C$5)) -> 0 | O106: =IF($C$5="Total",SUMIFS(OFFSET(REL_D,,MATCH($A106,IND,0)-2),REL_D,O$4,NwID,$C$4),SUMIFS(OFFSET(REL_D,,MATCH($A106,IND,0)-2),REL_D,O$4,OrgID,$C$5)) -> 0 | P106: =IF($C$5="Total",SUMIFS(OFFSET(REL_D,,MATCH($A106,IND,0)-2),REL_D,P$4,NwID,$C$4),SUMIFS(OFFSET(REL_D,,MATCH($A106,IND,0)-2),REL_D,P$4,OrgID,$C$5)) -> 0 | Q106: =IF($C$5="Total",SUMIFS(OFFSET(REL_D,,MATCH($A106,IND,0)-2),REL_D,Q$4,NwID,$C$4),SUMIFS(OFFSET(REL_D,,MATCH($A106,IND,0)-2),REL_D,Q$4,OrgID,$C$5)) -> 0 | R106: =SUMIFS(OFFSET(REL_D,,MATCH($A106,IND,0)-1),REL_D,R$4,IF(LEFT($C$5,1)="N",NwID,OrgID),$C$5) -> 0
A107: ="%"&A106 -> %LDP.09.05 No of COPD with flu vaccination (From August 2018) | B107: %LDP.09.05 No of COPD with flu vaccination (12m) | C107: ='Control Panel'!C145 -> % of COPD register | D107: =IFERROR(D106/D96,"N/A") -> 0.723 | E107: 0.668 | F107: =IFERROR(F106/F96,"N/A") -> 0 | G107: =IFERROR(G106/G96,"N/A") -> 0 | H107: N/A | I107: N/A | J107: N/A | K107: N/A | L107: N/A | M107: N/A | N107: N/A | O107: N/A | P107: N/A | Q107: N/A | R107: =IFERROR(R106/R96,"N/A") -> N/A
A108: LDP.09.06 No of COPD with pneumococcal vaccination ever | B108: LDP.09.06 No of COPD with pneumococcal vaccination ever | C108: ='Control Panel'!C146 -> No of COPD with pneumococcal vaccination ever | D108: =IF($C$5="Total",SUMIFS(OFFSET(REL_D,,MATCH($A108,IND,0)-2),REL_D,D$4,NwID,$C$4),SUMIFS(OFFSET(REL_D,,MATCH($A108,IND,0)-2),REL_D,D$4,OrgID,$C$5)) -> 2210 | E108: =IF($C$5="Total",SUMIFS(OFFSET(REL_D,,MATCH($A108,IND,0)-2),REL_D,E$4,NwID,$C$4),SUMIFS(OFFSET(REL_D,,MATCH($A108,IND,0)-2),REL_D,E$4,OrgID,$C$5)) -> 2355 | F108: =IF($C$5="Total",SUMIFS(OFFSET(REL_D,,MATCH($A108,IND,0)-2),REL_D,F$4,NwID,$C$4),SUMIFS(OFFSET(REL_D,,MATCH($A108,IND,0)-2),REL_D,F$4,OrgID,$C$5)) -> 2575 | G108: =IF($C$5="Total",SUMIFS(OFFSET(REL_D,,MATCH($A108,IND,0)-2),REL_D,G$4,NwID,$C$4),SUMIFS(OFFSET(REL_D,,MATCH($A108,IND,0)-2),REL_D,G$4,OrgID,$C$5)) -> 2574 | H108: =IF($C$5="Total",SUMIFS(OFFSET(REL_D,,MATCH($A108,IND,0)-2),REL_D,H$4,NwID,$C$4),SUMIFS(OFFSET(REL_D,,MATCH($A108,IND,0)-2),REL_D,H$4,OrgID,$C$5)) -> 0 | I108: =IF($C$5="Total",SUMIFS(OFFSET(REL_D,,MATCH($A108,IND,0)-2),REL_D,I$4,NwID,$C$4),SUMIFS(OFFSET(REL_D,,MATCH($A108,IND,0)-2),REL_D,I$4,OrgID,$C$5)) -> 0 | J108: =IF($C$5="Total",SUMIFS(OFFSET(REL_D,,MATCH($A108,IND,0)-2),REL_D,J$4,NwID,$C$4),SUMIFS(OFFSET(REL_D,,MATCH($A108,IND,0)-2),REL_D,J$4,OrgID,$C$5)) -> 0 | K108: =IF($C$5="Total",SUMIFS(OFFSET(REL_D,,MATCH($A108,IND,0)-2),REL_D,K$4,NwID,$C$4),SUMIFS(OFFSET(REL_D,,MATCH($A108,IND,0)-2),REL_D,K$4,OrgID,$C$5)) -> 0 | L108: =IF($C$5="Total",SUMIFS(OFFSET(REL_D,,MATCH($A108,IND,0)-2),REL_D,L$4,NwID,$C$4),SUMIFS(OFFSET(REL_D,,MATCH($A108,IND,0)-2),REL_D,L$4,OrgID,$C$5)) -> 0 | M108: =IF($C$5="Total",SUMIFS(OFFSET(REL_D,,MATCH($A108,IND,0)-2),REL_D,M$4,NwID,$C$4),SUMIFS(OFFSET(REL_D,,MATCH($A108,IND,0)-2),REL_D,M$4,OrgID,$C$5)) -> 0 | N108: =IF($C$5="Total",SUMIFS(OFFSET(REL_D,,MATCH($A108,IND,0)-2),REL_D,N$4,NwID,$C$4),SUMIFS(OFFSET(REL_D,,MATCH($A108,IND,0)-2),REL_D,N$4,OrgID,$C$5)) -> 0 | O108: =IF($C$5="Total",SUMIFS(OFFSET(REL_D,,MATCH($A108,IND,0)-2),REL_D,O$4,NwID,$C$4),SUMIFS(OFFSET(REL_D,,MATCH($A108,IND,0)-2),REL_D,O$4,OrgID,$C$5)) -> 0 | P108: =IF($C$5="Total",SUMIFS(OFFSET(REL_D,,MATCH($A108,IND,0)-2),REL_D,P$4,NwID,$C$4),SUMIFS(OFFSET(REL_D,,MATCH($A108,IND,0)-2),REL_D,P$4,OrgID,$C$5)) -> 0 | Q108: =IF($C$5="Total",SUMIFS(OFFSET(REL_D,,MATCH($A108,IND,0)-2),REL_D,Q$4,NwID,$C$4),SUMIFS(OFFSET(REL_D,,MATCH($A108,IND,0)-2),REL_D,Q$4,OrgID,$C$5)) -> 0 | R108: =SUMIFS(OFFSET(REL_D,,MATCH($A108,IND,0)-1),REL_D,R$4,IF(LEFT($C$5,1)="N",NwID,OrgID),$C$5) -> 0
A109: ="%"&A108 -> %LDP.09.06 No of COPD with pneumococcal vaccination ever | B109: %LDP.09.06 No of COPD with pneumococcal vaccination ever | C109: ='Control Panel'!C147 -> % of COPD register | D109: =IFERROR(D108/D96,"N/A") -> 0.782 | E109: 0.779 | F109: =IFERROR(F108/F96,"N/A") -> 0.766 | G109: =IFERROR(G108/G96,"N/A") -> 0.767 | H109: N/A | I109: N/A | J109: N/A | K109: N/A | L109: N/A | M109: N/A | N109: N/A | O109: N/A | P109: N/A | Q109: N/A | R109: =IFERROR(R108/R96,"N/A") -> N/A
A110: LDP.09.07 No of COPD patients referred to pulmonary rehab ever | B110: LDP.09.07 No of COPD patients referred to pulmonary rehab ever | C110: ='Control Panel'!C148 -> No of COPD patients referred to pulmonary rehab ever | D110: =IF($C$5="Total",SUMIFS(OFFSET(REL_D,,MATCH($A110,IND,0)-2),REL_D,D$4,NwID,$C$4),SUMIFS(OFFSET(REL_D,,MATCH($A110,IND,0)-2),REL_D,D$4,OrgID,$C$5)) -> 1728 | E110: =IF($C$5="Total",SUMIFS(OFFSET(REL_D,,MATCH($A110,IND,0)-2),REL_D,E$4,NwID,$C$4),SUMIFS(OFFSET(REL_D,,MATCH($A110,IND,0)-2),REL_D,E$4,OrgID,$C$5)) -> 2004 | F110: =IF($C$5="Total",SUMIFS(OFFSET(REL_D,,MATCH($A110,IND,0)-2),REL_D,F$4,NwID,$C$4),SUMIFS(OFFSET(REL_D,,MATCH($A110,IND,0)-2),REL_D,F$4,OrgID,$C$5)) -> 1645 | G110: =IF($C$5="Total",SUMIFS(OFFSET(REL_D,,MATCH($A110,IND,0)-2),REL_D,G$4,NwID,$C$4),SUMIFS(OFFSET(REL_D,,MATCH($A110,IND,0)-2),REL_D,G$4,OrgID,$C$5)) -> 1670 | H110: =IF($C$5="Total",SUMIFS(OFFSET(REL_D,,MATCH($A110,IND,0)-2),REL_D,H$4,NwID,$C$4),SUMIFS(OFFSET(REL_D,,MATCH($A110,IND,0)-2),REL_D,H$4,OrgID,$C$5)) -> 0 | I110: =IF($C$5="Total",SUMIFS(OFFSET(REL_D,,MATCH($A110,IND,0)-2),REL_D,I$4,NwID,$C$4),SUMIFS(OFFSET(REL_D,,MATCH($A110,IND,0)-2),REL_D,I$4,OrgID,$C$5)) -> 0 | J110: =IF($C$5="Total",SUMIFS(OFFSET(REL_D,,MATCH($A110,IND,0)-2),REL_D,J$4,NwID,$C$4),SUMIFS(OFFSET(REL_D,,MATCH($A110,IND,0)-2),REL_D,J$4,OrgID,$C$5)) -> 0 | K110: =IF($C$5="Total",SUMIFS(OFFSET(REL_D,,MATCH($A110,IND,0)-2),REL_D,K$4,NwID,$C$4),SUMIFS(OFFSET(REL_D,,MATCH($A110,IND,0)-2),REL_D,K$4,OrgID,$C$5)) -> 0 | L110: =IF($C$5="Total",SUMIFS(OFFSET(REL_D,,MATCH($A110,IND,0)-2),REL_D,L$4,NwID,$C$4),SUMIFS(OFFSET(REL_D,,MATCH($A110,IND,0)-2),REL_D,L$4,OrgID,$C$5)) -> 0 | M110: =IF($C$5="Total",SUMIFS(OFFSET(REL_D,,MATCH($A110,IND,0)-2),REL_D,M$4,NwID,$C$4),SUMIFS(OFFSET(REL_D,,MATCH($A110,IND,0)-2),REL_D,M$4,OrgID,$C$5)) -> 0 | N110: =IF($C$5="Total",SUMIFS(OFFSET(REL_D,,MATCH($A110,IND,0)-2),REL_D,N$4,NwID,$C$4),SUMIFS(OFFSET(REL_D,,MATCH($A110,IND,0)-2),REL_D,N$4,OrgID,$C$5)) -> 0 | O110: =IF($C$5="Total",SUMIFS(OFFSET(REL_D,,MATCH($A110,IND,0)-2),REL_D,O$4,NwID,$C$4),SUMIFS(OFFSET(REL_D,,MATCH($A110,IND,0)-2),REL_D,O$4,OrgID,$C$5)) -> 0 | P110: =IF($C$5="Total",SUMIFS(OFFSET(REL_D,,MATCH($A110,IND,0)-2),REL_D,P$4,NwID,$C$4),SUMIFS(OFFSET(REL_D,,MATCH($A110,IND,0)-2),REL_D,P$4,OrgID,$C$5)) -> 0 | Q110: =IF($C$5="Total",SUMIFS(OFFSET(REL_D,,MATCH($A110,IND,0)-2),REL_D,Q$4,NwID,$C$4),SUMIFS(OFFSET(REL_D,,MATCH($A110,IND,0)-2),REL_D,Q$4,OrgID,$C$5)) -> 0 | R110: =SUMIFS(OFFSET(REL_D,,MATCH($A110,IND,0)-1),REL_D,R$4,IF(LEFT($C$5,1)="N",NwID,OrgID),$C$5) -> 0
A111: ="%"&A110 -> %LDP.09.07 No of COPD patients referred to pulmonary rehab ever | B111: %LDP.09.07 No of COPD patients referred to pulmonary rehab ever | C111: ='Control Panel'!C149 -> % of COPD register | D111: =IFERROR(D110/D96,"N/A") -> 0.611 | E111: 0.662 | F111: =IFERROR(F110/F96,"N/A") -> 0.489 | G111: =IFERROR(G110/G96,"N/A") -> 0.497 | H111: N/A | I111: N/A | J111: N/A | K111: N/A | L111: N/A | M111: N/A | N111: N/A | O111: N/A | P111: N/A | Q111: N/A | R111: =IFERROR(R110/R96,"N/A") -> N/A

Sheet General Health
C1: 01. Listsize | D1: =INDEX('Control Panel'!$B$3:$B$17,COLUMN(D1)-COLUMN($C$1)+1) -> LDP.01: Aged 16yrs+ | E1: =INDEX('Control Panel'!$B$3:$B$17,COLUMN(E1)-COLUMN($C$1)+1) -> %LDP.01: Aged 16yrs+ | F1: =INDEX('Control Panel'!$B$3:$B$17,COLUMN(F1)-COLUMN($C$1)+1) -> LDP.01.01: Obesity BMI recorded (last 12m) | G1: =INDEX('Control Panel'!$B$3:$B$17,COLUMN(G1)-COLUMN($C$1)+1) -> %LDP.01.01: Obesity BMI recorded (last 12m) | H1: =INDEX('Control Panel'!$B$3:$B$17,COLUMN(H1)-COLUMN($C$1)+1) -> LDP.01.01.02: Obesity BMI between 30-35 (last 12m) | I1: =INDEX('Control Panel'!$B$3:$B$17,COLUMN(I1)-COLUMN($C$1)+1) -> %LDP.01.01.02: Obesity BMI between 30-35 (last 12m) | J1: =INDEX('Control Panel'!$B$3:$B$17,COLUMN(J1)-COLUMN($C$1)+1) -> LDP.01.01.01: Obesity BMI more than or equal to 35 less than 40 (last 12m) | K1: =INDEX('Control Panel'!$B$3:$B$17,COLUMN(K1)-COLUMN($C$1)+1) -> %LDP.01.01.01: Obesity BMI more than or equal to 35 less than 40 (last 12m) | L1: =INDEX('Control Panel'!$B$3:$B$17,COLUMN(L1)-COLUMN($C$1)+1) -> LDP.01.01.03: Obesity BMI equal to or over 40 (last 12m) | M1: =INDEX('Control Panel'!$B$3:$B$17,COLUMN(M1)-COLUMN($C$1)+1) -> %LDP.01.01.03: Obesity BMI equal to or over 40 (last 12m) | N1: =INDEX('Control Panel'!$B$3:$B$17,COLUMN(N1)-COLUMN($C$1)+1) -> LDP.01.02: Smoking Status (last 12m) or Never Smoked (25yrs+) | O1: =INDEX('Control Panel'!$B$3:$B$17,COLUMN(O1)-COLUMN($C$1)+1) -> %LDP.01.02: Smoking Status (last 12m) or Never Smoked (25yrs+) | P1: =INDEX('Control Panel'!$B$3:$B$17,COLUMN(P1)-COLUMN($C$1)+1) -> LDP.01.03: Current Smoker (last 12m) | Q1: =INDEX('Control Panel'!$B$3:$B$17,COLUMN(Q1)-COLUMN($C$1)+1) -> %LDP.01.03: Current Smoker (last 12m)
C2: Barking and Dagenham - Practice Clinical Trends (LDP) Report
B3: =VLOOKUP(C3,'Control Panel'!O16:P27,2,FALSE) -> 2025-06-01 | C3: May 2025 | D3: =VLOOKUP(C3,'Control Panel'!O16:P27,2,FALSE) -> 2025-06-01 | E3: =VLOOKUP(C3,'Control Panel'!O16:Q27,3,FALSE) -> 1
B4: 2019-07-01 | C4: ='Control Panel'!B2 -> General Health
A5: Home | B5: 2019-10-01 | C5: =VLOOKUP(C1,'Control Panel'!$B$3:$C$132,2,FALSE) -> List Size | D5: =VLOOKUP(D1,'Control Panel'!$B$3:$D$132,3,FALSE) -> Age 16+ | E5: =VLOOKUP(E1,'Control Panel'!$B$3:$D$132,3,FALSE) -> % list size | F5: =VLOOKUP(F1,'Control Panel'!$B$3:$D$132,3,FALSE) -> 16+ and BMI (last 12m) | G5: =VLOOKUP(G1,'Control Panel'!$B$3:$D$132,3,FALSE) -> % 16+ | H5: =VLOOKUP(H1,'Control Panel'!$B$3:$D$132,3,FALSE) -> BMI ≥30 & <35 | I5: =VLOOKUP(I1,'Control Panel'!$B$3:$D$132,3,FALSE) -> % 16+ | J5: =VLOOKUP(J1,'Control Panel'!$B$3:$D$132,3,FALSE) -> BMI ≥ 35 & <40 | K5: =VLOOKUP(K1,'Control Panel'!$B$3:$D$132,3,FALSE) -> %16+ | L5: =VLOOKUP(L1,'Control Panel'!$B$3:$D$132,3,FALSE) -> BMI ≥ 40 | M5: =VLOOKUP(M1,'Control Panel'!$B$3:$D$132,3,FALSE) -> %16+ | N5: =VLOOKUP(N1,'Control Panel'!$B$3:$D$132,3,FALSE) -> Smoking status (last 12m) incl. never smoked | O5: =VLOOKUP(O1,'Control Panel'!$B$3:$D$132,3,FALSE) -> % 16+ | P5: =VLOOKUP(P1,'Control Panel'!$B$3:$D$132,3,FALSE) -> Age 16+ and current smoker (last 12m) | Q5: =VLOOKUP(Q1,'Control Panel'!$B$3:$D$132,3,FALSE) -> % 16+
A6: Practice Name | C6: =SUM(C7:C38) -> 258806 | D6: =SUM(D7:D38) -> 199948 | E6: =IFERROR(D6/C6,"N/A") -> 0.773 | F6: =SUM(F7:F38) -> 69963 | G6: =IFERROR(F6/D6,"N/A") -> 0.35 | H6: =SUM(H7:H38) -> 15625 | I6: =IFERROR(H6/D6,"N/A") -> 0.078 | J6: =SUM(J7:J38) -> 6860 | K6: =IFERROR(J6/D6,"N/A") -> 0.034 | L6: =SUM(L7:L38) -> 4655 | M6: =IFERROR(L6/D6,"N/A") -> 0.023 | N6: =SUM(N7:N38) -> 131750 | O6: =IFERROR(N6/D6,"N/A") -> 0.659 | P6: =SUM(P7:P38) -> 9456 | Q6: =IFERROR(P6/D6,"N/A") -> 0.047
A7: Church Elm Lane Medical Practice | B7: F82005 | C7: =SUMIFS(OFFSET(REL_D,,MATCH(C$1,IND,0)-2),REL_D,$D$3,OrgID,$B7) -> 7193 | D7: 5363 | E7: =IFERROR(D7/$C7,"N/A") -> 0.746 | F7: =SUMIFS(OFFSET(REL_D,,MATCH(F$1,IND,0)-2),REL_D,$D$3,OrgID,$B7) -> 2479 | G7: =IFERROR(F7/$D7,"N/A") -> 0.462 | H7: =SUMIFS(OFFSET(REL_D,,MATCH(H$1,IND,0)-2),REL_D,$D$3,OrgID,$B7) -> 517 | I7: =IFERROR(H7/$D7,"N/A") -> 0.096 | J7: =SUMIFS(OFFSET(REL_D,,MATCH(J$1,IND,0)-2),REL_D,$D$3,OrgID,$B7) -> 209 | K7: =IFERROR(J7/$D7,"N/A") -> 0.039 | L7: =SUMIFS(OFFSET(REL_D,,MATCH(L$1,IND,0)-2),REL_D,$D$3,OrgID,$B7) -> 158 | M7: =IFERROR(L7/$D7,"N/A") -> 0.029 | N7: =SUMIFS(OFFSET(REL_D,,MATCH(N$1,IND,0)-2),REL_D,$D$3,OrgID,$B7) -> 3819 | O7: =IFERROR(N7/$D7,"N/A") -> 0.712 | P7: =SUMIFS(OFFSET(REL_D,,MATCH(P$1,IND,0)-2),REL_D,$D$3,OrgID,$B7) -> 303 | Q7: =IFERROR(P7/$D7,"N/A") -> 0.056
A8: Broad Street Medical Centre | B8: Y01719 | C8: 8876 | D8: 6539 | E8: 0.737 | F8: 2817 | G8: 0.431 | H8: 602 | I8: 0.092 | J8: 259 | K8: 0.04 | L8: 200 | M8: 0.031 | N8: 4735 | O8: 0.724 | P8: 427 | Q8: 0.065
A9: Porters Avenue Doctors Surgery | B9: Y02575 | C9: 21394 | D9: 15538 | E9: 0.726 | F9: 5239 | G9: 0.337 | H9: 1220 | I9: 0.079 | J9: 494 | K9: 0.032 | L9: 292 | M9: 0.019 | N9: 10099 | O9: 0.65 | P9: 618 | Q9: 0.04
A10: First Avenue Surgery | B10: F82003 | C10: 5299 | D10: 4111 | E10: 0.776 | F10: 1202 | G10: 0.292 | H10: 271 | I10: 0.066 | J10: 103 | K10: 0.025 | L10: 103 | M10: 0.025 | N10: 2793 | O10: 0.679 | P10: 187 | Q10: 0.045
A11: Hedgemans Surgery | B11: F82015 | C11: 5216 | D11: 4181 | E11: 0.802 | F11: 1563 | G11: 0.374 | H11: 390 | I11: 0.093 | J11: 186 | K11: 0.044 | L11: 110 | M11: 0.026 | N11: 2821 | O11: 0.675 | P11: 249 | Q11: 0.06
A12: St Albans Surgery | B12: F82017 | C12: 8583 | D12: 6721 | E12: 0.783 | F12: 1979 | G12: 0.294 | H12: 440 | I12: 0.065 | J12: 266 | K12: 0.04 | L12: 195 | M12: 0.029 | N12: 4294 | O12: 0.639 | P12: 336 | Q12: 0.05
A13: Heathway Medical Centre | B13: F82634 | C13: 6348 | D13: 4967 | E13: 0.782 | F13: 1877 | G13: 0.378 | H13: 373 | I13: 0.075 | J13: 182 | K13: 0.037 | L13: 124 | M13: 0.025 | N13: 3278 | O13: 0.66 | P13: 305 | Q13: 0.061
A14: Dr Alkaisy Surgery | B14: F82678 | C14: 5026 | D14: 3998 | E14: 0.795 | F14: 1456 | G14: 0.364 | H14: 298 | I14: 0.075 | J14: 128 | K14: 0.032 | L14: 104 | M14: 0.026 | N14: 2817 | O14: 0.705 | P14: 232 | Q14: 0.058
A15: Parkview Medical Practice | B15: F82679 | C15: 5563 | D15: 4457 | E15: 0.801 | F15: 1327 | G15: 0.298 | H15: 326 | I15: 0.073 | J15: 135 | K15: 0.03 | L15: 99 | M15: 0.022 | N15: 2862 | O15: 0.642 | P15: 193 | Q15: 0.043
A16: Victoria Medical Centre | B16: F82034 | C16: 10620 | D16: 8236 | E16: 0.776 | F16: 2258 | G16: 0.274 | H16: 533 | I16: 0.065 | J16: 227 | K16: 0.028 | L16: 153 | M16: 0.019 | N16: 4764 | O16: 0.578 | P16: 328 | Q16: 0.04
A17: Aurora Medcare | B17: F82042 | C17: 20577 | D17: 15624 | E17: 0.759 | F17: 5647 | G17: 0.361 | H17: 1268 | I17: 0.081 | J17: 526 | K17: 0.034 | L17: 378 | M17: 0.024 | N17: 10541 | O17: 0.675 | P17: 557 | Q17: 0.036
A18: Abbey Medical centre | B18: F82625 | C18: 7795 | D18: 6184 | E18: 0.793 | F18: 2355 | G18: 0.381 | H18: 515 | I18: 0.083 | J18: 211 | K18: 0.034 | L18: 123 | M18: 0.02 | N18: 4281 | O18: 0.692 | P18: 285 | Q18: 0.046
A19: Shifa Medical Practice | B19: Y01280 | C19: 2403 | D19: 1880 | E19: 0.782 | F19: 651 | G19: 0.346 | H19: 175 | I19: 0.093 | J19: 51 | K19: 0.027 | L19: 22 | M19: 0.012 | N19: 1243 | O19: 0.661 | P19: 75 | Q19: 0.04
A20: Faircross Health Centre | B20: F82027 | C20: 2176 | D20: 1810 | E20: 0.832 | F20: 570 | G20: 0.315 | H20: 127 | I20: 0.07 | J20: 48 | K20: 0.027 | L20: 25 | M20: 0.014 | N20: 1158 | O20: 0.64 | P20: 59 | Q20: 0.033
A21: Halbutt Street Surgery | B21: F82001 | C21: 5728 | D21: 4485 | E21: 0.783 | F21: 1563 | G21: 0.348 | H21: 374 | I21: 0.083 | J21: 178 | K21: 0.04 | L21: 139 | M21: 0.031 | N21: 3037 | O21: 0.677 | P21: 324 | Q21: 0.072
A22: Barking Medical Group Practice | B22: F82018 | C22: 11928 | D22: 9385 | E22: 0.787 | F22: 3003 | G22: 0.32 | H22: 600 | I22: 0.064 | J22: 247 | K22: 0.026 | L22: 139 | M22: 0.015 | N22: 6502 | O22: 0.693 | P22: 412 | Q22: 0.044
A23: John Smith House | B23: F82040 | C23: 4339 | D23: 3454 | E23: 0.796 | F23: 1186 | G23: 0.343 | H23: 211 | I23: 0.061 | J23: 93 | K23: 0.027 | L23: 61 | M23: 0.018 | N23: 2107 | O23: 0.61 | P23: 193 | Q23: 0.056
A24: The White House | B24: F82612 | C24: 11624 | D24: 9117 | E24: 0.784 | F24: 3290 | G24: 0.361 | H24: 638 | I24: 0.07 | J24: 245 | K24: 0.027 | L24: 158 | M24: 0.017 | N24: 5867 | O24: 0.644 | P24: 312 | Q24: 0.034
A25: Dr Gupta & Partner | B25: F82647 | C25: 5119 | D25: 4264 | E25: 0.833 | F25: 1376 | G25: 0.323 | H25: 280 | I25: 0.066 | J25: 105 | K25: 0.025 | L25: 47 | M25: 0.011 | N25: 2921 | O25: 0.685 | P25: 140 | Q25: 0.033
A26: Ripple Road Medical Centre | B26: F82650 | C26: 10203 | D26: 7875 | E26: 0.772 | F26: 2324 | G26: 0.295 | H26: 559 | I26: 0.071 | J26: 220 | K26: 0.028 | L26: 134 | M26: 0.017 | N26: 5018 | O26: 0.637 | P26: 315 | Q26: 0.04
A27: Highgrove Surgery | B27: F82680 | C27: 11841 | D27: 9519 | E27: 0.804 | F27: 4250 | G27: 0.446 | H27: 946 | I27: 0.099 | J27: 404 | K27: 0.042 | L27: 239 | M27: 0.025 | N27: 5296 | O27: 0.556 | P27: 572 | Q27: 0.06
A28: Julia Engwell Surgery | B28: F82025 | C28: 5697 | D28: 4348 | E28: 0.763 | F28: 1203 | G28: 0.277 | H28: 279 | I28: 0.064 | J28: 152 | K28: 0.035 | L28: 111 | M28: 0.026 | N28: 2860 | O28: 0.658 | P28: 222 | Q28: 0.051
A29: Laburnum Health centre | B29: F82051 | C29: 10909 | D29: 8523 | E29: 0.781 | F29: 2516 | G29: 0.295 | H29: 612 | I29: 0.072 | J29: 301 | K29: 0.035 | L29: 215 | M29: 0.025 | N29: 4730 | O29: 0.555 | P29: 419 | Q29: 0.049
A30: Gables Surgery | B30: F82642 | C30: 6924 | D30: 5275 | E30: 0.762 | F30: 1905 | G30: 0.361 | H30: 432 | I30: 0.082 | J30: 198 | K30: 0.038 | L30: 179 | M30: 0.034 | N30: 3409 | O30: 0.646 | P30: 234 | Q30: 0.044
A31: Green Lane Surgery | B31: F82661 | C31: 4036 | D31: 3160 | E31: =IFERROR(D31/$C31,"N/A") -> 0.783 | F31: 795 | G31: =IFERROR(F31/$D31,"N/A") -> 0.252 | H31: 185 | I31: =IFERROR(H31/$D31,"N/A") -> 0.059 | J31: 81 | K31: =IFERROR(J31/$D31,"N/A") -> 0.026 | L31: 47 | M31: =IFERROR(L31/$D31,"N/A") -> 0.015 | N31: 2306 | O31: =IFERROR(N31/$D31,"N/A") -> 0.73 | P31: 96 | Q31: =IFERROR(P31/$D31,"N/A") -> 0.03
A32: The Surgery | B32: F86040 | C32: 5732 | D32: 4542 | E32: 0.792 | F32: 1216 | G32: 0.268 | H32: 310 | I32: 0.068 | J32: 121 | K32: 0.027 | L32: 85 | M32: 0.019 | N32: 3356 | O32: 0.739 | P32: 170 | Q32: 0.037
A33: The Oval Practice | B33: Y01795 | C33: 8184 | D33: 6172 | E33: 0.754 | F33: 2330 | G33: 0.378 | H33: 525 | I33: 0.085 | J33: 222 | K33: 0.036 | L33: 143 | M33: 0.023 | N33: 4293 | O33: 0.696 | P33: 329 | Q33: 0.053
A34: Valence Medical Centre | B34: F82038 | C34: 4963 | D34: 3847 | E34: =IFERROR(D34/$C34,"N/A") -> 0.775 | F34: 1229 | G34: =IFERROR(F34/$D34,"N/A") -> 0.319 | H34: 275 | I34: =IFERROR(H34/$D34,"N/A") -> 0.071 | J34: 145 | K34: =IFERROR(J34/$D34,"N/A") -> 0.038 | L34: 94 | M34: =IFERROR(L34/$D34,"N/A") -> 0.024 | N34: 2376 | O34: =IFERROR(N34/$D34,"N/A") -> 0.618 | P34: 191 | Q34: =IFERROR(P34/$D34,"N/A") -> 0.05
A35: Marks Gate Medical Practice | B35: F82604 | C35: 5878 | D35: 4310 | E35: =IFERROR(D35/$C35,"N/A") -> 0.733 | F35: 1522 | G35: =IFERROR(F35/$D35,"N/A") -> 0.353 | H35: 374 | I35: =IFERROR(H35/$D35,"N/A") -> 0.087 | J35: 160 | K35: =IFERROR(J35/$D35,"N/A") -> 0.037 | L35: 116 | M35: =IFERROR(L35/$D35,"N/A") -> 0.027 | N35: 3057 | O35: =IFERROR(N35/$D35,"N/A") -> 0.709 | P35: 244 | Q35: =IFERROR(P35/$D35,"N/A") -> 0.057
A36: Tulasi Medical Centre | B36: F82660 | C36: 20075 | D36: 15735 | E36: =IFERROR(D36/$C36,"N/A") -> 0.784 | F36: 6210 | G36: =IFERROR(F36/$D36,"N/A") -> 0.395 | H36: 1387 | I36: =IFERROR(H36/$D36,"N/A") -> 0.088 | J36: 686 | K36: =IFERROR(J36/$D36,"N/A") -> 0.044 | L36: 475 | M36: =IFERROR(L36/$D36,"N/A") -> 0.03 | N36: 10457 | O36: =IFERROR(N36/$D36,"N/A") -> 0.665 | P36: 821 | Q36: =IFERROR(P36/$D36,"N/A") -> 0.052
A37: Becontree Medical Centre | B37: F82677 | C37: 8557 | D37: 6328 | E37: =IFERROR(D37/$C37,"N/A") -> 0.74 | F37: 2625 | G37: =IFERROR(F37/$D37,"N/A") -> 0.415 | H37: 583 | I37: =IFERROR(H37/$D37,"N/A") -> 0.092 | J37: 277 | K37: =IFERROR(J37/$D37,"N/A") -> 0.044 | L37: 187 | M37: =IFERROR(L37/$D37,"N/A") -> 0.03 | N37: 4653 | O37: =IFERROR(N37/$D37,"N/A") -> 0.735 | P37: 308 | Q37: =IFERROR(P37/$D37,"N/A") -> 0.049

Sheet Hypertension
C1: 01. Listsize | D1: =INDEX('Control Panel'!$B$19:$B$24,COLUMN(D1)-COLUMN($D$1)+1) -> LDP.02: Hypertension Register | E1: =INDEX('Control Panel'!$B$19:$B$24,COLUMN(E1)-COLUMN($D$1)+1) -> %LDP.02: Hypertension Register | F1: =INDEX('Control Panel'!$B$19:$B$24,COLUMN(F1)-COLUMN($D$1)+1) -> LDP.02.02: Hypertension BP recorded (last 12m) | G1: =INDEX('Control Panel'!$B$19:$B$24,COLUMN(G1)-COLUMN($D$1)+1) -> %LDP.02.02: Hypertension BP recorded (last 12m) | H1: =INDEX('Control Panel'!$B$19:$B$24,COLUMN(H1)-COLUMN($D$1)+1) -> LDP.02.01: Hypertension and BP < 140/90 (age under 80) < 150/90 (Age 80+) | I1: =INDEX('Control Panel'!$B$19:$B$24,COLUMN(I1)-COLUMN($D$1)+1) -> %LDP.02.01: Hypertension and BP < 140/90 (age under 80) < 150/90 (Age 80+)
C2: Barking and Dagenham - Practice Clinical Trends (LDP) Report
B3: =VLOOKUP(C3,'Control Panel'!O16:P27,2,FALSE) -> 2025-06-01 | C3: May 2025 | D3: =VLOOKUP(C3,'Control Panel'!O16:P27,2,FALSE) -> 2025-06-01 | E3: =VLOOKUP(C3,'Control Panel'!O16:Q27,3,FALSE) -> 1
B4: 2019-07-01 | C4: ='Control Panel'!B18 -> Hypertension
A5: Home | B5: 2019-10-01 | C5: =VLOOKUP(C1,'Control Panel'!$B$3:$C$132,2,FALSE) -> List Size | D5: =VLOOKUP(D1,'Control Panel'!$B$3:$D$132,3,FALSE) -> Hypertension Register | E5: =VLOOKUP(E1,'Control Panel'!$B$3:$D$132,3,FALSE) -> % list size | F5: =VLOOKUP(F1,'Control Panel'!$B$3:$D$132,3,FALSE) -> Hypertension and BP (last 12m) | G5: =VLOOKUP(G1,'Control Panel'!$B$3:$D$132,3,FALSE) -> % Hypertension Register | H5: =VLOOKUP(H1,'Control Panel'!$B$3:$D$132,3,FALSE) -> Hypertension and BP < 140/90 (Patients aged under 80) < 150/90 ( Aged 80 and over) (last 12m) | I5: =VLOOKUP(I1,'Control Panel'!$B$3:$D$132,3,FALSE) -> % Hypertension Register
A6: Practice Name | C6: =SUM(C7:C38) -> 258806 | D6: =SUM(D7:D38) -> 31862 | E6: =IFERROR(D6/C6,"N/A") -> 0.123 | F6: =SUM(F7:F38) -> 27227 | G6: =IFERROR(F6/D6,"N/A") -> 0.855 | H6: =SUM(H7:H38) -> 18655 | I6: =IFERROR(H6/D6,"N/A") -> 0.585
A7: Church Elm Lane Medical Practice | B7: F82005 | C7: =SUMIFS(OFFSET(REL_D,,MATCH(C$1,IND,0)-2),REL_D,$D$3,OrgID,$B7) -> 7193 | D7: 882 | E7: =IFERROR(D7/C7,"N/A") -> 0.123 | F7: =SUMIFS(OFFSET(REL_D,,MATCH(F$1,IND,0)-2),REL_D,$D$3,OrgID,$B7) -> 795 | G7: =IFERROR(F7/D7,"N/A") -> 0.901 | H7: =SUMIFS(OFFSET(REL_D,,MATCH(H$1,IND,0)-2),REL_D,$D$3,OrgID,$B7) -> 608 | I7: =IFERROR(H7/D7,"N/A") -> 0.689
A8: Broad Street Medical Centre | B8: Y01719 | C8: 8876 | D8: 898 | E8: 0.101 | F8: 821 | G8: 0.914 | H8: 530 | I8: 0.59
A9: Porters Avenue Doctors Surgery | B9: Y02575 | C9: 21394 | D9: 1958 | E9: 0.092 | F9: 1734 | G9: 0.886 | H9: 1163 | I9: 0.594
A10: First Avenue Surgery | B10: F82003 | C10: 5299 | D10: 680 | E10: 0.128 | F10: 602 | G10: 0.885 | H10: 416 | I10: 0.612
A11: Hedgemans Surgery | B11: F82015 | C11: 5216 | D11: 732 | E11: 0.14 | F11: 626 | G11: 0.855 | H11: 492 | I11: 0.672
A12: St Albans Surgery | B12: F82017 | C12: 8583 | D12: 1401 | E12: 0.163 | F12: 1157 | G12: 0.826 | H12: 809 | I12: 0.577
A13: Heathway Medical Centre | B13: F82634 | C13: 6348 | D13: 785 | E13: 0.124 | F13: 702 | G13: 0.894 | H13: 464 | I13: 0.591
A14: Dr Alkaisy Surgery | B14: F82678 | C14: 5026 | D14: 912 | E14: 0.181 | F14: 778 | G14: 0.853 | H14: 533 | I14: 0.584
A15: Parkview Medical Practice | B15: F82679 | C15: 5563 | D15: 769 | E15: 0.138 | F15: 652 | G15: 0.848 | H15: 453 | I15: 0.589
A16: Victoria Medical Centre | B16: F82034 | C16: 10620 | D16: 1161 | E16: 0.109 | F16: 921 | G16: 0.793 | H16: 545 | I16: 0.469
A17: Aurora Medcare | B17: F82042 | C17: 20577 | D17: 2224 | E17: 0.108 | F17: 1877 | G17: 0.844 | H17: 1273 | I17: 0.572
A18: Abbey Medical centre | B18: F82625 | C18: 7795 | D18: 927 | E18: 0.119 | F18: 821 | G18: 0.886 | H18: 617 | I18: 0.666
A19: Shifa Medical Practice | B19: Y01280 | C19: 2403 | D19: 194 | E19: 0.081 | F19: 128 | G19: 0.66 | H19: 108 | I19: 0.557
A20: Faircross Health Centre | B20: F82027 | C20: 2176 | D20: 338 | E20: 0.155 | F20: 296 | G20: 0.876 | H20: 233 | I20: 0.689
A21: Halbutt Street Surgery | B21: F82001 | C21: 5728 | D21: 788 | E21: 0.138 | F21: 666 | G21: 0.845 | H21: 448 | I21: 0.569
A22: Barking Medical Group Practice | B22: F82018 | C22: 11928 | D22: 1381 | E22: 0.116 | F22: 1217 | G22: 0.881 | H22: 783 | I22: 0.567
A23: John Smith House | B23: F82040 | C23: =SUMIFS(OFFSET(REL_D,,MATCH(C$1,IND,0)-2),REL_D,$D$3,OrgID,$B23) -> 4339 | D23: 420 | E23: 0.097 | F23: 353 | G23: 0.84 | H23: 234 | I23: 0.557
A24: The White House | B24: F82612 | C24: 11624 | D24: 1391 | E24: 0.12 | F24: 1181 | G24: 0.849 | H24: 784 | I24: 0.564
A25: Dr Gupta & Partner | B25: F82647 | C25: 5119 | D25: 579 | E25: 0.113 | F25: 473 | G25: 0.817 | H25: 307 | I25: 0.53
A26: Ripple Road Medical Centre | B26: F82650 | C26: 10203 | D26: 997 | E26: 0.098 | F26: 885 | G26: 0.888 | H26: 559 | I26: 0.561
A27: Highgrove Surgery | B27: F82680 | C27: 11841 | D27: 1788 | E27: 0.151 | F27: 1489 | G27: 0.833 | H27: 1030 | I27: 0.576
A28: Julia Engwell Surgery | B28: F82025 | C28: 5697 | D28: 750 | E28: 0.132 | F28: 598 | G28: 0.797 | H28: 408 | I28: 0.544
A29: Laburnum Health centre | B29: F82051 | C29: 10909 | D29: 1600 | E29: 0.147 | F29: 1245 | G29: 0.778 | H29: 874 | I29: 0.546
A30: Gables Surgery | B30: F82642 | C30: 6924 | D30: 853 | E30: 0.123 | F30: 663 | G30: 0.777 | H30: 435 | I30: 0.51
A31: Green Lane Surgery | B31: F82661 | C31: 4036 | D31: 436 | E31: 0.108 | F31: 348 | G31: 0.798 | H31: 235 | I31: 0.539
A32: The Surgery | B32: F86040 | C32: 5732 | D32: 561 | E32: 0.098 | F32: 476 | G32: 0.848 | H32: 287 | I32: 0.512
A33: The Oval Practice | B33: Y01795 | C33: 8184 | D33: 1104 | E33: 0.135 | F33: 1003 | G33: 0.909 | H33: 675 | I33: 0.611
A34: Valence Medical Centre | B34: F82038 | C34: 4963 | D34: 549 | E34: 0.111 | F34: 443 | G34: 0.807 | H34: 295 | I34: 0.537
A35: Marks Gate Medical Practice | B35: F82604 | C35: 5878 | D35: 653 | E35: 0.111 | F35: 566 | G35: 0.867 | H35: 437 | I35: 0.669
A36: Tulasi Medical Centre | B36: F82660 | C36: 20075 | D36: 3128 | E36: =IFERROR(D36/C36,"N/A") -> 0.156 | F36: 2744 | G36: =IFERROR(F36/D36,"N/A") -> 0.877 | H36: 1842 | I36: =IFERROR(H36/D36,"N/A") -> 0.589
A37: Becontree Medical Centre | B37: F82677 | C37: 8557 | D37: 1023 | E37: =IFERROR(D37/C37,"N/A") -> 0.12 | F37: 967 | G37: =IFERROR(F37/D37,"N/A") -> 0.945 | H37: 778 | I37: =IFERROR(H37/D37,"N/A") -> 0.761

Sheet CHD
C1: 01. Listsize | D1: =INDEX('Control Panel'!$B$26:$B$39,COLUMN(D1)-COLUMN($D$1)+1) -> LDP.03: CHD Register | E1: =INDEX('Control Panel'!$B$26:$B$39,COLUMN(E1)-COLUMN($D$1)+1) -> %LDP.03: CHD Register | F1: =INDEX('Control Panel'!$B$26:$B$39,COLUMN(F1)-COLUMN($D$1)+1) -> LDP.03.04: CHD Cholesterol recorded (last 12m) | G1: =INDEX('Control Panel'!$B$26:$B$39,COLUMN(G1)-COLUMN($D$1)+1) -> %LDP.03.04: CHD Cholesterol recorded (last 12m) | H1: =INDEX('Control Panel'!$B$26:$B$39,COLUMN(H1)-COLUMN($D$1)+1) -> LDP.03.01: CHD Chol less than 5mmol (last 12m) | I1: =INDEX('Control Panel'!$B$26:$B$39,COLUMN(I1)-COLUMN($D$1)+1) -> %LDP.03.01: CHD Chol less than 5mmol (last 12m) | J1: =INDEX('Control Panel'!$B$26:$B$39,COLUMN(J1)-COLUMN($D$1)+1) -> LDP.03.02: CHD BP less than or equal 150/90 (last 9m) | K1: =INDEX('Control Panel'!$B$26:$B$39,COLUMN(K1)-COLUMN($D$1)+1) -> %LDP.03.02: CHD BP less than or equal 150/90 (last 9m)
C2: Barking and Dagenham - Practice Clinical Trends (LDP) Report
B3: =VLOOKUP(C3,'Control Panel'!O16:P27,2,FALSE) -> 2025-06-01 | C3: May 2025 | D3: =VLOOKUP(C3,'Control Panel'!O16:P27,2,FALSE) -> 2025-06-01 | E3: =VLOOKUP(C3,'Control Panel'!O16:Q27,3,FALSE) -> 1
B4: 2019-07-01 | C4: ='Control Panel'!B25 -> CHD
A5: Home | B5: 2019-10-01 | C5: =VLOOKUP(C1,'Control Panel'!$B$3:$C$132,2,FALSE) -> List Size | D5: =VLOOKUP(D1,'Control Panel'!$B$3:$D$132,3,FALSE) -> CHD register | E5: =VLOOKUP(E1,'Control Panel'!$B$3:$D$132,3,FALSE) -> % list size | F5: =VLOOKUP(F1,'Control Panel'!$B$3:$D$132,3,FALSE) -> Cholesterol (last 12m) | G5: =VLOOKUP(G1,'Control Panel'!$B$3:$D$132,3,FALSE) -> % CHD register | H5: =VLOOKUP(H1,'Control Panel'!$B$3:$D$132,3,FALSE) -> Cholesterol < 5 (last 12m) | I5: =VLOOKUP(I1,'Control Panel'!$B$3:$D$132,3,FALSE) -> % CHD register | J5: =VLOOKUP(J1,'Control Panel'!$B$3:$D$132,3,FALSE) -> BP ≤ 150/90 (last 12m) | K5: =VLOOKUP(K1,'Control Panel'!$B$3:$D$132,3,FALSE) -> % CHD register
A6: Practice Name | C6: =SUM(C7:C38) -> 258806 | D6: =SUM(D7:D38) -> 4150 | E6: =IFERROR(D6/C6,"N/A") -> 0.016 | F6: =SUM(F7:F38) -> 3285 | G6: =IFERROR(F6/D6,"N/A") -> 0.792 | H6: =SUM(H7:H38) -> 3165 | I6: =IFERROR(H6/D6,"N/A") -> 0.763 | J6: =SUM(J7:J38) -> 2772 | K6: =IFERROR(J6/D6,"N/A") -> 0.668
A7: Church Elm Lane Medical Practice | B7: F82005 | C7: =SUMIFS(OFFSET(REL_D,,MATCH(C$1,IND,0)-2),REL_D,$D$3,OrgID,$B7) -> 7193 | D7: 90 | E7: =IFERROR(D7/C7,"N/A") -> 0.013 | F7: =SUMIFS(OFFSET(REL_D,,MATCH(F$1,IND,0)-2),REL_D,$D$3,OrgID,$B7) -> 73 | G7: =IFERROR(F7/$D7,"N/A") -> 0.811 | H7: =SUMIFS(OFFSET(REL_D,,MATCH(H$1,IND,0)-2),REL_D,$D$3,OrgID,$B7) -> 72 | I7: =IFERROR(H7/$D7,"N/A") -> 0.8 | J7: =SUMIFS(OFFSET(REL_D,,MATCH(J$1,IND,0)-2),REL_D,$D$3,OrgID,$B7) -> 65 | K7: =IFERROR(J7/$D7,"N/A") -> 0.722
A8: Broad Street Medical Centre | B8: Y01719 | C8: 8876 | D8: 102 | E8: 0.011 | F8: 82 | G8: 0.804 | H8: 79 | I8: 0.775 | J8: 77 | K8: 0.755
A9: Porters Avenue Doctors Surgery | B9: Y02575 | C9: 21394 | D9: 193 | E9: 0.009 | F9: 148 | G9: 0.767 | H9: 141 | I9: 0.731 | J9: 133 | K9: 0.689
A10: First Avenue Surgery | B10: F82003 | C10: 5299 | D10: 93 | E10: 0.018 | F10: 74 | G10: 0.796 | H10: 74 | I10: 0.796 | J10: 61 | K10: 0.656
A11: Hedgemans Surgery | B11: F82015 | C11: 5216 | D11: 86 | E11: 0.016 | F11: 64 | G11: 0.744 | H11: 62 | I11: 0.721 | J11: 66 | K11: 0.767
A12: St Albans Surgery | B12: F82017 | C12: 8583 | D12: 156 | E12: 0.018 | F12: 126 | G12: 0.808 | H12: 122 | I12: 0.782 | J12: 111 | K12: 0.712
A13: Heathway Medical Centre | B13: F82634 | C13: 6348 | D13: 95 | E13: 0.015 | F13: 68 | G13: 0.716 | H13: 66 | I13: 0.695 | J13: 65 | K13: 0.684
A14: Dr Alkaisy Surgery | B14: F82678 | C14: 5026 | D14: 125 | E14: 0.025 | F14: 89 | G14: 0.712 | H14: 89 | I14: 0.712 | J14: 64 | K14: 0.512
A15: Parkview Medical Practice | B15: F82679 | C15: 5563 | D15: 95 | E15: 0.017 | F15: 72 | G15: 0.758 | H15: 69 | I15: 0.726 | J15: 62 | K15: 0.653
A16: Victoria Medical Centre | B16: F82034 | C16: 10620 | D16: 133 | E16: 0.013 | F16: 90 | G16: 0.677 | H16: 88 | I16: 0.662 | J16: 84 | K16: 0.632
A17: Aurora Medcare | B17: F82042 | C17: 20577 | D17: 266 | E17: 0.013 | F17: 197 | G17: 0.741 | H17: 192 | I17: 0.722 | J17: 182 | K17: 0.684
A18: Abbey Medical centre | B18: F82625 | C18: 7795 | D18: 136 | E18: 0.017 | F18: 108 | G18: 0.794 | H18: 106 | I18: 0.779 | J18: 104 | K18: 0.765
A19: Shifa Medical Practice | B19: Y01280 | C19: 2403 | D19: 30 | E19: 0.012 | F19: 26 | G19: 0.867 | H19: 25 | I19: 0.833 | J19: 20 | K19: 0.667
A20: Faircross Health Centre | B20: F82027 | C20: 2176 | D20: 48 | E20: 0.022 | F20: 41 | G20: 0.854 | H20: 37 | I20: 0.771 | J20: 29 | K20: 0.604
A21: Halbutt Street Surgery | B21: F82001 | C21: 5728 | D21: 77 | E21: 0.013 | F21: 61 | G21: 0.792 | H21: 58 | I21: 0.753 | J21: 41 | K21: 0.532
A22: Barking Medical Group Practice | B22: F82018 | C22: 11928 | D22: 229 | E22: 0.019 | F22: 194 | G22: 0.847 | H22: 188 | I22: 0.821 | J22: 148 | K22: 0.646
A23: John Smith House | B23: F82040 | C23: =SUMIFS(OFFSET(REL_D,,MATCH(C$1,IND,0)-2),REL_D,$D$3,OrgID,$B23) -> 4339 | D23: 49 | E23: 0.011 | F23: 40 | G23: 0.816 | H23: 40 | I23: 0.816 | J23: 29 | K23: 0.592
A24: The White House | B24: F82612 | C24: 11624 | D24: 251 | E24: 0.022 | F24: 188 | G24: 0.749 | H24: 186 | I24: 0.741 | J24: 153 | K24: 0.61
A25: Dr Gupta & Partner | B25: F82647 | C25: 5119 | D25: 82 | E25: 0.016 | F25: 69 | G25: 0.841 | H25: 66 | I25: 0.805 | J25: 54 | K25: 0.659
A26: Ripple Road Medical Centre | B26: F82650 | C26: 10203 | D26: 177 | E26: 0.017 | F26: 138 | G26: 0.78 | H26: 131 | I26: 0.74 | J26: 125 | K26: 0.706
A27: Highgrove Surgery | B27: F82680 | C27: 11841 | D27: 260 | E27: 0.022 | F27: 227 | G27: 0.873 | H27: 191 | I27: 0.735 | J27: 176 | K27: 0.677
A28: Julia Engwell Surgery | B28: F82025 | C28: 5697 | D28: 96 | E28: 0.017 | F28: 77 | G28: 0.802 | H28: 73 | I28: 0.76 | J28: 64 | K28: 0.667
A29: Laburnum Health centre | B29: F82051 | C29: 10909 | D29: 207 | E29: 0.019 | F29: 152 | G29: 0.734 | H29: 148 | I29: 0.715 | J29: 129 | K29: 0.623
A30: Gables Surgery | B30: F82642 | C30: 6924 | D30: 127 | E30: 0.018 | F30: 85 | G30: 0.669 | H30: 83 | I30: 0.654 | J30: 78 | K30: 0.614
A31: Green Lane Surgery | B31: F82661 | C31: 4036 | D31: 42 | E31: 0.01 | F31: 30 | G31: 0.714 | H31: 30 | I31: 0.714 | J31: 25 | K31: 0.595
A32: The Surgery | B32: F86040 | C32: 5732 | D32: 86 | E32: 0.015 | F32: 79 | G32: 0.919 | H32: 76 | I32: 0.884 | J32: 64 | K32: 0.744
A33: The Oval Practice | B33: Y01795 | C33: 8184 | D33: 114 | E33: 0.014 | F33: 102 | G33: 0.895 | H33: 102 | I33: 0.895 | J33: 86 | K33: 0.754
A34: Valence Medical Centre | B34: F82038 | C34: 4963 | D34: 80 | E34: 0.016 | F34: 72 | G34: 0.9 | H34: 70 | I34: 0.875 | J34: 48 | K34: 0.6
A35: Marks Gate Medical Practice | B35: F82604 | C35: 5878 | D35: 101 | E35: =IFERROR(D35/C35,"N/A") -> 0.017 | F35: 85 | G35: =IFERROR(F35/$D35,"N/A") -> 0.842 | H35: 84 | I35: =IFERROR(H35/$D35,"N/A") -> 0.832 | J35: 68 | K35: 0.673
A36: Tulasi Medical Centre | B36: F82660 | C36: 20075 | D36: 388 | E36: =IFERROR(D36/C36,"N/A") -> 0.019 | F36: 306 | G36: =IFERROR(F36/$D36,"N/A") -> 0.789 | H36: 298 | I36: =IFERROR(H36/$D36,"N/A") -> 0.768 | J36: 249 | K36: =IFERROR(J36/$D36,"N/A") -> 0.642
A37: Becontree Medical Centre | B37: F82677 | C37: 8557 | D37: 136 | E37: =IFERROR(D37/C37,"N/A") -> 0.016 | F37: 122 | G37: =IFERROR(F37/$D37,"N/A") -> 0.897 | H37: 119 | I37: =IFERROR(H37/$D37,"N/A") -> 0.875 | J37: 112 | K37: =IFERROR(J37/$D37,"N/A") -> 0.824

Sheet CVD Risk
C1: 01. Listsize | D1: =INDEX('Control Panel'!$B$49:$B$55,COLUMN(D1)-COLUMN($D$1)+1) -> LDP.05: CVD 25-84yrs (excl CVD) | E1: =INDEX('Control Panel'!$B$49:$B$55,COLUMN(E1)-COLUMN($D$1)+1) -> LDP.05.02: Cardiovascular Risk Score Done (5y) | F1: =INDEX('Control Panel'!$B$49:$B$55,COLUMN(F1)-COLUMN($D$1)+1) -> %LDP.05.02: Cardiovascular Risk Score Done (5y) | G1: =INDEX('Control Panel'!$B$49:$B$55,COLUMN(G1)-COLUMN($D$1)+1) -> LDP.05.01: CVD QRISK greater than or equal 20% | H1: =INDEX('Control Panel'!$B$49:$B$55,COLUMN(H1)-COLUMN($D$1)+1) -> %LDP.05.01: CVD QRISK greater than or equal 20% | I1: =INDEX('Control Panel'!$B$49:$B$55,COLUMN(I1)-COLUMN($D$1)+1) -> LDP.05.01.01: CVD Proxy Annual Review (last 12m) | J1: =INDEX('Control Panel'!$B$49:$B$55,COLUMN(J1)-COLUMN($D$1)+1) -> %LDP.05.01.01: CVD Proxy Annual Review (last 12m) | K1: LDP.05.03: CVD QRISK >=10 & <20 | L1: =INDEX('Control Panel'!$B$49:$B$55,COLUMN(L1)-COLUMN($D$1)+1) -> 
C2: Barking and Dagenham - Practice Clinical Trends (LDP) Report
C3: May 2025 | D3: =VLOOKUP(C3,'Control Panel'!O16:P27,2,FALSE) -> 2025-06-01 | E3: =VLOOKUP(C3,'Control Panel'!O16:Q27,3,FALSE) -> 1
C4: ='Control Panel'!B48 -> CVD Risk
A5: Home | C5: =VLOOKUP(C1,'Control Panel'!$B$3:$C$132,2,FALSE) -> List Size | D5: =VLOOKUP(D1,'Control Panel'!$B$3:$D$132,3,FALSE) -> Aged 25 to 84 (exc CVD) | E5: =VLOOKUP(E1,'Control Panel'!$B$3:$D$132,3,FALSE) -> Cardiovascular Risk Score Done (5y) | F5: =VLOOKUP(F1,'Control Panel'!$B$3:$D$132,3,FALSE) -> % of patients aged 25 to 84 (exc CVD) | G5: =VLOOKUP(G1,'Control Panel'!$B$3:$D$132,3,FALSE) -> QRISK ≥ 20% | H5: =VLOOKUP(H1,'Control Panel'!$B$3:$D$132,3,FALSE) -> % of patients aged 25 to 84 (exc CVD) | I5: =VLOOKUP(I1,'Control Panel'!$B$3:$D$132,3,FALSE) -> QRISK ≥ 20% and proxy review (BP and Chol last 12m) | J5: =VLOOKUP(J1,'Control Panel'!$B$3:$D$132,3,FALSE) -> % Patients with QRISK ≥ 20% | K5: QRISK >=10 & <20 | L5: % of patients aged 25 to 84 (exc CVD)
A6: Practice Name | C6: =SUM(C7:C38) -> 258806 | D6: =SUM(D7:D38) -> 125230 | E6: =SUM(E7:E38) -> 45574 | F6: =IFERROR(E6/D6,"N/A") -> 0.364 | G6: =SUM(G7:G38) -> 3095 | H6: =IFERROR(G6/D6,"N/A") -> 0.025 | I6: =SUM(I7:I38) -> 1906 | J6: =IFERROR(I6/G6,"N/A") -> 0.616 | K6: =SUM(K7:K38) -> 7141 | L6: =IFERROR(K6/D6,"N/A") -> 0.057
A7: Church Elm Lane Medical Practice | B7: F82005 | C7: =SUMIFS(OFFSET(REL_D,,MATCH(C$1,IND,0)-2),REL_D,$D$3,OrgID,$B7) -> 7193 | D7: 3497 | E7: 1593 | F7: =IFERROR(E7/$D7,"N/A") -> 0.456 | G7: =SUMIFS(OFFSET(REL_D,,MATCH(G$1,IND,0)-2),REL_D,$D$3,OrgID,$B7) -> 115 | H7: =IFERROR(G7/$D7,"N/A") -> 0.033 | I7: =SUMIFS(OFFSET(REL_D,,MATCH(I$1,IND,0)-2),REL_D,$D$3,OrgID,$B7) -> 72 | J7: =IFERROR(I7/$G7,"N/A") -> 0.626 | K7: 237 | L7: =IFERROR(K7/D7,"N/A") -> 0.068
A8: Broad Street Medical Centre | B8: Y01719 | C8: 8876 | D8: 4380 | E8: 1471 | F8: 0.336 | G8: 54 | H8: =IFERROR(G8/$D8,"N/A") -> 0.012 | I8: 43 | J8: 0.796 | K8: 183 | L8: =IFERROR(K8/D8,"N/A") -> 0.042
A9: Porters Avenue Doctors Surgery | B9: Y02575 | C9: 21394 | D9: 10841 | E9: 3836 | F9: 0.354 | G9: 159 | H9: 0.015 | I9: 98 | J9: 0.616 | K9: 384 | L9: 0.035
A10: First Avenue Surgery | B10: F82003 | C10: 5299 | D10: 2656 | E10: 790 | F10: 0.297 | G10: 89 | H10: 0.034 | I10: 67 | J10: 0.753 | K10: 151 | L10: 0.057
A11: Hedgemans Surgery | B11: F82015 | C11: 5216 | D11: 2675 | E11: 1171 | F11: 0.438 | G11: 95 | H11: 0.036 | I11: 43 | J11: 0.453 | K11: 214 | L11: 0.08
A12: St Albans Surgery | B12: F82017 | C12: 8583 | D12: 4101 | E12: 1405 | F12: 0.343 | G12: 76 | H12: 0.019 | I12: 43 | J12: 0.566 | K12: 216 | L12: 0.053
A13: Heathway Medical Centre | B13: F82634 | C13: 6348 | D13: 3318 | E13: 1023 | F13: 0.308 | G13: 56 | H13: 0.017 | I13: 42 | J13: 0.75 | K13: 159 | L13: 0.048
A14: Dr Alkaisy Surgery | B14: F82678 | C14: 5026 | D14: 2278 | E14: 902 | F14: 0.396 | G14: 60 | H14: 0.026 | I14: 31 | J14: 0.517 | K14: 168 | L14: 0.074
A15: Parkview Medical Practice | B15: F82679 | C15: 5563 | D15: 2824 | E15: 1100 | F15: 0.39 | G15: 82 | H15: 0.029 | I15: 51 | J15: 0.622 | K15: 177 | L15: 0.063
A16: Victoria Medical Centre | B16: F82034 | C16: 10620 | D16: 5566 | E16: 2011 | F16: 0.361 | G16: 143 | H16: 0.026 | I16: 92 | J16: 0.643 | K16: 301 | L16: 0.054
A17: Aurora Medcare | B17: F82042 | C17: 20577 | D17: 10533 | E17: 3866 | F17: 0.367 | G17: 178 | H17: 0.017 | I17: 103 | J17: 0.579 | K17: 586 | L17: 0.056
A18: Abbey Medical centre | B18: F82625 | C18: 7795 | D18: 4105 | E18: 1601 | F18: 0.39 | G18: 117 | H18: 0.029 | I18: 73 | J18: 0.624 | K18: 275 | L18: 0.067
A19: Shifa Medical Practice | B19: Y01280 | C19: 2403 | D19: 1322 | E19: 188 | F19: 0.142 | G19: 13 | H19: 0.01 | I19: 9 | J19: 0.692 | K19: 46 | L19: 0.035
A20: Faircross Health Centre | B20: F82027 | C20: 2176 | D20: 1156 | E20: 385 | F20: 0.333 | G20: 36 | H20: 0.031 | I20: 26 | J20: 0.722 | K20: 98 | L20: 0.085
A21: Halbutt Street Surgery | B21: F82001 | C21: 5728 | D21: 2790 | E21: 968 | F21: 0.347 | G21: 54 | H21: 0.019 | I21: 25 | J21: 0.463 | K21: 148 | L21: 0.053
A22: Barking Medical Group Practice | B22: F82018 | C22: 11928 | D22: 6111 | E22: 1714 | F22: 0.28 | G22: 130 | H22: 0.021 | I22: 82 | J22: 0.631 | K22: 354 | L22: 0.058
A23: John Smith House | B23: F82040 | C23: =SUMIFS(OFFSET(REL_D,,MATCH(C$1,IND,0)-2),REL_D,$D$3,OrgID,$B23) -> 4339 | D23: 2372 | E23: 874 | F23: 0.368 | G23: 45 | H23: 0.019 | I23: 26 | J23: 0.578 | K23: 102 | L23: 0.043
A24: The White House | B24: F82612 | C24: 11624 | D24: 6040 | E24: 1900 | F24: 0.315 | G24: 229 | H24: 0.038 | I24: 138 | J24: 0.603 | K24: 367 | L24: 0.061
A25: Dr Gupta & Partner | B25: F82647 | C25: 5119 | D25: 3086 | E25: 783 | F25: 0.254 | G25: 106 | H25: 0.034 | I25: 68 | J25: 0.642 | K25: 145 | L25: 0.047
A26: Ripple Road Medical Centre | B26: F82650 | C26: 10203 | D26: 5396 | E26: 1927 | F26: 0.357 | G26: 136 | H26: 0.025 | I26: 79 | J26: 0.581 | K26: 270 | L26: 0.05
A27: Highgrove Surgery | B27: F82680 | C27: 11841 | D27: 376 | E27: 115 | F27: 0.306 | G27: 118 | H27: 0.314 | I27: 84 | J27: 0.712 | K27: 87 | L27: 0.231
A28: Julia Engwell Surgery | B28: F82025 | C28: 5697 | D28: 2725 | E28: 1336 | F28: 0.49 | G28: 91 | H28: 0.033 | I28: 45 | J28: 0.495 | K28: 185 | L28: 0.068
A29: Laburnum Health centre | B29: F82051 | C29: 10909 | D29: 5299 | E29: 1632 | F29: 0.308 | G29: 103 | H29: 0.019 | I29: 54 | J29: 0.524 | K29: 295 | L29: 0.056
A30: Gables Surgery | B30: F82642 | C30: 6924 | D30: 3474 | E30: 1151 | F30: 0.331 | G30: 79 | H30: 0.023 | I30: 38 | J30: 0.481 | K30: 240 | L30: 0.069
A31: Green Lane Surgery | B31: F82661 | C31: 4036 | D31: 2195 | E31: 770 | F31: 0.351 | G31: 58 | H31: 0.026 | I31: 33 | J31: 0.569 | K31: 143 | L31: 0.065
A32: The Surgery | B32: F86040 | C32: 5732 | D32: 3178 | E32: 514 | F32: 0.162 | G32: 44 | H32: 0.014 | I32: 26 | J32: 0.591 | K32: 73 | L32: 0.023
A33: The Oval Practice | B33: Y01795 | C33: 8184 | D33: 3982 | E33: 1802 | F33: 0.453 | G33: 56 | H33: 0.014 | I33: 28 | J33: 0.5 | K33: 222 | L33: 0.056
A34: Valence Medical Centre | B34: F82038 | C34: 4963 | D34: 2548 | E34: 803 | F34: 0.315 | G34: 59 | H34: 0.023 | I34: 43 | J34: 0.729 | K34: 141 | L34: 0.055
A35: Marks Gate Medical Practice | B35: F82604 | C35: 5878 | D35: 2794 | E35: 1166 | F35: =IFERROR(E35/$D35,"N/A") -> 0.417 | G35: 89 | H35: 0.032 | I35: 54 | J35: =IFERROR(I35/$G35,"N/A") -> 0.607 | K35: 190 | L35: 0.068
A36: Tulasi Medical Centre | B36: F82660 | C36: 20075 | D36: 9554 | E36: 4780 | F36: =IFERROR(E36/$D36,"N/A") -> 0.5 | G36: 327 | H36: 0.034 | I36: 227 | J36: =IFERROR(I36/$G36,"N/A") -> 0.694 | K36: 709 | L36: 0.074
A37: Becontree Medical Centre | B37: F82677 | C37: 8557 | D37: 4058 | E37: 1997 | F37: =IFERROR(E37/$D37,"N/A") -> 0.492 | G37: 98 | H37: 0.024 | I37: 63 | J37: =IFERROR(I37/$G37,"N/A") -> 0.643 | K37: 275 | L37: 0.068

Sheet Stroke
C1: 01. Listsize | D1: LDP.10 Stroke or TIA register | E1: %LDP.10 Stroke or TIA register | F1: LDP.10.01: Stroke/TIA BP recorded (last 12m) | G1: %LDP.10.01: Stroke/TIA BP recorded (last 12m) | H1: LDP.10.02 Patients on Stroke/TIA register with BP <140/90 (12m) | I1: %LDP.10.02 Patients on Stroke/TIA register with BP <140/90 (12m)
C2: Barking and Dagenham - Practice Clinical Trends (LDP) Report
B3: =VLOOKUP(C3,'Control Panel'!O16:P27,2,FALSE) -> 2025-06-01 | C3: May 2025 | D3: =VLOOKUP(C3,'Control Panel'!O16:P27,2,FALSE) -> 2025-06-01 | E3: =VLOOKUP(C3,'Control Panel'!O16:Q27,3,FALSE) -> 1
B4: 2019-07-01 | C4: ='Control Panel'!B41 -> Stroke/TIA
A5: Home | B5: 2019-10-01 | C5: =VLOOKUP(C1,'Control Panel'!$B$3:$C$132,2,FALSE) -> List Size | D5: =VLOOKUP(D1,'Control Panel'!$B$3:$D$132,3,FALSE) -> Stroke/TIA register | E5: =VLOOKUP(E1,'Control Panel'!$B$3:$D$132,3,FALSE) -> % list size | F5: =VLOOKUP(F1,'Control Panel'!$B$3:$D$132,3,FALSE) -> Patients on Stroke/TIA register with BP recorded | G5: =VLOOKUP(G1,'Control Panel'!$B$3:$D$132,3,FALSE) -> % of stroke register | H5: =VLOOKUP(H1,'Control Panel'!$B$3:$D$132,3,FALSE) -> Patients on Stroke/TIA register with BP <140/90 (12m) | I5: =VLOOKUP(I1,'Control Panel'!$B$3:$D$132,3,FALSE) -> % of stroke register
A6: Practice Name | C6: =SUM(C7:C38) -> 258806 | D6: =SUM(D7:D38) -> 2591 | E6: =IFERROR(D6/C6,"N/A") -> 0.01 | F6: =SUM(F7:F38) -> 2234 | G6: =IFERROR(F6/D6,"N/A") -> 0.862 | H6: =SUM(H7:H38) -> 1645 | I6: =IFERROR(H6/D6,"N/A") -> 0.635
A7: Church Elm Lane Medical Practice | B7: F82005 | C7: =SUMIFS(OFFSET(REL_D,,MATCH(C$1,IND,0)-2),REL_D,$D$3,OrgID,$B7) -> 7193 | D7: 73 | E7: =IFERROR(D7/C7,"N/A") -> 0.01 | F7: =SUMIFS(OFFSET(REL_D,,MATCH(F$1,IND,0)-2),REL_D,$D$3,OrgID,$B7) -> 70 | G7: =IFERROR(F7/D7,"N/A") -> 0.959 | H7: =SUMIFS(OFFSET(REL_D,,MATCH(H$1,IND,0)-2),REL_D,$D$3,OrgID,$B7) -> 53 | I7: =IFERROR(H7/D7,"N/A") -> 0.726
A8: Broad Street Medical Centre | B8: Y01719 | C8: 8876 | D8: 96 | E8: 0.011 | F8: 89 | G8: 0.927 | H8: 63 | I8: 0.656
A9: Porters Avenue Doctors Surgery | B9: Y02575 | C9: 21394 | D9: 139 | E9: 0.006 | F9: 122 | G9: 0.878 | H9: 91 | I9: 0.655
A10: First Avenue Surgery | B10: F82003 | C10: 5299 | D10: 57 | E10: 0.011 | F10: 48 | G10: 0.842 | H10: 34 | I10: 0.596
A11: Hedgemans Surgery | B11: F82015 | C11: 5216 | D11: 46 | E11: 0.009 | F11: 42 | G11: 0.913 | H11: 33 | I11: 0.717
A12: St Albans Surgery | B12: F82017 | C12: 8583 | D12: 76 | E12: 0.009 | F12: 63 | G12: 0.829 | H12: 48 | I12: 0.632
A13: Heathway Medical Centre | B13: F82634 | C13: 6348 | D13: 59 | E13: 0.009 | F13: 57 | G13: 0.966 | H13: 44 | I13: 0.746
A14: Dr Alkaisy Surgery | B14: F82678 | C14: 5026 | D14: 124 | E14: 0.025 | F14: 105 | G14: 0.847 | H14: 84 | I14: 0.677
A15: Parkview Medical Practice | B15: F82679 | C15: 5563 | D15: 66 | E15: 0.012 | F15: 60 | G15: 0.909 | H15: 47 | I15: 0.712
A16: Victoria Medical Centre | B16: F82034 | C16: 10620 | D16: 79 | E16: 0.007 | F16: 59 | G16: 0.747 | H16: 42 | I16: 0.532
A17: Aurora Medcare | B17: F82042 | C17: 20577 | D17: 172 | E17: 0.008 | F17: 143 | G17: 0.831 | H17: 96 | I17: 0.558
A18: Abbey Medical centre | B18: F82625 | C18: 7795 | D18: 69 | E18: 0.009 | F18: 60 | G18: 0.87 | H18: 50 | I18: 0.725
A19: Shifa Medical Practice | B19: Y01280 | C19: 2403 | D19: 14 | E19: 0.006 | F19: 9 | G19: 0.643 | H19: 8 | I19: 0.571
A20: Faircross Health Centre | B20: F82027 | C20: 2176 | D20: 32 | E20: 0.015 | F20: 27 | G20: 0.844 | H20: 17 | I20: 0.531
A21: Halbutt Street Surgery | B21: F82001 | C21: 5728 | D21: 47 | E21: 0.008 | F21: 35 | G21: 0.745 | H21: 25 | I21: 0.532
A22: Barking Medical Group Practice | B22: F82018 | C22: 11928 | D22: 142 | E22: 0.012 | F22: 124 | G22: 0.873 | H22: 75 | I22: 0.528
A23: John Smith House | B23: F82040 | C23: =SUMIFS(OFFSET(REL_D,,MATCH(C$1,IND,0)-2),REL_D,$D$3,OrgID,$B23) -> 4339 | D23: 28 | E23: 0.006 | F23: 28 | G23: 1 | H23: 23 | I23: 0.821
A24: The White House | B24: F82612 | C24: 11624 | D24: 125 | E24: 0.011 | F24: 110 | G24: 0.88 | H24: 65 | I24: 0.52
A25: Dr Gupta & Partner | B25: F82647 | C25: 5119 | D25: 41 | E25: 0.008 | F25: 37 | G25: 0.902 | H25: 18 | I25: 0.439
A26: Ripple Road Medical Centre | B26: F82650 | C26: 10203 | D26: 71 | E26: 0.007 | F26: 60 | G26: 0.845 | H26: 51 | I26: 0.718
A27: Highgrove Surgery | B27: F82680 | C27: 11841 | D27: 149 | E27: 0.013 | F27: 126 | G27: 0.846 | H27: 100 | I27: 0.671
A28: Julia Engwell Surgery | B28: F82025 | C28: 5697 | D28: 64 | E28: 0.011 | F28: 58 | G28: 0.906 | H28: 46 | I28: 0.719
A29: Laburnum Health centre | B29: F82051 | C29: 10909 | D29: 148 | E29: 0.014 | F29: 119 | G29: 0.804 | H29: 90 | I29: 0.608
A30: Gables Surgery | B30: F82642 | C30: 6924 | D30: 91 | E30: 0.013 | F30: 69 | G30: 0.758 | H30: 49 | I30: 0.538
A31: Green Lane Surgery | B31: F82661 | C31: 4036 | D31: 30 | E31: 0.007 | F31: 26 | G31: 0.867 | H31: 17 | I31: 0.567
A32: The Surgery | B32: F86040 | C32: 5732 | D32: 59 | E32: 0.01 | F32: 52 | G32: 0.881 | H32: 31 | I32: 0.525
A33: The Oval Practice | B33: Y01795 | C33: 8184 | D33: 56 | E33: 0.007 | F33: 55 | G33: 0.982 | H33: 43 | I33: 0.768
A34: Valence Medical Centre | B34: F82038 | C34: 4963 | D34: 35 | E34: 0.007 | F34: 29 | G34: 0.829 | H34: 22 | I34: 0.629
A35: Marks Gate Medical Practice | B35: F82604 | C35: 5878 | D35: 69 | E35: 0.012 | F35: 60 | G35: 0.87 | H35: 49 | I35: 0.71
A36: Tulasi Medical Centre | B36: F82660 | C36: 20075 | D36: 251 | E36: =IFERROR(D36/C36,"N/A") -> 0.013 | F36: 213 | G36: =IFERROR(F36/D36,"N/A") -> 0.849 | H36: 166 | I36: =IFERROR(H36/D36,"N/A") -> 0.661
A37: Becontree Medical Centre | B37: F82677 | C37: 8557 | D37: 83 | E37: =IFERROR(D37/C37,"N/A") -> 0.01 | F37: 79 | G37: =IFERROR(F37/D37,"N/A") -> 0.952 | H37: 65 | I37: =IFERROR(H37/D37,"N/A") -> 0.783

Sheet Diabetes
C1: 01. Listsize | D1: ='Control Panel'!B57 -> LDP.04: Diabetes Register | E1: =INDEX('Control Panel'!$B$57:$B$106,COLUMN(E1)-COLUMN($D$1)+1) -> %LDP.04: Diabetes Register | F1: ='Control Panel'!B61 -> LDP.04.11: Diabetes and BP in last 12 months | G1: ='Control Panel'!B62 -> %LDP.04.11: Diabetes and BP in last 12 months | H1: ='Control Panel'!B63 -> LDP.04.09: Diabetes BP less than 145/85 (last 12m) | I1: ='Control Panel'!B64 -> %LDP.04.09: Diabetes BP less than 145/85 (last 12m) | J1: ='Control Panel'!B67 -> LDP.04.08: Diabetes Chol less than 5mmol (last 12m) | K1: ='Control Panel'!B68 -> %LDP.04.08: Diabetes Chol less than 5mmol (last 12m) | L1: ='Control Panel'!B69 -> LDP.04.01: Diabetes HbA1c <7.5% OR <59mmol (last 12m) | M1: ='Control Panel'!B70 -> %LDP.04.01: Diabetes HbA1c <7.5% OR <59mmol (last 12m) | N1: ='Control Panel'!B81 -> LDP.04.07: Diabetes Influenza Vaccinations (From August 2018) | O1: ='Control Panel'!B82 -> %LDP.04.07: Diabetes Influenza Vaccinations (From August 2018)
C2: Barking and Dagenham - Practice Clinical Trends (LDP) Report
C3: May 2025 | D3: =VLOOKUP(C3,'Control Panel'!O16:P27,2,FALSE) -> 2025-06-01 | E3: =VLOOKUP(C3,'Control Panel'!O16:Q27,3,FALSE) -> 1
C4: ='Control Panel'!B56 -> Diabetes
A5: Home | C5: =VLOOKUP(C1,'Control Panel'!$B$3:$C$132,2,FALSE) -> List Size | D5: Diabetes register | E5: % List size | F5: BP (last 12m) | G5: % Diabetes Register | H5: BP < 145/85 (last 12m) | I5: % Diabetes Register | J5: Cholesterol < 5mmols (last 12m) | K5: % Diabetes Register | L5: HbA1c < 59 (last 12m) | M5: % Diabetes register | N5: Flu jab (From August 2025) | O5: % Diabetes Register
A6: Practice Name | C6: =SUM(C7:C38) -> 258806 | D6: =SUM(D7:D38) -> 21024 | E6: =IFERROR(D6/C6,"N/A") -> 0.081 | F6: =SUM(F7:F38) -> 18925 | G6: =IFERROR(F6/D6,"N/A") -> 0.9 | H6: =SUM(H7:H38) -> 13621 | I6: =IFERROR(H6/D6,"N/A") -> 0.648 | J6: =SUM(J7:J38) -> 16939 | K6: =IFERROR(J6/D6,"N/A") -> 0.806 | L6: =SUM(L7:L38) -> 10971 | M6: =IFERROR(L6/D6,"N/A") -> 0.522 | N6: =SUM(N7:N38) -> 0 | O6: =IFERROR(N6/D6,"N/A") -> 0
A7: Church Elm Lane Medical Practice | B7: F82005 | C7: =SUMIFS(OFFSET(REL_D,,MATCH(C$1,IND,0)-2),REL_D,$D$3,OrgID,$B7) -> 7193 | D7: 525 | E7: =IFERROR(D7/C7,"N/A") -> 0.073 | F7: =SUMIFS(OFFSET(REL_D,,MATCH(F$1,IND,0)-2),REL_D,$D$3,OrgID,$B7) -> 488 | G7: =IFERROR(F7/$D7,"N/A") -> 0.93 | H7: =SUMIFS(OFFSET(REL_D,,MATCH(H$1,IND,0)-2),REL_D,$D$3,OrgID,$B7) -> 399 | I7: =IFERROR(H7/$D7,"N/A") -> 0.76 | J7: =SUMIFS(OFFSET(REL_D,,MATCH(J$1,IND,0)-2),REL_D,$D$3,OrgID,$B7) -> 419 | K7: =IFERROR(J7/$D7,"N/A") -> 0.798 | L7: =SUMIFS(OFFSET(REL_D,,MATCH(L$1,IND,0)-2),REL_D,$D$3,OrgID,$B7) -> 255 | M7: =IFERROR(L7/$D7,"N/A") -> 0.486 | N7: =SUMIFS(OFFSET(REL_D,,MATCH(N$1,IND,0)-2),REL_D,$D$3,OrgID,$B7) -> 0 | O7: =IFERROR(N7/$D7,"N/A") -> 0
A8: Broad Street Medical Centre | B8: Y01719 | C8: 8876 | D8: 602 | E8: 0.068 | F8: 566 | G8: 0.94 | H8: 379 | I8: 0.63 | J8: 495 | K8: 0.822 | L8: 283 | M8: 0.47 | N8: 0 | O8: 0
A9: Porters Avenue Doctors Surgery | B9: Y02575 | C9: 21394 | D9: 1403 | E9: 0.066 | F9: 1231 | G9: 0.877 | H9: 814 | I9: 0.58 | J9: 1126 | K9: 0.803 | L9: 668 | M9: 0.476 | N9: 0 | O9: 0
A10: First Avenue Surgery | B10: F82003 | C10: 5299 | D10: 433 | E10: 0.082 | F10: 391 | G10: 0.903 | H10: 279 | I10: 0.644 | J10: 375 | K10: 0.866 | L10: 221 | M10: 0.51 | N10: 0 | O10: 0
A11: Hedgemans Surgery | B11: F82015 | C11: 5216 | D11: 448 | E11: 0.086 | F11: 404 | G11: 0.902 | H11: 267 | I11: 0.596 | J11: 378 | K11: 0.844 | L11: 270 | M11: 0.603 | N11: 0 | O11: 0
A12: St Albans Surgery | B12: F82017 | C12: 8583 | D12: 757 | E12: 0.088 | F12: 665 | G12: 0.878 | H12: 527 | I12: 0.696 | J12: 656 | K12: 0.867 | L12: 403 | M12: 0.532 | N12: 0 | O12: 0
A13: Heathway Medical Centre | B13: F82634 | C13: 6348 | D13: 352 | E13: 0.055 | F13: 333 | G13: 0.946 | H13: 241 | I13: 0.685 | J13: 287 | K13: 0.815 | L13: 198 | M13: 0.563 | N13: 0 | O13: 0
A14: Dr Alkaisy Surgery | B14: F82678 | C14: 5026 | D14: 511 | E14: 0.102 | F14: 458 | G14: 0.896 | H14: 283 | I14: 0.554 | J14: 427 | K14: 0.836 | L14: 283 | M14: 0.554 | N14: 0 | O14: 0
A15: Parkview Medical Practice | B15: F82679 | C15: 5563 | D15: 454 | E15: 0.082 | F15: 424 | G15: 0.934 | H15: 280 | I15: 0.617 | J15: 387 | K15: 0.852 | L15: 266 | M15: 0.586 | N15: 0 | O15: 0
A16: Victoria Medical Centre | B16: F82034 | C16: 10620 | D16: 803 | E16: 0.076 | F16: 704 | G16: 0.877 | H16: 440 | I16: 0.548 | J16: 577 | K16: 0.719 | L16: 369 | M16: 0.46 | N16: 0 | O16: 0
A17: Aurora Medcare | B17: F82042 | C17: 20577 | D17: 1496 | E17: 0.073 | F17: 1379 | G17: 0.922 | H17: 988 | I17: 0.66 | J17: 1235 | K17: 0.826 | L17: 884 | M17: 0.591 | N17: 0 | O17: 0
A18: Abbey Medical centre | B18: F82625 | C18: 7795 | D18: 751 | E18: 0.096 | F18: 684 | G18: 0.911 | H18: 516 | I18: 0.687 | J18: 624 | K18: 0.831 | L18: 381 | M18: 0.507 | N18: 0 | O18: 0
A19: Shifa Medical Practice | B19: Y01280 | C19: 2403 | D19: 149 | E19: 0.062 | F19: 112 | G19: 0.752 | H19: 104 | I19: 0.698 | J19: 117 | K19: 0.785 | L19: 59 | M19: 0.396 | N19: 0 | O19: 0
A20: Faircross Health Centre | B20: F82027 | C20: 2176 | D20: 238 | E20: 0.109 | F20: 216 | G20: 0.908 | H20: 168 | I20: 0.706 | J20: 192 | K20: 0.807 | L20: 120 | M20: 0.504 | N20: 0 | O20: 0
A21: Halbutt Street Surgery | B21: F82001 | C21: 5728 | D21: 450 | E21: 0.079 | F21: 396 | G21: 0.88 | H21: 293 | I21: 0.651 | J21: 356 | K21: 0.791 | L21: 202 | M21: 0.449 | N21: 0 | O21: 0
A22: Barking Medical Group Practice | B22: F82018 | C22: 11928 | D22: 1154 | E22: 0.097 | F22: 1062 | G22: 0.92 | H22: 836 | I22: 0.724 | J22: 974 | K22: 0.844 | L22: 527 | M22: 0.457 | N22: 0 | O22: 0
A23: John Smith House | B23: F82040 | C23: =SUMIFS(OFFSET(REL_D,,MATCH(C$1,IND,0)-2),REL_D,$D$3,OrgID,$B23) -> 4339 | D23: 254 | E23: 0.059 | F23: 231 | G23: 0.909 | H23: 163 | I23: 0.642 | J23: 212 | K23: 0.835 | L23: 131 | M23: 0.516 | N23: 0 | O23: 0
A24: The White House | B24: F82612 | C24: 11624 | D24: 1157 | E24: 0.1 | F24: 1006 | G24: 0.869 | H24: 699 | I24: 0.604 | J24: 907 | K24: 0.784 | L24: 547 | M24: 0.473 | N24: 0 | O24: 0
A25: Dr Gupta & Partner | B25: F82647 | C25: 5119 | D25: 528 | E25: 0.103 | F25: 458 | G25: 0.867 | H25: 353 | I25: 0.669 | J25: 424 | K25: 0.803 | L25: 252 | M25: 0.477 | N25: 0 | O25: 0
A26: Ripple Road Medical Centre | B26: F82650 | C26: 10203 | D26: 895 | E26: 0.088 | F26: 804 | G26: 0.898 | H26: 628 | I26: 0.702 | J26: 743 | K26: 0.83 | L26: 458 | M26: 0.512 | N26: 0 | O26: 0
A27: Highgrove Surgery | B27: F82680 | C27: 11841 | D27: 795 | E27: 0.067 | F27: 705 | G27: 0.887 | H27: 506 | I27: 0.636 | J27: 541 | K27: 0.681 | L27: 517 | M27: 0.65 | N27: 0 | O27: 0
A28: Julia Engwell Surgery | B28: F82025 | C28: 5697 | D28: 409 | E28: 0.072 | F28: 362 | G28: 0.885 | H28: 274 | I28: 0.67 | J28: 309 | K28: 0.756 | L28: 183 | M28: 0.447 | N28: 0 | O28: 0
A29: Laburnum Health centre | B29: F82051 | C29: 10909 | D29: 940 | E29: 0.086 | F29: 808 | G29: 0.86 | H29: 596 | I29: 0.634 | J29: 658 | K29: 0.7 | L29: 471 | M29: 0.501 | N29: 0 | O29: 0
A30: Gables Surgery | B30: F82642 | C30: 6924 | D30: 517 | E30: 0.075 | F30: 463 | G30: 0.896 | H30: 330 | I30: 0.638 | J30: 371 | K30: 0.718 | L30: 243 | M30: 0.47 | N30: 0 | O30: 0
A31: Green Lane Surgery | B31: F82661 | C31: 4036 | D31: 287 | E31: 0.071 | F31: 244 | G31: 0.85 | H31: 165 | I31: 0.575 | J31: 229 | K31: 0.798 | L31: 174 | M31: 0.606 | N31: 0 | O31: 0
A32: The Surgery | B32: F86040 | C32: 5732 | D32: 488 | E32: 0.085 | F32: 447 | G32: 0.916 | H32: 364 | I32: 0.746 | J32: 413 | K32: 0.846 | L32: 245 | M32: 0.502 | N32: 0 | O32: 0
A33: The Oval Practice | B33: Y01795 | C33: 8184 | D33: 620 | E33: 0.076 | F33: 588 | G33: 0.948 | H33: 400 | I33: 0.645 | J33: 545 | K33: 0.879 | L33: 370 | M33: 0.597 | N33: 0 | O33: 0
A34: Valence Medical Centre | B34: F82038 | C34: 4963 | D34: 436 | E34: 0.088 | F34: 395 | G34: 0.906 | H34: 267 | I34: 0.612 | J34: 354 | K34: 0.812 | L34: 210 | M34: 0.482 | N34: 0 | O34: 0
A35: Marks Gate Medical Practice | B35: F82604 | C35: 5878 | D35: 447 | E35: 0.076 | F35: 397 | G35: 0.888 | H35: 316 | I35: 0.707 | J35: 356 | K35: 0.796 | L35: 213 | M35: 0.477 | N35: 0 | O35: 0
A36: Tulasi Medical Centre | B36: F82660 | C36: 20075 | D36: 2045 | E36: =IFERROR(D36/C36,"N/A") -> 0.102 | F36: 1858 | G36: =IFERROR(F36/$D36,"N/A") -> 0.909 | H36: 1253 | I36: =IFERROR(H36/$D36,"N/A") -> 0.613 | J36: 1667 | K36: =IFERROR(J36/$D36,"N/A") -> 0.815 | L36: 1153 | M36: =IFERROR(L36/$D36,"N/A") -> 0.564 | N36: 0 | O36: =IFERROR(N36/$D36,"N/A") -> 0
A37: Becontree Medical Centre | B37: F82677 | C37: 8557 | D37: 680 | E37: =IFERROR(D37/C37,"N/A") -> 0.079 | F37: 646 | G37: =IFERROR(F37/$D37,"N/A") -> 0.95 | H37: 493 | I37: =IFERROR(H37/$D37,"N/A") -> 0.725 | J37: 585 | K37: =IFERROR(J37/$D37,"N/A") -> 0.86 | L37: 415 | M37: =IFERROR(L37/$D37,"N/A") -> 0.61 | N37: 0 | O37: =IFERROR(N37/$D37,"N/A") -> 0

Sheet Mental Health
C1: 01. Listsize | D1: =INDEX('Control Panel'!$B$108:$B$123,COLUMN(D1)-COLUMN($D$1)+1) -> CSPMH.01 SMI Register | E1: =INDEX('Control Panel'!$B$108:$B$123,COLUMN(E1)-COLUMN($D$1)+1) -> %CSPMH.01 SMI Register | F1: =INDEX('Control Panel'!$B$108:$B$123,COLUMN(F1)-COLUMN($D$1)+1) -> CSPMH.01.02 Smoking Status Recorded (12m) | G1: =INDEX('Control Panel'!$B$108:$B$123,COLUMN(G1)-COLUMN($D$1)+1) -> %CSPMH.01.02 Smoking Status Recorded (12m) | H1: =INDEX('Control Panel'!$B$108:$B$123,COLUMN(H1)-COLUMN($D$1)+1) -> CSPMH.01.02.01 Current Smoker (12m) | I1: =INDEX('Control Panel'!$B$108:$B$123,COLUMN(I1)-COLUMN($D$1)+1) -> %CSPMH.01.02.01 Current Smoker (12m) | J1: =INDEX('Control Panel'!$B$108:$B$123,COLUMN(J1)-COLUMN($D$1)+1) -> CSPMH 01.02.01.01 Ref to clinic 12m | K1: =INDEX('Control Panel'!$B$108:$B$123,COLUMN(K1)-COLUMN($D$1)+1) -> %CSPMH 01.02.01.01 Ref to clinic 12m | L1: =INDEX('Control Panel'!$B$108:$B$123,COLUMN(L1)-COLUMN($D$1)+1) -> CSPMH.01.02.02 Ex-smoker Recorded (latest 12m) | M1: =INDEX('Control Panel'!$B$108:$B$123,COLUMN(M1)-COLUMN($D$1)+1) -> %CSPMH.01.02.02 Ex-smoker Recorded (latest 12m) | N1: =INDEX('Control Panel'!$B$108:$B$123,COLUMN(N1)-COLUMN($D$1)+1) -> CSPMH. 01.03 QRisk Recorded (12m) | O1: =INDEX('Control Panel'!$B$108:$B$123,COLUMN(O1)-COLUMN($D$1)+1) -> %CSPMH. 01.03 QRisk Recorded (12m) | P1: =INDEX('Control Panel'!$B$108:$B$123,COLUMN(P1)-COLUMN($D$1)+1) -> CSPMH. 01.03.02 Qrisk>=20 (12m) | Q1: =INDEX('Control Panel'!$B$108:$B$123,COLUMN(Q1)-COLUMN($D$1)+1) -> %CSPMH. 01.03.02 Qrisk>=20 (12m) | R1: =INDEX('Control Panel'!$B$108:$B$123,COLUMN(R1)-COLUMN($D$1)+1) -> CSPMH. 01.03.01 BP recorded on same day as QRisk (12m) | S1: =INDEX('Control Panel'!$B$108:$B$123,COLUMN(S1)-COLUMN($D$1)+1) -> %CSPMH. 01.03.01 BP recorded on same day as QRisk (12m)
C2: Barking and Dagenham - Practice Clinical Trends (LDP) Report
B3: =VLOOKUP(C3,'Control Panel'!O16:P27,2,FALSE) -> 2025-06-01 | C3: May 2025 | D3: =VLOOKUP(C3,'Control Panel'!O16:P27,2,FALSE) -> 2025-06-01 | E3: =VLOOKUP(C3,'Control Panel'!O16:Q27,3,FALSE) -> 1
B4: 2019-07-01 | C4: ='Control Panel'!B107 -> Mental Health
A5: Home | B5: 2019-10-01 | C5: =VLOOKUP(C1,'Control Panel'!$B$3:$C$132,2,FALSE) -> List Size | D5: =VLOOKUP(D1,'Control Panel'!$B$3:$D$132,3,FALSE) -> Mental Health register | E5: =VLOOKUP(E1,'Control Panel'!$B$3:$D$132,3,FALSE) -> % list size | F5: =VLOOKUP(F1,'Control Panel'!$B$3:$D$132,3,FALSE) -> No. of Mental Health Patients with smoking status recorded (last 12m) or never smoked | G5: =VLOOKUP(G1,'Control Panel'!$B$3:$D$132,3,FALSE) -> % Mental Health Register | H5: =VLOOKUP(H1,'Control Panel'!$B$3:$D$132,3,FALSE) -> No. of Mental Health patients recorded as a Smoker | I5: =VLOOKUP(I1,'Control Panel'!$B$3:$D$132,3,FALSE) -> % Mental Health Register | J5: =VLOOKUP(J1,'Control Panel'!$B$3:$D$132,3,FALSE) -> No. of Mental Health Patients who are current smokers & referred to the Stop Smoking Clinic | K5: =VLOOKUP(K1,'Control Panel'!$B$3:$D$132,3,FALSE) -> % Mental Health Register | L5: =VLOOKUP(L1,'Control Panel'!$B$3:$D$132,3,FALSE) -> No. Of Mental Health Patients who are recorded as quitters | M5: =VLOOKUP(M1,'Control Panel'!$B$3:$D$132,3,FALSE) -> % Mental Health Register | N5: =VLOOKUP(N1,'Control Panel'!$B$3:$D$132,3,FALSE) -> Patients with Mental Health with QRISK recorded in the last 12m | O5: =VLOOKUP(O1,'Control Panel'!$B$3:$D$132,3,FALSE) -> % Mental Health Register | P5: =VLOOKUP(P1,'Control Panel'!$B$3:$D$132,3,FALSE) -> Patients with Mental Health with QRISK 20% or higher in the last 12m | Q5: =VLOOKUP(Q1,'Control Panel'!$B$3:$D$132,3,FALSE) -> % patients with QRISK recorded | R5: =VLOOKUP(R1,'Control Panel'!$B$3:$D$132,3,FALSE) -> Patients with Mental Health with BP & QRisk on the same day in the last 12m | S5: =VLOOKUP(S1,'Control Panel'!$B$3:$D$132,3,FALSE) -> % Mental Health Register
A6: Practice Name | C6: =SUM(C7:C38) -> 258806 | D6: =SUM(D7:D38) -> 2368 | E6: =IFERROR(D6/C6,"N/A") -> 0.009 | F6: =SUM(F7:F38) -> 2194 | G6: =IFERROR(F6/D6,"N/A") -> 0.927 | H6: =SUM(H7:H38) -> 425 | I6: =IFERROR(H6/D6,"N/A") -> 0.179 | J6: =SUM(J7:J38) -> 54 | K6: =IFERROR(J6/D6,"N/A") -> 0.023 | L6: =SUM(L7:L38) -> 375 | M6: =IFERROR(L6/D6,"N/A") -> 0.158 | N6: =SUM(N7:N38) -> 728 | O6: =IFERROR(N6/D6,"N/A") -> 0.307 | P6: =SUM(P7:P38) -> 121 | Q6: =IFERROR(P6/N6,"N/A") -> 0.166 | R6: =SUM(R7:R38) -> 239 | S6: =IFERROR(R6/D6,"N/A") -> 0.101
A7: Church Elm Lane Medical Practice | B7: F82005 | C7: =SUMIFS(OFFSET(REL_D,,MATCH(C$1,IND,0)-2),REL_D,$D$3,OrgID,$B7) -> 7193 | D7: 58 | E7: =IFERROR(D7/C7,"N/A") -> 0.008 | F7: =SUMIFS(OFFSET(REL_D,,MATCH(F$1,IND,0)-2),REL_D,$D$3,OrgID,$B7) -> 57 | G7: =IFERROR(F7/$D7,"N/A") -> 0.983 | H7: =SUMIFS(OFFSET(REL_D,,MATCH(H$1,IND,0)-2),REL_D,$D$3,OrgID,$B7) -> 14 | I7: =IFERROR(H7/$D7,"N/A") -> 0.241 | J7: =SUMIFS(OFFSET(REL_D,,MATCH(J$1,IND,0)-2),REL_D,$D$3,OrgID,$B7) -> 0 | K7: =IFERROR(J7/$D7,"N/A") -> 0 | L7: =SUMIFS(OFFSET(REL_D,,MATCH(L$1,IND,0)-2),REL_D,$D$3,OrgID,$B7) -> 12 | M7: =IFERROR(L7/$D7,"N/A") -> 0.207 | N7: =SUMIFS(OFFSET(REL_D,,MATCH(N$1,IND,0)-2),REL_D,$D$3,OrgID,$B7) -> 36 | O7: =IFERROR(N7/$D7,"N/A") -> 0.621 | P7: =SUMIFS(OFFSET(REL_D,,MATCH(P$1,IND,0)-2),REL_D,$D$3,OrgID,$B7) -> 4 | Q7: =IFERROR(P7/$N7,"N/A") -> 0.111 | R7: =SUMIFS(OFFSET(REL_D,,MATCH(R$1,IND,0)-2),REL_D,$D$3,OrgID,$B7) -> 14 | S7: =IFERROR(R7/$D7,"N/A") -> 0.241
A8: Broad Street Medical Centre | B8: Y01719 | C8: 8876 | D8: 76 | E8: 0.009 | F8: 73 | G8: 0.961 | H8: 15 | I8: 0.197 | J8: 3 | K8: 0.039 | L8: 8 | M8: 0.105 | N8: 20 | O8: 0.263 | P8: 3 | Q8: 0.15 | R8: 13 | S8: 0.171
A9: Porters Avenue Doctors Surgery | B9: Y02575 | C9: 21394 | D9: 138 | E9: 0.006 | F9: 126 | G9: 0.913 | H9: 17 | I9: 0.123 | J9: 12 | K9: 0.087 | L9: 24 | M9: 0.174 | N9: 36 | O9: 0.261 | P9: 8 | Q9: 0.222 | R9: 16 | S9: 0.116
A10: First Avenue Surgery | B10: F82003 | C10: 5299 | D10: 53 | E10: 0.01 | F10: 50 | G10: 0.943 | H10: 12 | I10: 0.226 | J10: 3 | K10: 0.057 | L10: 7 | M10: 0.132 | N10: 16 | O10: 0.302 | P10: 3 | Q10: 0.188 | R10: 7 | S10: 0.132
A11: Hedgemans Surgery | B11: F82015 | C11: 5216 | D11: 65 | E11: 0.012 | F11: 58 | G11: 0.892 | H11: 8 | I11: 0.123 | J11: 0 | K11: 0 | L11: 15 | M11: 0.231 | N11: 27 | O11: 0.415 | P11: 5 | Q11: 0.185 | R11: 15 | S11: 0.231
A12: St Albans Surgery | B12: F82017 | C12: 8583 | D12: 72 | E12: 0.008 | F12: 70 | G12: 0.972 | H12: 22 | I12: 0.306 | J12: 3 | K12: 0.042 | L12: 8 | M12: 0.111 | N12: 7 | O12: 0.097 | P12: 1 | Q12: 0.143 | R12: 4 | S12: 0.056
A13: Heathway Medical Centre | B13: F82634 | C13: 6348 | D13: 36 | E13: 0.006 | F13: 35 | G13: 0.972 | H13: 1 | I13: 0.028 | J13: 0 | K13: 0 | L13: 7 | M13: 0.194 | N13: 6 | O13: 0.167 | P13: 0 | Q13: 0 | R13: 3 | S13: 0.083
A14: Dr Alkaisy Surgery | B14: F82678 | C14: 5026 | D14: 55 | E14: 0.011 | F14: 54 | G14: 0.982 | H14: 8 | I14: 0.145 | J14: 0 | K14: 0 | L14: 14 | M14: 0.255 | N14: 6 | O14: 0.109 | P14: 3 | Q14: 0.5 | R14: 6 | S14: 0.109
A15: Parkview Medical Practice | B15: F82679 | C15: 5563 | D15: 56 | E15: 0.01 | F15: 53 | G15: 0.946 | H15: 12 | I15: 0.214 | J15: 0 | K15: 0 | L15: 12 | M15: 0.214 | N15: 18 | O15: 0.321 | P15: 2 | Q15: 0.111 | R15: 10 | S15: 0.179
A16: Victoria Medical Centre | B16: F82034 | C16: 10620 | D16: 81 | E16: 0.008 | F16: 72 | G16: 0.889 | H16: 8 | I16: 0.099 | J16: 0 | K16: 0 | L16: 12 | M16: 0.148 | N16: 22 | O16: 0.272 | P16: 5 | Q16: 0.227 | R16: 12 | S16: 0.148
A17: Aurora Medcare | B17: F82042 | C17: 20577 | D17: 176 | E17: 0.009 | F17: 161 | G17: 0.915 | H17: 23 | I17: 0.131 | J17: 1 | K17: 0.006 | L17: 26 | M17: 0.148 | N17: 56 | O17: 0.318 | P17: 4 | Q17: 0.071 | R17: 15 | S17: 0.085
A18: Abbey Medical centre | B18: F82625 | C18: 7795 | D18: 88 | E18: 0.011 | F18: 84 | G18: 0.955 | H18: 16 | I18: 0.182 | J18: 0 | K18: 0 | L18: 13 | M18: 0.148 | N18: 18 | O18: 0.205 | P18: 2 | Q18: =IFERROR(P18/$N18,"0.0%") -> 0.111 | R18: 5 | S18: 0.057
A19: Shifa Medical Practice | B19: Y01280 | C19: 2403 | D19: 19 | E19: 0.008 | F19: 18 | G19: 0.947 | H19: 4 | I19: 0.211 | J19: 0 | K19: 0 | L19: 1 | M19: 0.053 | N19: 1 | O19: 0.053 | P19: 0 | Q19: =IFERROR(P19/$N19,"0.0%") -> 0 | R19: 1 | S19: 0.053
A20: Faircross Health Centre | B20: F82027 | C20: 2176 | D20: 16 | E20: 0.007 | F20: 16 | G20: 1 | H20: 4 | I20: 0.25 | J20: 0 | K20: 0 | L20: 3 | M20: 0.188 | N20: 5 | O20: 0.313 | P20: 3 | Q20: 0.6 | R20: 1 | S20: 0.063
A21: Halbutt Street Surgery | B21: F82001 | C21: 5728 | D21: 60 | E21: 0.01 | F21: 55 | G21: 0.917 | H21: 19 | I21: 0.317 | J21: 0 | K21: 0 | L21: 10 | M21: 0.167 | N21: 17 | O21: 0.283 | P21: 1 | Q21: 0.059 | R21: 3 | S21: 0.05
A22: Barking Medical Group Practice | B22: F82018 | C22: 11928 | D22: 102 | E22: 0.009 | F22: 98 | G22: 0.961 | H22: 23 | I22: 0.225 | J22: 2 | K22: 0.02 | L22: 13 | M22: 0.127 | N22: 10 | O22: 0.098 | P22: 1 | Q22: 0.1 | R22: 1 | S22: 0.01
A23: John Smith House | B23: F82040 | C23: =SUMIFS(OFFSET(REL_D,,MATCH(C$1,IND,0)-2),REL_D,$D$3,OrgID,$B23) -> 4339 | D23: 42 | E23: 0.01 | F23: 39 | G23: 0.929 | H23: 7 | I23: 0.167 | J23: 0 | K23: 0 | L23: 3 | M23: 0.071 | N23: 16 | O23: 0.381 | P23: 2 | Q23: 0.125 | R23: 7 | S23: 0.167
A24: The White House | B24: F82612 | C24: 11624 | D24: 109 | E24: 0.009 | F24: 105 | G24: 0.963 | H24: 11 | I24: 0.101 | J24: 0 | K24: 0 | L24: 13 | M24: 0.119 | N24: 29 | O24: 0.266 | P24: 5 | Q24: 0.172 | R24: 10 | S24: 0.092
A25: Dr Gupta & Partner | B25: F82647 | C25: 5119 | D25: 45 | E25: 0.009 | F25: 44 | G25: 0.978 | H25: 4 | I25: 0.089 | J25: 1 | K25: 0.022 | L25: 1 | M25: 0.022 | N25: 16 | O25: 0.356 | P25: 1 | Q25: 0.063 | R25: 6 | S25: 0.133
A26: Ripple Road Medical Centre | B26: F82650 | C26: 10203 | D26: 74 | E26: 0.007 | F26: 70 | G26: 0.946 | H26: 10 | I26: 0.135 | J26: 0 | K26: 0 | L26: 7 | M26: 0.095 | N26: 22 | O26: 0.297 | P26: 1 | Q26: 0.045 | R26: 6 | S26: 0.081
A27: Highgrove Surgery | B27: F82680 | C27: 11841 | D27: 146 | E27: 0.012 | F27: 122 | G27: 0.836 | H27: 49 | I27: 0.336 | J27: 10 | K27: 0.068 | L27: 34 | M27: 0.233 | N27: 68 | O27: 0.466 | P27: 12 | Q27: 0.176 | R27: 5 | S27: 0.034
A28: Julia Engwell Surgery | B28: F82025 | C28: 5697 | D28: 32 | E28: 0.006 | F28: 31 | G28: 0.969 | H28: 2 | I28: 0.063 | J28: 0 | K28: 0 | L28: 8 | M28: 0.25 | N28: 13 | O28: 0.406 | P28: 4 | Q28: 0.308 | R28: 8 | S28: 0.25
A29: Laburnum Health centre | B29: F82051 | C29: 10909 | D29: 148 | E29: 0.014 | F29: 122 | G29: 0.824 | H29: 21 | I29: 0.142 | J29: 2 | K29: 0.014 | L29: 24 | M29: 0.162 | N29: 28 | O29: 0.189 | P29: 0 | Q29: 0 | R29: 4 | S29: 0.027
A30: Gables Surgery | B30: F82642 | C30: 6924 | D30: 73 | E30: 0.011 | F30: 71 | G30: 0.973 | H30: 17 | I30: 0.233 | J30: 4 | K30: 0.055 | L30: 9 | M30: 0.123 | N30: 15 | O30: 0.205 | P30: 5 | Q30: 0.333 | R30: 5 | S30: 0.068
A31: Green Lane Surgery | B31: F82661 | C31: 4036 | D31: 25 | E31: 0.006 | F31: 25 | G31: 1 | H31: 0 | I31: 0 | J31: 0 | K31: 0 | L31: 1 | M31: 0.04 | N31: 8 | O31: 0.32 | P31: 1 | Q31: 0.125 | R31: 6 | S31: 0.24
A32: The Surgery | B32: F86040 | C32: 5732 | D32: 48 | E32: 0.008 | F32: 48 | G32: 1 | H32: 7 | I32: 0.146 | J32: 2 | K32: 0.042 | L32: 6 | M32: 0.125 | N32: 7 | O32: 0.146 | P32: 1 | Q32: 0.143 | R32: 4 | S32: 0.083
A33: The Oval Practice | B33: Y01795 | C33: 8184 | D33: 51 | E33: 0.006 | F33: 50 | G33: 0.98 | H33: 8 | I33: 0.157 | J33: 0 | K33: 0 | L33: 9 | M33: 0.176 | N33: 14 | O33: 0.275 | P33: 4 | Q33: 0.286 | R33: 8 | S33: 0.157
A34: Valence Medical Centre | B34: F82038 | C34: 4963 | D34: 37 | E34: 0.007 | F34: 36 | G34: 0.973 | H34: 8 | I34: 0.216 | J34: 2 | K34: 0.054 | L34: 3 | M34: 0.081 | N34: 5 | O34: 0.135 | P34: 1 | Q34: 0.2 | R34: 1 | S34: 0.027
A35: Marks Gate Medical Practice | B35: F82604 | C35: 5878 | D35: 48 | E35: =IFERROR(D35/C35,"N/A") -> 0.008 | F35: 47 | G35: =IFERROR(F35/$D35,"N/A") -> 0.979 | H35: 11 | I35: =IFERROR(H35/$D35,"N/A") -> 0.229 | J35: 1 | K35: =IFERROR(J35/$D35,"N/A") -> 0.021 | L35: 13 | M35: =IFERROR(L35/$D35,"N/A") -> 0.271 | N35: 26 | O35: =IFERROR(N35/$D35,"N/A") -> 0.542 | P35: 4 | Q35: 0.154 | R35: 9 | S35: =IFERROR(R35/$D35,"N/A") -> 0.188
A36: Tulasi Medical Centre | B36: F82660 | C36: 20075 | D36: 271 | E36: =IFERROR(D36/C36,"N/A") -> 0.013 | F36: 239 | G36: =IFERROR(F36/$D36,"N/A") -> 0.882 | H36: 50 | I36: =IFERROR(H36/$D36,"N/A") -> 0.185 | J36: 8 | K36: =IFERROR(J36/$D36,"N/A") -> 0.03 | L36: 43 | M36: =IFERROR(L36/$D36,"N/A") -> 0.159 | N36: 125 | O36: =IFERROR(N36/$D36,"N/A") -> 0.461 | P36: 35 | Q36: =IFERROR(P36/$N36,"N/A") -> 0.28 | R36: 22 | S36: =IFERROR(R36/$D36,"N/A") -> 0.081
A37: Becontree Medical Centre | B37: F82677 | C37: 8557 | D37: 68 | E37: =IFERROR(D37/C37,"N/A") -> 0.008 | F37: 65 | G37: =IFERROR(F37/$D37,"N/A") -> 0.956 | H37: 14 | I37: =IFERROR(H37/$D37,"N/A") -> 0.206 | J37: 0 | K37: =IFERROR(J37/$D37,"N/A") -> 0 | L37: 16 | M37: =IFERROR(L37/$D37,"N/A") -> 0.235 | N37: 35 | O37: =IFERROR(N37/$D37,"N/A") -> 0.515 | P37: 0 | Q37: =IFERROR(P37/$N37,"N/A") -> 0 | R37: 12 | S37: =IFERROR(R37/$D37,"N/A") -> 0.176

Sheet CKD
C1: 01. Listsize | D1: =INDEX('Control Panel'!$B$125:$B$136,COLUMN(D1)-COLUMN($D$1)+1) -> LDP.08 CKD Register | E1: =INDEX('Control Panel'!$B$125:$B$136,COLUMN(E1)-COLUMN($D$1)+1) -> %LDP.08 CKD Register | F1: =INDEX('Control Panel'!$B$125:$B$136,COLUMN(F1)-COLUMN($D$1)+1) -> LDP.08.03 CKD and BP Recorded (last 12 m) | G1: =INDEX('Control Panel'!$B$125:$B$136,COLUMN(G1)-COLUMN($D$1)+1) -> %LDP.08.03 CKD and BP Recorded (last 12 m) | H1: =INDEX('Control Panel'!$B$125:$B$136,COLUMN(H1)-COLUMN($D$1)+1) -> LDP.08.01 CKD and BP less than 140/90 (last 12 m) | I1: =INDEX('Control Panel'!$B$125:$B$136,COLUMN(I1)-COLUMN($D$1)+1) -> %LDP.08.01 CKD and BP less than 140/90 (last 12 m) | J1: =INDEX('Control Panel'!$B$125:$B$136,COLUMN(J1)-COLUMN($D$1)+1) -> LDP.08.02 CKD Diagnosed (Last 6m) | K1: =INDEX('Control Panel'!$B$125:$B$136,COLUMN(K1)-COLUMN($D$1)+1) -> %LDP.08.02 CKD Diagnosed (Last 6m)
C2: Barking and Dagenham - Practice Clinical Trends (LDP) Report
B3: =VLOOKUP(C3,'Control Panel'!O16:P27,2,FALSE) -> 2025-06-01 | C3: May 2025 | D3: =VLOOKUP(C3,'Control Panel'!O16:P27,2,FALSE) -> 2025-06-01 | E3: =VLOOKUP(C3,'Control Panel'!O16:Q27,3,FALSE) -> 1
B4: 2019-07-01 | C4: ='Control Panel'!B124 -> CKD
A5: Home | B5: 2019-10-01 | C5: =VLOOKUP(C1,'Control Panel'!$B$3:$C$132,2,FALSE) -> List Size | D5: =VLOOKUP(D1,'Control Panel'!$B$3:$D$132,3,FALSE) -> No. of patients on CKD register | E5: =VLOOKUP(E1,'Control Panel'!$B$3:$D$132,3,FALSE) -> % List Size | F5: =VLOOKUP(F1,'Control Panel'!$B$3:$D$132,3,FALSE) -> BP Recorded (last 12m) | G5: =VLOOKUP(G1,'Control Panel'!$B$3:$D$132,3,FALSE) -> % CKD register | H5: =VLOOKUP(H1,'Control Panel'!$B$3:$D$132,3,FALSE) -> BP < 140/90 | I5: =VLOOKUP(I1,'Control Panel'!$B$3:$D$132,3,FALSE) -> % CKD register | J5: =VLOOKUP(J1,'Control Panel'!$B$3:$D$132,3,FALSE) -> No of patients with new diagnosis of CKD (last 6m) | K5: =VLOOKUP(K1,'Control Panel'!$B$3:$D$132,3,FALSE) -> % CKD register
A6: Practice Name | C6: =SUM(C7:C38) -> 258806 | D6: =SUM(D7:D38) -> 6450 | E6: =IFERROR(D6/C6,"N/A") -> 0.025 | F6: =SUM(F7:F38) -> 5472 | G6: =IFERROR(F6/D6,"N/A") -> 0.848 | H6: =SUM(H7:H38) -> 3875 | I6: =IFERROR(H6/D6,"N/A") -> 0.601 | J6: =SUM(J7:J38) -> 731 | K6: =IFERROR(J6/D6,"N/A") -> 0.113
A7: Church Elm Lane Medical Practice | B7: F82005 | C7: =SUMIFS(OFFSET(REL_D,,MATCH(C$1,IND,0)-2),REL_D,$D$3,OrgID,$B7) -> 7193 | D7: 174 | E7: =IFERROR(D7/C7,"N/A") -> 0.024 | F7: =SUMIFS(OFFSET(REL_D,,MATCH(F$1,IND,0)-2),REL_D,$D$3,OrgID,$B7) -> 161 | G7: =IFERROR(F7/$D7,"N/A") -> 0.925 | H7: =SUMIFS(OFFSET(REL_D,,MATCH(H$1,IND,0)-2),REL_D,$D$3,OrgID,$B7) -> 121 | I7: =IFERROR(H7/$D7,"N/A") -> 0.695 | J7: =SUMIFS(OFFSET(REL_D,,MATCH(J$1,IND,0)-2),REL_D,$D$3,OrgID,$B7) -> 18 | K7: =IFERROR(J7/$D7,"N/A") -> 0.103
A8: Broad Street Medical Centre | B8: Y01719 | C8: 8876 | D8: 166 | E8: 0.019 | F8: 150 | G8: 0.904 | H8: 104 | I8: 0.627 | J8: 28 | K8: 0.169
A9: Porters Avenue Doctors Surgery | B9: Y02575 | C9: 21394 | D9: 377 | E9: 0.018 | F9: 302 | G9: 0.801 | H9: 240 | I9: 0.637 | J9: 51 | K9: 0.135
A10: First Avenue Surgery | B10: F82003 | C10: 5299 | D10: 45 | E10: 0.008 | F10: 40 | G10: 0.889 | H10: 25 | I10: 0.556 | J10: 9 | K10: 0.2
A11: Hedgemans Surgery | B11: F82015 | C11: 5216 | D11: 65 | E11: 0.012 | F11: 58 | G11: 0.892 | H11: 45 | I11: 0.692 | J11: 5 | K11: 0.077
A12: St Albans Surgery | B12: F82017 | C12: 8583 | D12: 274 | E12: 0.032 | F12: 217 | G12: 0.792 | H12: 161 | I12: 0.588 | J12: 8 | K12: 0.029
A13: Heathway Medical Centre | B13: F82634 | C13: 6348 | D13: 122 | E13: 0.019 | F13: 109 | G13: 0.893 | H13: 73 | I13: 0.598 | J13: 7 | K13: 0.057
A14: Dr Alkaisy Surgery | B14: F82678 | C14: 5026 | D14: 201 | E14: 0.04 | F14: 171 | G14: 0.851 | H14: 130 | I14: 0.647 | J14: 2 | K14: 0.01
A15: Parkview Medical Practice | B15: F82679 | C15: 5563 | D15: 137 | E15: 0.025 | F15: 124 | G15: 0.905 | H15: 90 | I15: 0.657 | J15: 45 | K15: 0.328
A16: Victoria Medical Centre | B16: F82034 | C16: 10620 | D16: 237 | E16: 0.022 | F16: 175 | G16: 0.738 | H16: 115 | I16: 0.485 | J16: 48 | K16: 0.203
A17: Aurora Medcare | B17: F82042 | C17: 20577 | D17: 380 | E17: 0.018 | F17: 332 | G17: 0.874 | H17: 223 | I17: 0.587 | J17: 106 | K17: 0.279
A18: Abbey Medical centre | B18: F82625 | C18: 7795 | D18: 194 | E18: 0.025 | F18: 166 | G18: 0.856 | H18: 114 | I18: 0.588 | J18: 14 | K18: 0.072
A19: Shifa Medical Practice | B19: Y01280 | C19: 2403 | D19: 46 | E19: 0.019 | F19: 30 | G19: 0.652 | H19: 29 | I19: 0.63 | J19: 0 | K19: 0
A20: Faircross Health Centre | B20: F82027 | C20: 2176 | D20: 129 | E20: 0.059 | F20: 108 | G20: 0.837 | H20: 82 | I20: 0.636 | J20: 11 | K20: 0.085
A21: Halbutt Street Surgery | B21: F82001 | C21: 5728 | D21: 169 | E21: 0.03 | F21: 143 | G21: 0.846 | H21: 98 | I21: 0.58 | J21: 26 | K21: 0.154
A22: Barking Medical Group Practice | B22: F82018 | C22: 11928 | D22: 302 | E22: 0.025 | F22: 256 | G22: 0.848 | H22: 165 | I22: 0.546 | J22: 6 | K22: 0.02
A23: John Smith House | B23: F82040 | C23: =SUMIFS(OFFSET(REL_D,,MATCH(C$1,IND,0)-2),REL_D,$D$3,OrgID,$B23) -> 4339 | D23: 101 | E23: 0.023 | F23: 89 | G23: 0.881 | H23: 65 | I23: 0.644 | J23: 7 | K23: 0.069
A24: The White House | B24: F82612 | C24: 11624 | D24: 217 | E24: 0.019 | F24: 193 | G24: 0.889 | H24: 121 | I24: 0.558 | J24: 29 | K24: 0.134
A25: Dr Gupta & Partner | B25: F82647 | C25: 5119 | D25: 149 | E25: 0.029 | F25: 122 | G25: 0.819 | H25: 82 | I25: 0.55 | J25: 3 | K25: 0.02
A26: Ripple Road Medical Centre | B26: F82650 | C26: 10203 | D26: 241 | E26: 0.024 | F26: 203 | G26: 0.842 | H26: 134 | I26: 0.556 | J26: 29 | K26: 0.12
A27: Highgrove Surgery | B27: F82680 | C27: 11841 | D27: 449 | E27: 0.038 | F27: 385 | G27: 0.857 | H27: 275 | I27: 0.612 | J27: 93 | K27: 0.207
A28: Julia Engwell Surgery | B28: F82025 | C28: 5697 | D28: 176 | E28: 0.031 | F28: 140 | G28: 0.795 | H28: 100 | I28: 0.568 | J28: 2 | K28: 0.011
A29: Laburnum Health centre | B29: F82051 | C29: 10909 | D29: 377 | E29: 0.035 | F29: 296 | G29: 0.785 | H29: 201 | I29: 0.533 | J29: 19 | K29: 0.05
A30: Gables Surgery | B30: F82642 | C30: 6924 | D30: 207 | E30: 0.03 | F30: 178 | G30: 0.86 | H30: 126 | I30: 0.609 | J30: 12 | K30: 0.058
A31: Green Lane Surgery | B31: F82661 | C31: 4036 | D31: 34 | E31: 0.008 | F31: 30 | G31: 0.882 | H31: 17 | I31: 0.5 | J31: 0 | K31: 0
A32: The Surgery | B32: F86040 | C32: 5732 | D32: 79 | E32: 0.014 | F32: 69 | G32: 0.873 | H32: 46 | I32: 0.582 | J32: 5 | K32: 0.063
A33: The Oval Practice | B33: Y01795 | C33: 8184 | D33: 266 | E33: 0.033 | F33: 225 | G33: 0.846 | H33: 144 | I33: 0.541 | J33: 41 | K33: 0.154
A34: Valence Medical Centre | B34: F82038 | C34: 4963 | D34: 82 | E34: 0.017 | F34: 70 | G34: 0.854 | H34: 47 | I34: 0.573 | J34: 7 | K34: 0.085
A35: Marks Gate Medical Practice | B35: F82604 | C35: 5878 | D35: 160 | E35: =IFERROR(D35/C35,"N/A") -> 0.027 | F35: 131 | G35: =IFERROR(F35/$D35,"N/A") -> 0.819 | H35: 105 | I35: =IFERROR(H35/$D35,"N/A") -> 0.656 | J35: 3 | K35: =IFERROR(J35/$D35,"N/A") -> 0.019
A36: Tulasi Medical Centre | B36: F82660 | C36: 20075 | D36: 685 | E36: =IFERROR(D36/C36,"N/A") -> 0.034 | F36: 600 | G36: =IFERROR(F36/$D36,"N/A") -> 0.876 | H36: 425 | I36: =IFERROR(H36/$D36,"N/A") -> 0.62 | J36: 69 | K36: =IFERROR(J36/$D36,"N/A") -> 0.101
A37: Becontree Medical Centre | B37: F82677 | C37: 8557 | D37: 209 | E37: =IFERROR(D37/C37,"N/A") -> 0.024 | F37: 199 | G37: =IFERROR(F37/$D37,"N/A") -> 0.952 | H37: 172 | I37: =IFERROR(H37/$D37,"N/A") -> 0.823 | J37: 28 | K37: =IFERROR(J37/$D37,"N/A") -> 0.134

Sheet COPD
C1: 01. Listsize | D1: LDP.09 COPD Register | E1: ="%"&D1 -> %LDP.09 COPD Register | F1: LDP.09.01 Patients with severe or very severe COPD (FEV1<50) | G1: ="%"&F1 -> %LDP.09.01 Patients with severe or very severe COPD (FEV1<50) | H1: LDP.09.02 Patients with smoking status recorded (last 12m) or never smoked | I1: ="%"&H1 -> %LDP.09.02 Patients with smoking status recorded (last 12m) or never smoked | J1: LDP.09.03 COPD patients recorded as a Smoker | K1: ="%"&J1 -> %LDP.09.03 COPD patients recorded as a Smoker | L1: LDP.09.04 COPD Patients who are current smokers & referred to the Stop Smoking C | M1: ="%"&L1 -> %LDP.09.04 COPD Patients who are current smokers & referred to the Stop Smoking C | N1: LDP.09.05 No of COPD with flu vaccination (From August 2018) | O1: ="%"&N1 -> %LDP.09.05 No of COPD with flu vaccination (From August 2018) | P1: LDP.09.06 No of COPD with pneumococcal vaccination ever | Q1: ="%"&P1 -> %LDP.09.06 No of COPD with pneumococcal vaccination ever | R1: LDP.09.07 No of COPD patients referred to pulmonary rehab ever | S1: ="%"&R1 -> %LDP.09.07 No of COPD patients referred to pulmonary rehab ever
C2: Barking and Dagenham - Practice Clinical Trends (LDP) Report
C3: May 2025 | D3: =VLOOKUP(C3,'Control Panel'!O16:P27,2,FALSE) -> 2025-06-01 | E3: =VLOOKUP(C3,'Control Panel'!O16:Q27,3,FALSE) -> 1
C4: ='Control Panel'!B133 -> COPD | D4: 1 | E4: 2 | F4: 3 | G4: 4 | H4: 5 | I4: 6 | J4: 7 | K4: 8 | L4: 9 | M4: 10 | N4: 11 | O4: 12 | P4: 13 | Q4: 14 | R4: 15 | S4: 16
A5: Home | C5: List Size | D5: No. of patients on COPD register | E5: % List Size | F5: No of patients with severe or very severe COPD (FEV1<50) | G5: % COPD register | H5: No. of COPD Patients with smoking status recorded (last 12m) or never smoked | I5: % COPD | J5: No. of COPD patients recorded as a Smoker | K5: % COPD | L5: No. of COPD Patients who are current smokers & referred to the Stop Smoking Clinic (12m) | M5: % of current COPD smokers | N5: No of COPD with flu vaccination (From August 2025) | O5: % of COPD register | P5: No of COPD with pneumococcal vaccination ever | Q5: % of COPD register | R5: No of COPD patients referred to pulmonary rehab ever | S5: % of COPD register
A6: Practice Name | C6: =SUM(C7:C38) -> 258806 | D6: =SUM(D7:D38) -> 3357 | E6: =IFERROR(D6/C6,"N/A") -> 0.013 | F6: =SUM(F7:F38) -> 477 | G6: =IFERROR(F6/D6,"N/A") -> 0.142 | H6: =SUM(H7:H38) -> 3122 | I6: =IFERROR(H6/D6,"N/A") -> 0.93 | J6: =SUM(J7:J38) -> 974 | K6: =IFERROR(J6/D6,"N/A") -> 0.29 | L6: =SUM(L7:L38) -> 188 | M6: =IFERROR(L6/J6,"N/A") -> 0.193 | N6: =SUM(N7:N38) -> 0 | O6: =IFERROR(N6/D6,"N/A") -> 0 | P6: =SUM(P7:P38) -> 2574 | Q6: =IFERROR(P6/D6,"N/A") -> 0.767 | R6: =SUM(R7:R38) -> 1670 | S6: =IFERROR(R6/D6,"N/A") -> 0.497
A7: Church Elm Lane Medical Practice | B7: F82005 | C7: =SUMIFS(OFFSET(REL_D,,MATCH(C$1,IND,0)-2),REL_D,$D$3,OrgID,$B7) -> 7193 | D7: 116 | E7: =IFERROR(D7/C7,"N/A") -> 0.016 | F7: =SUMIFS(OFFSET(REL_D,,MATCH(F$1,IND,0)-2),REL_D,$D$3,OrgID,$B7) -> 25 | G7: =IFERROR(F7/$D7,"N/A") -> 0.216 | H7: =SUMIFS(OFFSET(REL_D,,MATCH(H$1,IND,0)-2),REL_D,$D$3,OrgID,$B7) -> 112 | I7: =IFERROR(H7/$D7,"N/A") -> 0.966 | J7: =SUMIFS(OFFSET(REL_D,,MATCH(J$1,IND,0)-2),REL_D,$D$3,OrgID,$B7) -> 36 | K7: =IFERROR(J7/$D7,"N/A") -> 0.31 | L7: =SUMIFS(OFFSET(REL_D,,MATCH(L$1,IND,0)-2),REL_D,$D$3,OrgID,$B7) -> 5 | M7: =IFERROR(L7/$J7,"N/A") -> 0.139 | N7: =SUMIFS(OFFSET(REL_D,,MATCH(N$1,IND,0)-2),REL_D,$D$3,OrgID,$B7) -> 0 | O7: =IFERROR(N7/$D7,"N/A") -> 0 | P7: =SUMIFS(OFFSET(REL_D,,MATCH(P$1,IND,0)-2),REL_D,$D$3,OrgID,$B7) -> 97 | Q7: =IFERROR(P7/$D7,"N/A") -> 0.836 | R7: =SUMIFS(OFFSET(REL_D,,MATCH(R$1,IND,0)-2),REL_D,$D$3,OrgID,$B7) -> 63 | S7: =IFERROR(R7/$D7,"N/A") -> 0.543
A8: Broad Street Medical Centre | B8: Y01719 | C8: 8876 | D8: 92 | E8: 0.01 | F8: 9 | G8: 0.098 | H8: 90 | I8: 0.978 | J8: 42 | K8: 0.457 | L8: 14 | M8: 0.333 | N8: 0 | O8: =IFERROR(N8/$D8,"N/A") -> 0 | P8: 63 | Q8: =IFERROR(P8/$D8,"N/A") -> 0.685 | R8: 62 | S8: =IFERROR(R8/$D8,"N/A") -> 0.674
A9: Porters Avenue Doctors Surgery | B9: Y02575 | C9: 21394 | D9: 108 | E9: 0.005 | F9: 14 | G9: 0.13 | H9: 100 | I9: 0.926 | J9: 36 | K9: 0.333 | L9: 21 | M9: 0.583 | N9: 0 | O9: =IFERROR(N9/$D9,"N/A") -> 0 | P9: 80 | Q9: =IFERROR(P9/$D9,"N/A") -> 0.741 | R9: 38 | S9: =IFERROR(R9/$D9,"N/A") -> 0.352
A10: First Avenue Surgery | B10: F82003 | C10: 5299 | D10: 79 | E10: 0.015 | F10: 5 | G10: 0.063 | H10: 78 | I10: 0.987 | J10: 22 | K10: 0.278 | L10: 5 | M10: 0.227 | N10: 0 | O10: =IFERROR(N10/$D10,"N/A") -> 0 | P10: 71 | Q10: =IFERROR(P10/$D10,"N/A") -> 0.899 | R10: 50 | S10: =IFERROR(R10/$D10,"N/A") -> 0.633
A11: Hedgemans Surgery | B11: F82015 | C11: 5216 | D11: 97 | E11: 0.019 | F11: 15 | G11: 0.155 | H11: 92 | I11: 0.948 | J11: 31 | K11: 0.32 | L11: 2 | M11: 0.065 | N11: 0 | O11: =IFERROR(N11/$D11,"N/A") -> 0 | P11: 85 | Q11: =IFERROR(P11/$D11,"N/A") -> 0.876 | R11: 54 | S11: =IFERROR(R11/$D11,"N/A") -> 0.557
A12: St Albans Surgery | B12: F82017 | C12: 8583 | D12: 239 | E12: 0.028 | F12: 21 | G12: 0.088 | H12: 214 | I12: 0.895 | J12: 59 | K12: 0.247 | L12: 10 | M12: 0.169 | N12: 0 | O12: =IFERROR(N12/$D12,"N/A") -> 0 | P12: 207 | Q12: =IFERROR(P12/$D12,"N/A") -> 0.866 | R12: 86 | S12: =IFERROR(R12/$D12,"N/A") -> 0.36
A13: Heathway Medical Centre | B13: F82634 | C13: 6348 | D13: 79 | E13: 0.012 | F13: 11 | G13: 0.139 | H13: 78 | I13: 0.987 | J13: 25 | K13: 0.316 | L13: 5 | M13: 0.2 | N13: 0 | O13: =IFERROR(N13/$D13,"N/A") -> 0 | P13: 51 | Q13: =IFERROR(P13/$D13,"N/A") -> 0.646 | R13: 22 | S13: =IFERROR(R13/$D13,"N/A") -> 0.278
A14: Dr Alkaisy Surgery | B14: F82678 | C14: 5026 | D14: 125 | E14: 0.025 | F14: 13 | G14: 0.104 | H14: 115 | I14: 0.92 | J14: 27 | K14: 0.216 | L14: 2 | M14: 0.074 | N14: 0 | O14: =IFERROR(N14/$D14,"N/A") -> 0 | P14: 109 | Q14: =IFERROR(P14/$D14,"N/A") -> 0.872 | R14: 61 | S14: =IFERROR(R14/$D14,"N/A") -> 0.488
A15: Parkview Medical Practice | B15: F82679 | C15: 5563 | D15: 62 | E15: 0.011 | F15: 8 | G15: 0.129 | H15: 59 | I15: 0.952 | J15: 16 | K15: 0.258 | L15: 1 | M15: 0.063 | N15: 0 | O15: =IFERROR(N15/$D15,"N/A") -> 0 | P15: 53 | Q15: =IFERROR(P15/$D15,"N/A") -> 0.855 | R15: 37 | S15: =IFERROR(R15/$D15,"N/A") -> 0.597
A16: Victoria Medical Centre | B16: F82034 | C16: 10620 | D16: 138 | E16: 0.013 | F16: 23 | G16: 0.167 | H16: 127 | I16: 0.92 | J16: 40 | K16: 0.29 | L16: 4 | M16: 0.1 | N16: 0 | O16: =IFERROR(N16/$D16,"N/A") -> 0 | P16: 106 | Q16: =IFERROR(P16/$D16,"N/A") -> 0.768 | R16: 52 | S16: =IFERROR(R16/$D16,"N/A") -> 0.377
A17: Aurora Medcare | B17: F82042 | C17: 20577 | D17: 194 | E17: 0.009 | F17: 23 | G17: 0.119 | H17: 182 | I17: 0.938 | J17: 59 | K17: 0.304 | L17: 14 | M17: 0.237 | N17: 0 | O17: =IFERROR(N17/$D17,"N/A") -> 0 | P17: 159 | Q17: =IFERROR(P17/$D17,"N/A") -> 0.82 | R17: 118 | S17: =IFERROR(R17/$D17,"N/A") -> 0.608
A18: Abbey Medical centre | B18: F82625 | C18: 7795 | D18: 62 | E18: 0.008 | F18: 9 | G18: 0.145 | H18: 60 | I18: 0.968 | J18: 22 | K18: 0.355 | L18: 2 | M18: 0.091 | N18: 0 | O18: =IFERROR(N18/$D18,"N/A") -> 0 | P18: 50 | Q18: =IFERROR(P18/$D18,"N/A") -> 0.806 | R18: 20 | S18: =IFERROR(R18/$D18,"N/A") -> 0.323
A19: Shifa Medical Practice | B19: Y01280 | C19: 2403 | D19: 7 | E19: 0.003 | F19: 0 | G19: 0 | H19: 7 | I19: 1 | J19: 3 | K19: 0.429 | L19: 0 | M19: 0 | N19: 0 | O19: =IFERROR(N19/$D19,"N/A") -> 0 | P19: 6 | Q19: =IFERROR(P19/$D19,"N/A") -> 0.857 | R19: 7 | S19: =IFERROR(R19/$D19,"N/A") -> 1
A20: Faircross Health Centre | B20: F82027 | C20: 2176 | D20: 20 | E20: 0.009 | F20: 8 | G20: 0.4 | H20: 19 | I20: 0.95 | J20: 6 | K20: 0.3 | L20: 4 | M20: 0.667 | N20: 0 | O20: =IFERROR(N20/$D20,"N/A") -> 0 | P20: 19 | Q20: =IFERROR(P20/$D20,"N/A") -> 0.95 | R20: 14 | S20: =IFERROR(R20/$D20,"N/A") -> 0.7
A21: Halbutt Street Surgery | B21: F82001 | C21: 5728 | D21: 73 | E21: 0.013 | F21: 21 | G21: 0.288 | H21: 69 | I21: 0.945 | J21: 20 | K21: 0.274 | L21: 14 | M21: 0.7 | N21: 0 | O21: =IFERROR(N21/$D21,"N/A") -> 0 | P21: 58 | Q21: =IFERROR(P21/$D21,"N/A") -> 0.795 | R21: 57 | S21: =IFERROR(R21/$D21,"N/A") -> 0.781
A22: Barking Medical Group Practice | B22: F82018 | C22: 11928 | D22: 73 | E22: 0.006 | F22: 16 | G22: 0.219 | H22: 68 | I22: 0.932 | J22: 16 | K22: 0.219 | L22: 3 | M22: 0.188 | N22: 0 | O22: =IFERROR(N22/$D22,"N/A") -> 0 | P22: 62 | Q22: =IFERROR(P22/$D22,"N/A") -> 0.849 | R22: 37 | S22: =IFERROR(R22/$D22,"N/A") -> 0.507
A23: John Smith House | B23: F82040 | C23: =SUMIFS(OFFSET(REL_D,,MATCH(C$1,IND,0)-2),REL_D,$D$3,OrgID,$B23) -> 4339 | D23: 45 | E23: 0.01 | F23: 7 | G23: 0.156 | H23: 43 | I23: 0.956 | J23: 12 | K23: 0.267 | L23: 2 | M23: 0.167 | N23: 0 | O23: =IFERROR(N23/$D23,"N/A") -> 0 | P23: 29 | Q23: =IFERROR(P23/$D23,"N/A") -> 0.644 | R23: 18 | S23: =IFERROR(R23/$D23,"N/A") -> 0.4
A24: The White House | B24: F82612 | C24: 11624 | D24: 108 | E24: 0.009 | F24: 7 | G24: 0.065 | H24: 98 | I24: 0.907 | J24: 29 | K24: 0.269 | L24: 5 | M24: 0.172 | N24: 0 | O24: =IFERROR(N24/$D24,"N/A") -> 0 | P24: 63 | Q24: =IFERROR(P24/$D24,"N/A") -> 0.583 | R24: 44 | S24: =IFERROR(R24/$D24,"N/A") -> 0.407
A25: Dr Gupta & Partner | B25: F82647 | C25: 5119 | D25: 31 | E25: 0.006 | F25: 8 | G25: 0.258 | H25: 30 | I25: 0.968 | J25: 8 | K25: 0.258 | L25: 1 | M25: 0.125 | N25: 0 | O25: =IFERROR(N25/$D25,"N/A") -> 0 | P25: 28 | Q25: =IFERROR(P25/$D25,"N/A") -> 0.903 | R25: 6 | S25: =IFERROR(R25/$D25,"N/A") -> 0.194
A26: Ripple Road Medical Centre | B26: F82650 | C26: 10203 | D26: 89 | E26: 0.009 | F26: 8 | G26: 0.09 | H26: 87 | I26: 0.978 | J26: 34 | K26: 0.382 | L26: 4 | M26: 0.118 | N26: 0 | O26: =IFERROR(N26/$D26,"N/A") -> 0 | P26: 74 | Q26: =IFERROR(P26/$D26,"N/A") -> 0.831 | R26: 31 | S26: =IFERROR(R26/$D26,"N/A") -> 0.348
A27: Highgrove Surgery | B27: F82680 | C27: 11841 | D27: 247 | E27: 0.021 | F27: 53 | G27: 0.215 | H27: 222 | I27: 0.899 | J27: 70 | K27: 0.283 | L27: 22 | M27: 0.314 | N27: 0 | O27: =IFERROR(N27/$D27,"N/A") -> 0 | P27: 125 | Q27: =IFERROR(P27/$D27,"N/A") -> 0.506 | R27: 201 | S27: =IFERROR(R27/$D27,"N/A") -> 0.814
A28: Julia Engwell Surgery | B28: F82025 | C28: 5697 | D28: 86 | E28: 0.015 | F28: 11 | G28: 0.128 | H28: 74 | I28: 0.86 | J28: 17 | K28: 0.198 | L28: 1 | M28: 0.059 | N28: 0 | O28: =IFERROR(N28/$D28,"N/A") -> 0 | P28: 73 | Q28: =IFERROR(P28/$D28,"N/A") -> 0.849 | R28: 39 | S28: =IFERROR(R28/$D28,"N/A") -> 0.453
A29: Laburnum Health centre | B29: F82051 | C29: 10909 | D29: 182 | E29: 0.017 | F29: 30 | G29: 0.165 | H29: 154 | I29: 0.846 | J29: 51 | K29: 0.28 | L29: 4 | M29: 0.078 | N29: 0 | O29: =IFERROR(N29/$D29,"N/A") -> 0 | P29: 133 | Q29: =IFERROR(P29/$D29,"N/A") -> 0.731 | R29: 76 | S29: =IFERROR(R29/$D29,"N/A") -> 0.418
A30: Gables Surgery | B30: F82642 | C30: 6924 | D30: 145 | E30: 0.021 | F30: 31 | G30: 0.214 | H30: 129 | I30: 0.89 | J30: 43 | K30: 0.297 | L30: 9 | M30: 0.209 | N30: 0 | O30: =IFERROR(N30/$D30,"N/A") -> 0 | P30: 107 | Q30: =IFERROR(P30/$D30,"N/A") -> 0.738 | R30: 71 | S30: =IFERROR(R30/$D30,"N/A") -> 0.49
A31: Green Lane Surgery | B31: F82661 | C31: 4036 | D31: 26 | E31: 0.006 | F31: 5 | G31: 0.192 | H31: 21 | I31: 0.808 | J31: 3 | K31: 0.115 | L31: 0 | M31: 0 | N31: 0 | O31: =IFERROR(N31/$D31,"N/A") -> 0 | P31: 13 | Q31: =IFERROR(P31/$D31,"N/A") -> 0.5 | R31: 10 | S31: =IFERROR(R31/$D31,"N/A") -> 0.385
A32: The Surgery | B32: F86040 | C32: 5732 | D32: 56 | E32: 0.01 | F32: 1 | G32: 0.018 | H32: 55 | I32: 0.982 | J32: 19 | K32: 0.339 | L32: 7 | M32: 0.368 | N32: 0 | O32: =IFERROR(N32/$D32,"N/A") -> 0 | P32: 51 | Q32: =IFERROR(P32/$D32,"N/A") -> 0.911 | R32: 30 | S32: =IFERROR(R32/$D32,"N/A") -> 0.536
A33: The Oval Practice | B33: Y01795 | C33: 8184 | D33: 80 | E33: 0.01 | F33: 9 | G33: 0.113 | H33: 75 | I33: 0.938 | J33: 27 | K33: 0.338 | L33: 1 | M33: 0.037 | N33: 0 | O33: =IFERROR(N33/$D33,"N/A") -> 0 | P33: 51 | Q33: =IFERROR(P33/$D33,"N/A") -> 0.638 | R33: 28 | S33: =IFERROR(R33/$D33,"N/A") -> 0.35
A34: Valence Medical Centre | B34: F82038 | C34: 4963 | D34: 86 | E34: 0.017 | F34: 2 | G34: 0.023 | H34: 78 | I34: 0.907 | J34: 17 | K34: 0.198 | L34: 0 | M34: 0 | N34: 0 | O34: =IFERROR(N34/$D34,"N/A") -> 0 | P34: 63 | Q34: =IFERROR(P34/$D34,"N/A") -> 0.733 | R34: 35 | S34: =IFERROR(R34/$D34,"N/A") -> 0.407
A35: Marks Gate Medical Practice | B35: F82604 | C35: 5878 | D35: 84 | E35: 0.014 | F35: 13 | G35: 0.155 | H35: 81 | I35: 0.964 | J35: 27 | K35: 0.321 | L35: 4 | M35: 0.148 | N35: 0 | O35: =IFERROR(N35/$D35,"N/A") -> 0 | P35: 65 | Q35: =IFERROR(P35/$D35,"N/A") -> 0.774 | R35: 35 | S35: =IFERROR(R35/$D35,"N/A") -> 0.417
A36: Tulasi Medical Centre | B36: F82660 | C36: 20075 | D36: 404 | E36: =IFERROR(D36/C36,"N/A") -> 0.02 | F36: 50 | G36: =IFERROR(F36/$D36,"N/A") -> 0.124 | H36: 385 | I36: =IFERROR(H36/$D36,"N/A") -> 0.953 | J36: 130 | K36: =IFERROR(J36/$D36,"N/A") -> 0.322 | L36: 20 | M36: =IFERROR(L36/$J36,"N/A") -> 0.154 | N36: 0 | O36: =IFERROR(N36/$D36,"N/A") -> 0 | P36: 315 | Q36: =IFERROR(P36/$D36,"N/A") -> 0.78 | R36: 201 | S36: =IFERROR(R36/$D36,"N/A") -> 0.498
A37: Becontree Medical Centre | B37: F82677 | C37: 8557 | D37: 124 | E37: =IFERROR(D37/C37,"N/A") -> 0.014 | F37: 21 | G37: =IFERROR(F37/$D37,"N/A") -> 0.169 | H37: 120 | I37: =IFERROR(H37/$D37,"N/A") -> 0.968 | J37: 27 | K37: =IFERROR(J37/$D37,"N/A") -> 0.218 | L37: 2 | M37: =IFERROR(L37/$J37,"N/A") -> 0.074 | N37: 0 | O37: =IFERROR(N37/$D37,"N/A") -> 0 | P37: 108 | Q37: =IFERROR(P37/$D37,"N/A") -> 0.871 | R37: 67 | S37: =IFERROR(R37/$D37,"N/A") -> 0.54

Sheet Sheet1 (hidden)

Sheet Practice list (hidden)
A1: Status | B1: Practice ID | C1: Practice | D1: Locality ID | E1: Locality | F1: SubLocality ID | G1: SubLocality | H1: PCN/Network | I1: PCN code | J1: Clinical System | K1: Address 1 | L1: Address 2 | M1: Postcode | N1: Grid Reference | O1: X (easting) | P1: Y (northing) | Q1: Latitude | R1: Longitude
A2: Active | B2: F82005 | C2: Church Elm Lane Medical Practice | D2: BK | E2: Barking and Dagenham | F2: BK-1 | G2: East | H2: Network East | I2: U86967 | J2: EMISweb | K2: Church Elm Lane | L2: Dagenham | M2: RM10 9RR | N2: TQ 49667 84556 | O2: 549667 | P2: 184556 | Q2: 51.540066 | R2: 0.15673988
A3: Active | B3: Y01719 | C3: Broad Street Medical Centre | D3: BK | E3: Barking and Dagenham | F3: BK-1 | G3: East | H3: Network East | I3: U86968 | J3: EMISweb | K3: Broad Street Resource Centre | L3: Dagenham | M3: RM10 9HU | N3: TQ 49367 83962 | O3: 549367 | P3: 183962 | Q3: 51.534808 | R3: 0.15216548
A4: Active | B4: Y02575 | C4: Porters Avenue Doctors Surgery | D4: BK | E4: Barking and Dagenham | F4: BK-1 | G4: East | H4: Network East | I4: U86969 | J4: EMISweb | K4: 234 Porters Avenue | L4: Dagenham | M4: RM8 2EQ | N4: TQ 47283 85077 | O4: 547283 | P4: 185077 | Q4: 51.545373 | R4: 0.12260706
A5: Active | B5: F82003 | C5: First Avenue Surgery | D5: BK | E5: Barking and Dagenham | F5: BK-2 | G5: East One | H5: Network East One | I5: U27362 | J5: EMISweb | K5: 2 First Avenue | L5: Dagenham | M5: RM10 9AT | N5: TQ 49762 83388 | O5: 549762 | P5: 183388 | Q5: 51.529546 | R5: 0.15761231
A6: Active | B6: F82015 | C6: Hedgemans Surgery | D6: BK | E6: Barking and Dagenham | F6: BK-2 | G6: East One | H6: Network East One | I6: U27362 | J6: EMISweb | K6: 92 Hedgemans Road | L6: Dagenham | M6: RM9 6HT | N6: TQ 48734 84495 | O6: 548734 | P6: 184495 | Q6: 51.539764 | R6: 0.14327082
A7: Active | B7: F82017 | C7: St Albans Surgery | D7: BK | E7: Barking and Dagenham | F7: BK-2 | G7: East One | H7: Network East One | I7: U27362 | J7: EMISweb | K7: Urswick Road | L7: Dagenham | M7: RM9 6EA | N7: TQ 48052 84181 | O7: 548052 | P7: 184181 | Q7: 51.537122 | R7: 0.13331215
A8: Active | B8: F82634 | C8: Heathway Medical Centre | D8: BK | E8: Barking and Dagenham | F8: BK-2 | G8: East One | H8: Network East One | I8: U27362 | J8: EMISweb | K8: Morland Road | L8: Dagenham | M8: RM10 9HU | N8: TQ 49367 83962 | O8: 549367 | P8: 183962 | Q8: 51.534808 | R8: 0.15216548
A9: Active | B9: F82678 | C9: Dr Alkaisy Surgery | D9: BK | E9: Barking and Dagenham | F9: BK-2 | G9: East One | H9: Network East One | I9: U27362 | J9: EMISweb | K9: Urswick Road | L9: Dagenham | M9: RM9 6EA | N9: TQ 48052 84181 | O9: 548052 | P9: 184181 | Q9: 51.537122 | R9: 0.13331215
A10: Active | B10: F82679 | C10: Parkview Medical Practice | D10: BK | E10: Barking and Dagenham | F10: BK-2 | G10: East One | H10: Network East One | I10: U27362 | J10: EMISweb | K10: 199 Reede Road | L10: Dagenham | M10: RM10 8EJ | N10: TQ 49877 85126 | O10: 549877 | P10: 185126 | Q10: 51.545131 | R10: 0.16000821
A11: Active | B11: F82034 | C11: Victoria Medical Centre | D11: BK | E11: Barking and Dagenham | F11: BK-3 | G11: New West | H11: Network New West | I11: U26744 | J11: EMISweb | K11: 1 Queens Road | L11: Barking | M11: IG11 8GD | N11: TQ 44085 84494 | O11: 544085 | P11: 184494 | Q11: 51.54096 | R11: 0.076282445
A12: Active | B12: F82042 | C12: Aurora Medcare | D12: BK | E12: Barking and Dagenham | F12: BK-3 | G12: New West | H12: Network New West | I12: U26744 | J12: EMISweb | K12: 1 King Edwards Road | L12: Barking | M12: IG11 7TB | N12: TQ 44643 83708 | O12: 544643 | P12: 183708 | Q12: 51.533755 | R12: 0.084000311
A13: Active | B13: F82625 | C13: Abbey Medical centre | D13: BK | E13: Barking and Dagenham | F13: BK-3 | G13: New West | H13: Network New West | I13: U26744 | J13: EMISweb | K13: 1 Harpour Road | L13: Barking | M13: IG11 8RJ | N13: TQ 44215 84642 | O13: 544215 | P13: 184642 | Q13: 51.542256 | R13: 0.078216284
A14: Active | B14: Y01280 | C14: Shifa Medical Practice | D14: BK | E14: Barking and Dagenham | F14: BK-3 | G14: New West | H14: Network New West | I14: U26744 | J14: EMISweb | K14: Gasgoine Road | L14: Barking | M14: IG11 7RS | N14: TQ 44478 83438 | O14: 544478 | P14: 183438 | Q14: 51.531371 | R14: 0.081512428
A15: Active | B15: F82027 | C15: Faircross Health Centre | D15: BK | E15: Barking and Dagenham | F15: BK-3 | G15: New West | H15: Network New West | I15: U26744 | J15: EMISweb | K15: 51 Upney Lane | L15: Barking | M15: IG11 9LP | N15: TQ 45367 84850 | O15: 545367 | P15: 184850 | Q15: 51.54383 | R15: 0.094902305
A16: Active | B16: F82001 | C16: Halbutt Street Surgery | D16: BK | E16: Barking and Dagenham | F16: BK-4 | G16: West One | H16: Network West One | I16: U11211 | J16: EMISweb | K16: 2 Halbutt Street | L16: Dagenham | M16: RM9 5AS | N16: TQ 48956 85305 | O16: 548956 | P16: 185305 | Q16: 51.546983 | R16: 0.14681208
A17: Active | B17: F82018 | C17: Barking Medical Group Practice | D17: BK | E17: Barking and Dagenham | F17: BK-4 | G17: West One | H17: Network West One | I17: U11211 | J17: EMISweb | K17: 130 Upney lane | L17: Barking | M17: IG11 9LT | N17: TQ 45536 84574 | O17: 545536 | P17: 184574 | Q17: 51.541307 | R17: 0.097223615
A18: Active | B18: F82040 | C18: John Smith House | D18: BK | E18: Barking and Dagenham | F18: BK-4 | G18: West One | H18: Network West One | I18: U11211 | J18: EMISweb | K18: 145-207 Bevan Avenue | L18: Barking | M18: IG11 9NS | N18: TQ 46496 84245 | O18: 546496 | P18: 184245 | Q18: 51.538102 | R18: 0.11091985
A19: Active | B19: F82612 | C19: The White House | D19: BK | E19: Barking and Dagenham | F19: BK-4 | G19: West One | H19: Network West One | I19: U11211 | J19: EMISweb | K19: 12 Movers Lane | L19: Barking | M19: IG11 7UN | N19: TQ 44930 83744 | O19: 544930 | P19: 183744 | Q19: 51.534005 | R19: 0.088149992
A20: Active | B20: F82647 | C20: Dr Gupta & Partner | D20: BK | E20: Barking and Dagenham | F20: BK-4 | G20: West One | H20: Network West One | I20: U11211 | J20: EMISweb | K20: 7 Salisbury Avenue | L20: Barking | M20: IG11 9XQ | N20: TQ 44605 84272 | O20: 544605 | P20: 184272 | Q20: 51.538832 | R20: 0.08368429
A21: Active | B21: F82650 | C21: Ripple Road Medical Centre | D21: BK | E21: Barking and Dagenham | F21: BK-4 | G21: West One | H21: Network West One | I21: U11211 | J21: EMISweb | K21: 343 Ripple Road | L21: Barking | M21: IG11 7RJ | N21: TQ 45217 83938 | O21: 545217 | P21: 183938 | Q21: 51.535674 | R21: 0.092364824
A22: Active | B22: F82680 | C22: Highgrove Surgery | D22: BK | E22: Barking and Dagenham | F22: BK-4 | G22: West One | H22: Network West One | I22: U11211 | J22: SystmOne | K22: Upney Lane | L22: Barking | M22: IG11 9LX | N22: TQ 45644 84306 | O22: 545644 | P22: 184306 | Q22: 51.538871 | R22: 0.098669045
A23: Active | B23: F82025 | C23: Julia Engwell Surgery | D23: BK | E23: Barking and Dagenham | F23: BK-5 | G23: North | H23: Network North | I23: U55387 | J23: EMISweb | K23: Woodward Road | L23: Dagenham | M23: RM9 4SR | N23: TQ 47520 84362 | O23: 547520 | P23: 184362 | Q23: 51.538887 | R23: 0.12572292
A24: Active | B24: F82051 | C24: Laburnum Health centre | D24: BK | E24: Barking and Dagenham | F24: BK-5 | G24: North | H24: Network North | I24: U55387 | J24: EMISweb | K24: 11 Althorne Way | L24: Dagenham | M24: RM10 7DF | N24: TQ 49234 86817 | O24: 549234 | P24: 186817 | Q24: 51.560495 | R24: 0.1514593
A25: Active | B25: F82642 | C25: Gables Surgery | D25: BK | E25: Barking and Dagenham | F25: BK-5 | G25: North | H25: Network North | I25: U55387 | J25: EMISweb | K25: Markyate Road | L25: Dagenham | M25: RM8 2LD | N25: TQ 46953 85105 | O25: 546953 | P25: 185105 | Q25: 51.545711 | R25: 0.11786324
A26: Active | B26: F82661 | C26: Green Lane Surgery | D26: BK | E26: Barking and Dagenham | F26: BK-5 | G26: North | H26: Network North | I26: U55387 | J26: EMISweb | K26: 872 Green Lane | L26: Dagenham | M26: RM8 1BX | N26: TQ 48005 86869 | O26: 548005 | P26: 186869 | Q26: 51.561286 | R26: 0.13376487
A27: Active | B27: F86040 | C27: The Surgery | D27: BK | E27: Barking and Dagenham | F27: BK-5 | G27: North | H27: Network North | I27: U55387 | J27: EMISweb | K27: 620 Longbridge Road | L27: Dagenham | M27: RM8 2AJ | N27: TQ 46755 85732 | O27: 546755 | P27: 185732 | Q27: 51.551396 | R27: 0.11527123
A28: Active | B28: Y01795 | C28: The Oval Practice | D28: BK | E28: Barking and Dagenham | F28: BK-5 | G28: North | H28: Network North | I28: U55388 | J28: EMISweb | K28: 69 Oval Road North | L28: Dagenham | M28: RM10 9ET | N28: TQ 49697 83763 | O28: 549697 | P28: 183763 | Q28: 51.532933 | R28: 0.15683523
A29: Active | B29: F82038 | C29: Valence Medical Centre | D29: BK | E29: Barking and Dagenham | F29: BK-5 | G29: North | H29: Network North | I29: U55389 | J29: EMISweb | K29: 563 Valence Avenue | L29: Dagenham | M29: RM8 3RH | N29: TQ 47822 85951 | O29: 547822 | P29: 185951 | Q29: 51.553086 | R29: 0.13074125
A30: Active | B30: F82604 | C30: Marks Gate Medical Practice | D30: BK | E30: Barking and Dagenham | F30: BK-6 | G30: Central | H30: Network Central | I30: U92874 | J30: EMISweb | K30: Lawn Farm Grove | L30: Dagenham | M30: RM6 5LL | N30: TQ 48155 89472 | O30: 548155 | P30: 189472 | Q30: 51.584635 | R30: 0.13702397
A31: Active | B31: F82660 | C31: Tulasi Medical Centre | D31: BK | E31: Barking and Dagenham | F31: BK-6 | G31: Central | H31: Network Central | I31: U92874 | J31: EMISweb | K31: 10 Bennetts Castle Lane | L31: Dagenham | M31: RM8 3XU | N31: TQ 47363 86819 | O31: 547363 | P31: 186819 | Q31: 51.561005 | R31: 0.12448914
A32: Active | B32: F82677 | C32: Becontree Medical Centre | D32: BK | E32: Barking and Dagenham | F32: BK-6 | G32: Central | H32: Network Central | I32: U92874 | J32: EMISweb | K32: 645 Becontree Avenue | L32: Dagenham | M32: RM8 3HP | N32: TQ 48516 86671 | O32: 548516 | P32: 186671 | Q32: 51.559373 | R32: 0.1410476

Sheet LDP TABLE (hidden)
A1: ProjectID | B1: Rel_D | C1: Run_D | D1: Search | E1: 01. Listsize | F1: LDP.04.11: Diabetes and BP in last 12 months | G1: LDP.05: CVD 25-84yrs (excl CVD) | H1: LDP.08.02 CKD Diagnosed (Last 6m) | I1: LDP.08.03 CKD and BP Recorded (last 12 m) | J1: CSPMH. 01.03 QRisk Recorded (12m) | K1: CSPMH. 01.03.01 BP recorded on same day as QRisk (12m) | L1: CSPMH. 01.03.02 Qrisk>=20 (12m) | M1: LDP.08.01 CKD and BP less than 140/90 (last 12 m) | N1: LDP.08 CKD Register | O1: LDP.05.01: CVD QRISK greater than or equal 20% | P1: LDP.05.01.01: CVD Proxy Annual Review (last 12m) | Q1: LDP.05.02: Cardiovascular Risk Score Done (5y) | R1: LDP.04.09: Diabetes BP less than 145/85 (last 12m) | S1: LDP.04.08: Diabetes Chol less than 5mmol (last 12m) | T1: LDP.01.01.01: Obesity BMI more than or equal to 35 less than 40 (last 12m) | U1: LDP.01.01.02: Obesity BMI between 30-35 (last 12m) | V1: LDP.01.01.03: Obesity BMI equal to or over 40 (last 12m) | W1: LDP.01.02: Smoking Status (last 12m) or Never Smoked (25yrs+) | X1: LDP.01.03: Current Smoker (last 12m) | Y1: LDP.01.01: Obesity BMI recorded (last 12m) | Z1: LDP.01: Aged 16yrs+ | AA1: CSPMH.01 SMI Register | AB1: CSPMH.01.02 Smoking Status Recorded (12m) | AC1: CSPMH.01.02.01 Current Smoker (12m) | AD1: CSPMH 01.02.01.01 Ref to clinic 12m | AE1: CSPMH.01.02.02 Ex-smoker Recorded (latest 12m) | AF1: LDP.02: Hypertension Register | AG1: LDP.02.01: Hypertension and BP < 140/90 (age under 80) < 150/90 (Age 80+) | AH1: LDP.04.07: Diabetes Influenza Vaccinations (From August 2018) | AI1: LDP.04.01: Diabetes HbA1c <7.5% OR <59mmol (last 12m) | AJ1: LDP.02.02: Hypertension BP recorded (last 12m) | AK1: LDP.03: CHD Register | AL1: LDP.03.01: CHD Chol less than 5mmol (last 12m) | AM1: LDP.03.04: CHD Cholesterol recorded (last 12m) | AN1: LDP.04: Diabetes Register | AO1: LDP.09 COPD Register | AP1: LDP.09.01 Patients with severe or very severe COPD (FEV1<50) | AQ1: LDP.09.02 Patients with smoking status recorded (last 12m) or never smoked | AR1: LDP.09.03 COPD patients recorded as a Smoker | AS1: LDP.09.04 COPD Patients who are current smokers & referred to the Stop Smoking C | AT1: LDP.09.05 No of COPD with flu vaccination (From August 2018) | AU1: LDP.09.06 No of COPD with pneumococcal vaccination ever | AV1: LDP.09.07 No of COPD patients referred to pulmonary rehab ever | AW1: LDP.03.02: CHD BP less than or equal 150/90 (last 9m) | AX1: LDP.10 Stroke or TIA register | AY1: LDP.10.01: Stroke/TIA BP recorded (last 12m) | AZ1: LDP.10.02 Patients on Stroke/TIA register with BP <140/90 (12m) | BA1: LDP.05.03: CVD QRISK >=10 & <20 | BB1: Practice | BC1: Locality ID | BD1: SubLocality ID | BE1: SubLocality
A2: CH_LDP | B2: 44287 | C2: 44827 | D2: F82660 | E2: 20642 | F2: 1001 | G2: 12209 | H2: 8 | I2: 290 | J2: 28 | K2: 6 | L2: 4 | M2: 198 | N2: 468 | O2: 939 | P2: 3 | Q2: 6116 | R2: 818 | S2: 8 | T2: 347 | U2: 703 | V2: 256 | W2: 9644 | X2: 915 | Y2: 3212 | Z2: 15464 | AA2: 250 | AB2: 195 | AC2: 70 | AD2: 1 | AE2: 14 | AF2: 3092 | AG2: 975 | AH2: 0 | AI2: 654 | AJ2: 1466 | AK2: 431 | AL2: 1 | AM2: 1 | AN2: 1689 | AO2: 477 | AP2: 73 | AQ2: 443 | AR2: 197 | AS2: 1 | AT2: 0 | AU2: 300 | AV2: 191 | AW2: 184 | AX2: 270 | AY2: 158 | AZ2: 122 | BB2: Tulasi Medical Centre | BC2: BK | BD2: BK-6 | BE2: Central
A3: CH_LDP | B3: 44287 | C3: 44827 | D3: F82610 | E3: 2976 | F3: 115 | G3: 1920 | H3: 2 | I3: 34 | J3: 1 | K3: 1 | L3: 0 | M3: 23 | N3: 70 | O3: 40 | P3: 0 | Q3: 314 | R3: 75 | S3: 2 | T3: 40 | U3: 71 | V3: 26 | W3: 1534 | X3: 90 | Y3: 289 | Z3: 2408 | AA3: 15 | AB3: 12 | AC3: 1 | AD3: 0 | AE3: 1 | AF3: 389 | AG3: 105 | AH3: 0 | AI3: 75 | AJ3: 170 | AK3: 80 | AL3: 0 | AM3: 1 | AN3: 190 | AO3: 48 | AP3: 7 | AQ3: 33 | AR3: 5 | AS3: 0 | AT3: 0 | AU3: 35 | AV3: 17 | AW3: 28 | AX3: 37 | AY3: 15 | AZ3: 13
A4: CH_LDP | B4: 44287 | C4: 44827 | D4: F82612 | E4: 5756 | F4: 355 | G4: 3465 | H4: 4 | I4: 75 | J4: 9 | K4: 6 | L4: 1 | M4: 38 | N4: 106 | O4: 213 | P4: 2 | Q4: 1411 | R4: 278 | S4: 5 | T4: 59 | U4: 176 | V4: 40 | W4: 3036 | X4: 254 | Y4: 782 | Z4: 4367 | AA4: 51 | AB4: 47 | AC4: 14 | AD4: 2 | AE4: 2 | AF4: 730 | AG4: 240 | AH4: 0 | AI4: 226 | AJ4: 422 | AK4: 132 | AL4: 0 | AM4: 1 | AN4: 512 | AO4: 84 | AP4: 7 | AQ4: 79 | AR4: 21 | AS4: 1 | AT4: 0 | AU4: 38 | AV4: 16 | AW4: 56 | AX4: 68 | AY4: 42 | AZ4: 26 | BB4: The White House | BC4: BK | BD4: BK-4 | BE4: West One
A5: CH_LDP | B5: 44287 | C5: 44827 | D5: F82619 | E5: 3142 | F5: 194 | G5: 1972 | H5: 51 | I5: 88 | J5: 4 | K5: 2 | L5: 0 | M5: 55 | N5: 102 | O5: 171 | P5: 9 | Q5: 922 | R5: 183 | S5: 14 | T5: 77 | U5: 166 | V5: 30 | W5: 1564 | X5: 167 | Y5: 666 | Z5: 2511 | AA5: 26 | AB5: 22 | AC5: 5 | AD5: 0 | AE5: 3 | AF5: 538 | AG5: 301 | AH5: 0 | AI5: 98 | AJ5: 451 | AK5: 86 | AL5: 2 | AM5: 3 | AN5: 218 | AO5: 69 | AP5: 11 | AQ5: 65 | AR5: 21 | AS5: 0 | AT5: 0 | AU5: 57 | AV5: 29 | AW5: 49 | AX5: 54 | AY5: 44 | AZ5: 24
A6: CH_LDP | B6: 44287 | C6: 44827 | D6: F82621 | E6: 4115 | F6: 209 | G6: 2494 | H6: 5 | I6: 28 | J6: 13 | K6: 0 | L6: 3 | M6: 20 | N6: 39 | O6: 121 | P6: 2 | Q6: 701 | R6: 140 | S6: 1 | T6: 48 | U6: 124 | V6: 35 | W6: 1958 | X6: 205 | Y6: 572 | Z6: 3084 | AA6: 35 | AB6: 27 | AC6: 11 | AD6: 0 | AE6: 3 | AF6: 571 | AG6: 167 | AH6: 0 | AI6: 166 | AJ6: 280 | AK6: 77 | AL6: 0 | AM6: 0 | AN6: 306 | AO6: 78 | AP6: 24 | AQ6: 72 | AR6: 18 | AS6: 0 | AT6: 0 | AU6: 68 | AV6: 43 | AW6: 39 | AX6: 44 | AY6: 35 | AZ6: 24
A7: CH_LDP | B7: 44287 | C7: 44827 | D7: F82624 | E7: 3828 | F7: 261 | G7: 2586 | H7: 1 | I7: 56 | J7: 1 | K7: 1 | L7: 0 | M7: 42 | N7: 73 | O7: 299 | P7: 5 | Q7: 2116 | R7: 223 | S7: 4 | T7: 54 | U7: 155 | V7: 30 | W7: 2464 | X7: 97 | Y7: 881 | Z7: 3183 | AA7: 23 | AB7: 21 | AC7: 7 | AD7: 0 | AE7: 3 | AF7: 707 | AG7: 430 | AH7: 0 | AI7: 148 | AJ7: 645 | AK7: 113 | AL7: 2 | AM7: 4 | AN7: 280 | AO7: 66 | AP7: 8 | AQ7: 63 | AR7: 9 | AS7: 0 | AT7: 0 | AU7: 56 | AV7: 18 | AW7: 63 | AX7: 56 | AY7: 49 | AZ7: 37
A8: CH_LDP | B8: 44287 | C8: 44827 | D8: F82625 | E8: 7157 | F8: 413 | G8: 4411 | H8: 7 | I8: 37 | J8: 15 | K8: 7 | L8: 2 | M8: 24 | N8: 54 | O8: 204 | P8: 3 | Q8: 1732 | R8: 349 | S8: 8 | T8: 125 | U8: 254 | V8: 71 | W8: 3783 | X8: 258 | Y8: 1253 | Z8: 5452 | AA8: 87 | AB8: 79 | AC8: 24 | AD8: 1 | AE8: 3 | AF8: 817 | AG8: 402 | AH8: 0 | AI8: 231 | AJ8: 526 | AK8: 122 | AL8: 3 | AM8: 4 | AN8: 528 | AO8: 52 | AP8: 11 | AQ8: 46 | AR8: 24 | AS8: 1 | AT8: 0 | AU8: 43 | AV8: 34 | AW8: 77 | AX8: 42 | AY8: 32 | AZ8: 25 | BB8: Abbey Medical centre | BC8: BK | BD8: BK-3 | BE8: New West
A9: CH_LDP | B9: 44287 | C9: 44827 | D9: F82627 | E9: 5160 | F9: 159 | G9: 3145 | H9: 7 | I9: 62 | J9: 1 | K9: 1 | L9: 0 | M9: 37 | N9: 116 | O9: 133 | P9: 1 | Q9: 572 | R9: 117 | S9: 2 | T9: 44 | U9: 88 | V9: 32 | W9: 2313 | X9: 205 | Y9: 452 | Z9: 3930 | AA9: 28 | AB9: 21 | AC9: 4 | AD9: 0 | AE9: 2 | AF9: 444 | AG9: 112 | AH9: 0 | AI9: 103 | AJ9: 200 | AK9: 88 | AL9: 0 | AM9: 0 | AN9: 330 | AO9: 81 | AP9: 8 | AQ9: 67 | AR9: 23 | AS9: 0 | AT9: 0 | AU9: 65 | AV9: 11 | AW9: 24 | AX9: 43 | AY9: 20 | AZ9: 14
A10: CH_LDP | B10: 44287 | C10: 44827 | D10: F82630 | E10: 6568 | F10: 318 | G10: 4106 | H10: 29 | I10: 159 | J10: 6 | K10: 1 | L10: 0 | M10: 109 | N10: 233 | O10: 274 | P10: 3 | Q10: 938 | R10: 242 | S10: 2 | T10: 117 | U10: 263 | V10: 62 | W10: 3205 | X10: 359 | Y10: 1166 | Z10: 5174 | AA10: 41 | AB10: 27 | AC10: 10 | AD10: 1 | AE10: 0 | AF10: 993 | AG10: 414 | AH10: 0 | AI10: 197 | AJ10: 622 | AK10: 196 | AL10: 0 | AM10: 0 | AN10: 436 | AO10: 159 | AP10: 22 | AQ10: 107 | AR10: 36 | AS10: 7 | AT10: 0 | AU10: 119 | AV10: 7 | AW10: 88 | AX10: 95 | AY10: 68 | AZ10: 46
A11: CH_LDP | B11: 44287 | C11: 44827 | D11: F82634 | E11: 5234 | F11: 214 | G11: 3188 | H11: 0 | I11: 56 | J11: 19 | K11: 14 | L11: 4 | M11: 43 | N11: 84 | O11: 128 | P11: 1 | Q11: 1405 | R11: 170 | S11: 4 | T11: 54 | U11: 161 | V11: 31 | W11: 2016 | X11: 176 | Y11: 623 | Z11: 3919 | AA11: 35 | AB11: 28 | AC11: 7 | AD11: 0 | AE11: 4 | AF11: 577 | AG11: 302 | AH11: 0 | AI11: 126 | AJ11: 409 | AK11: 76 | AL11: 1 | AM11: 3 | AN11: 249 | AO11: 71 | AP11: 17 | AQ11: 58 | AR11: 16 | AS11: 2 | AT11: 0 | AU11: 46 | AV11: 15 | AW11: 40 | AX11: 35 | AY11: 31 | AZ11: 22 | BB11: Heathway Medical Centre | BC11: BK | BD11: BK-2 | BE11: East One
A12: CH_LDP | B12: 44287 | C12: 44827 | D12: F82638 | E12: 6474 | F12: 197 | G12: 4029 | H12: 57 | I12: 113 | J12: 1 | K12: 1 | L12: 1 | M12: 80 | N12: 165 | O12: 87 | P12: 1 | Q12: 1346 | R12: 152 | S12: 6 | T12: 67 | U12: 176 | V12: 49 | W12: 3095 | X12: 235 | Y12: 1023 | Z12: 4909 | AA12: 42 | AB12: 32 | AC12: 13 | AD12: 0 | AE12: 1 | AF12: 711 | AG12: 283 | AH12: 0 | AI12: 153 | AJ12: 426 | AK12: 136 | AL12: 3 | AM12: 3 | AN12: 302 | AO12: 80 | AP12: 5 | AQ12: 66 | AR12: 29 | AS12: 0 | AT12: 0 | AU12: 53 | AV12: 25 | AW12: 63 | AX12: 88 | AY12: 66 | AZ12: 52
A13: CH_LDP | B13: 44287 | C13: 44827 | D13: F82642 | E13: 6793 | F13: 245 | G13: 4109 | H13: 6 | I13: 139 | J13: 4 | K13: 4 | L13: 0 | M13: 100 | N13: 195 | O13: 200 | P13: 3 | Q13: 1574 | R13: 180 | S13: 2 | T13: 95 | U13: 206 | V13: 74 | W13: 3161 | X13: 391 | Y13: 848 | Z13: 5102 | AA13: 68 | AB13: 48 | AC13: 18 | AD13: 0 | AE13: 3 | AF13: 793 | AG13: 391 | AH13: 0 | AI13: 181 | AJ13: 548 | AK13: 130 | AL13: 0 | AM13: 0 | AN13: 400 | AO13: 146 | AP13: 30 | AQ13: 142 | AR13: 62 | AS13: 0 | AT13: 0 | AU13: 102 | AV13: 39 | AW13: 58 | AX13: 92 | AY13: 63 | AZ13: 45 | BB13: Gables Surgery | BC13: BK | BD13: BK-5 | BE13: North
A14: CH_LDP | B14: 44287 | C14: 44827 | D14: F82647 | E14: 4712 | F14: 358 | G14: 3327 | H14: 6 | I14: 27 | J14: 5 | K14: 4 | L14: 0 | M14: 19 | N14: 39 | O14: 235 | P14: 3 | Q14: 1033 | R14: 316 | S14: 16 | T14: 55 | U14: 155 | V14: 26 | W14: 2765 | X14: 98 | Y14: 756 | Z14: 3919 | AA14: 30 | AB14: 28 | AC14: 2 | AD14: 0 | AE14: 3 | AF14: 482 | AG14: 249 | AH14: 0 | AI14: 193 | AJ14: 332 | AK14: 80 | AL14: 2 | AM14: 2 | AN14: 431 | AO14: 40 | AP14: 10 | AQ14: 39 | AR14: 8 | AS14: 0 | AT14: 0 | AU14: 32 | AV14: 6 | AW14: 49 | AX14: 29 | AY14: 20 | AZ14: 11 | BB14: Dr Gupta & Partner | BC14: BK | BD14: BK-4 | BE14: West One
A15: CH_LDP | B15: 44287 | C15: 44827 | D15: F82648 | E15: 3393 | F15: 193 | G15: 2190 | H15: 3 | I15: 45 | J15: 4 | K15: 4 | L15: 0 | M15: 37 | N15: 58 | O15: 99 | P15: 1 | Q15: 484 | R15: 170 | S15: 2 | T15: 63 | U15: 111 | V15: 46 | W15: 1659 | X15: 216 | Y15: 580 | Z15: 2627 | AA15: 42 | AB15: 32 | AC15: 22 | AD15: 0 | AE15: 1 | AF15: 443 | AG15: 226 | AH15: 0 | AI15: 154 | AJ15: 318 | AK15: 56 | AL15: 0 | AM15: 0 | AN15: 256 | AO15: 79 | AP15: 21 | AQ15: 71 | AR15: 34 | AS15: 2 | AT15: 0 | AU15: 64 | AV15: 37 | AW15: 36 | AX15: 33 | AY15: 24 | AZ15: 22
A16: CH_LDP | B16: 44287 | C16: 44827 | D16: F82649 | E16: 4740 | F16: 276 | G16: 3224 | H16: 39 | I16: 170 | J16: 29 | K16: 18 | L16: 6 | M16: 133 | N16: 231 | O16: 394 | P16: 2 | Q16: 1649 | R16: 246 | S16: 5 | T16: 75 | U16: 174 | V16: 67 | W16: 2677 | X16: 233 | Y16: 934 | Z16: 3968 | AA16: 49 | AB16: 41 | AC16: 10 | AD16: 0 | AE16: 5 | AF16: 922 | AG16: 491 | AH16: 0 | AI16: 170 | AJ16: 646 | AK16: 126 | AL16: 1 | AM16: 2 | AN16: 342 | AO16: 113 | AP16: 14 | AQ16: 110 | AR16: 41 | AS16: 0 | AT16: 0 | AU16: 78 | AV16: 67 | AW16: 66 | AX16: 82 | AY16: 62 | AZ16: 50
A17: CH_LDP | B17: 44287 | C17: 44827 | D17: F82650 | E17: 8713 | F17: 339 | G17: 5280 | H17: 14 | I17: 98 | J17: 3 | K17: 1 | L17: 0 | M17: 60 | N17: 169 | O17: 180 | P17: 1 | Q17: 1748 | R17: 304 | S17: 2 | T17: 82 | U17: 161 | V17: 48 | W17: 4073 | X17: 261 | Y17: 839 | Z17: 6507 | AA17: 53 | AB17: 46 | AC17: 6 | AD17: 0 | AE17: 2 | AF17: 760 | AG17: 312 | AH17: 0 | AI17: 185 | AJ17: 411 | AK17: 141 | AL17: 1 | AM17: 2 | AN17: 579 | AO17: 82 | AP17: 15 | AQ17: 75 | AR17: 39 | AS17: 0 | AT17: 0 | AU17: 62 | AV17: 19 | AW17: 85 | AX17: 63 | AY17: 37 | AZ17: 23 | BB17: Ripple Road Medical Centre | BC17: BK | BD17: BK-4 | BE17: West One
A18: CH_LDP | B18: 44287 | C18: 44827 | D18: Y01795 | E18: 3490 | F18: 186 | G18: 2167 | H18: 0 | I18: 30 | J18: 4 | K18: 3 | L18: 0 | M18: 22 | N18: 37 | O18: 54 | P18: 2 | Q18: 806 | R18: 168 | S18: 23 | T18: 80 | U18: 194 | V18: 59 | W18: 1819 | X18: 187 | Y18: 842 | Z18: 2644 | AA18: 31 | AB18: 29 | AC18: 10 | AD18: 0 | AE18: 1 | AF18: 420 | AG18: 257 | AH18: 0 | AI18: 57 | AJ18: 329 | AK18: 50 | AL18: 5 | AM18: 6 | AN18: 202 | AO18: 40 | AP18: 0 | AQ18: 37 | AR18: 15 | AS18: 1 | AT18: 0 | AU18: 15 | AV18: 16 | AW18: 36 | AX18: 23 | AY18: 18 | AZ18: 13 | BB18: The Oval Practice | BC18: BK | BD18: BK-5 | BE18: North
A19: CH_LDP | B19: 44287 | C19: 44827 | D19: F82661 | E19: 3767 | F19: 55 | G19: 2423 | H19: 0 | I19: 12 | J19: 0 | K19: 0 | L19: 0 | M19: 2 | N19: 41 | O19: 57 | P19: 0 | Q19: 785 | R19: 28 | S19: 0 | T19: 18 | U19: 36 | V19: 17 | W19: 2152 | X19: 168 | Y19: 173 | Z19: 2892 | AA19: 21 | AB19: 20 | AC19: 6 | AD19: 0 | AE19: 3 | AF19: 351 | AG19: 43 | AH19: 0 | AI19: 68 | AJ19: 79 | AK19: 44 | AL19: 0 | AM19: 1 | AN19: 206 | AO19: 24 | AP19: 3 | AQ19: 24 | AR19: 7 | AS19: 0 | AT19: 0 | AU19: 15 | AV19: 8 | AW19: 6 | AX19: 25 | AY19: 4 | AZ19: 2 | BB19: Green Lane Surgery | BC19: BK | BD19: BK-5 | BE19: North
A20: CH_LDP | B20: 44287 | C20: 44827 | D20: F82663 | E20: 3815 | F20: 77 | G20: 2598 | H20: 0 | I20: 17 | J20: 0 | K20: 0 | L20: 0 | M20: 9 | N20: 39 | O20: 42 | P20: 0 | Q20: 226 | R20: 56 | S20: 1 | T20: 14 | U20: 29 | V20: 5 | W20: 1609 | X20: 155 | Y20: 109 | Z20: 3081 | AA20: 39 | AB20: 26 | AC20: 12 | AD20: 0 | AE20: 1 | AF20: 400 | AG20: 165 | AH20: 0 | AI20: 41 | AJ20: 228 | AK20: 58 | AL20: 0 | AM20: 0 | AN20: 125 | AO20: 44 | AP20: 0 | AQ20: 28 | AR20: 11 | AS20: 0 | AT20: 0 | AU20: 22 | AV20: 1 | AW20: 37 | AX20: 54 | AY20: 34 | AZ20: 23
A21: CH_LDP | B21: 44287 | C21: 44827 | D21: F82666 | E21: 4743 | F21: 136 | G21: 3176 | H21: 0 | I21: 37 | J21: 2 | K21: 2 | L21: 0 | M21: 23 | N21: 82 | O21: 216 | P21: 0 | Q21: 1010 | R21: 111 | S21: 0 | T21: 46 | U21: 115 | V21: 35 | W21: 2613 | X21: 187 | Y21: 558 | Z21: 3859 | AA21: 21 | AB21: 20 | AC21: 4 | AD21: 0 | AE21: 2 | AF21: 644 | AG21: 186 | AH21: 0 | AI21: 133 | AJ21: 264 | AK21: 115 | AL21: 2 | AM21: 2 | AN21: 257 | AO21: 65 | AP21: 13 | AQ21: 64 | AR21: 20 | AS21: 0 | AT21: 0 | AU21: 49 | AV21: 17 | AW21: 33 | AX21: 55 | AY21: 29 | AZ21: 20
A22: CH_LDP | B22: 44287 | C22: 44827 | D22: F82609 | E22: 4472 | F22: 265 | G22: 3018 | H22: 111 | I22: 237 | J22: 8 | K22: 4 | L22: 0 | M22: 220 | N22: 267 | O22: 164 | P22: 0 | Q22: 1380 | R22: 255 | S22: 1 | T22: 112 | U22: 273 | V22: 51 | W22: 2774 | X22: 165 | Y22: 1487 | Z22: 3783 | AA22: 33 | AB22: 27 | AC22: 8 | AD22: 0 | AE22: 0 | AF22: 928 | AG22: 453 | AH22: 0 | AI22: 189 | AJ22: 707 | AK22: 145 | AL22: 0 | AM22: 0 | AN22: 331 | AO22: 115 | AP22: 19 | AQ22: 109 | AR22: 24 | AS22: 0 | AT22: 0 | AU22: 111 | AV22: 105 | AW22: 62 | AX22: 87 | AY22: 76 | AZ22: 70
A23: CH_LDP | B23: 44287 | C23: 44827 | D23: F82670 | E23: 2984 | F23: 180 | G23: 1785 | H23: 1 | I23: 25 | J23: 4 | K23: 3 | L23: 1 | M23: 17 | N23: 30 | O23: 45 | P23: 4 | Q23: 427 | R23: 149 | S23: 0 | T23: 40 | U23: 69 | V23: 25 | W23: 1152 | X23: 138 | Y23: 331 | Z23: 2202 | AA23: 31 | AB23: 25 | AC23: 7 | AD23: 0 | AE23: 1 | AF23: 249 | AG23: 172 | AH23: 0 | AI23: 110 | AJ23: 222 | AK23: 47 | AL23: 0 | AM23: 0 | AN23: 192 | AO23: 41 | AP23: 6 | AQ23: 35 | AR23: 17 | AS23: 0 | AT23: 0 | AU23: 32 | AV23: 17 | AW23: 36 | AX23: 30 | AY23: 28 | AZ23: 20
A24: CH_LDP | B24: 44287 | C24: 44827 | D24: F82607 | E24: 4830 | F24: 207 | G24: 3058 | H24: 0 | I24: 56 | J24: 2 | K24: 0 | L24: 0 | M24: 33 | N24: 97 | O24: 110 | P24: 2 | Q24: 691 | R24: 179 | S24: 4 | T24: 95 | U24: 201 | V24: 58 | W24: 2649 | X24: 188 | Y24: 850 | Z24: 3812 | AA24: 39 | AB24: 32 | AC24: 7 | AD24: 0 | AE24: 4 | AF24: 799 | AG24: 299 | AH24: 0 | AI24: 143 | AJ24: 451 | AK24: 111 | AL24: 0 | AM24: 0 | AN24: 296 | AO24: 80 | AP24: 17 | AQ24: 74 | AR24: 18 | AS24: 0 | AT24: 0 | AU24: 71 | AV24: 32 | AW24: 43 | AX24: 59 | AY24: 38 | AZ24: 32
A25: CH_LDP | B25: 44287 | C25: 44827 | D25: F82055 | E25: 8420 | F25: 345 | G25: 5545 | H25: 11 | I25: 115 | J25: 17 | K25: 5 | L25: 3 | M25: 70 | N25: 139 | O25: 218 | P25: 4 | Q25: 2426 | R25: 262 | S25: 5 | T25: 96 | U25: 275 | V25: 55 | W25: 4919 | X25: 420 | Y25: 1187 | Z25: 6680 | AA25: 46 | AB25: 41 | AC25: 14 | AD25: 0 | AE25: 3 | AF25: 1239 | AG25: 554 | AH25: 0 | AI25: 247 | AJ25: 862 | AK25: 150 | AL25: 1 | AM25: 1 | AN25: 413 | AO25: 94 | AP25: 12 | AQ25: 78 | AR25: 19 | AS25: 0 | AT25: 0 | AU25: 87 | AV25: 76 | AW25: 78 | AX25: 119 | AY25: 100 | AZ25: 69
A26: CH_LDP | B26: 44287 | C26: 44827 | D26: Y02987 | E26: 21361 | F26: 1084 | G26: 12643 | H26: 7 | I26: 149 | J26: 61 | K26: 25 | L26: 12 | M26: 99 | N26: 195 | O26: 577 | P26: 7 | Q26: 4047 | R26: 874 | S26: 14 | T26: 252 | U26: 666 | V26: 151 | W26: 9724 | X26: 624 | Y26: 3512 | Z26: 15975 | AA26: 219 | AB26: 204 | AC26: 58 | AD26: 1 | AE26: 7 | AF26: 1876 | AG26: 816 | AH26: 0 | AI26: 597 | AJ26: 1167 | AK26: 273 | AL26: 4 | AM26: 5 | AN26: 1203 | AO26: 77 | AP26: 19 | AQ26: 72 | AR26: 27 | AS26: 0 | AT26: 0 | AU26: 48 | AV26: 22 | AW26: 156 | AX26: 137 | AY26: 104 | AZ26: 80
A27: CH_LDP | B27: 44287 | C27: 44827 | D27: Y02973 | E27: 8497 | F27: 220 | G27: 5494 | H27: 20 | I27: 63 | J27: 6 | K27: 2 | L27: 0 | M27: 44 | N27: 77 | O27: 99 | P27: 1 | Q27: 894 | R27: 167 | S27: 3 | T27: 132 | U27: 275 | V27: 85 | W27: 3979 | X27: 385 | Y27: 1328 | Z27: 6360 | AA27: 58 | AB27: 45 | AC27: 15 | AD27: 0 | AE27: 1 | AF27: 566 | AG27: 336 | AH27: 0 | AI27: 125 | AJ27: 433 | AK27: 95 | AL27: 1 | AM27: 1 | AN27: 273 | AO27: 60 | AP27: 12 | AQ27: 52 | AR27: 25 | AS27: 0 | AT27: 0 | AU27: 43 | AV27: 26 | AW27: 72 | AX27: 50 | AY27: 34 | AZ27: 26
A28: CH_LDP | B28: 44287 | C28: 44827 | D28: Y02575 | E28: 20928 | F28: 719 | G28: 12159 | H28: 5 | I28: 113 | J28: 17 | K28: 12 | L28: 1 | M28: 84 | N28: 166 | O28: 277 | P28: 17 | Q28: 3019 | R28: 516 | S28: 62 | T28: 258 | U28: 656 | V28: 159 | W28: 9211 | X28: 800 | Y28: 2992 | Z28: 14597 | AA28: 127 | AB28: 112 | AC28: 41 | AD28: 0 | AE28: 9 | AF28: 1511 | AG28: 783 | AH28: 0 | AI28: 352 | AJ28: 1171 | AK28: 151 | AL28: 2 | AM28: 3 | AN28: 923 | AO28: 96 | AP28: 13 | AQ28: 91 | AR28: 32 | AS28: 0 | AT28: 0 | AU28: 71 | AV28: 46 | AW28: 98 | AX28: 100 | AY28: 88 | AZ28: 68 | BB28: Porters Avenue Doctors Surgery | BC28: BK | BD28: BK-1 | BE28: East
A29: CH_LDP | B29: 44287 | C29: 44827 | D29: F82021 | E29: 9804 | F29: 370 | G29: 6462 | H29: 9 | I29: 129 | J29: 30 | K29: 3 | L29: 8 | M29: 89 | N29: 237 | O29: 195 | P29: 3 | Q29: 1104 | R29: 329 | S29: 5 | T29: 151 | U29: 395 | V29: 85 | W29: 5131 | X29: 250 | Y29: 1703 | Z29: 8088 | AA29: 64 | AB29: 56 | AC29: 12 | AD29: 0 | AE29: 5 | AF29: 1466 | AG29: 663 | AH29: 0 | AI29: 344 | AJ29: 895 | AK29: 236 | AL29: 6 | AM29: 7 | AN29: 577 | AO29: 129 | AP29: 26 | AQ29: 115 | AR29: 31 | AS29: 0 | AT29: 0 | AU29: 103 | AV29: 41 | AW29: 107 | AX29: 179 | AY29: 97 | AZ29: 66
A30: CH_LDP | B30: 44287 | C30: 44827 | D30: F82022 | E30: 12534 | F30: 807 | G30: 8410 | H30: 41 | I30: 260 | J30: 4 | K30: 2 | L30: 2 | M30: 177 | N30: 344 | O30: 423 | P30: 7 | Q30: 3143 | R30: 571 | S30: 20 | T30: 236 | U30: 535 | V30: 173 | W30: 7474 | X30: 825 | Y30: 2372 | Z30: 10467 | AA30: 108 | AB30: 81 | AC30: 32 | AD30: 0 | AE30: 10 | AF30: 2326 | AG30: 1127 | AH30: 0 | AI30: 468 | AJ30: 1729 | AK30: 355 | AL30: 4 | AM30: 4 | AN30: 888 | AO30: 244 | AP30: 38 | AQ30: 229 | AR30: 67 | AS30: 0 | AT30: 0 | AU30: 191 | AV30: 72 | AW30: 197 | AX30: 198 | AY30: 180 | AZ30: 131
A31: CH_LDP | B31: 44287 | C31: 44827 | D31: F82023 | E31: 3346 | F31: 240 | G31: 2299 | H31: 4 | I31: 40 | J31: 0 | K31: 0 | L31: 0 | M31: 34 | N31: 57 | O31: 98 | P31: 2 | Q31: 977 | R31: 221 | S31: 5 | T31: 27 | U31: 77 | V31: 22 | W31: 2062 | X31: 243 | Y31: 356 | Z31: 2861 | AA31: 22 | AB31: 22 | AC31: 12 | AD31: 0 | AE31: 2 | AF31: 609 | AG31: 289 | AH31: 0 | AI31: 138 | AJ31: 440 | AK31: 101 | AL31: 2 | AM31: 2 | AN31: 273 | AO31: 64 | AP31: 27 | AQ31: 59 | AR31: 21 | AS31: 0 | AT31: 0 | AU31: 52 | AV31: 20 | AW31: 60 | AX31: 46 | AY31: 42 | AZ31: 33
A32: CH_LDP | B32: 44287 | C32: 44827 | D32: F82025 | E32: 5607 | F32: 188 | G32: 3334 | H32: 0 | I32: 78 | J32: 8 | K32: 0 | L32: 1 | M32: 42 | N32: 119 | O32: 99 | P32: 0 | Q32: 1005 | R32: 129 | S32: 2 | T32: 38 | U32: 60 | V32: 23 | W32: 2456 | X32: 165 | Y32: 279 | Z32: 4162 | AA32: 43 | AB32: 28 | AC32: 4 | AD32: 0 | AE32: 3 | AF32: 774 | AG32: 205 | AH32: 0 | AI32: 96 | AJ32: 388 | AK32: 106 | AL32: 0 | AM32: 0 | AN32: 316 | AO32: 110 | AP32: 15 | AQ32: 88 | AR32: 29 | AS32: 0 | AT32: 0 | AU32: 100 | AV32: 69 | AW32: 48 | AX32: 52 | AY32: 29 | AZ32: 19 | BB32: Julia Engwell Surgery | BC32: BK | BD32: BK-5 | BE32: North
